Workbook

Sheet Regional Project List Sheet
A1: pw: | B1: Macro Cols | I1: Choose Region:
A2: "region" | B2: AV, AW | E2: FFY 2026 Proposed HSIP Projects - XX Region
N3: Ranking Criteria | R3: Project Eligibility | T3: Crashes Susceptible to Correction as listed in Ranking Spreadsheet | AA3: MPO Information
E4: Number | F4: Project Name | G4: Project Type | H4: IRIS Number | I4: HSIP Project Number | J4: Ranking Year | K4: Ranking Type | L4: B/C | M4: Safety Index | N4: Critiera 1 | O4: Criteria 2 | P4: Criteria 3A | Q4: Criteria 3B | R4: VRU | S4: SSP | T4: Property Damage Only | U4: Possible Injury | V4: Suspected Minor Injury | W4: Suspected Serious Injury | X4: Fatal Injury (Killed) | Y4: Region | Z4: Amount not in MPO | AA4: $ Amount in AMATS | AB4: AMATS $ amount in FFY26 | AC4: In AMATS TIP | AD4: $ Amount in MVP | AE4: MVP $ amount in FFY26 | AF4: In MVP TIP | AG4: $ Amount in FAST | AH4: FAST $ amount in FFY26 | AI4: In FAST TIP | AJ4: Bundled? If yes, include project identifier (IRIS + HSIP Nom) | AK4: Project Description | AL4: Regional Response / Adjustment | AV4: FORMULAS | AW4: COL
A5: Region | C5: 1 | J5: =MID(Table1[[#This Row],[HSIP Project Number]],1,2) ->  | K5: =MID(Table1[[#This Row],[HSIP Project Number]],4,1) ->  | Y5: =IF($I$2="Central","C",IF($I$2="Northern","N",IF($I$2="Southcoast","S",IF($I$2="Statewide","H","Choose from Project List in cell I2")))) -> Choose from Project List in cell I2 | AA5: =IF(OR($I$2=$A$7,$I$2=$A$10),$A$41,"N/A") -> N/A | AB5: =IF($AA5="N/A","N/A","") -> N/A | AC5: =IF($AA5="N/A","N/A","") -> N/A | AD5: =IF(OR($I$2=$A$7,$I$2=$A$10),$A$41,"N/A") -> N/A | AE5: =IF($AD5="N/A","N/A","") -> N/A | AF5: =IF($AD5="N/A","N/A","") -> N/A | AG5: =IF(OR($I$2=$A$8,$I$2=$A$10),$A$41,"N/A") -> N/A | AH5: =IF($AG5="N/A","N/A","") -> N/A | AI5: =IF($AG5="N/A","N/A","") -> N/A | AV5: =IF(OR($I$2=$A$7,$I$2=$A$10),$A$41,"N/A") -> N/A | AW5: AA
C6: 2 | J6: =MID(Table1[[#This Row],[HSIP Project Number]],1,2) ->  | K6: =MID(Table1[[#This Row],[HSIP Project Number]],4,1) ->  | Y6: Choose from Project List in cell I2 | AA6: N/A | AB6: =IF($AA6="N/A","N/A","") -> N/A | AC6: N/A | AD6: =IF(OR($I$2=$A$7,$I$2=$A$10),$A$41,"N/A") -> N/A | AE6: =IF($AD6="N/A","N/A","") -> N/A | AF6: N/A | AG6: =IF(OR($I$2=$A$8,$I$2=$A$10),$A$41,"N/A") -> N/A | AH6: =IF($AG6="N/A","N/A","") -> N/A | AI6: N/A | AV6: =IF($AA5="N/A","N/A","") -> N/A | AW6: AB
A7: Central | C7: 3 | J7: =MID(Table1[[#This Row],[HSIP Project Number]],1,2) ->  | K7: =MID(Table1[[#This Row],[HSIP Project Number]],4,1) ->  | Y7: Choose from Project List in cell I2 | AA7: N/A | AB7: N/A | AC7: N/A | AD7: N/A | AE7: N/A | AF7: N/A | AG7: N/A | AH7: N/A | AI7: N/A | AV7: =IF($AA5="N/A","N/A","") -> N/A | AW7: AC
A8: Northern | C8: 4 | J8: =MID(Table1[[#This Row],[HSIP Project Number]],1,2) ->  | K8: =MID(Table1[[#This Row],[HSIP Project Number]],4,1) ->  | Y8: Choose from Project List in cell I2 | AA8: N/A | AB8: N/A | AC8: N/A | AD8: N/A | AE8: N/A | AF8: N/A | AG8: N/A | AH8: N/A | AI8: N/A | AV8: =IF(OR($I$2=$A$7,$I$2=$A$10),$A$41,"N/A") -> N/A | AW8: AE
A9: Southcoast | C9: 5 | J9: =MID(Table1[[#This Row],[HSIP Project Number]],1,2) ->  | K9: =MID(Table1[[#This Row],[HSIP Project Number]],4,1) ->  | Y9: Choose from Project List in cell I2 | AA9: N/A | AB9: N/A | AC9: N/A | AD9: N/A | AE9: N/A | AF9: N/A | AG9: N/A | AH9: N/A | AI9: N/A | AV9: =IF($AD5="N/A","N/A","") -> N/A | AW9: AD
A10: Statewide | C10: 6 | J10: =MID(Table1[[#This Row],[HSIP Project Number]],1,2) ->  | K10: =MID(Table1[[#This Row],[HSIP Project Number]],4,1) ->  | Y10: Choose from Project List in cell I2 | AA10: N/A | AB10: N/A | AC10: N/A | AD10: N/A | AE10: N/A | AF10: N/A | AG10: N/A | AH10: N/A | AI10: N/A | AV10: =IF($AD5="N/A","N/A","") -> N/A | AW10: AF
C11: 7 | J11: =MID(Table1[[#This Row],[HSIP Project Number]],1,2) ->  | K11: =MID(Table1[[#This Row],[HSIP Project Number]],4,1) ->  | Y11: Choose from Project List in cell I2 | AA11: N/A | AB11: N/A | AC11: N/A | AD11: N/A | AE11: N/A | AF11: N/A | AG11: N/A | AH11: N/A | AI11: N/A | AV11: =IF(OR($I$2=$A$8,$I$2=$A$10),$A$41,"N/A") -> N/A | AW11: AG
A12: Project Type | C12: 8 | J12: =MID(Table1[[#This Row],[HSIP Project Number]],1,2) ->  | K12: =MID(Table1[[#This Row],[HSIP Project Number]],4,1) ->  | Y12: Choose from Project List in cell I2 | AA12: N/A | AB12: N/A | AC12: N/A | AD12: N/A | AE12: N/A | AF12: N/A | AG12: N/A | AH12: N/A | AI12: N/A | AV12: =IF($AG5="N/A","N/A","") -> N/A | AW12: AH
A13: New | C13: 9 | J13: =MID(Table1[[#This Row],[HSIP Project Number]],1,2) ->  | K13: =MID(Table1[[#This Row],[HSIP Project Number]],4,1) ->  | Y13: Choose from Project List in cell I2 | AA13: N/A | AB13: N/A | AC13: N/A | AD13: N/A | AE13: N/A | AF13: N/A | AG13: N/A | AH13: N/A | AI13: N/A | AV13: =IF($AG5="N/A","N/A","") -> N/A | AW13: AI
A14: Funded Old | C14: 10 | J14: =MID(Table1[[#This Row],[HSIP Project Number]],1,2) ->  | K14: =MID(Table1[[#This Row],[HSIP Project Number]],4,1) ->  | Y14: Choose from Project List in cell I2 | AA14: N/A | AB14: N/A | AC14: N/A | AD14: N/A | AE14: N/A | AF14: N/A | AG14: N/A | AH14: N/A | AI14: N/A
A15: Unfunded Old | C15: 11 | J15: =MID(Table1[[#This Row],[HSIP Project Number]],1,2) ->  | K15: =MID(Table1[[#This Row],[HSIP Project Number]],4,1) ->  | Y15: Choose from Project List in cell I2 | AA15: N/A | AB15: N/A | AC15: N/A | AD15: N/A | AE15: N/A | AF15: N/A | AG15: N/A | AH15: N/A | AI15: N/A | AV15: =IF(AW15<>0,1,"") -> 1 | AW15: E5
C16: 12 | J16: =MID(Table1[[#This Row],[HSIP Project Number]],1,2) ->  | K16: =MID(Table1[[#This Row],[HSIP Project Number]],4,1) ->  | Y16: Choose from Project List in cell I2 | AA16: N/A | AB16: N/A | AC16: N/A | AD16: N/A | AE16: N/A | AF16: N/A | AG16: N/A | AH16: N/A | AI16: N/A | AV16: =IF($I$2="Central","C",IF($I$2="Northern","N",IF($I$2="Southcoast","S",IF($I$2="Statewide","H","Choose from Project List in cell I2")))) -> Choose from Project List in cell I2 | AW16: Y
A17: Criteria | C17: 13 | J17: =MID(Table1[[#This Row],[HSIP Project Number]],1,2) ->  | K17: =MID(Table1[[#This Row],[HSIP Project Number]],4,1) ->  | Y17: Choose from Project List in cell I2 | AA17: N/A | AB17: N/A | AC17: N/A | AD17: N/A | AE17: N/A | AF17: N/A | AG17: N/A | AH17: N/A | AI17: N/A | AV17: =IF(AW17<>0,AV16+1,"") ->  | AW17: E6
A18: 5 | C18: 14 | J18: =MID(Table1[[#This Row],[HSIP Project Number]],1,2) ->  | K18: =MID(Table1[[#This Row],[HSIP Project Number]],4,1) ->  | Y18: Choose from Project List in cell I2 | AA18: N/A | AB18: N/A | AC18: N/A | AD18: N/A | AE18: N/A | AF18: N/A | AG18: N/A | AH18: N/A | AI18: N/A
A19: 4 | C19: 15 | J19: =MID(Table1[[#This Row],[HSIP Project Number]],1,2) ->  | K19: =MID(Table1[[#This Row],[HSIP Project Number]],4,1) ->  | Y19: Choose from Project List in cell I2 | AA19: N/A | AB19: N/A | AC19: N/A | AD19: N/A | AE19: N/A | AF19: N/A | AG19: N/A | AH19: N/A | AI19: N/A | AV19: =MID(Table1[[#This Row],[HSIP Project Number]],1,2) ->  | AW19: J
A20: 3 | C20: 16 | J20: =MID(Table1[[#This Row],[HSIP Project Number]],1,2) ->  | K20: =MID(Table1[[#This Row],[HSIP Project Number]],4,1) ->  | Y20: Choose from Project List in cell I2 | AA20: N/A | AB20: N/A | AC20: N/A | AD20: N/A | AE20: N/A | AF20: N/A | AG20: N/A | AH20: N/A | AI20: N/A | AV20: =MID(Table1[[#This Row],[HSIP Project Number]],4,1) ->  | AW20: K
A21: 2 | C21: 17 | J21: =MID(Table1[[#This Row],[HSIP Project Number]],1,2) ->  | K21: =MID(Table1[[#This Row],[HSIP Project Number]],4,1) ->  | Y21: Choose from Project List in cell I2 | AA21: N/A | AB21: N/A | AC21: N/A | AD21: N/A | AE21: N/A | AF21: N/A | AG21: N/A | AH21: N/A | AI21: N/A
A22: 1 | C22: 18 | J22: =MID(Table1[[#This Row],[HSIP Project Number]],1,2) ->  | K22: =MID(Table1[[#This Row],[HSIP Project Number]],4,1) ->  | Y22: Choose from Project List in cell I2 | AA22: N/A | AB22: N/A | AC22: N/A | AD22: N/A | AE22: N/A | AF22: N/A | AG22: N/A | AH22: N/A | AI22: N/A | AV22: =IF($G22=$A$14,"N/A","") ->  | AW22: P
C23: 19 | J23: =MID(Table1[[#This Row],[HSIP Project Number]],1,2) ->  | K23: =MID(Table1[[#This Row],[HSIP Project Number]],4,1) ->  | Y23: Choose from Project List in cell I2 | AA23: N/A | AB23: N/A | AC23: N/A | AD23: N/A | AE23: N/A | AF23: N/A | AG23: N/A | AH23: N/A | AI23: N/A | AV23: =IF(OR($G22=$A$13,$G5=$A$15),"N/A","") ->  | AW23: Q
A24: Option | C24: 20 | J24: =MID(Table1[[#This Row],[HSIP Project Number]],1,2) ->  | K24: =MID(Table1[[#This Row],[HSIP Project Number]],4,1) ->  | Y24: Choose from Project List in cell I2 | AA24: N/A | AB24: N/A | AC24: N/A | AD24: N/A | AE24: N/A | AF24: N/A | AG24: N/A | AH24: N/A | AI24: N/A
A25: Yes | C25: 21 | J25: =MID(Table1[[#This Row],[HSIP Project Number]],1,2) ->  | K25: =MID(Table1[[#This Row],[HSIP Project Number]],4,1) ->  | Y25: Choose from Project List in cell I2 | AA25: N/A | AB25: N/A | AC25: N/A | AD25: N/A | AE25: N/A | AF25: N/A | AG25: N/A | AH25: N/A | AI25: N/A
A26: No | C26: 22 | J26: =MID(Table1[[#This Row],[HSIP Project Number]],1,2) ->  | K26: =MID(Table1[[#This Row],[HSIP Project Number]],4,1) ->  | Y26: Choose from Project List in cell I2 | AA26: N/A | AB26: N/A | AC26: N/A | AD26: N/A | AE26: N/A | AF26: N/A | AG26: N/A | AH26: N/A | AI26: N/A
A27: N/A | C27: 23 | J27: =MID(Table1[[#This Row],[HSIP Project Number]],1,2) ->  | K27: =MID(Table1[[#This Row],[HSIP Project Number]],4,1) ->  | Y27: Choose from Project List in cell I2 | AA27: N/A | AB27: N/A | AC27: N/A | AD27: N/A | AE27: N/A | AF27: N/A | AG27: N/A | AH27: N/A | AI27: N/A
C28: 24 | J28: =MID(Table1[[#This Row],[HSIP Project Number]],1,2) ->  | K28: =MID(Table1[[#This Row],[HSIP Project Number]],4,1) ->  | Y28: Choose from Project List in cell I2 | AA28: N/A | AB28: N/A | AC28: N/A | AD28: N/A | AE28: N/A | AF28: N/A | AG28: N/A | AH28: N/A | AI28: N/A
A29: Formula | C29: 25 | J29: =MID(Table1[[#This Row],[HSIP Project Number]],1,2) ->  | K29: =MID(Table1[[#This Row],[HSIP Project Number]],4,1) ->  | Y29: Choose from Project List in cell I2 | AA29: N/A | AB29: N/A | AC29: N/A | AD29: N/A | AE29: N/A | AF29: N/A | AG29: N/A | AH29: N/A | AI29: N/A
A30: =IF(OR($I$2=$A$7,$I$2=$A$10),$A$41,"N/A") -> N/A | C30: 26 | J30: =MID(Table1[[#This Row],[HSIP Project Number]],1,2) ->  | K30: =MID(Table1[[#This Row],[HSIP Project Number]],4,1) ->  | Y30: Choose from Project List in cell I2 | AA30: N/A | AB30: N/A | AC30: N/A | AD30: N/A | AE30: N/A | AF30: N/A | AG30: N/A | AH30: N/A | AI30: N/A
C31: 27 | J31: =MID(Table1[[#This Row],[HSIP Project Number]],1,2) ->  | K31: =MID(Table1[[#This Row],[HSIP Project Number]],4,1) ->  | Y31: Choose from Project List in cell I2 | AA31: N/A | AB31: N/A | AC31: N/A | AD31: N/A | AE31: N/A | AF31: N/A | AG31: N/A | AH31: N/A | AI31: N/A
A32: FAST | C32: 28 | J32: =MID(Table1[[#This Row],[HSIP Project Number]],1,2) ->  | K32: =MID(Table1[[#This Row],[HSIP Project Number]],4,1) ->  | Y32: Choose from Project List in cell I2 | AA32: N/A | AB32: N/A | AC32: N/A | AD32: N/A | AE32: N/A | AF32: N/A | AG32: N/A | AH32: N/A | AI32: N/A
A33: =IF(OR($I$2=$A$8,$I$2=$A$10),$A$41,"N/A") -> N/A | C33: 29 | J33: =MID(Table1[[#This Row],[HSIP Project Number]],1,2) ->  | K33: =MID(Table1[[#This Row],[HSIP Project Number]],4,1) ->  | Y33: Choose from Project List in cell I2 | AA33: N/A | AB33: N/A | AC33: N/A | AD33: N/A | AE33: N/A | AF33: N/A | AG33: N/A | AH33: N/A | AI33: N/A
C34: 30 | J34: =MID(Table1[[#This Row],[HSIP Project Number]],1,2) ->  | K34: =MID(Table1[[#This Row],[HSIP Project Number]],4,1) ->  | Y34: Choose from Project List in cell I2 | AA34: N/A | AB34: N/A | AC34: N/A | AD34: N/A | AE34: N/A | AF34: N/A | AG34: N/A | AH34: N/A | AI34: N/A
A35: MPOs
A36: AMATS
A37: MVP
A38: FAST
A40: N/A
A41: Insert $ amount or N/A
A43: Criteria3A
A44: 5
A45: 3
A46: 1
A48: Criteria3B
A49: 5
A50: 4
A51: 3
A52: 2
A53: 1
A55: N/A
A56: N/A

Sheet Region_26
A1: "funding"
C2: =_xlfn.CONCAT('Regional Project List Sheet'!$I$2," Region HSIP", CHAR(10), "FFY ", MID($C$9,3,2)) -> Region HSIP FFY 26 | V2: XX Approved Funding | AO2: Proposed Funding within MPOs | BM2: Approved Funding within MPOs | BX2: Approved Funding within AMATS (and in TIP) | CI2: Approved Funding within MVP (and in TIP)
A3: Yes | Z3: =$C$9 -> 2026 | AA3: =Z3+1 -> 2027 | AB3: =AA3+1 -> 2028 | AC3: 2029 | AD3: 2030 | AE3: 2031 | AS3: 2026 | AT3: 2027 | AU3: 2028 | AV3: 2029 | AW3: 2030 | AX3: 2031 | BQ3: =$C$9 -> 2026 | BR3: =BQ3+1 -> 2027 | BS3: =BR3+1 -> 2028 | BT3: =BS3+1 -> 2029 | BU3: =BT3+1 -> 2030 | BV3: =BU3+1 -> 2031 | CB3: =$C$9 -> 2026 | CC3: =CB3+1 -> 2027 | CD3: =CC3+1 -> 2028 | CE3: =CD3+1 -> 2029 | CF3: =CE3+1 -> 2030 | CG3: =CF3+1 -> 2031 | CM3: =$C$9 -> 2026 | CN3: =CM3+1 -> 2027 | CO3: =CN3+1 -> 2028 | CP3: =CO3+1 -> 2029 | CQ3: =CP3+1 -> 2030 | CR3: =CQ3+1 -> 2031
A4: NO | V4: Total: | Z4: =$EX$281 -> 0 | AA4: =GG281 -> 0 | AB4: =HP281 -> 0 | AC4: =IY281 -> 0 | AD4: =KH281 -> 0 | AE4: =LQ281 -> 0 | AO4: Total: | AS4: =SUM(AS5:AS7) ->  | AT4: =SUM(AT5:AT7) ->  | BM4: Total: | BQ4: =SUM(BQ5:BQ7) -> 0 | BR4: =SUM(BR5:BR7) -> 0 | BS4: 0 | BT4: 0 | BU4: 0 | BV4: 0 | BX4: Total: | CB4: =SUM(CB5:CB7) -> 0 | CC4: =SUM(CC5:CC7) -> 0 | CD4: 0 | CE4: 0 | CF4: 0 | CG4: 0 | CI4: Total: | CM4: =SUM(CM5:CM7) -> 0 | CN4: =SUM(CN5:CN7) -> 0 | CO4: =SUM(CO5:CO7) -> 0 | CP4: 0 | CQ4: 0 | CR4: 0
V5: New: | Z5: =TRANSPOSE(ED$281:EF$281)*1000 ->  | AA5: =TRANSPOSE(EG$281:EI$281)*1000 ->  | AB5: =TRANSPOSE(EJ$281:EL$281)*1000 ->  | AC5: =TRANSPOSE(EM$281:EO$281)*1000 ->  | AD5: =TRANSPOSE(EP$281:ER$281)*1000 ->  | AE5: =TRANSPOSE(ES$281:EU$281)*1000 ->  | AO5: New: | AS5: =SUMIF($AH$33:$AH$272,"<>NO",$ED$33:$ED$272)*500 ->  | AT5: =SUMIF($AH$33:$AH$272,"<>NO",$EG$33:$EG$272)*500 ->  | AU5: =SUMIF($AH$33:$AH$272,"<>NO",$EJ$33:$EJ$272)*500 ->  | AV5: =SUMIF($AH$33:$AH$272,"<>NO",$EM$33:$EM$272)*500 ->  | AW5: =SUMIF($AH$33:$AH$272,"<>NO",$EP$33:$EP$272)*500 ->  | AX5: =SUMIF($AH$33:$AH$272,"<>NO",$ES$33:$ES$272)*500 ->  | BM5: New: | BQ5: =SUMIF($AJ$33:$AJ$272,$A$3,$ED$33:$ED$272)*500 -> 0 | BR5: =SUMIF($AJ$33:$AJ$272,$A$3,$EG$33:$EG$272)*500 -> 0 | BS5: =SUMIF($AJ$33:$AJ$272,$A$3,$EJ$33:$EJ$272)*500 -> 0 | BT5: =SUMIF($AJ$33:$AJ$272,$A$3,$EM$33:$EM$272)*500 -> 0 | BU5: =SUMIF($AJ$33:$AJ$272,$A$3,$EP$33:$EP$272)*500 -> 0 | BV5: =SUMIF($AJ$33:$AJ$272,$A$3,$ES$33:$ES$272)*500 -> 0 | BX5: New: | CB5: =SUMIFS($ED$33:$ED$272,$AJ$33:$AJ$272,$A$3,$AH$33:$AH$272,$A$8)*500 -> 0 | CC5: =SUMIFS($EG$33:$EG$272,$AJ$33:$AJ$272,$A$3,$AH$33:$AH$272,$A$8)*500 -> 0 | CD5: =SUMIFS($EJ$33:$EJ$272,$AJ$33:$AJ$272,$A$3,$AH$33:$AH$272,$A$8)*500 -> 0 | CE5: =SUMIFS($EM$33:$EM$272,$AJ$33:$AJ$272,$A$3,$AH$33:$AH$272,$A$8)*500 -> 0 | CF5: =SUMIFS($EP$33:$EP$272,$AJ$33:$AJ$272,$A$3,$AH$33:$AH$272,$A$8)*500 -> 0 | CG5: =SUMIFS($ES$33:$ES$272,$AJ$33:$AJ$272,$A$3,$AH$33:$AH$272,$A$8)*500 -> 0 | CI5: New: | CM5: =SUMIFS($ED$33:$ED$272,$AJ$33:$AJ$272,$A$3,$AH$33:$AH$272,$A$9)*500 -> 0 | CN5: =SUMIFS($EG$33:$EG$272,$AJ$33:$AJ$272,$A$3,$AH$33:$AH$272,$A$9)*500 -> 0 | CO5: =SUMIFS($EJ$33:$EJ$272,$AJ$33:$AJ$272,$A$3,$AH$33:$AH$272,$A$9)*500 -> 0 | CP5: =SUMIFS($EM$33:$EM$272,$AJ$33:$AJ$272,$A$3,$AH$33:$AH$272,$A$9)*500 -> 0 | CQ5: =SUMIFS($EP$33:$EP$272,$AJ$33:$AJ$272,$A$3,$AH$33:$AH$272,$A$9)*500 -> 0 | CR5: =SUMIFS($ES$33:$ES$272,$AJ$33:$AJ$272,$A$3,$AH$33:$AH$272,$A$9)*500 -> 0
V6: Funded Old: | AO6: Funded Old: | AS6: =SUMIF($AH$33:$AH$272,"<>NO",$EE$33:$EE$272)*500 ->  | AT6: =SUMIF($AH$33:$AH$272,"<>NO",$EH$33:$EH$272)*500 ->  | AU6: =SUMIF($AH$33:$AH$272,"<>NO",$EK$33:$EK$272)*500 ->  | AV6: =SUMIF($AH$33:$AH$272,"<>NO",$EN$33:$EN$272)*500 ->  | AW6: =SUMIF($AH$33:$AH$272,"<>NO",$EQ$33:$EQ$272)*500 ->  | AX6: =SUMIF($AH$33:$AH$272,"<>NO",$ET$33:$ET$272)*500 ->  | BM6: Funded Old: | BQ6: =SUMIF($AJ$33:$AJ$272,$A$3,$EE$33:$EE$272)*500 -> 0 | BR6: =SUMIF($AJ$33:$AJ$272,$A$3,$EH$33:$EH$272)*500 -> 0 | BS6: =SUMIF($AJ$33:$AJ$272,$A$3,$EK$33:$EK$272)*500 -> 0 | BT6: =SUMIF($AJ$33:$AJ$272,$A$3,$EN$33:$EN$272)*500 -> 0 | BU6: =SUMIF($AJ$33:$AJ$272,$A$3,$EQ$33:$EQ$272)*500 -> 0 | BV6: =SUMIF($AJ$33:$AJ$272,$A$3,$ET$33:$ET$272)*500 -> 0 | BX6: Funded Old: | CB6: =SUMIFS($EE$33:$EE$272,$AJ$33:$AJ$272,$A$3,$AH$33:$AH$272,$A$8)*500 -> 0 | CC6: =SUMIFS($EH$33:$EH$272,$AJ$33:$AJ$272,$A$3,$AH$33:$AH$272,$A$8)*500 -> 0 | CD6: =SUMIFS($EK$33:$EK$272,$AJ$33:$AJ$272,$A$3,$AH$33:$AH$272,$A$8)*500 -> 0 | CE6: =SUMIFS($EN$33:$EN$272,$AJ$33:$AJ$272,$A$3,$AH$33:$AH$272,$A$8)*500 -> 0 | CF6: =SUMIFS($EQ$33:$EQ$272,$AJ$33:$AJ$272,$A$3,$AH$33:$AH$272,$A$8)*500 -> 0 | CG6: =SUMIFS($ET$33:$ET$272,$AJ$33:$AJ$272,$A$3,$AH$33:$AH$272,$A$8)*500 -> 0 | CI6: Funded Old: | CM6: =SUMIFS($EE$33:$EE$272,$AJ$33:$AJ$272,$A$3,$AH$33:$AH$272,$A$9)*500 -> 0 | CN6: =SUMIFS($EH$33:$EH$272,$AJ$33:$AJ$272,$A$3,$AH$33:$AH$272,$A$9)*500 -> 0 | CO6: =SUMIFS($EK$33:$EK$272,$AJ$33:$AJ$272,$A$3,$AH$33:$AH$272,$A$9)*500 -> 0 | CP6: =SUMIFS($EN$33:$EN$272,$AJ$33:$AJ$272,$A$3,$AH$33:$AH$272,$A$9)*500 -> 0 | CQ6: =SUMIFS($EQ$33:$EQ$272,$AJ$33:$AJ$272,$A$3,$AH$33:$AH$272,$A$9)*500 -> 0 | CR6: =SUMIFS($ET$33:$ET$272,$AJ$33:$AJ$272,$A$3,$AH$33:$AH$272,$A$9)*500 -> 0
A7: N/A | V7: Unfunded Old: | AO7: Unfunded Old: | AS7: =SUMIF($AH$33:$AH$272,"<>NO",$EF$33:$EF$272)*500 ->  | AT7: =SUMIF($AH$33:$AH$272,"<>NO",$EI$33:$EI$272)*500 ->  | AU7: =SUMIF($AH$33:$AH$272,"<>NO",$EL$33:$EL$272)*500 ->  | AV7: =SUMIF($AH$33:$AH$272,"<>NO",$EO$33:$EO$272)*500 ->  | AW7: =SUMIF($AH$33:$AH$272,"<>NO",$ER$33:$ER$272)*500 ->  | AX7: =SUMIF($AH$33:$AH$272,"<>NO",$EU$33:$EU$272)*500 ->  | BM7: Unfunded Old: | BQ7: =SUMIF($AJ$33:$AJ$272,$A$3,$EF$33:$EF$272)*500 -> 0 | BR7: =SUMIF($AJ$33:$AJ$272,$A$3,$EI$33:$EI$272)*500 -> 0 | BS7: =SUMIF($AJ$33:$AJ$272,$A$3,$EL$33:$EL$272)*500 -> 0 | BT7: =SUMIF($AJ$33:$AJ$272,$A$3,$EO$33:$EO$272)*500 -> 0 | BU7: =SUMIF($AJ$33:$AJ$272,$A$3,$ER$33:$ER$272)*500 -> 0 | BV7: =SUMIF($AJ$33:$AJ$272,$A$3,$EU$33:$EU$272)*500 -> 0 | BX7: Unfunded Old: | CB7: =SUMIFS($EF$33:$EF$272,$AJ$33:$AJ$272,$A$3,$AH$33:$AH$272,$A$8)*500 -> 0 | CC7: =SUMIFS($EI$33:$EI$272,$AJ$33:$AJ$272,$A$3,$AH$33:$AH$272,$A$8)*500 -> 0 | CD7: =SUMIFS($EL$33:$EL$272,$AJ$33:$AJ$272,$A$3,$AH$33:$AH$272,$A$8)*500 -> 0 | CE7: =SUMIFS($EO$33:$EO$272,$AJ$33:$AJ$272,$A$3,$AH$33:$AH$272,$A$8)*500 -> 0 | CF7: =SUMIFS($ER$33:$ER$272,$AJ$33:$AJ$272,$A$3,$AH$33:$AH$272,$A$8)*500 -> 0 | CG7: =SUMIFS($EU$33:$EU$272,$AJ$33:$AJ$272,$A$3,$AH$33:$AH$272,$A$8)*500 -> 0 | CI7: Unfunded Old: | CM7: =SUMIFS($EF$33:$EF$272,$AJ$33:$AJ$272,$A$3,$AH$33:$AH$272,$A$9)*500 -> 0 | CN7: =SUMIFS($EI$33:$EI$272,$AJ$33:$AJ$272,$A$3,$AH$33:$AH$272,$A$9)*500 -> 0 | CO7: =SUMIFS($EL$33:$EL$272,$AJ$33:$AJ$272,$A$3,$AH$33:$AH$272,$A$9)*500 -> 0 | CP7: =SUMIFS($EO$33:$EO$272,$AJ$33:$AJ$272,$A$3,$AH$33:$AH$272,$A$9)*500 -> 0 | CQ7: =SUMIFS($ER$33:$ER$272,$AJ$33:$AJ$272,$A$3,$AH$33:$AH$272,$A$9)*500 -> 0 | CR7: =SUMIFS($EU$33:$EU$272,$AJ$33:$AJ$272,$A$3,$AH$33:$AH$272,$A$9)*500 -> 0
A8: AMATS | C8: Fiscal Year: | V8: S120 (Increased Federal) | Z8: =EY287*1000 ->  | AA8: =GH287*1000 ->  | AB8: =HQ287*1000 ->  | AC8: =IZ287*1000 ->  | AD8: =KI287*1000 ->  | AE8: =LR287*1000 ->  | AO8: AMATS | BM8: S120 (Increased Federal) | BQ8: =(SUMIF($AJ$33:$AJ$272,$A$3,$EY$33:$EY$272)+SUMIF($AJ$33:$AJ$272,$A$3,$EZ$33:$EZ$272)+SUMIF($AJ$33:$AJ$272,$A$3,$FA$33:$FA$272))*500 -> 0 | BR8: =(SUMIF($AJ$33:$AJ$272,$A$3,$GH$33:$GH$272)+SUMIF($AJ$33:$AJ$272,$A$3,$GI$33:$GI$272)+SUMIF($AJ$33:$AJ$272,$A$3,$GJ$33:$GJ$272))*500 -> 0 | BS8: =(SUMIF($AJ$33:$AJ$272,$A$3,$HQ$33:$HQ$272)+SUMIF($AJ$33:$AJ$272,$A$3,$HR$33:$HR$272)+SUMIF($AJ$33:$AJ$272,$A$3,$HS$33:$HS$272))*500 -> 0 | BT8: =(SUMIF($AJ$33:$AJ$272,$A$3,$IZ$33:$IZ$272)+SUMIF($AJ$33:$AJ$272,$A$3,$JA$33:$JA$272)+SUMIF($AJ$33:$AJ$272,$A$3,$JB$33:$JB$272))*500 -> 0 | BU8: =(SUMIF($AJ$33:$AJ$272,$A$3,$KI$33:$KI$272)+SUMIF($AJ$33:$AJ$272,$A$3,$KJ$33:$KJ$272)+SUMIF($AJ$33:$AJ$272,$A$3,$KK$33:$KK$272))*500 -> 0 | BV8: =(SUMIF($AJ$33:$AJ$272,$A$3,$LR$33:$LR$272)+SUMIF($AJ$33:$AJ$272,$A$3,$LS$33:$LS$272)+SUMIF($AJ$33:$AJ$272,$A$3,$LT$33:$LT$272))*500 -> 0 | BX8: S120 (Increased Federal) | CB8: =(SUMIFS($EY$33:$EY$272,$AJ$33:$AJ$272,$A$3,$AH$33:$AH$272,$A$8)+SUMIFS($EZ$33:$EZ$272,$AJ$33:$AJ$272,$A$3,$AH$33:$AH$272,$A$8)+SUMIFS($FA$33:$FA$272,$AJ$33:$AJ$272,$A$3,$AH$33:$AH$272,$A$8))*500 -> 0 | CC8: =(SUMIFS($GH$33:$GH$272,$AJ$33:$AJ$272,$A$3,$AH$33:$AH$272,$A$8)+SUMIFS($GI$33:$GI$272,$AJ$33:$AJ$272,$A$3,$AH$33:$AH$272,$A$8)+SUMIFS($GJ$33:$GJ$272,$AJ$33:$AJ$272,$A$3,$AH$33:$AH$272,$A$8))*500 -> 0 | CD8: =(SUMIFS($HQ$33:$HQ$272,$AJ$33:$AJ$272,$A$3,$AH$33:$AH$272,$A$8)+SUMIFS($HR$33:$HR$272,$AJ$33:$AJ$272,$A$3,$AH$33:$AH$272,$A$8)+SUMIFS($HS$33:$HS$272,$AJ$33:$AJ$272,$A$3,$AH$33:$AH$272,$A$8))*500 -> 0 | CE8: =(SUMIFS($IZ$33:$IZ$272,$AJ$33:$AJ$272,$A$3,$AH$33:$AH$272,$A$8)+SUMIFS($JA$33:$JA$272,$AJ$33:$AJ$272,$A$3,$AH$33:$AH$272,$A$8)+SUMIFS($JB$33:$JB$272,$AJ$33:$AJ$272,$A$3,$AH$33:$AH$272,$A$8))*500 -> 0 | CF8: =(SUMIFS($KI$33:$KI$272,$AJ$33:$AJ$272,$A$3,$AH$33:$AH$272,$A$8)+SUMIFS($KJ$33:$KJ$272,$AJ$33:$AJ$272,$A$3,$AH$33:$AH$272,$A$8)+SUMIFS($KK$33:$KK$272,$AJ$33:$AJ$272,$A$3,$AH$33:$AH$272,$A$8))*500 -> 0 | CG8: =(SUMIFS($LR$33:$LR$272,$AJ$33:$AJ$272,$A$3,$AH$33:$AH$272,$A$8)+SUMIFS($LS$33:$LS$272,$AJ$33:$AJ$272,$A$3,$AH$33:$AH$272,$A$8)+SUMIFS($LT$33:$LT$272,$AJ$33:$AJ$272,$A$3,$AH$33:$AH$272,$A$8))*500 -> 0 | CI8: S120 (Increased Federal) | CM8: =(SUMIFS($EY$33:$EY$272,$AJ$33:$AJ$272,$A$3,$AH$33:$AH$272,$A$9)+SUMIFS($EZ$33:$EZ$272,$AJ$33:$AJ$272,$A$3,$AH$33:$AH$272,$A$9)+SUMIFS($FA$33:$FA$272,$AJ$33:$AJ$272,$A$3,$AH$33:$AH$272,$A$9))*500 -> 0 | CN8: =(SUMIFS($GH$33:$GH$272,$AJ$33:$AJ$272,$A$3,$AH$33:$AH$272,$A$9)+SUMIFS($GI$33:$GI$272,$AJ$33:$AJ$272,$A$3,$AH$33:$AH$272,$A$9)+SUMIFS($GJ$33:$GJ$272,$AJ$33:$AJ$272,$A$3,$AH$33:$AH$272,$A$9))*500 -> 0 | CO8: =(SUMIFS($HQ$33:$HQ$272,$AJ$33:$AJ$272,$A$3,$AH$33:$AH$272,$A$9)+SUMIFS($HR$33:$HR$272,$AJ$33:$AJ$272,$A$3,$AH$33:$AH$272,$A$9)+SUMIFS($HS$33:$HS$272,$AJ$33:$AJ$272,$A$3,$AH$33:$AH$272,$A$9))*500 -> 0 | CP8: =(SUMIFS($IZ$33:$IZ$272,$AJ$33:$AJ$272,$A$3,$AH$33:$AH$272,$A$9)+SUMIFS($JA$33:$JA$272,$AJ$33:$AJ$272,$A$3,$AH$33:$AH$272,$A$9)+SUMIFS($JB$33:$JB$272,$AJ$33:$AJ$272,$A$3,$AH$33:$AH$272,$A$9))*500 -> 0 | CQ8: =(SUMIFS($KI$33:$KI$272,$AJ$33:$AJ$272,$A$3,$AH$33:$AH$272,$A$9)+SUMIFS($KJ$33:$KJ$272,$AJ$33:$AJ$272,$A$3,$AH$33:$AH$272,$A$9)+SUMIFS($KK$33:$KK$272,$AJ$33:$AJ$272,$A$3,$AH$33:$AH$272,$A$9))*500 -> 0 | CR8: =(SUMIFS($LR$33:$LR$272,$AJ$33:$AJ$272,$A$3,$AH$33:$AH$272,$A$9)+SUMIFS($LS$33:$LS$272,$AJ$33:$AJ$272,$A$3,$AH$33:$AH$272,$A$9)+SUMIFS($LT$33:$LT$272,$AJ$33:$AJ$272,$A$3,$AH$33:$AH$272,$A$9))*500 -> 0
A9: MVP | C9: 2026 | V9: S130 (Railroad Crossings) | Z9: =FB287*1000 ->  | AA9: =GK287*1000 ->  | AB9: =HT287*1000 ->  | AC9: =JC287*1000 ->  | AD9: =KL287*1000 ->  | AE9: =LU287*1000 ->  | AS9: 2026 | AT9: 2027 | AU9: 2028 | AV9: 2029 | AW9: 2030 | AX9: 2031 | BM9: S130 (Railroad Crossings) | BQ9: =(SUMIF($AJ$33:$AJ$272,$A$3,$FB$33:$FB$272)+SUMIF($AJ$33:$AJ$272,$A$3,$FC$33:$FC$272)+SUMIF($AJ$33:$AJ$272,$A$3,$FD$33:$FD$272))*500 -> 0 | BR9: =(SUMIF($AJ$33:$AJ$272,$A$3,$GK$33:$GK$272)+SUMIF($AJ$33:$AJ$272,$A$3,$GL$33:$GL$272)+SUMIF($AJ$33:$AJ$272,$A$3,$GM$33:$GM$272))*500 -> 0 | BS9: =(SUMIF($AJ$33:$AJ$272,$A$3,$HT$33:$HT$272)+SUMIF($AJ$33:$AJ$272,$A$3,$HU$33:$HU$272)+SUMIF($AJ$33:$AJ$272,$A$3,$HV$33:$HV$272))*500 -> 0 | BT9: =(SUMIF($AJ$33:$AJ$272,$A$3,$JC$33:$JC$272)+SUMIF($AJ$33:$AJ$272,$A$3,$JD$33:$JD$272)+SUMIF($AJ$33:$AJ$272,$A$3,$JE$33:$JE$272))*500 -> 0 | BU9: =(SUMIF($AJ$33:$AJ$272,$A$3,$KL$33:$KL$272)+SUMIF($AJ$33:$AJ$272,$A$3,$KM$33:$KM$272)+SUMIF($AJ$33:$AJ$272,$A$3,$KN$33:$KN$272))*500 -> 0 | BV9: =(SUMIF($AJ$33:$AJ$272,$A$3,$LU$33:$LU$272)+SUMIF($AJ$33:$AJ$272,$A$3,$LV$33:$LV$272)+SUMIF($AJ$33:$AJ$272,$A$3,$LW$33:$LW$272))*500 -> 0 | BX9: S130 (Railroad Crossings) | CB9: =(SUMIFS($FB$33:$FB$272,$AJ$33:$AJ$272,$A$3,$AH$33:$AH$272,$A$8)+SUMIFS($FC$33:$FC$272,$AJ$33:$AJ$272,$A$3,$AH$33:$AH$272,$A$8)+SUMIFS($FD$33:$FD$272,$AJ$33:$AJ$272,$A$3,$AH$33:$AH$272,$A$8))*500 -> 0 | CC9: =(SUMIFS($GK$33:$GK$272,$AJ$33:$AJ$272,$A$3,$AH$33:$AH$272,$A$8)+SUMIFS($GL$33:$GL$272,$AJ$33:$AJ$272,$A$3,$AH$33:$AH$272,$A$8)+SUMIFS($GM$33:$GM$272,$AJ$33:$AJ$272,$A$3,$AH$33:$AH$272,$A$8))*500 -> 0 | CD9: =(SUMIFS($HT$33:$HT$272,$AJ$33:$AJ$272,$A$3,$AH$33:$AH$272,$A$8)+SUMIFS($HU$33:$HU$272,$AJ$33:$AJ$272,$A$3,$AH$33:$AH$272,$A$8)+SUMIFS($HV$33:$HV$272,$AJ$33:$AJ$272,$A$3,$AH$33:$AH$272,$A$8))*500 -> 0 | CE9: =(SUMIFS($JC$33:$JC$272,$AJ$33:$AJ$272,$A$3,$AH$33:$AH$272,$A$8)+SUMIFS($JD$33:$JD$272,$AJ$33:$AJ$272,$A$3,$AH$33:$AH$272,$A$8)+SUMIFS($JE$33:$JE$272,$AJ$33:$AJ$272,$A$3,$AH$33:$AH$272,$A$8))*500 -> 0 | CF9: =(SUMIFS($KL$33:$KL$272,$AJ$33:$AJ$272,$A$3,$AH$33:$AH$272,$A$8)+SUMIFS($KM$33:$KM$272,$AJ$33:$AJ$272,$A$3,$AH$33:$AH$272,$A$8)+SUMIFS($KN$33:$KN$272,$AJ$33:$AJ$272,$A$3,$AH$33:$AH$272,$A$8))*500 -> 0 | CG9: =(SUMIFS($LU$33:$LU$272,$AJ$33:$AJ$272,$A$3,$AH$33:$AH$272,$A$8)+SUMIFS($LV$33:$LV$272,$AJ$33:$AJ$272,$A$3,$AH$33:$AH$272,$A$8)+SUMIFS($LW$33:$LW$272,$AJ$33:$AJ$272,$A$3,$AH$33:$AH$272,$A$8))*500 -> 0 | CI9: S130 (Railroad Crossings) | CM9: =(SUMIFS($FB$33:$FB$272,$AJ$33:$AJ$272,$A$3,$AH$33:$AH$272,$A$9)+SUMIFS($FC$33:$FC$272,$AJ$33:$AJ$272,$A$3,$AH$33:$AH$272,$A$9)+SUMIFS($FD$33:$FD$272,$AJ$33:$AJ$272,$A$3,$AH$33:$AH$272,$A$9))*500 -> 0 | CN9: =(SUMIFS($GK$33:$GK$272,$AJ$33:$AJ$272,$A$3,$AH$33:$AH$272,$A$9)+SUMIFS($GL$33:$GL$272,$AJ$33:$AJ$272,$A$3,$AH$33:$AH$272,$A$9)+SUMIFS($GM$33:$GM$272,$AJ$33:$AJ$272,$A$3,$AH$33:$AH$272,$A$9))*500 -> 0 | CO9: =(SUMIFS($HT$33:$HT$272,$AJ$33:$AJ$272,$A$3,$AH$33:$AH$272,$A$9)+SUMIFS($HU$33:$HU$272,$AJ$33:$AJ$272,$A$3,$AH$33:$AH$272,$A$9)+SUMIFS($HV$33:$HV$272,$AJ$33:$AJ$272,$A$3,$AH$33:$AH$272,$A$9))*500 -> 0 | CP9: =(SUMIFS($JC$33:$JC$272,$AJ$33:$AJ$272,$A$3,$AH$33:$AH$272,$A$9)+SUMIFS($JD$33:$JD$272,$AJ$33:$AJ$272,$A$3,$AH$33:$AH$272,$A$9)+SUMIFS($JE$33:$JE$272,$AJ$33:$AJ$272,$A$3,$AH$33:$AH$272,$A$9))*500 -> 0 | CQ9: =(SUMIFS($KL$33:$KL$272,$AJ$33:$AJ$272,$A$3,$AH$33:$AH$272,$A$9)+SUMIFS($KM$33:$KM$272,$AJ$33:$AJ$272,$A$3,$AH$33:$AH$272,$A$9)+SUMIFS($KN$33:$KN$272,$AJ$33:$AJ$272,$A$3,$AH$33:$AH$272,$A$9))*500 -> 0 | CR9: =(SUMIFS($LU$33:$LU$272,$AJ$33:$AJ$272,$A$3,$AH$33:$AH$272,$A$9)+SUMIFS($LV$33:$LV$272,$AJ$33:$AJ$272,$A$3,$AH$33:$AH$272,$A$9)+SUMIFS($LW$33:$LW$272,$AJ$33:$AJ$272,$A$3,$AH$33:$AH$272,$A$9))*500 -> 0
A10: AMATS & MVP | V10: S148 (UnCategorized HSIP Funds) | Z10: =FE287*1000 ->  | AA10: =GN287*1000 ->  | AB10: =HW287*1000 ->  | AC10: =JF287*1000 ->  | AD10: =KO287*1000 ->  | AE10: =LX287*1000 ->  | AO10: Total: | AS10: =SUM(AS11:AS13) -> 0 | AT10: =SUM(AT11:AT13) -> 0 | AU10: 0 | AV10: 0 | AW10: 0 | AX10: 0 | BM10: S148 (UnCategorized HSIP Funds) | BQ10: =(SUMIF($AJ$33:$AJ$272,$A$3,$FE$33:$FE$272)+SUMIF($AJ$33:$AJ$272,$A$3,$FF$33:$FF$272)+SUMIF($AJ$33:$AJ$272,$A$3,$FG$33:$FG$272))*500 -> 0 | BR10: =(SUMIF($AJ$33:$AJ$272,$A$3,$GN$33:$GN$272)+SUMIF($AJ$33:$AJ$272,$A$3,$GO$33:$GO$272)+SUMIF($AJ$33:$AJ$272,$A$3,$GP$33:$GP$272))*500 -> 0 | BS10: =(SUMIF($AJ$33:$AJ$272,$A$3,$HW$33:$HW$272)+SUMIF($AJ$33:$AJ$272,$A$3,$HX$33:$HX$272)+SUMIF($AJ$33:$AJ$272,$A$3,$HY$33:$HY$272))*500 -> 0 | BT10: =(SUMIF($AJ$33:$AJ$272,$A$3,$JF$33:$JF$272)+SUMIF($AJ$33:$AJ$272,$A$3,$JG$33:$JG$272)+SUMIF($AJ$33:$AJ$272,$A$3,$JH$33:$JH$272))*500 -> 0 | BU10: =(SUMIF($AJ$33:$AJ$272,$A$3,$KO$33:$KO$272)+SUMIF($AJ$33:$AJ$272,$A$3,$KP$33:$KP$272)+SUMIF($AJ$33:$AJ$272,$A$3,$KQ$33:$KQ$272))*500 -> 0 | BV10: =(SUMIF($AJ$33:$AJ$272,$A$3,$LX$33:$LX$272)+SUMIF($AJ$33:$AJ$272,$A$3,$LY$33:$LY$272)+SUMIF($AJ$33:$AJ$272,$A$3,$LZ$33:$LZ$272))*500 -> 0 | BX10: S148 (UnCategorized HSIP Funds) | CB10: =(SUMIFS($FE$33:$FE$272,$AJ$33:$AJ$272,$A$3,$AH$33:$AH$272,$A$8)+SUMIFS($FF$33:$FF$272,$AJ$33:$AJ$272,$A$3,$AH$33:$AH$272,$A$8)+SUMIFS($FG$33:$FG$272,$AJ$33:$AJ$272,$A$3,$AH$33:$AH$272,$A$8))*500 -> 0 | CC10: =(SUMIFS($GN$33:$GN$272,$AJ$33:$AJ$272,$A$3,$AH$33:$AH$272,$A$8)+SUMIFS($GO$33:$GO$272,$AJ$33:$AJ$272,$A$3,$AH$33:$AH$272,$A$8)+SUMIFS($GP$33:$GP$272,$AJ$33:$AJ$272,$A$3,$AH$33:$AH$272,$A$8))*500 -> 0 | CD10: =(SUMIFS($HW$33:$HW$272,$AJ$33:$AJ$272,$A$3,$AH$33:$AH$272,$A$8)+SUMIFS($HX$33:$HX$272,$AJ$33:$AJ$272,$A$3,$AH$33:$AH$272,$A$8)+SUMIFS($HY$33:$HY$272,$AJ$33:$AJ$272,$A$3,$AH$33:$AH$272,$A$8))*500 -> 0 | CE10: =(SUMIFS($JF$33:$JF$272,$AJ$33:$AJ$272,$A$3,$AH$33:$AH$272,$A$8)+SUMIFS($JG$33:$JG$272,$AJ$33:$AJ$272,$A$3,$AH$33:$AH$272,$A$8)+SUMIFS($JH$33:$JH$272,$AJ$33:$AJ$272,$A$3,$AH$33:$AH$272,$A$8))*500 -> 0 | CF10: =(SUMIFS($KO$33:$KO$272,$AJ$33:$AJ$272,$A$3,$AH$33:$AH$272,$A$8)+SUMIFS($KP$33:$KP$272,$AJ$33:$AJ$272,$A$3,$AH$33:$AH$272,$A$8)+SUMIFS($KQ$33:$KQ$272,$AJ$33:$AJ$272,$A$3,$AH$33:$AH$272,$A$8))*500 -> 0 | CG10: =(SUMIFS($LX$33:$LX$272,$AJ$33:$AJ$272,$A$3,$AH$33:$AH$272,$A$8)+SUMIFS($LY$33:$LY$272,$AJ$33:$AJ$272,$A$3,$AH$33:$AH$272,$A$8)+SUMIFS($LZ$33:$LZ$272,$AJ$33:$AJ$272,$A$3,$AH$33:$AH$272,$A$8))*500 -> 0 | CI10: S148 (UnCategorized HSIP Funds) | CM10: =(SUMIFS($FE$33:$FE$272,$AJ$33:$AJ$272,$A$3,$AH$33:$AH$272,$A$9)+SUMIFS($FF$33:$FF$272,$AJ$33:$AJ$272,$A$3,$AH$33:$AH$272,$A$9)+SUMIFS($FG$33:$FG$272,$AJ$33:$AJ$272,$A$3,$AH$33:$AH$272,$A$9))*500 -> 0 | CN10: =(SUMIFS($GN$33:$GN$272,$AJ$33:$AJ$272,$A$3,$AH$33:$AH$272,$A$9)+SUMIFS($GO$33:$GO$272,$AJ$33:$AJ$272,$A$3,$AH$33:$AH$272,$A$9)+SUMIFS($GP$33:$GP$272,$AJ$33:$AJ$272,$A$3,$AH$33:$AH$272,$A$9))*500 -> 0 | CO10: =(SUMIFS($HW$33:$HW$272,$AJ$33:$AJ$272,$A$3,$AH$33:$AH$272,$A$9)+SUMIFS($HX$33:$HX$272,$AJ$33:$AJ$272,$A$3,$AH$33:$AH$272,$A$9)+SUMIFS($HY$33:$HY$272,$AJ$33:$AJ$272,$A$3,$AH$33:$AH$272,$A$9))*500 -> 0 | CP10: =(SUMIFS($JF$33:$JF$272,$AJ$33:$AJ$272,$A$3,$AH$33:$AH$272,$A$9)+SUMIFS($JG$33:$JG$272,$AJ$33:$AJ$272,$A$3,$AH$33:$AH$272,$A$9)+SUMIFS($JH$33:$JH$272,$AJ$33:$AJ$272,$A$3,$AH$33:$AH$272,$A$9))*500 -> 0 | CQ10: =(SUMIFS($KO$33:$KO$272,$AJ$33:$AJ$272,$A$3,$AH$33:$AH$272,$A$9)+SUMIFS($KP$33:$KP$272,$AJ$33:$AJ$272,$A$3,$AH$33:$AH$272,$A$9)+SUMIFS($KQ$33:$KQ$272,$AJ$33:$AJ$272,$A$3,$AH$33:$AH$272,$A$9))*500 -> 0 | CR10: =(SUMIFS($LX$33:$LX$272,$AJ$33:$AJ$272,$A$3,$AH$33:$AH$272,$A$9)+SUMIFS($LY$33:$LY$272,$AJ$33:$AJ$272,$A$3,$AH$33:$AH$272,$A$9)+SUMIFS($LZ$33:$LZ$272,$AJ$33:$AJ$272,$A$3,$AH$33:$AH$272,$A$9))*500 -> 0
A11: FAST | V11: S154 (FHWA Sanction - Open Containers) | Z11: =FH287*1000 ->  | AA11: =GQ287*1000 ->  | AB11: =HZ287*1000 ->  | AC11: =JI287*1000 ->  | AD11: =KR287*1000 ->  | AE11: =MA287*1000 ->  | AO11: New: | AS11: =SUMIF($AH$33:$AH$272,$A$8,$ED$33:$ED$272)*500 -> 0 | AT11: =SUMIF($AH$33:$AH$272,$A$8,$EG$33:$EG$272)*500 -> 0 | AU11: =SUMIF($AH$33:$AH$272,$A$8,$EJ$33:$EJ$272)*500 -> 0 | AV11: =SUMIF($AH$33:$AH$272,$A$8,$EM$33:$EM$272)*500 -> 0 | AW11: =SUMIF($AH$33:$AH$272,$A$8,$EP$33:$EP$272)*500 -> 0 | AX11: =SUMIF($AH$33:$AH$272,$A$8,$ES$33:$ES$272)*500 -> 0 | AZ11: 1 for Funded Project 0 for not-funded project | BC11: Percentage - where is the 100% funding? Can be broken to be less than 100%, but needs to add up to 1. | BD11: Does the type of funding within this phase change from year to year? | BE11: Tells you which category is funding FFY26 | BF11: Tells you which category is funding FFY27 | BG11: Tells you which category is funding FFY28 | BH11: Tells you which category is funding FFY29 | BI11: Tells you which category is funding FFY30 | BJ11: Tells you which category is funding FFY31 | BM11: S154 (FHWA Sanction - Open Containers) | BQ11: =(SUMIF($AJ$33:$AJ$272,$A$3,$FH$33:$FH$272)+SUMIF($AJ$33:$AJ$272,$A$3,$FI$33:$FI$272)+SUMIF($AJ$33:$AJ$272,$A$3,$FJ$33:$FJ$272))*500 -> 0 | BR11: =(SUMIF($AJ$33:$AJ$272,$A$3,$GQ$33:$GQ$272)+SUMIF($AJ$33:$AJ$272,$A$3,$GR$33:$GR$272)+SUMIF($AJ$33:$AJ$272,$A$3,$GS$33:$GS$272))*500 -> 0 | BS11: =(SUMIF($AJ$33:$AJ$272,$A$3,$HZ$33:$HZ$272)+SUMIF($AJ$33:$AJ$272,$A$3,$IA$33:$IA$272)+SUMIF($AJ$33:$AJ$272,$A$3,$IB$33:$IB$272))*500 -> 0 | BT11: =(SUMIF($AJ$33:$AJ$272,$A$3,$JI$33:$JI$272)+SUMIF($AJ$33:$AJ$272,$A$3,$JJ$33:$JJ$272)+SUMIF($AJ$33:$AJ$272,$A$3,$JK$33:$JK$272))*500 -> 0 | BU11: =(SUMIF($AJ$33:$AJ$272,$A$3,$KR$33:$KR$272)+SUMIF($AJ$33:$AJ$272,$A$3,$KS$33:$KS$272)+SUMIF($AJ$33:$AJ$272,$A$3,$KT$33:$KT$272))*500 -> 0 | BV11: =(SUMIF($AJ$33:$AJ$272,$A$3,$MA$33:$MA$272)+SUMIF($AJ$33:$AJ$272,$A$3,$MB$33:$MB$272)+SUMIF($AJ$33:$AJ$272,$A$3,$MC$33:$MC$272))*500 -> 0 | BX11: S154 (FHWA Sanction - Open Containers) | CB11: =(SUMIFS($FH$33:$FH$272,$AJ$33:$AJ$272,$A$3,$AH$33:$AH$272,$A$8)+SUMIFS($FI$33:$FI$272,$AJ$33:$AJ$272,$A$3,$AH$33:$AH$272,$A$8)+SUMIFS($FJ$33:$FJ$272,$AJ$33:$AJ$272,$A$3,$AH$33:$AH$272,$A$8))*500 -> 0 | CC11: =(SUMIFS($GQ$33:$GQ$272,$AJ$33:$AJ$272,$A$3,$AH$33:$AH$272,$A$8)+SUMIFS($GR$33:$GR$272,$AJ$33:$AJ$272,$A$3,$AH$33:$AH$272,$A$8)+SUMIFS($GS$33:$GS$272,$AJ$33:$AJ$272,$A$3,$AH$33:$AH$272,$A$8))*500 -> 0 | CD11: =(SUMIFS($HZ$33:$HZ$272,$AJ$33:$AJ$272,$A$3,$AH$33:$AH$272,$A$8)+SUMIFS($IA$33:$IA$272,$AJ$33:$AJ$272,$A$3,$AH$33:$AH$272,$A$8)+SUMIFS($IB$33:$IB$272,$AJ$33:$AJ$272,$A$3,$AH$33:$AH$272,$A$8))*500 -> 0 | CE11: =(SUMIFS($JI$33:$JI$272,$AJ$33:$AJ$272,$A$3,$AH$33:$AH$272,$A$8)+SUMIFS($JJ$33:$JJ$272,$AJ$33:$AJ$272,$A$3,$AH$33:$AH$272,$A$8)+SUMIFS($JK$33:$JK$272,$AJ$33:$AJ$272,$A$3,$AH$33:$AH$272,$A$8))*500 -> 0 | CF11: =(SUMIFS($KR$33:$KR$272,$AJ$33:$AJ$272,$A$3,$AH$33:$AH$272,$A$8)+SUMIFS($KS$33:$KS$272,$AJ$33:$AJ$272,$A$3,$AH$33:$AH$272,$A$8)+SUMIFS($KT$33:$KT$272,$AJ$33:$AJ$272,$A$3,$AH$33:$AH$272,$A$8))*500 -> 0 | CG11: =(SUMIFS($MA$33:$MA$272,$AJ$33:$AJ$272,$A$3,$AH$33:$AH$272,$A$8)+SUMIFS($MB$33:$MB$272,$AJ$33:$AJ$272,$A$3,$AH$33:$AH$272,$A$8)+SUMIFS($MC$33:$MC$272,$AJ$33:$AJ$272,$A$3,$AH$33:$AH$272,$A$8))*500 -> 0 | CI11: S154 (FHWA Sanction - Open Containers) | CM11: =(SUMIFS($FH$33:$FH$272,$AJ$33:$AJ$272,$A$3,$AH$33:$AH$272,$A$9)+SUMIFS($FI$33:$FI$272,$AJ$33:$AJ$272,$A$3,$AH$33:$AH$272,$A$9)+SUMIFS($FJ$33:$FJ$272,$AJ$33:$AJ$272,$A$3,$AH$33:$AH$272,$A$9))*500 -> 0 | CN11: =(SUMIFS($GQ$33:$GQ$272,$AJ$33:$AJ$272,$A$3,$AH$33:$AH$272,$A$9)+SUMIFS($GR$33:$GR$272,$AJ$33:$AJ$272,$A$3,$AH$33:$AH$272,$A$9)+SUMIFS($GS$33:$GS$272,$AJ$33:$AJ$272,$A$3,$AH$33:$AH$272,$A$9))*500 -> 0 | CO11: =(SUMIFS($HZ$33:$HZ$272,$AJ$33:$AJ$272,$A$3,$AH$33:$AH$272,$A$9)+SUMIFS($IA$33:$IA$272,$AJ$33:$AJ$272,$A$3,$AH$33:$AH$272,$A$9)+SUMIFS($IB$33:$IB$272,$AJ$33:$AJ$272,$A$3,$AH$33:$AH$272,$A$9))*500 -> 0 | CP11: =(SUMIFS($JI$33:$JI$272,$AJ$33:$AJ$272,$A$3,$AH$33:$AH$272,$A$9)+SUMIFS($JJ$33:$JJ$272,$AJ$33:$AJ$272,$A$3,$AH$33:$AH$272,$A$9)+SUMIFS($JK$33:$JK$272,$AJ$33:$AJ$272,$A$3,$AH$33:$AH$272,$A$9))*500 -> 0 | CQ11: =(SUMIFS($KR$33:$KR$272,$AJ$33:$AJ$272,$A$3,$AH$33:$AH$272,$A$9)+SUMIFS($KS$33:$KS$272,$AJ$33:$AJ$272,$A$3,$AH$33:$AH$272,$A$9)+SUMIFS($KT$33:$KT$272,$AJ$33:$AJ$272,$A$3,$AH$33:$AH$272,$A$9))*500 -> 0 | CR11: =(SUMIFS($MA$33:$MA$272,$AJ$33:$AJ$272,$A$3,$AH$33:$AH$272,$A$9)+SUMIFS($MB$33:$MB$272,$AJ$33:$AJ$272,$A$3,$AH$33:$AH$272,$A$9)+SUMIFS($MC$33:$MC$272,$AJ$33:$AJ$272,$A$3,$AH$33:$AH$272,$A$9))*500 -> 0
V12: S164 (FHWA Sanction - Repeat Drunk Drivers) | Z12: =FK287*1000 ->  | AA12: =GT287*1000 ->  | AB12: =IC287*1000 ->  | AC12: =JL287*1000 ->  | AD12: =KU287*1000 ->  | AE12: =MD287*1000 ->  | AO12: Funded Old: | AS12: =SUMIF($AH$33:$AH$272,$A$8,$EE$33:$EE$272)*500 -> 0 | AT12: =SUMIF($AH$33:$AH$272,$A$8,$EH$33:$EH$272)*500 -> 0 | AU12: =SUMIF($AH$33:$AH$272,$A$8,$EK$33:$EK$272)*500 -> 0 | AV12: =SUMIF($AH$33:$AH$272,$A$8,$EN$33:$EN$272)*500 -> 0 | AW12: =SUMIF($AH$33:$AH$272,$A$8,$EQ$33:$EQ$272)*500 -> 0 | AX12: =SUMIF($AH$33:$AH$272,$A$8,$ET$33:$ET$272)*500 -> 0 | BM12: S164 (FHWA Sanction - Repeat Drunk Drivers) | BQ12: =(SUMIF($AJ$33:$AJ$272,$A$3,$FK$33:$FK$272)+SUMIF($AJ$33:$AJ$272,$A$3,$FL$33:$FL$272)+SUMIF($AJ$33:$AJ$272,$A$3,$FM$33:$FM$272))*500 -> 0 | BR12: =(SUMIF($AJ$33:$AJ$272,$A$3,$GT$33:$GT$272)+SUMIF($AJ$33:$AJ$272,$A$3,$GU$33:$GU$272)+SUMIF($AJ$33:$AJ$272,$A$3,$GV$33:$GV$272))*500 -> 0 | BS12: =(SUMIF($AJ$33:$AJ$272,$A$3,$IC$33:$IC$272)+SUMIF($AJ$33:$AJ$272,$A$3,$ID$33:$ID$272)+SUMIF($AJ$33:$AJ$272,$A$3,$IE$33:$IE$272))*500 -> 0 | BT12: =(SUMIF($AJ$33:$AJ$272,$A$3,$JL$33:$JL$272)+SUMIF($AJ$33:$AJ$272,$A$3,$JM$33:$JM$272)+SUMIF($AJ$33:$AJ$272,$A$3,$JN$33:$JN$272))*500 -> 0 | BU12: =(SUMIF($AJ$33:$AJ$272,$A$3,$KU$33:$KU$272)+SUMIF($AJ$33:$AJ$272,$A$3,$KV$33:$KV$272)+SUMIF($AJ$33:$AJ$272,$A$3,$KW$33:$KW$272))*500 -> 0 | BV12: =(SUMIF($AJ$33:$AJ$272,$A$3,$MD$33:$MD$272)+SUMIF($AJ$33:$AJ$272,$A$3,$ME$33:$ME$272)+SUMIF($AJ$33:$AJ$272,$A$3,$MF$33:$MF$272))*500 -> 0 | BX12: S164 (FHWA Sanction - Repeat Drunk Drivers) | CB12: =(SUMIFS($FK$33:$FK$272,$AJ$33:$AJ$272,$A$3,$AH$33:$AH$272,$A$8)+SUMIFS($FL$33:$FL$272,$AJ$33:$AJ$272,$A$3,$AH$33:$AH$272,$A$8)+SUMIFS($FM$33:$FM$272,$AJ$33:$AJ$272,$A$3,$AH$33:$AH$272,$A$8))*500 -> 0 | CC12: =(SUMIFS($GT$33:$GT$272,$AJ$33:$AJ$272,$A$3,$AH$33:$AH$272,$A$8)+SUMIFS($GU$33:$GU$272,$AJ$33:$AJ$272,$A$3,$AH$33:$AH$272,$A$8)+SUMIFS($GV$33:$GV$272,$AJ$33:$AJ$272,$A$3,$AH$33:$AH$272,$A$8))*500 -> 0 | CD12: =(SUMIFS($IC$33:$IC$272,$AJ$33:$AJ$272,$A$3,$AH$33:$AH$272,$A$8)+SUMIFS($ID$33:$ID$272,$AJ$33:$AJ$272,$A$3,$AH$33:$AH$272,$A$8)+SUMIFS($IE$33:$IE$272,$AJ$33:$AJ$272,$A$3,$AH$33:$AH$272,$A$8))*500 -> 0 | CE12: =(SUMIFS($JL$33:$JL$272,$AJ$33:$AJ$272,$A$3,$AH$33:$AH$272,$A$8)+SUMIFS($JM$33:$JM$272,$AJ$33:$AJ$272,$A$3,$AH$33:$AH$272,$A$8)+SUMIFS($JN$33:$JN$272,$AJ$33:$AJ$272,$A$3,$AH$33:$AH$272,$A$8))*500 -> 0 | CF12: =(SUMIFS($KU$33:$KU$272,$AJ$33:$AJ$272,$A$3,$AH$33:$AH$272,$A$8)+SUMIFS($KV$33:$KV$272,$AJ$33:$AJ$272,$A$3,$AH$33:$AH$272,$A$8)+SUMIFS($KW$33:$KW$272,$AJ$33:$AJ$272,$A$3,$AH$33:$AH$272,$A$8))*500 -> 0 | CG12: =(SUMIFS($MD$33:$MD$272,$AJ$33:$AJ$272,$A$3,$AH$33:$AH$272,$A$8)+SUMIFS($ME$33:$ME$272,$AJ$33:$AJ$272,$A$3,$AH$33:$AH$272,$A$8)+SUMIFS($MF$33:$MF$272,$AJ$33:$AJ$272,$A$3,$AH$33:$AH$272,$A$8))*500 -> 0 | CI12: S164 (FHWA Sanction - Repeat Drunk Drivers) | CM12: =(SUMIFS($FK$33:$FK$272,$AJ$33:$AJ$272,$A$3,$AH$33:$AH$272,$A$9)+SUMIFS($FL$33:$FL$272,$AJ$33:$AJ$272,$A$3,$AH$33:$AH$272,$A$9)+SUMIFS($FM$33:$FM$272,$AJ$33:$AJ$272,$A$3,$AH$33:$AH$272,$A$9))*500 -> 0 | CN12: =(SUMIFS($GT$33:$GT$272,$AJ$33:$AJ$272,$A$3,$AH$33:$AH$272,$A$9)+SUMIFS($GU$33:$GU$272,$AJ$33:$AJ$272,$A$3,$AH$33:$AH$272,$A$9)+SUMIFS($GV$33:$GV$272,$AJ$33:$AJ$272,$A$3,$AH$33:$AH$272,$A$9))*500 -> 0 | CO12: =(SUMIFS($IC$33:$IC$272,$AJ$33:$AJ$272,$A$3,$AH$33:$AH$272,$A$9)+SUMIFS($ID$33:$ID$272,$AJ$33:$AJ$272,$A$3,$AH$33:$AH$272,$A$9)+SUMIFS($IE$33:$IE$272,$AJ$33:$AJ$272,$A$3,$AH$33:$AH$272,$A$9))*500 -> 0 | CP12: =(SUMIFS($JL$33:$JL$272,$AJ$33:$AJ$272,$A$3,$AH$33:$AH$272,$A$9)+SUMIFS($JM$33:$JM$272,$AJ$33:$AJ$272,$A$3,$AH$33:$AH$272,$A$9)+SUMIFS($JN$33:$JN$272,$AJ$33:$AJ$272,$A$3,$AH$33:$AH$272,$A$9))*500 -> 0 | CQ12: =(SUMIFS($KU$33:$KU$272,$AJ$33:$AJ$272,$A$3,$AH$33:$AH$272,$A$9)+SUMIFS($KV$33:$KV$272,$AJ$33:$AJ$272,$A$3,$AH$33:$AH$272,$A$9)+SUMIFS($KW$33:$KW$272,$AJ$33:$AJ$272,$A$3,$AH$33:$AH$272,$A$9))*500 -> 0 | CR12: =(SUMIFS($MD$33:$MD$272,$AJ$33:$AJ$272,$A$3,$AH$33:$AH$272,$A$9)+SUMIFS($ME$33:$ME$272,$AJ$33:$AJ$272,$A$3,$AH$33:$AH$272,$A$9)+SUMIFS($MF$33:$MF$272,$AJ$33:$AJ$272,$A$3,$AH$33:$AH$272,$A$9))*500 -> 0
A13: Quarter | V13: High Risk Rural Roads | Z13: =FN287*1000 ->  | AA13: =GW287*1000 ->  | AB13: =IF287*1000 ->  | AC13: =JO287*1000 ->  | AD13: =KX287*1000 ->  | AE13: =MG287*1000 ->  | AO13: Unfunded Old: | AS13: =SUMIF($AH$33:$AH$272,$A$8,$EF$33:$EF$272)*500 -> 0 | AT13: =SUMIF($AH$33:$AH$272,$A$8,$EI$33:$EI$272)*500 -> 0 | AU13: =SUMIF($AH$33:$AH$272,$A$8,$EL$33:$EL$272)*500 -> 0 | AV13: =SUMIF($AH$33:$AH$272,$A$8,$EO$33:$EO$272)*500 -> 0 | AW13: =SUMIF($AH$33:$AH$272,$A$8,$ER$33:$ER$272)*500 -> 0 | AX13: =SUMIF($AH$33:$AH$272,$A$8,$EU$33:$EU$272)*500 -> 0 | BM13: High Risk Rural Roads | BQ13: =(SUMIF($AJ$33:$AJ$272,$A$3,$FN$33:$FN$272)+SUMIF($AJ$33:$AJ$272,$A$3,$FO$33:$FO$272)+SUMIF($AJ$33:$AJ$272,$A$3,$FP$33:$FP$272))*500 -> 0 | BR13: =(SUMIF($AJ$33:$AJ$272,$A$3,$GW$33:$GW$272)+SUMIF($AJ$33:$AJ$272,$A$3,$GX$33:$GX$272)+SUMIF($AJ$33:$AJ$272,$A$3,$GY$33:$GY$272))*500 -> 0 | BS13: =(SUMIF($AJ$33:$AJ$272,$A$3,$IF$33:$IF$272)+SUMIF($AJ$33:$AJ$272,$A$3,$IG$33:$IG$272)+SUMIF($AJ$33:$AJ$272,$A$3,$IH$33:$IH$272))*500 -> 0 | BT13: =(SUMIF($AJ$33:$AJ$272,$A$3,$JO$33:$JO$272)+SUMIF($AJ$33:$AJ$272,$A$3,$JP$33:$JP$272)+SUMIF($AJ$33:$AJ$272,$A$3,$JQ$33:$JQ$272))*500 -> 0 | BU13: =(SUMIF($AJ$33:$AJ$272,$A$3,$KX$33:$KX$272)+SUMIF($AJ$33:$AJ$272,$A$3,$KY$33:$KY$272)+SUMIF($AJ$33:$AJ$272,$A$3,$KZ$33:$KZ$272))*500 -> 0 | BV13: =(SUMIF($AJ$33:$AJ$272,$A$3,$MG$33:$MG$272)+SUMIF($AJ$33:$AJ$272,$A$3,$MH$33:$MH$272)+SUMIF($AJ$33:$AJ$272,$A$3,$MI$33:$MI$272))*500 -> 0 | BX13: High Risk Rural Roads | CB13: =(SUMIFS($FN$33:$FN$272,$AJ$33:$AJ$272,$A$3,$AH$33:$AH$272,$A$8)+SUMIFS($FO$33:$FO$272,$AJ$33:$AJ$272,$A$3,$AH$33:$AH$272,$A$8)+SUMIFS($FP$33:$FP$272,$AJ$33:$AJ$272,$A$3,$AH$33:$AH$272,$A$8))*500 -> 0 | CC13: =(SUMIFS($GW$33:$GW$272,$AJ$33:$AJ$272,$A$3,$AH$33:$AH$272,$A$8)+SUMIFS($GX$33:$GX$272,$AJ$33:$AJ$272,$A$3,$AH$33:$AH$272,$A$8)+SUMIFS($GY$33:$GY$272,$AJ$33:$AJ$272,$A$3,$AH$33:$AH$272,$A$8))*500 -> 0 | CD13: =(SUMIFS($IF$33:$IF$272,$AJ$33:$AJ$272,$A$3,$AH$33:$AH$272,$A$8)+SUMIFS($IG$33:$IG$272,$AJ$33:$AJ$272,$A$3,$AH$33:$AH$272,$A$8)+SUMIFS($IH$33:$IH$272,$AJ$33:$AJ$272,$A$3,$AH$33:$AH$272,$A$8))*500 -> 0 | CE13: =(SUMIFS($JO$33:$JO$272,$AJ$33:$AJ$272,$A$3,$AH$33:$AH$272,$A$8)+SUMIFS($JP$33:$JP$272,$AJ$33:$AJ$272,$A$3,$AH$33:$AH$272,$A$8)+SUMIFS($JQ$33:$JQ$272,$AJ$33:$AJ$272,$A$3,$AH$33:$AH$272,$A$8))*500 -> 0 | CF13: =(SUMIFS($KX$33:$KX$272,$AJ$33:$AJ$272,$A$3,$AH$33:$AH$272,$A$8)+SUMIFS($KY$33:$KY$272,$AJ$33:$AJ$272,$A$3,$AH$33:$AH$272,$A$8)+SUMIFS($KZ$33:$KZ$272,$AJ$33:$AJ$272,$A$3,$AH$33:$AH$272,$A$8))*500 -> 0 | CG13: =(SUMIFS($MG$33:$MG$272,$AJ$33:$AJ$272,$A$3,$AH$33:$AH$272,$A$8)+SUMIFS($MH$33:$MH$272,$AJ$33:$AJ$272,$A$3,$AH$33:$AH$272,$A$8)+SUMIFS($MI$33:$MI$272,$AJ$33:$AJ$272,$A$3,$AH$33:$AH$272,$A$8))*500 -> 0 | CI13: High Risk Rural Roads | CM13: =(SUMIFS($FN$33:$FN$272,$AJ$33:$AJ$272,$A$3,$AH$33:$AH$272,$A$9)+SUMIFS($FO$33:$FO$272,$AJ$33:$AJ$272,$A$3,$AH$33:$AH$272,$A$9)+SUMIFS($FP$33:$FP$272,$AJ$33:$AJ$272,$A$3,$AH$33:$AH$272,$A$9))*500 -> 0 | CN13: =(SUMIFS($GW$33:$GW$272,$AJ$33:$AJ$272,$A$3,$AH$33:$AH$272,$A$9)+SUMIFS($GX$33:$GX$272,$AJ$33:$AJ$272,$A$3,$AH$33:$AH$272,$A$9)+SUMIFS($GY$33:$GY$272,$AJ$33:$AJ$272,$A$3,$AH$33:$AH$272,$A$9))*500 -> 0 | CO13: =(SUMIFS($IF$33:$IF$272,$AJ$33:$AJ$272,$A$3,$AH$33:$AH$272,$A$9)+SUMIFS($IG$33:$IG$272,$AJ$33:$AJ$272,$A$3,$AH$33:$AH$272,$A$9)+SUMIFS($IH$33:$IH$272,$AJ$33:$AJ$272,$A$3,$AH$33:$AH$272,$A$9))*500 -> 0 | CP13: =(SUMIFS($JO$33:$JO$272,$AJ$33:$AJ$272,$A$3,$AH$33:$AH$272,$A$9)+SUMIFS($JP$33:$JP$272,$AJ$33:$AJ$272,$A$3,$AH$33:$AH$272,$A$9)+SUMIFS($JQ$33:$JQ$272,$AJ$33:$AJ$272,$A$3,$AH$33:$AH$272,$A$9))*500 -> 0 | CQ13: =(SUMIFS($KX$33:$KX$272,$AJ$33:$AJ$272,$A$3,$AH$33:$AH$272,$A$9)+SUMIFS($KY$33:$KY$272,$AJ$33:$AJ$272,$A$3,$AH$33:$AH$272,$A$9)+SUMIFS($KZ$33:$KZ$272,$AJ$33:$AJ$272,$A$3,$AH$33:$AH$272,$A$9))*500 -> 0 | CR13: =(SUMIFS($MG$33:$MG$272,$AJ$33:$AJ$272,$A$3,$AH$33:$AH$272,$A$9)+SUMIFS($MH$33:$MH$272,$AJ$33:$AJ$272,$A$3,$AH$33:$AH$272,$A$9)+SUMIFS($MI$33:$MI$272,$AJ$33:$AJ$272,$A$3,$AH$33:$AH$272,$A$9))*500 -> 0
V14: Specified Safety Projects | Z14: =FQ287*1000 ->  | AA14: =GZ287*1000 ->  | AB14: =II287*1000 ->  | AC14: =JR287*1000 ->  | AD14: =LA287*1000 ->  | AE14: =MJ287*1000 ->  | AO14: MVP | BM14: Specified Safety Projects | BQ14: =(SUMIF($AJ$33:$AJ$272,$A$3,$FQ$33:$FQ$272)+SUMIF($AJ$33:$AJ$272,$A$3,$FR$33:$FR$272)+SUMIF($AJ$33:$AJ$272,$A$3,$FS$33:$FS$272))*500 -> 0 | BR14: =(SUMIF($AJ$33:$AJ$272,$A$3,$GZ$33:$GZ$272)+SUMIF($AJ$33:$AJ$272,$A$3,$HA$33:$HA$272)+SUMIF($AJ$33:$AJ$272,$A$3,$HB$33:$HB$272))*500 -> 0 | BS14: =(SUMIF($AJ$33:$AJ$272,$A$3,$II$33:$II$272)+SUMIF($AJ$33:$AJ$272,$A$3,$IJ$33:$IJ$272)+SUMIF($AJ$33:$AJ$272,$A$3,$IK$33:$IK$272))*500 -> 0 | BT14: =(SUMIF($AJ$33:$AJ$272,$A$3,$JR$33:$JR$272)+SUMIF($AJ$33:$AJ$272,$A$3,$JS$33:$JS$272)+SUMIF($AJ$33:$AJ$272,$A$3,$JT$33:$JT$272))*500 -> 0 | BU14: =(SUMIF($AJ$33:$AJ$272,$A$3,$LA$33:$LA$272)+SUMIF($AJ$33:$AJ$272,$A$3,$LB$33:$LB$272)+SUMIF($AJ$33:$AJ$272,$A$3,$LC$33:$LC$272))*500 -> 0 | BV14: =(SUMIF($AJ$33:$AJ$272,$A$3,$MJ$33:$MJ$272)+SUMIF($AJ$33:$AJ$272,$A$3,$MK$33:$MK$272)+SUMIF($AJ$33:$AJ$272,$A$3,$ML$33:$ML$272))*500 -> 0 | BX14: Specified Safety Projects | CB14: =(SUMIFS($FQ$33:$FQ$272,$AJ$33:$AJ$272,$A$3,$AH$33:$AH$272,$A$8)+SUMIFS($FR$33:$FR$272,$AJ$33:$AJ$272,$A$3,$AH$33:$AH$272,$A$8)+SUMIFS($FS$33:$FS$272,$AJ$33:$AJ$272,$A$3,$AH$33:$AH$272,$A$8))*500 -> 0 | CC14: =(SUMIFS($GZ$33:$GZ$272,$AJ$33:$AJ$272,$A$3,$AH$33:$AH$272,$A$8)+SUMIFS($HA$33:$HA$272,$AJ$33:$AJ$272,$A$3,$AH$33:$AH$272,$A$8)+SUMIFS($HB$33:$HB$272,$AJ$33:$AJ$272,$A$3,$AH$33:$AH$272,$A$8))*500 -> 0 | CD14: =(SUMIFS($II$33:$II$272,$AJ$33:$AJ$272,$A$3,$AH$33:$AH$272,$A$8)+SUMIFS($IJ$33:$IJ$272,$AJ$33:$AJ$272,$A$3,$AH$33:$AH$272,$A$8)+SUMIFS($IK$33:$IK$272,$AJ$33:$AJ$272,$A$3,$AH$33:$AH$272,$A$8))*500 -> 0 | CE14: =(SUMIFS($JR$33:$JR$272,$AJ$33:$AJ$272,$A$3,$AH$33:$AH$272,$A$8)+SUMIFS($JS$33:$JS$272,$AJ$33:$AJ$272,$A$3,$AH$33:$AH$272,$A$8)+SUMIFS($JT$33:$JT$272,$AJ$33:$AJ$272,$A$3,$AH$33:$AH$272,$A$8))*500 -> 0 | CF14: =(SUMIFS($LA$33:$LA$272,$AJ$33:$AJ$272,$A$3,$AH$33:$AH$272,$A$8)+SUMIFS($LB$33:$LB$272,$AJ$33:$AJ$272,$A$3,$AH$33:$AH$272,$A$8)+SUMIFS($LC$33:$LC$272,$AJ$33:$AJ$272,$A$3,$AH$33:$AH$272,$A$8))*500 -> 0 | CG14: =(SUMIFS($MJ$33:$MJ$272,$AJ$33:$AJ$272,$A$3,$AH$33:$AH$272,$A$8)+SUMIFS($MK$33:$MK$272,$AJ$33:$AJ$272,$A$3,$AH$33:$AH$272,$A$8)+SUMIFS($ML$33:$ML$272,$AJ$33:$AJ$272,$A$3,$AH$33:$AH$272,$A$8))*500 -> 0 | CI14: Specified Safety Projects | CM14: =(SUMIFS($FQ$33:$FQ$272,$AJ$33:$AJ$272,$A$3,$AH$33:$AH$272,$A$9)+SUMIFS($FR$33:$FR$272,$AJ$33:$AJ$272,$A$3,$AH$33:$AH$272,$A$9)+SUMIFS($FS$33:$FS$272,$AJ$33:$AJ$272,$A$3,$AH$33:$AH$272,$A$9))*500 -> 0 | CN14: =(SUMIFS($GZ$33:$GZ$272,$AJ$33:$AJ$272,$A$3,$AH$33:$AH$272,$A$9)+SUMIFS($HA$33:$HA$272,$AJ$33:$AJ$272,$A$3,$AH$33:$AH$272,$A$9)+SUMIFS($HB$33:$HB$272,$AJ$33:$AJ$272,$A$3,$AH$33:$AH$272,$A$9))*500 -> 0 | CO14: =(SUMIFS($II$33:$II$272,$AJ$33:$AJ$272,$A$3,$AH$33:$AH$272,$A$9)+SUMIFS($IJ$33:$IJ$272,$AJ$33:$AJ$272,$A$3,$AH$33:$AH$272,$A$9)+SUMIFS($IK$33:$IK$272,$AJ$33:$AJ$272,$A$3,$AH$33:$AH$272,$A$9))*500 -> 0 | CP14: =(SUMIFS($JR$33:$JR$272,$AJ$33:$AJ$272,$A$3,$AH$33:$AH$272,$A$9)+SUMIFS($JS$33:$JS$272,$AJ$33:$AJ$272,$A$3,$AH$33:$AH$272,$A$9)+SUMIFS($JT$33:$JT$272,$AJ$33:$AJ$272,$A$3,$AH$33:$AH$272,$A$9))*500 -> 0 | CQ14: =(SUMIFS($LA$33:$LA$272,$AJ$33:$AJ$272,$A$3,$AH$33:$AH$272,$A$9)+SUMIFS($LB$33:$LB$272,$AJ$33:$AJ$272,$A$3,$AH$33:$AH$272,$A$9)+SUMIFS($LC$33:$LC$272,$AJ$33:$AJ$272,$A$3,$AH$33:$AH$272,$A$9))*500 -> 0 | CR14: =(SUMIFS($MJ$33:$MJ$272,$AJ$33:$AJ$272,$A$3,$AH$33:$AH$272,$A$9)+SUMIFS($MK$33:$MK$272,$AJ$33:$AJ$272,$A$3,$AH$33:$AH$272,$A$9)+SUMIFS($ML$33:$ML$272,$AJ$33:$AJ$272,$A$3,$AH$33:$AH$272,$A$9))*500 -> 0
A15: Q1 | V15: Vulnerable Road Users | Z15: =FT287*1000 ->  | AA15: =HC287*1000 ->  | AB15: =IL287*1000 ->  | AC15: =JU287*1000 ->  | AD15: =LD287*1000 ->  | AE15: =MM287*1000 ->  | AO15: Total: | AS15: =SUM(AS16:AS18) -> 0 | AT15: =SUM(AT16:AT18) -> 0 | AU15: 0 | AV15: 0 | AW15: 0 | AX15: 0 | BM15: Vulnerable Road Users | BQ15: =(SUMIF($AJ$33:$AJ$272,$A$3,$FT$33:$FT$272)+SUMIF($AJ$33:$AJ$272,$A$3,$FU$33:$FU$272)+SUMIF($AJ$33:$AJ$272,$A$3,$FV$33:$FV$272))*500 -> 0 | BR15: =(SUMIF($AJ$33:$AJ$272,$A$3,$HC$33:$HC$272)+SUMIF($AJ$33:$AJ$272,$A$3,$HD$33:$HD$272)+SUMIF($AJ$33:$AJ$272,$A$3,$HE$33:$HE$272))*500 -> 0 | BS15: =(SUMIF($AJ$33:$AJ$272,$A$3,$IL$33:$IL$272)+SUMIF($AJ$33:$AJ$272,$A$3,$IM$33:$IM$272)+SUMIF($AJ$33:$AJ$272,$A$3,$IN$33:$IN$272))*500 -> 0 | BT15: =(SUMIF($AJ$33:$AJ$272,$A$3,$JU$33:$JU$272)+SUMIF($AJ$33:$AJ$272,$A$3,$JV$33:$JV$272)+SUMIF($AJ$33:$AJ$272,$A$3,$JW$33:$JW$272))*500 -> 0 | BU15: =(SUMIF($AJ$33:$AJ$272,$A$3,$LD$33:$LD$272)+SUMIF($AJ$33:$AJ$272,$A$3,$LE$33:$LE$272)+SUMIF($AJ$33:$AJ$272,$A$3,$LF$33:$LF$272))*500 -> 0 | BV15: =(SUMIF($AJ$33:$AJ$272,$A$3,$MM$33:$MM$272)+SUMIF($AJ$33:$AJ$272,$A$3,$MN$33:$MN$272)+SUMIF($AJ$33:$AJ$272,$A$3,$MO$33:$MO$272))*500 -> 0 | BX15: Vulnerable Road Users | CB15: =(SUMIFS($FT$33:$FT$272,$AJ$33:$AJ$272,$A$3,$AH$33:$AH$272,$A$8)+SUMIFS($FU$33:$FU$272,$AJ$33:$AJ$272,$A$3,$AH$33:$AH$272,$A$8)+SUMIFS($FV$33:$FV$272,$AJ$33:$AJ$272,$A$3,$AH$33:$AH$272,$A$8))*500 -> 0 | CC15: =(SUMIFS($HC$33:$HC$272,$AJ$33:$AJ$272,$A$3,$AH$33:$AH$272,$A$8)+SUMIFS($HD$33:$HD$272,$AJ$33:$AJ$272,$A$3,$AH$33:$AH$272,$A$8)+SUMIFS($HE$33:$HE$272,$AJ$33:$AJ$272,$A$3,$AH$33:$AH$272,$A$8))*500 -> 0 | CD15: =(SUMIFS($IL$33:$IL$272,$AJ$33:$AJ$272,$A$3,$AH$33:$AH$272,$A$8)+SUMIFS($IM$33:$IM$272,$AJ$33:$AJ$272,$A$3,$AH$33:$AH$272,$A$8)+SUMIFS($IN$33:$IN$272,$AJ$33:$AJ$272,$A$3,$AH$33:$AH$272,$A$8))*500 -> 0 | CE15: =(SUMIFS($JU$33:$JU$272,$AJ$33:$AJ$272,$A$3,$AH$33:$AH$272,$A$8)+SUMIFS($JV$33:$JV$272,$AJ$33:$AJ$272,$A$3,$AH$33:$AH$272,$A$8)+SUMIFS($JW$33:$JW$272,$AJ$33:$AJ$272,$A$3,$AH$33:$AH$272,$A$8))*500 -> 0 | CF15: =(SUMIFS($LD$33:$LD$272,$AJ$33:$AJ$272,$A$3,$AH$33:$AH$272,$A$8)+SUMIFS($LE$33:$LE$272,$AJ$33:$AJ$272,$A$3,$AH$33:$AH$272,$A$8)+SUMIFS($LF$33:$LF$272,$AJ$33:$AJ$272,$A$3,$AH$33:$AH$272,$A$8))*500 -> 0 | CG15: =(SUMIFS($MM$33:$MM$272,$AJ$33:$AJ$272,$A$3,$AH$33:$AH$272,$A$8)+SUMIFS($MN$33:$MN$272,$AJ$33:$AJ$272,$A$3,$AH$33:$AH$272,$A$8)+SUMIFS($MO$33:$MO$272,$AJ$33:$AJ$272,$A$3,$AH$33:$AH$272,$A$8))*500 -> 0 | CI15: Vulnerable Road Users | CM15: =(SUMIFS($FT$33:$FT$272,$AJ$33:$AJ$272,$A$3,$AH$33:$AH$272,$A$9)+SUMIFS($FU$33:$FU$272,$AJ$33:$AJ$272,$A$3,$AH$33:$AH$272,$A$9)+SUMIFS($FV$33:$FV$272,$AJ$33:$AJ$272,$A$3,$AH$33:$AH$272,$A$9))*500 -> 0 | CN15: =(SUMIFS($HC$33:$HC$272,$AJ$33:$AJ$272,$A$3,$AH$33:$AH$272,$A$9)+SUMIFS($HD$33:$HD$272,$AJ$33:$AJ$272,$A$3,$AH$33:$AH$272,$A$9)+SUMIFS($HE$33:$HE$272,$AJ$33:$AJ$272,$A$3,$AH$33:$AH$272,$A$9))*500 -> 0 | CO15: =(SUMIFS($IL$33:$IL$272,$AJ$33:$AJ$272,$A$3,$AH$33:$AH$272,$A$9)+SUMIFS($IM$33:$IM$272,$AJ$33:$AJ$272,$A$3,$AH$33:$AH$272,$A$9)+SUMIFS($IN$33:$IN$272,$AJ$33:$AJ$272,$A$3,$AH$33:$AH$272,$A$9))*500 -> 0 | CP15: =(SUMIFS($JU$33:$JU$272,$AJ$33:$AJ$272,$A$3,$AH$33:$AH$272,$A$9)+SUMIFS($JV$33:$JV$272,$AJ$33:$AJ$272,$A$3,$AH$33:$AH$272,$A$9)+SUMIFS($JW$33:$JW$272,$AJ$33:$AJ$272,$A$3,$AH$33:$AH$272,$A$9))*500 -> 0 | CQ15: =(SUMIFS($LD$33:$LD$272,$AJ$33:$AJ$272,$A$3,$AH$33:$AH$272,$A$9)+SUMIFS($LE$33:$LE$272,$AJ$33:$AJ$272,$A$3,$AH$33:$AH$272,$A$9)+SUMIFS($LF$33:$LF$272,$AJ$33:$AJ$272,$A$3,$AH$33:$AH$272,$A$9))*500 -> 0 | CR15: =(SUMIFS($MM$33:$MM$272,$AJ$33:$AJ$272,$A$3,$AH$33:$AH$272,$A$9)+SUMIFS($MN$33:$MN$272,$AJ$33:$AJ$272,$A$3,$AH$33:$AH$272,$A$9)+SUMIFS($MO$33:$MO$272,$AJ$33:$AJ$272,$A$3,$AH$33:$AH$272,$A$9))*500 -> 0
A16: Q2 | V16: Older Drivers & Pedestrians | Z16: =FW287*1000 ->  | AA16: =HF287*1000 ->  | AB16: =IO287*1000 ->  | AC16: =JX287*1000 ->  | AD16: =LG287*1000 ->  | AE16: =MP287*1000 ->  | AO16: New: | AS16: =SUMIF($AH$33:$AH$272,$A$9,$ED$33:$ED$272)*500 -> 0 | AT16: =SUMIF($AH$33:$AH$272,$A$9,$EG$33:$EG$272)*500 -> 0 | AU16: =SUMIF($AH$33:$AH$272,$A$9,$EJ$33:$EJ$272)*500 -> 0 | AV16: =SUMIF($AH$33:$AH$272,$A$9,$EM$33:$EM$272)*500 -> 0 | AW16: =SUMIF($AH$33:$AH$272,$A$9,$EP$33:$EP$272)*500 -> 0 | AX16: =SUMIF($AH$33:$AH$272,$A$9,$ES$33:$ES$272)*500 -> 0 | BM16: Older Drivers & Pedestrians | BQ16: =(SUMIF($AJ$33:$AJ$272,$A$3,$FW$33:$FW$272)+SUMIF($AJ$33:$AJ$272,$A$3,$FX$33:$FX$272)+SUMIF($AJ$33:$AJ$272,$A$3,$FY$33:$FY$272))*500 -> 0 | BR16: =(SUMIF($AJ$33:$AJ$272,$A$3,$HF$33:$HF$272)+SUMIF($AJ$33:$AJ$272,$A$3,$HG$33:$HG$272)+SUMIF($AJ$33:$AJ$272,$A$3,$HH$33:$HH$272))*500 -> 0 | BS16: =(SUMIF($AJ$33:$AJ$272,$A$3,$IO$33:$IO$272)+SUMIF($AJ$33:$AJ$272,$A$3,$IP$33:$IP$272)+SUMIF($AJ$33:$AJ$272,$A$3,$IQ$33:$IQ$272))*500 -> 0 | BT16: =(SUMIF($AJ$33:$AJ$272,$A$3,$JX$33:$JX$272)+SUMIF($AJ$33:$AJ$272,$A$3,$JY$33:$JY$272)+SUMIF($AJ$33:$AJ$272,$A$3,$JZ$33:$JZ$272))*500 -> 0 | BU16: =(SUMIF($AJ$33:$AJ$272,$A$3,$LG$33:$LG$272)+SUMIF($AJ$33:$AJ$272,$A$3,$LH$33:$LH$272)+SUMIF($AJ$33:$AJ$272,$A$3,$LI$33:$LI$272))*500 -> 0 | BV16: =(SUMIF($AJ$33:$AJ$272,$A$3,$MP$33:$MP$272)+SUMIF($AJ$33:$AJ$272,$A$3,$MQ$33:$MQ$272)+SUMIF($AJ$33:$AJ$272,$A$3,$MR$33:$MR$272))*500 -> 0 | BX16: Older Drivers & Pedestrians | CB16: =(SUMIFS($FW$33:$FW$272,$AJ$33:$AJ$272,$A$3,$AH$33:$AH$272,$A$8)+SUMIFS($FX$33:$FX$272,$AJ$33:$AJ$272,$A$3,$AH$33:$AH$272,$A$8)+SUMIFS($FY$33:$FY$272,$AJ$33:$AJ$272,$A$3,$AH$33:$AH$272,$A$8))*500 -> 0 | CC16: =(SUMIFS($HF$33:$HF$272,$AJ$33:$AJ$272,$A$3,$AH$33:$AH$272,$A$8)+SUMIFS($HG$33:$HG$272,$AJ$33:$AJ$272,$A$3,$AH$33:$AH$272,$A$8)+SUMIFS($HH$33:$HH$272,$AJ$33:$AJ$272,$A$3,$AH$33:$AH$272,$A$8))*500 -> 0 | CD16: =(SUMIFS($IO$33:$IO$272,$AJ$33:$AJ$272,$A$3,$AH$33:$AH$272,$A$8)+SUMIFS($IP$33:$IP$272,$AJ$33:$AJ$272,$A$3,$AH$33:$AH$272,$A$8)+SUMIFS($IQ$33:$IQ$272,$AJ$33:$AJ$272,$A$3,$AH$33:$AH$272,$A$8))*500 -> 0 | CE16: =(SUMIFS($JX$33:$JX$272,$AJ$33:$AJ$272,$A$3,$AH$33:$AH$272,$A$8)+SUMIFS($JY$33:$JY$272,$AJ$33:$AJ$272,$A$3,$AH$33:$AH$272,$A$8)+SUMIFS($JZ$33:$JZ$272,$AJ$33:$AJ$272,$A$3,$AH$33:$AH$272,$A$8))*500 -> 0 | CF16: =(SUMIFS($LG$33:$LG$272,$AJ$33:$AJ$272,$A$3,$AH$33:$AH$272,$A$8)+SUMIFS($LH$33:$LH$272,$AJ$33:$AJ$272,$A$3,$AH$33:$AH$272,$A$8)+SUMIFS($LI$33:$LI$272,$AJ$33:$AJ$272,$A$3,$AH$33:$AH$272,$A$8))*500 -> 0 | CG16: =(SUMIFS($MP$33:$MP$272,$AJ$33:$AJ$272,$A$3,$AH$33:$AH$272,$A$8)+SUMIFS($MQ$33:$MQ$272,$AJ$33:$AJ$272,$A$3,$AH$33:$AH$272,$A$8)+SUMIFS($MR$33:$MR$272,$AJ$33:$AJ$272,$A$3,$AH$33:$AH$272,$A$8))*500 -> 0 | CI16: Older Drivers & Pedestrians | CM16: =(SUMIFS($FW$33:$FW$272,$AJ$33:$AJ$272,$A$3,$AH$33:$AH$272,$A$9)+SUMIFS($FX$33:$FX$272,$AJ$33:$AJ$272,$A$3,$AH$33:$AH$272,$A$9)+SUMIFS($FY$33:$FY$272,$AJ$33:$AJ$272,$A$3,$AH$33:$AH$272,$A$9))*500 -> 0 | CN16: =(SUMIFS($HF$33:$HF$272,$AJ$33:$AJ$272,$A$3,$AH$33:$AH$272,$A$9)+SUMIFS($HG$33:$HG$272,$AJ$33:$AJ$272,$A$3,$AH$33:$AH$272,$A$9)+SUMIFS($HH$33:$HH$272,$AJ$33:$AJ$272,$A$3,$AH$33:$AH$272,$A$9))*500 -> 0 | CO16: =(SUMIFS($IO$33:$IO$272,$AJ$33:$AJ$272,$A$3,$AH$33:$AH$272,$A$9)+SUMIFS($IP$33:$IP$272,$AJ$33:$AJ$272,$A$3,$AH$33:$AH$272,$A$9)+SUMIFS($IQ$33:$IQ$272,$AJ$33:$AJ$272,$A$3,$AH$33:$AH$272,$A$9))*500 -> 0 | CP16: =(SUMIFS($JX$33:$JX$272,$AJ$33:$AJ$272,$A$3,$AH$33:$AH$272,$A$9)+SUMIFS($JY$33:$JY$272,$AJ$33:$AJ$272,$A$3,$AH$33:$AH$272,$A$9)+SUMIFS($JZ$33:$JZ$272,$AJ$33:$AJ$272,$A$3,$AH$33:$AH$272,$A$9))*500 -> 0 | CQ16: =(SUMIFS($LG$33:$LG$272,$AJ$33:$AJ$272,$A$3,$AH$33:$AH$272,$A$9)+SUMIFS($LH$33:$LH$272,$AJ$33:$AJ$272,$A$3,$AH$33:$AH$272,$A$9)+SUMIFS($LI$33:$LI$272,$AJ$33:$AJ$272,$A$3,$AH$33:$AH$272,$A$9))*500 -> 0 | CR16: =(SUMIFS($MP$33:$MP$272,$AJ$33:$AJ$272,$A$3,$AH$33:$AH$272,$A$9)+SUMIFS($MQ$33:$MQ$272,$AJ$33:$AJ$272,$A$3,$AH$33:$AH$272,$A$9)+SUMIFS($MR$33:$MR$272,$AJ$33:$AJ$272,$A$3,$AH$33:$AH$272,$A$9))*500 -> 0
A17: Q3 | V17: Advance Construction | Z17: =FZ287*1000 ->  | AA17: =HI287*1000 ->  | AB17: =IR287*1000 ->  | AC17: =KA287*1000 ->  | AD17: =LJ287*1000 ->  | AE17: =MS287*1000 ->  | AO17: Funded Old: | AS17: =SUMIF($AH$33:$AH$272,$A$9,$EE$33:$EE$272)*500 -> 0 | AT17: =SUMIF($AH$33:$AH$272,$A$9,$EH$33:$EH$272)*500 -> 0 | AU17: =SUMIF($AH$33:$AH$272,$A$9,$EK$33:$EK$272)*500 -> 0 | AV17: =SUMIF($AH$33:$AH$272,$A$9,$EN$33:$EN$272)*500 -> 0 | AW17: =SUMIF($AH$33:$AH$272,$A$9,$EQ$33:$EQ$272)*500 -> 0 | AX17: =SUMIF($AH$33:$AH$272,$A$9,$ET$33:$ET$272)*500 -> 0 | BM17: Advance Construction | BQ17: =(SUMIF($AJ$33:$AJ$272,$A$3,$FZ$33:$FZ$272)+SUMIF($AJ$33:$AJ$272,$A$3,$GA$33:$GA$272)+SUMIF($AJ$33:$AJ$272,$A$3,$GB$33:$GB$272))*500 -> 0 | BR17: =(SUMIF($AJ$33:$AJ$272,$A$3,$HI$33:$HI$272)+SUMIF($AJ$33:$AJ$272,$A$3,$HJ$33:$HJ$272)+SUMIF($AJ$33:$AJ$272,$A$3,$HK$33:$HK$272))*500 -> 0 | BS17: =(SUMIF($AJ$33:$AJ$272,$A$3,$IR$33:$IR$272)+SUMIF($AJ$33:$AJ$272,$A$3,$IS$33:$IS$272)+SUMIF($AJ$33:$AJ$272,$A$3,$IT$33:$IT$272))*500 -> 0 | BT17: =(SUMIF($AJ$33:$AJ$272,$A$3,$KA$33:$KA$272)+SUMIF($AJ$33:$AJ$272,$A$3,$KB$33:$KB$272)+SUMIF($AJ$33:$AJ$272,$A$3,$KC$33:$KC$272))*500 -> 0 | BU17: =(SUMIF($AJ$33:$AJ$272,$A$3,$LJ$33:$LJ$272)+SUMIF($AJ$33:$AJ$272,$A$3,$LK$33:$LK$272)+SUMIF($AJ$33:$AJ$272,$A$3,$LL$33:$LL$272))*500 -> 0 | BV17: =(SUMIF($AJ$33:$AJ$272,$A$3,$MS$33:$MS$272)+SUMIF($AJ$33:$AJ$272,$A$3,$MT$33:$MT$272)+SUMIF($AJ$33:$AJ$272,$A$3,$MU$33:$MU$272))*500 -> 0 | BX17: Advance Construction | CB17: =(SUMIFS($FZ$33:$FZ$272,$AJ$33:$AJ$272,$A$3,$AH$33:$AH$272,$A$8)+SUMIFS($GA$33:$GA$272,$AJ$33:$AJ$272,$A$3,$AH$33:$AH$272,$A$8)+SUMIFS($GB$33:$GB$272,$AJ$33:$AJ$272,$A$3,$AH$33:$AH$272,$A$8))*500 -> 0 | CC17: =(SUMIFS($HI$33:$HI$272,$AJ$33:$AJ$272,$A$3,$AH$33:$AH$272,$A$8)+SUMIFS($HJ$33:$HJ$272,$AJ$33:$AJ$272,$A$3,$AH$33:$AH$272,$A$8)+SUMIFS($HK$33:$HK$272,$AJ$33:$AJ$272,$A$3,$AH$33:$AH$272,$A$8))*500 -> 0 | CD17: =(SUMIFS($IR$33:$IR$272,$AJ$33:$AJ$272,$A$3,$AH$33:$AH$272,$A$8)+SUMIFS($IS$33:$IS$272,$AJ$33:$AJ$272,$A$3,$AH$33:$AH$272,$A$8)+SUMIFS($IT$33:$IT$272,$AJ$33:$AJ$272,$A$3,$AH$33:$AH$272,$A$8))*500 -> 0 | CE17: =(SUMIFS($KA$33:$KA$272,$AJ$33:$AJ$272,$A$3,$AH$33:$AH$272,$A$8)+SUMIFS($KB$33:$KB$272,$AJ$33:$AJ$272,$A$3,$AH$33:$AH$272,$A$8)+SUMIFS($KC$33:$KC$272,$AJ$33:$AJ$272,$A$3,$AH$33:$AH$272,$A$8))*500 -> 0 | CF17: =(SUMIFS($LJ$33:$LJ$272,$AJ$33:$AJ$272,$A$3,$AH$33:$AH$272,$A$8)+SUMIFS($LK$33:$LK$272,$AJ$33:$AJ$272,$A$3,$AH$33:$AH$272,$A$8)+SUMIFS($LL$33:$LL$272,$AJ$33:$AJ$272,$A$3,$AH$33:$AH$272,$A$8))*500 -> 0 | CG17: =(SUMIFS($MS$33:$MS$272,$AJ$33:$AJ$272,$A$3,$AH$33:$AH$272,$A$8)+SUMIFS($MT$33:$MT$272,$AJ$33:$AJ$272,$A$3,$AH$33:$AH$272,$A$8)+SUMIFS($MU$33:$MU$272,$AJ$33:$AJ$272,$A$3,$AH$33:$AH$272,$A$8))*500 -> 0 | CI17: Advance Construction | CM17: =(SUMIFS($FZ$33:$FZ$272,$AJ$33:$AJ$272,$A$3,$AH$33:$AH$272,$A$9)+SUMIFS($GA$33:$GA$272,$AJ$33:$AJ$272,$A$3,$AH$33:$AH$272,$A$9)+SUMIFS($GB$33:$GB$272,$AJ$33:$AJ$272,$A$3,$AH$33:$AH$272,$A$9))*500 -> 0 | CN17: =(SUMIFS($HI$33:$HI$272,$AJ$33:$AJ$272,$A$3,$AH$33:$AH$272,$A$9)+SUMIFS($HJ$33:$HJ$272,$AJ$33:$AJ$272,$A$3,$AH$33:$AH$272,$A$9)+SUMIFS($HK$33:$HK$272,$AJ$33:$AJ$272,$A$3,$AH$33:$AH$272,$A$9))*500 -> 0 | CO17: =(SUMIFS($IR$33:$IR$272,$AJ$33:$AJ$272,$A$3,$AH$33:$AH$272,$A$9)+SUMIFS($IS$33:$IS$272,$AJ$33:$AJ$272,$A$3,$AH$33:$AH$272,$A$9)+SUMIFS($IT$33:$IT$272,$AJ$33:$AJ$272,$A$3,$AH$33:$AH$272,$A$9))*500 -> 0 | CP17: =(SUMIFS($KA$33:$KA$272,$AJ$33:$AJ$272,$A$3,$AH$33:$AH$272,$A$9)+SUMIFS($KB$33:$KB$272,$AJ$33:$AJ$272,$A$3,$AH$33:$AH$272,$A$9)+SUMIFS($KC$33:$KC$272,$AJ$33:$AJ$272,$A$3,$AH$33:$AH$272,$A$9))*500 -> 0 | CQ17: =(SUMIFS($LJ$33:$LJ$272,$AJ$33:$AJ$272,$A$3,$AH$33:$AH$272,$A$9)+SUMIFS($LK$33:$LK$272,$AJ$33:$AJ$272,$A$3,$AH$33:$AH$272,$A$9)+SUMIFS($LL$33:$LL$272,$AJ$33:$AJ$272,$A$3,$AH$33:$AH$272,$A$9))*500 -> 0 | CR17: =(SUMIFS($MS$33:$MS$272,$AJ$33:$AJ$272,$A$3,$AH$33:$AH$272,$A$9)+SUMIFS($MT$33:$MT$272,$AJ$33:$AJ$272,$A$3,$AH$33:$AH$272,$A$9)+SUMIFS($MU$33:$MU$272,$AJ$33:$AJ$272,$A$3,$AH$33:$AH$272,$A$9))*500 -> 0
A18: Q4 | V18: Unfunded | Z18: =GC287*1000 ->  | AA18: =HL287*1000 ->  | AB18: =IU287*1000 ->  | AC18: =KD287*1000 ->  | AD18: =LM287*1000 ->  | AE18: =MV287*1000 ->  | AO18: Unfunded Old: | AS18: =SUMIF($AH$33:$AH$272,$A$9,$EF$33:$EF$272)*500 -> 0 | AT18: =SUMIF($AH$33:$AH$272,$A$9,$EI$33:$EI$272)*500 -> 0 | AU18: =SUMIF($AH$33:$AH$272,$A$9,$EL$33:$EL$272)*500 -> 0 | AV18: =SUMIF($AH$33:$AH$272,$A$9,$EO$33:$EO$272)*500 -> 0 | AW18: =SUMIF($AH$33:$AH$272,$A$9,$ER$33:$ER$272)*500 -> 0 | AX18: =SUMIF($AH$33:$AH$272,$A$9,$EU$33:$EU$272)*500 -> 0 | BM18: Unfunded | BQ18: =(SUMIF($AJ$33:$AJ$272,$A$3,$GC$33:$GC$272)+SUMIF($AJ$33:$AJ$272,$A$3,$GD$33:$GD$272)+SUMIF($AJ$33:$AJ$272,$A$3,$GE$33:$GE$272))*500 -> 0 | BR18: =(SUMIF($AJ$33:$AJ$272,$A$3,$HL$33:$HL$272)+SUMIF($AJ$33:$AJ$272,$A$3,$HM$33:$HM$272)+SUMIF($AJ$33:$AJ$272,$A$3,$HN$33:$HN$272))*500 -> 0 | BS18: =(SUMIF($AJ$33:$AJ$272,$A$3,$IU$33:$IU$272)+SUMIF($AJ$33:$AJ$272,$A$3,$IV$33:$IV$272)+SUMIF($AJ$33:$AJ$272,$A$3,$IW$33:$IW$272))*500 -> 0 | BT18: =(SUMIF($AJ$33:$AJ$272,$A$3,$KD$33:$KD$272)+SUMIF($AJ$33:$AJ$272,$A$3,$KE$33:$KE$272)+SUMIF($AJ$33:$AJ$272,$A$3,$KF$33:$KF$272))*500 -> 0 | BU18: =(SUMIF($AJ$33:$AJ$272,$A$3,$LM$33:$LM$272)+SUMIF($AJ$33:$AJ$272,$A$3,$LN$33:$LN$272)+SUMIF($AJ$33:$AJ$272,$A$3,$LO$33:$LO$272))*500 -> 0 | BV18: =(SUMIF($AJ$33:$AJ$272,$A$3,$MV$33:$MV$272)+SUMIF($AJ$33:$AJ$272,$A$3,$MW$33:$MW$272)+SUMIF($AJ$33:$AJ$272,$A$3,$MX$33:$MX$272))*500 -> 0 | BX18: Unfunded | CB18: =(SUMIFS($GC$33:$GC$272,$AJ$33:$AJ$272,$A$3,$AH$33:$AH$272,$A$8)+SUMIFS($GD$33:$GD$272,$AJ$33:$AJ$272,$A$3,$AH$33:$AH$272,$A$8)+SUMIFS($GE$33:$GE$272,$AJ$33:$AJ$272,$A$3,$AH$33:$AH$272,$A$8))*500 -> 0 | CC18: =(SUMIFS($HL$33:$HL$272,$AJ$33:$AJ$272,$A$3,$AH$33:$AH$272,$A$8)+SUMIFS($HM$33:$HM$272,$AJ$33:$AJ$272,$A$3,$AH$33:$AH$272,$A$8)+SUMIFS($HN$33:$HN$272,$AJ$33:$AJ$272,$A$3,$AH$33:$AH$272,$A$8))*500 -> 0 | CD18: =(SUMIFS($IU$33:$IU$272,$AJ$33:$AJ$272,$A$3,$AH$33:$AH$272,$A$8)+SUMIFS($IV$33:$IV$272,$AJ$33:$AJ$272,$A$3,$AH$33:$AH$272,$A$8)+SUMIFS($IW$33:$IW$272,$AJ$33:$AJ$272,$A$3,$AH$33:$AH$272,$A$8))*500 -> 0 | CE18: =(SUMIFS($KD$33:$KD$272,$AJ$33:$AJ$272,$A$3,$AH$33:$AH$272,$A$8)+SUMIFS($KE$33:$KE$272,$AJ$33:$AJ$272,$A$3,$AH$33:$AH$272,$A$8)+SUMIFS($KF$33:$KF$272,$AJ$33:$AJ$272,$A$3,$AH$33:$AH$272,$A$8))*500 -> 0 | CF18: =(SUMIFS($LM$33:$LM$272,$AJ$33:$AJ$272,$A$3,$AH$33:$AH$272,$A$8)+SUMIFS($LN$33:$LN$272,$AJ$33:$AJ$272,$A$3,$AH$33:$AH$272,$A$8)+SUMIFS($LO$33:$LO$272,$AJ$33:$AJ$272,$A$3,$AH$33:$AH$272,$A$8))*500 -> 0 | CG18: =(SUMIFS($MV$33:$MV$272,$AJ$33:$AJ$272,$A$3,$AH$33:$AH$272,$A$8)+SUMIFS($MW$33:$MW$272,$AJ$33:$AJ$272,$A$3,$AH$33:$AH$272,$A$8)+SUMIFS($MX$33:$MX$272,$AJ$33:$AJ$272,$A$3,$AH$33:$AH$272,$A$8))*500 -> 0 | CI18: Unfunded | CM18: =(SUMIFS($GC$33:$GC$272,$AJ$33:$AJ$272,$A$3,$AH$33:$AH$272,$A$9)+SUMIFS($GD$33:$GD$272,$AJ$33:$AJ$272,$A$3,$AH$33:$AH$272,$A$9)+SUMIFS($GE$33:$GE$272,$AJ$33:$AJ$272,$A$3,$AH$33:$AH$272,$A$9))*500 -> 0 | CN18: =(SUMIFS($HL$33:$HL$272,$AJ$33:$AJ$272,$A$3,$AH$33:$AH$272,$A$9)+SUMIFS($HM$33:$HM$272,$AJ$33:$AJ$272,$A$3,$AH$33:$AH$272,$A$9)+SUMIFS($HN$33:$HN$272,$AJ$33:$AJ$272,$A$3,$AH$33:$AH$272,$A$9))*500 -> 0 | CO18: =(SUMIFS($IU$33:$IU$272,$AJ$33:$AJ$272,$A$3,$AH$33:$AH$272,$A$9)+SUMIFS($IV$33:$IV$272,$AJ$33:$AJ$272,$A$3,$AH$33:$AH$272,$A$9)+SUMIFS($IW$33:$IW$272,$AJ$33:$AJ$272,$A$3,$AH$33:$AH$272,$A$9))*500 -> 0 | CP18: =(SUMIFS($KD$33:$KD$272,$AJ$33:$AJ$272,$A$3,$AH$33:$AH$272,$A$9)+SUMIFS($KE$33:$KE$272,$AJ$33:$AJ$272,$A$3,$AH$33:$AH$272,$A$9)+SUMIFS($KF$33:$KF$272,$AJ$33:$AJ$272,$A$3,$AH$33:$AH$272,$A$9))*500 -> 0 | CQ18: =(SUMIFS($LM$33:$LM$272,$AJ$33:$AJ$272,$A$3,$AH$33:$AH$272,$A$9)+SUMIFS($LN$33:$LN$272,$AJ$33:$AJ$272,$A$3,$AH$33:$AH$272,$A$9)+SUMIFS($LO$33:$LO$272,$AJ$33:$AJ$272,$A$3,$AH$33:$AH$272,$A$9))*500 -> 0 | CR18: =(SUMIFS($MV$33:$MV$272,$AJ$33:$AJ$272,$A$3,$AH$33:$AH$272,$A$9)+SUMIFS($MW$33:$MW$272,$AJ$33:$AJ$272,$A$3,$AH$33:$AH$272,$A$9)+SUMIFS($MX$33:$MX$272,$AJ$33:$AJ$272,$A$3,$AH$33:$AH$272,$A$9))*500 -> 0
C19: XX Proposed Funding | V19: By Phase | BM19: By Phase | BX19: By Phase | CI19: By Phase
A20: "region" | D20: =$C$9 -> 2026 | F20: =D20+1 -> 2027 | H20: =F20+1 -> 2028 | J20: =H20+1 -> 2029 | L20: =J20+1 -> 2030 | N20: =L20+1 -> 2031 | V20: 0 | Z20: =$EX274 -> 0 | AA20: =$GG274 -> 0 | AB20: =$HP274 -> 0 | AC20: =$IY274 -> 0 | AD20: =$KH274 -> 0 | AE20: =$LQ274 -> 0 | AO20: Corrections: | AQ20: ph2 | AR20: ph7 | AT20: ph2 | AU20: ph7 | AW20: ph2 | AX20: ph7 | BM20: 0 | BQ20: =SUMIFS($EX$33:$EX$272,$AJ$33:$AJ$272,$A$3,$EW$33:$EW$272,$BM33) -> 0 | BR20: =SUMIFS($GG$33:$GG$272,$AJ$33:$AJ$272,$A$3,$GF$33:$GF$272,$BM33) -> 0 | BS20: =SUMIFS($HP$33:$HP$272,$AJ$33:$AJ$272,$A$3,$HO$33:$HO$272,$BM33) -> 0 | BT20: =SUMIFS($IY$33:$IY$272,$AJ$33:$AJ$272,$A$3,$IX$33:$IX$272,$BM33) -> 0 | BU20: =SUMIFS($KH$33:$KH$272,$AJ$33:$AJ$272,$A$3,$KG$33:$KG$272,$BM33) -> 0 | BV20: =SUMIFS($LQ$33:$LQ$272,$AJ$33:$AJ$272,$A$3,$LP$33:$LP$272,$BM33) -> 0 | BX20: 0 | CB20: =SUMIFS($EX$33:$EX$272,$AJ$33:$AJ$272,$A$3,$EW$33:$EW$272,$BM33,$AH$33:$AH$272,$A$8) -> 0 | CC20: =SUMIFS($GG$33:$GG$272,$AJ$33:$AJ$272,$A$3,$GF$33:$GF$272,$BM33,$AH$33:$AH$272,$A$8) -> 0 | CD20: =SUMIFS($HP$33:$HP$272,$AJ$33:$AJ$272,$A$3,$HO$33:$HO$272,$BM33,$AH$33:$AH$272,$A$8) -> 0 | CE20: =SUMIFS($IY$33:$IY$272,$AJ$33:$AJ$272,$A$3,$IX$33:$IX$272,$BM33,$AH$33:$AH$272,$A$8) -> 0 | CF20: =SUMIFS($KH$33:$KH$272,$AJ$33:$AJ$272,$A$3,$KG$33:$KG$272,$BM33,$AH$33:$AH$272,$A$8) -> 0 | CG20: =SUMIFS($LQ$33:$LQ$272,$AJ$33:$AJ$272,$A$3,$LP$33:$LP$272,$BM33,$AH$33:$AH$272,$A$8) -> 0 | CI20: 0 | CM20: =SUMIFS($EX$33:$EX$272,$AJ$33:$AJ$272,$A$3,$EW$33:$EW$272,$BM33,$AH$33:$AH$272,$A$9) -> 0 | CN20: =SUMIFS($GG$33:$GG$272,$AJ$33:$AJ$272,$A$3,$GF$33:$GF$272,$BM33,$AH$33:$AH$272,$A$9) -> 0 | CO20: =SUMIFS($HP$33:$HP$272,$AJ$33:$AJ$272,$A$3,$HO$33:$HO$272,$BM33,$AH$33:$AH$272,$A$9) -> 0 | CP20: =SUMIFS($IY$33:$IY$272,$AJ$33:$AJ$272,$A$3,$IX$33:$IX$272,$BM33,$AH$33:$AH$272,$A$9) -> 0 | CQ20: =SUMIFS($KH$33:$KH$272,$AJ$33:$AJ$272,$A$3,$KG$33:$KG$272,$BM33,$AH$33:$AH$272,$A$9) -> 0 | CR20: =SUMIFS($LQ$33:$LQ$272,$AJ$33:$AJ$272,$A$3,$LP$33:$LP$272,$BM33,$AH$33:$AH$272,$A$9) -> 0
A21: if A1 fails | C21: Total | D21: =Y$281 -> 0 | F21: =Z$281 -> 0 | H21: =AA$281 -> 0 | J21: =AB$281 -> 0 | L21: =AC$281 -> 0 | N21: =AD$281 -> 0 | V21: 2 | Z21: =$EX275 -> 0 | AA21: =$GG275 -> 0 | AB21: =$HP275 -> 0 | AC21: =$IY275 -> 0 | AD21: =$KH275 -> 0 | AE21: =$LQ275 -> 0 | AO21: 24CN03 | AP21: AMATS | AQ21: =(25500/9)*2 -> 5666.666667 | AR21: =(99200/9)*2 -> 22044.44444 | AS21: MVP | AT21: =(25500/9)*2 -> 5666.666667 | AU21: =(99200/9)*2 -> 22044.44444 | AV21: Outside MPO | AW21: =Y165-AQ21-AT21 -> -11333.33333 | BM21: 2 | BQ21: 0 | BR21: 0 | BS21: 0 | BT21: 0 | BU21: 0 | BV21: 0 | BX21: 2 | CB21: 0 | CC21: 0 | CD21: 0 | CE21: 0 | CF21: 0 | CG21: 0 | CI21: 2 | CM21: 0 | CN21: =SUMIFS($GG$33:$GG$272,$AJ$33:$AJ$272,$A$3,$GF$33:$GF$272,#REF!,$AH$33:$AH$272,$A$9) -> 0 | CO21: =SUMIFS($HP$33:$HP$272,$AJ$33:$AJ$272,$A$3,$HO$33:$HO$272,#REF!,$AH$33:$AH$272,$A$9) -> 0 | CP21: =SUMIFS($IY$33:$IY$272,$AJ$33:$AJ$272,$A$3,$IX$33:$IX$272,#REF!,$AH$33:$AH$272,$A$9) -> 0 | CQ21: =SUMIFS($KH$33:$KH$272,$AJ$33:$AJ$272,$A$3,$KG$33:$KG$272,#REF!,$AH$33:$AH$272,$A$9) -> 0 | CR21: =SUMIFS($LQ$33:$LQ$272,$AJ$33:$AJ$272,$A$3,$LP$33:$LP$272,#REF!,$AH$33:$AH$272,$A$9) -> 0
C22: New: | E22: =TRANSPOSE(ED281:EF281)*1000 ->  | G22: =TRANSPOSE(EG281:EI281)*1000 ->  | I22: =TRANSPOSE(EJ281:EL281)*1000 ->  | K22: =TRANSPOSE(EM281:EO281)*1000 ->  | M22: =TRANSPOSE(EP281:ER281)*1000 ->  | P22: =TRANSPOSE(ES281:EU281)*1000 ->  | V22: 3 | Z22: 0 | AA22: 0 | AB22: 0 | AC22: 0 | AD22: 0 | AE22: 0 | AQ22: FY25 | AT22: FY25 | AW22: FY25 | BM22: 3 | BQ22: 0 | BR22: 0 | BS22: 0 | BT22: 0 | BU22: 0 | BV22: 0 | BX22: 3 | CB22: 0 | CC22: 0 | CD22: 0 | CE22: 0 | CF22: 0 | CG22: 0 | CI22: 3 | CM22: 0 | CN22: =SUMIFS($GG$33:$GG$272,$AJ$33:$AJ$272,$A$3,$GF$33:$GF$272,$AO22,$AH$33:$AH$272,$A$9) -> 0 | CO22: =SUMIFS($HP$33:$HP$272,$AJ$33:$AJ$272,$A$3,$HO$33:$HO$272,$AO22,$AH$33:$AH$272,$A$9) -> 0 | CP22: =SUMIFS($IY$33:$IY$272,$AJ$33:$AJ$272,$A$3,$IX$33:$IX$272,$AO22,$AH$33:$AH$272,$A$9) -> 0 | CQ22: =SUMIFS($KH$33:$KH$272,$AJ$33:$AJ$272,$A$3,$KG$33:$KG$272,$AO22,$AH$33:$AH$272,$A$9) -> 0 | CR22: =SUMIFS($LQ$33:$LQ$272,$AJ$33:$AJ$272,$A$3,$LP$33:$LP$272,$AO22,$AH$33:$AH$272,$A$9) -> 0
C23: Funded Old: | V23: 4 | Z23: 0 | AA23: 0 | AB23: 0 | AC23: 0 | AD23: 0 | AE23: 0 | AR23: FY25 | AS23: MPO | AT23: AMATS | AU23: MVP | BM23: 4 | BQ23: 0 | BR23: 0 | BS23: 0 | BT23: 0 | BU23: 0 | BV23: 0 | BX23: 4 | CB23: 0 | CC23: 0 | CD23: 0 | CE23: 0 | CF23: 0 | CG23: 0 | CI23: 4 | CM23: 0 | CN23: =SUMIFS($GG$33:$GG$272,$AJ$33:$AJ$272,$A$3,$GF$33:$GF$272,$AO23,$AH$33:$AH$272,$A$9) -> 0 | CO23: =SUMIFS($HP$33:$HP$272,$AJ$33:$AJ$272,$A$3,$HO$33:$HO$272,$AO23,$AH$33:$AH$272,$A$9) -> 0 | CP23: =SUMIFS($IY$33:$IY$272,$AJ$33:$AJ$272,$A$3,$IX$33:$IX$272,$AO23,$AH$33:$AH$272,$A$9) -> 0 | CQ23: =SUMIFS($KH$33:$KH$272,$AJ$33:$AJ$272,$A$3,$KG$33:$KG$272,$AO23,$AH$33:$AH$272,$A$9) -> 0 | CR23: =SUMIFS($LQ$33:$LQ$272,$AJ$33:$AJ$272,$A$3,$LP$33:$LP$272,$AO23,$AH$33:$AH$272,$A$9) -> 0
C24: Unfunded Old: | V24: 7 | Z24: 0 | AA24: 0 | AB24: 0 | AC24: 0 | AD24: 0 | AE24: 0 | AR24: Total | AS24: =SUM(AS25:AS27) -> 11333.33333 | AT24: =SUM(AT25:AT27) -> 5666.666667 | AU24: =SUM(AU25:AU27) -> 5666.666667 | BM24: 7 | BQ24: 0 | BR24: 0 | BS24: 0 | BT24: 0 | BU24: 0 | BV24: 0 | BX24: 7 | CB24: 0 | CC24: 0 | CD24: 0 | CE24: 0 | CF24: 0 | CG24: 0 | CI24: 7 | CM24: 0 | CN24: =SUMIFS($GG$33:$GG$272,$AJ$33:$AJ$272,$A$3,$GF$33:$GF$272,$AO24,$AH$33:$AH$272,$A$9) -> 0 | CO24: =SUMIFS($HP$33:$HP$272,$AJ$33:$AJ$272,$A$3,$HO$33:$HO$272,$AO24,$AH$33:$AH$272,$A$9) -> 0 | CP24: =SUMIFS($IY$33:$IY$272,$AJ$33:$AJ$272,$A$3,$IX$33:$IX$272,$AO24,$AH$33:$AH$272,$A$9) -> 0 | CQ24: =SUMIFS($KH$33:$KH$272,$AJ$33:$AJ$272,$A$3,$KG$33:$KG$272,$AO24,$AH$33:$AH$272,$A$9) -> 0 | CR24: =SUMIFS($LQ$33:$LQ$272,$AJ$33:$AJ$272,$A$3,$LP$33:$LP$272,$AO24,$AH$33:$AH$272,$A$9) -> 0
V25: 8 | Z25: 0 | AA25: 0 | AB25: 0 | AC25: 0 | AD25: 0 | AE25: 0 | AR25: New | AS25: =SUM(AT25:AU25) -> 0 | AT25: =AS11 -> 0 | AU25: =AS16 -> 0 | BM25: 8 | BQ25: 0 | BR25: 0 | BS25: 0 | BT25: 0 | BU25: 0 | BV25: 0 | BX25: 8 | CB25: 0 | CC25: 0 | CD25: 0 | CE25: 0 | CF25: 0 | CG25: 0 | CI25: 8 | CM25: 0 | CN25: =SUMIFS($GG$33:$GG$272,$AJ$33:$AJ$272,$A$3,$GF$33:$GF$272,$AO20,$AH$33:$AH$272,$A$9) -> 0 | CO25: =SUMIFS($HP$33:$HP$272,$AJ$33:$AJ$272,$A$3,$HO$33:$HO$272,$AO20,$AH$33:$AH$272,$A$9) -> 0 | CP25: =SUMIFS($IY$33:$IY$272,$AJ$33:$AJ$272,$A$3,$IX$33:$IX$272,$AO20,$AH$33:$AH$272,$A$9) -> 0 | CQ25: =SUMIFS($KH$33:$KH$272,$AJ$33:$AJ$272,$A$3,$KG$33:$KG$272,$AO20,$AH$33:$AH$272,$A$9) -> 0 | CR25: =SUMIFS($LQ$33:$LQ$272,$AJ$33:$AJ$272,$A$3,$LP$33:$LP$272,$AO20,$AH$33:$AH$272,$A$9) -> 0
C26: Funded only in future years | V26: 9 | Z26: 0 | AA26: 0 | AB26: 0 | AC26: 0 | AD26: 0 | AE26: 0 | AR26: Funded Old | AS26: =SUM(AT26:AU26) -> 11333.33333 | AT26: =AS12+AQ21 -> 5666.666667 | AU26: =AS17+AT21 -> 5666.666667 | BM26: 9 | BQ26: 0 | BR26: 0 | BS26: 0 | BT26: 0 | BU26: 0 | BV26: 0 | BX26: 9 | CB26: 0 | CC26: 0 | CD26: 0 | CE26: 0 | CF26: 0 | CG26: 0 | CI26: 9 | CM26: 0 | CN26: =SUMIFS($GG$33:$GG$272,$AJ$33:$AJ$272,$A$3,$GF$33:$GF$272,$AO21,$AH$33:$AH$272,$A$9) -> 0 | CO26: =SUMIFS($HP$33:$HP$272,$AJ$33:$AJ$272,$A$3,$HO$33:$HO$272,$AO21,$AH$33:$AH$272,$A$9) -> 0 | CP26: =SUMIFS($IY$33:$IY$272,$AJ$33:$AJ$272,$A$3,$IX$33:$IX$272,$AO21,$AH$33:$AH$272,$A$9) -> 0 | CQ26: =SUMIFS($KH$33:$KH$272,$AJ$33:$AJ$272,$A$3,$KG$33:$KG$272,$AO21,$AH$33:$AH$272,$A$9) -> 0 | CR26: =SUMIFS($LQ$33:$LQ$272,$AJ$33:$AJ$272,$A$3,$LP$33:$LP$272,$AO21,$AH$33:$AH$272,$A$9) -> 0 | EW26: Why is this the same number from the proposed funding plan vs the actuals? What happens they ask for more $$ vs what they had obligated?
C27: Copied from Regional Report | V27: Total | Z27: =$EX281 -> 0 | AA27: 0 | AB27: 0 | AC27: 0 | AD27: =$KH281 -> 0 | AE27: 0 | AR27: Unfunded Old | AS27: =SUM(AT27:AU27) -> 0 | AT27: =AS13 -> 0 | AU27: =AS18 -> 0 | BM27: Total | BQ27: 0 | BR27: 0 | BS27: 0 | BT27: 0 | BU27: 0 | BV27: 0 | BX27: Total | CB27: 0 | CC27: 0 | CD27: 0 | CE27: 0 | CF27: 0 | CG27: 0 | CI27: Total | CM27: 0 | CN27: =SUM(CN$20:CN$26) -> 0 | CO27: 0 | CP27: 0 | CQ27: 0 | CR27: 0
C28: Inputted at Statewide | D28: Choose only 1 project type | AG28: conditional formatting if not equal | AO28: Years that have funded a type ('XX) | BM28: Funding Designation | EW28: Totals and Funding Sources for SELECTED Projects | IX28: Totals and Funding Sources for SELECTED Projects
AZ29: (a) | BN29: (b) | BO29: (c) | BP29: (d) | BQ29: (e) | BR29: (f) | BS29: (g) | BT29: (h) | BU29: (i) | BV29: (j) | BW29: (k) | BX29: (l)
C30: ='Regional Project List Sheet'!$E$2 -> FFY 2026 Proposed HSIP Projects - XX Region | AO30: Funding History | AZ30: Selected? | BA30: Error Check | BB30: TEST Dollars Assigned | BC30: TEST Multi-Fund Sources | BD30: TEST Funding Continuity | BE30: A - Test Value | BF30: B - Test Value | BG30: C - Test Value | BH30: D - Test Value | BI30: E - Test Value | BJ30: F - Test Value | BK30: MAX - Test Value | BN30: =_xlfn.CONCAT("FFY ",MID($C$9,3,2)) -> FFY 26 | BY30: =_xlfn.CONCAT("FFY ",MID($C$9+1,3,2)) -> FFY 27 | CJ30: =_xlfn.CONCAT("FFY ",MID($C$9+2,3,2)) -> FFY 28 | CU30: =_xlfn.CONCAT("FFY ",MID($C$9+3,3,2)) -> FFY 29 | DF30: =_xlfn.CONCAT("FFY ",MID($C$9+4,3,2)) -> FFY 30 | DQ30: =_xlfn.CONCAT("FFY ",MID($C$9+5,3,2)) -> FFY 31 | ED30: =_xlfn.CONCAT("FFY ",MID($C$9,3,2)) -> FFY 26 | EG30: =_xlfn.CONCAT("FFY ",MID($C$9+1,3,2)) -> FFY 27 | EJ30: =_xlfn.CONCAT("FFY ",MID($C$9+2,3,2)) -> FFY 28 | EM30: =_xlfn.CONCAT("FFY ",MID($C$9+3,3,2)) -> FFY 29 | EP30: =_xlfn.CONCAT("FFY ",MID($C$9+4,3,2)) -> FFY 30 | ES30: =_xlfn.CONCAT("FFY ",MID($C$9+5,3,2)) -> FFY 31 | EW30: =$C$9 -> 2026 | GF30: =EW30+1 -> 2027 | HO30: =GF30+1 -> 2028 | IX30: =HO30+1 -> 2029 | KG30: =IX30+1 -> 2030 | LP30: =KG30+1 -> 2031
C31: Project Name: | D31: Project Type | G31: IRIS No. | H31: HSIP Project Number | I31: B/C | J31: Safety Index | K31: Criteria 1 | L31: Criteria 2 | M31: Criteria 3A | N31: Criteria 3B | O31: Criteria 4 | P31: Weighted Score | Q31: Statewide Rank | R31: Crashes Susc. to Corr. | W31: Region | X31: Phase | Y31: Federal Fiscal Year | AB31: Longterm View | AE31: =_xlfn.CONCAT("FFY",MID($C$9,3,2)," Quarter") -> FFY26 Quarter | AF31: Bundle? | AG31: In MPO? | AI31: In TIP? | AK31: Project Description | AL31: HQ Review Comments | AM31: Regional Response/Adjustment | AO31: Phase | AP31: S120 | AQ31: S130 (Railroad) | AR31: S148 (UnCat) | AS31: S154 (Penalty) | AT31: S164 (Penalty) | AU31: HRRR | AV31: SSP | AW31: VRU | AX31: Older Drivers and Peds | BM31: Phase | BN31: S120 | BO31: S130 (Railroad) | BP31: S148 (UnCat) | BQ31: S154 (Penalty) | BR31: S164 (Penalty) | BS31: HRRR | BT31: SSP | BU31: VRU | BV31: Older Drivers & Peds | BW31: A/C | BX31: Unfunded | BY31: S120 | BZ31: S130 (Railroad) | CA31: S148 (UnCat) | CB31: S154 (Penalty) | CC31: S164 (Penalty) | CD31: HRRR | CE31: SSP | CF31: VRU | CG31: Older Drivers & Peds | CH31: A/C | CI31: Unfunded | CJ31: S120 | CK31: S130 (Railroad) | CL31: S148 (UnCat) | CM31: S154 (Penalty) | CN31: S164 (Penalty) | CO31: HRRR | CP31: SSP | CQ31: VRU | CR31: Older Drivers & Peds | CS31: A/C | CT31: Unfunded | CU31: S120 | CV31: S130 (Railroad) | CW31: S148 (UnCat) | CX31: S154 (Penalty) | CY31: S164 (Penalty) | CZ31: HRRR | DA31: SSP | DB31: VRU | DC31: Older Drivers & Peds | DD31: A/C | DE31: Unfunded | DF31: S120 | DG31: S130 (Railroad) | DH31: S148 (UnCat) | DI31: S154 (Penalty) | DJ31: S164 (Penalty) | DK31: HRRR | DL31: SSP | DM31: VRU | DN31: Older Drivers & Peds | DO31: A/C | DP31: Unfunded | DQ31: S120 | DR31: S130 (Railroad) | DS31: S148 (UnCat) | DT31: S154 (Penalty) | DU31: S164 (Penalty) | DV31: HRRR | DW31: SSP | DX31: VRU | DY31: Older Drivers & Peds | DZ31: A/C | EA31: Unfunded | EC31: Phase | ED31: New | EE31: Funded Old | EF31: Unfunded Old | EG31: New | EH31: Funded Old | EI31: Unfunded Old | EJ31: New | EK31: Funded Old | EL31: Unfunded Old | EM31: New | EN31: Funded Old | EO31: Unfunded Old | EP31: New | EQ31: Funded Old | ER31: Unfunded Old | ES31: New | ET31: Funded Old | EU31: Unfunded Old | EW31: By Phase | EY31: S120 | FB31: S130 (Railroad) | FE31: S148 (UnCat) | FH31: S154 (Penalty) | FK31: S164 (Penalty) | FN31: HRRR | FQ31: SSP | FT31: VRU | FW31: Older Drivers & Peds | FZ31: A/C | GC31: Unfunded | GF31: By Phase | GH31: S120 | GK31: S130 (Railroad) | GN31: S148 (UnCat) | GQ31: S154 (Penalty) | GT31: S164 (Penalty) | GW31: HRRR | GZ31: SSP | HC31: VRU | HF31: Older Drivers & Peds | HI31: A/C | HL31: Unfunded | HO31: By Phase | HQ31: S120 | HT31: S130 (Railroad) | HW31: S148 (UnCat) | HZ31: S154 (Penalty) | IC31: S164 (Penalty) | IF31: HRRR | II31: SSP | IL31: VRU | IO31: Older Drivers & Peds | IR31: A/C | IU31: Unfunded | IX31: By Phase | IZ31: S120 | JC31: S130 (Railroad) | JF31: S148 (UnCat) | JI31: S154 (Penalty) | JL31: S164 (Penalty) | JO31: HRRR | JR31: SSP | JU31: VRU | JX31: Older Drivers & Peds | KA31: A/C | KD31: Unfunded | KG31: By Phase | KI31: S120 | KL31: S130 (Railroad) | KO31: S148 (UnCat) | KR31: S154 (Penalty) | KU31: S164 (Penalty) | KX31: HRRR | LA31: SSP | LD31: VRU | LG31: Older Drivers & Peds | LJ31: A/C | LM31: Unfunded | LP31: By Phase | LR31: S120 | LU31: S130 (Railroad) | LX31: S148 (UnCat) | MA31: S154 (Penalty) | MD31: S164 (Penalty) | MG31: HRRR | MJ31: SSP | MM31: VRU | MP31: Older Drivers & Peds | MS31: A/C | MV31: Unfunded
D32: New | E32: FO | F32: UFO | R32: PDO | S32: POS | T32: MIN | U32: MJR | V32: FAT | Y32: =MID($C$9,3,2) -> 26 | Z32: =Y32+1 -> 27 | AA32: =Z32+1 -> 28 | AB32: 29 | AC32: 30 | AD32: 31 | EY32: New | EZ32: Funded Old | FA32: Unfunded Old | FB32: New | FC32: Funded Old | FD32: Unfunded Old | FE32: New | FF32: Funded Old | FG32: Unfunded Old | FH32: New | FI32: Funded Old | FJ32: Unfunded Old | FK32: New | FL32: Funded Old | FM32: Unfunded Old | FN32: New | FO32: Funded Old | FP32: Unfunded Old | FQ32: New | FR32: Funded Old | FS32: Unfunded Old | FT32: New | FU32: Funded Old | FV32: Unfunded Old | FW32: New | FX32: Funded Old | FY32: Unfunded Old | FZ32: New | GA32: Funded Old | GB32: Unfunded Old | GC32: New | GD32: Funded Old | GE32: Unfunded Old | GH32: New | GI32: Funded Old | GJ32: Unfunded Old | GK32: New | GL32: Funded Old | GM32: Unfunded Old | GN32: New | GO32: Funded Old | GP32: Unfunded Old | GQ32: New | GR32: Funded Old | GS32: Unfunded Old | GT32: New | GU32: Funded Old | GV32: Unfunded Old | GW32: New | GX32: Funded Old | GY32: Unfunded Old | GZ32: New | HA32: Funded Old | HB32: Unfunded Old | HC32: New | HD32: Funded Old | HE32: Unfunded Old | HF32: New | HG32: Funded Old | HH32: Unfunded Old | HI32: New | HJ32: Funded Old | HK32: Unfunded Old | HL32: New | HM32: Funded Old | HN32: Unfunded Old | HQ32: New | HR32: Funded Old | HS32: Unfunded Old | HT32: New | HU32: Funded Old | HV32: Unfunded Old | HW32: New | HX32: Funded Old | HY32: Unfunded Old | HZ32: New | IA32: Funded Old | IB32: Unfunded Old | IC32: New | ID32: Funded Old | IE32: Unfunded Old | IF32: New | IG32: Funded Old | IH32: Unfunded Old | II32: New | IJ32: Funded Old | IK32: Unfunded Old | IL32: New | IM32: Funded Old | IN32: Unfunded Old | IO32: New | IP32: Funded Old | IQ32: Unfunded Old | IR32: New | IS32: Funded Old | IT32: Unfunded Old | IU32: New | IV32: Funded Old | IW32: Unfunded Old | IZ32: New | JA32: Funded Old | JB32: Unfunded Old | JC32: New | JD32: Funded Old | JE32: Unfunded Old | JF32: New | JG32: Funded Old | JH32: Unfunded Old | JI32: New | JJ32: Funded Old | JK32: Unfunded Old | JL32: New | JM32: Funded Old | JN32: Unfunded Old | JO32: New | JP32: Funded Old | JQ32: Unfunded Old | JR32: New | JS32: Funded Old | JT32: Unfunded Old | JU32: New | JV32: Funded Old | JW32: Unfunded Old | JX32: New | JY32: Funded Old | JZ32: Unfunded Old | KA32: New | KB32: Funded Old | KC32: Unfunded Old | KD32: New | KE32: Funded Old | KF32: Unfunded Old | KI32: New | KJ32: Funded Old | KK32: Unfunded Old | KL32: New | KM32: Funded Old | KN32: Unfunded Old | KO32: New | KP32: Funded Old | KQ32: Unfunded Old | KR32: New | KS32: Funded Old | KT32: Unfunded Old | KU32: New | KV32: Funded Old | KW32: Unfunded Old | KX32: New | KY32: Funded Old | KZ32: Unfunded Old | LA32: New | LB32: Funded Old | LC32: Unfunded Old | LD32: New | LE32: Funded Old | LF32: Unfunded Old | LG32: New | LH32: Funded Old | LI32: Unfunded Old | LJ32: New | LK32: Funded Old | LL32: Unfunded Old | LM32: New | LN32: Funded Old | LO32: Unfunded Old | LR32: New | LS32: Funded Old | LT32: Unfunded Old | LU32: New | LV32: Funded Old | LW32: Unfunded Old | LX32: New | LY32: Funded Old | LZ32: Unfunded Old | MA32: New | MB32: Funded Old | MC32: Unfunded Old | MD32: New | ME32: Funded Old | MF32: Unfunded Old | MG32: New | MH32: Funded Old | MI32: Unfunded Old | MJ32: New | MK32: Funded Old | ML32: Unfunded Old | MM32: New | MN32: Funded Old | MO32: Unfunded Old | MP32: New | MQ32: Funded Old | MR32: Unfunded Old | MS32: New | MT32: Funded Old | MU32: Unfunded Old | MV32: New | MW32: Funded Old | MX32: Unfunded Old
B33: =B28+1 -> 1 | C33: ='Regional Project List Sheet'!F5 -> 0 | D33: =IF('Regional Project List Sheet'!$G5="New",1,"") ->  | E33: =IF('Regional Project List Sheet'!$G5="Funded Old",1,"") ->  | F33: =IF('Regional Project List Sheet'!$G5="Unfunded Old",1,"") ->  | G33: ='Regional Project List Sheet'!H5 -> 0 | H33: ='Regional Project List Sheet'!I5 -> 0 | I33: ='Regional Project List Sheet'!L5 -> 0 | J33: ='Regional Project List Sheet'!M5 -> 0 | K33: ='Regional Project List Sheet'!N5 -> 0 | L33: ='Regional Project List Sheet'!O5 -> 0 | M33: ='Regional Project List Sheet'!P5 -> 0 | N33: =IF('Regional Project List Sheet'!$Q5="N/A","N/A",IF($Y36<>0,5,IF($Z36<>0,4,IF($AA36<>0,3,IF($AB36<>0,2,1))))) -> 1 | O33: =VLOOKUP($C33,'[1]Ranking|Priority'!$B$5:$O$40,12,FALSE) ->  | P33: =VLOOKUP($C33,'[1]Ranking|Priority'!$B$5:$O$68,13,FALSE) ->  | Q33: =VLOOKUP($C33,'[2]Ranking|Priority'!$B$5:$O$68,14,FALSE) ->  | R33: ='Regional Project List Sheet'!T5 -> 0 | S33: ='Regional Project List Sheet'!U5 -> 0 | T33: ='Regional Project List Sheet'!V5 -> 0 | U33: ='Regional Project List Sheet'!W5 -> 0 | V33: ='Regional Project List Sheet'!X5 -> 0 | W33: ='Regional Project List Sheet'!Y5 -> Choose from Project List in cell I2 | X33: 0 | AF33: ='Regional Project List Sheet'!AJ5 -> 0 | AG33: =IF(OR('Regional Project List Sheet'!$AA5<>'Regional Project List Sheet'!$A$40,'Regional Project List Sheet'!$AD5<>'Regional Project List Sheet'!$A$40,'Regional Project List Sheet'!$AG5<>'Regional Project List Sheet'!$A$40),_xlfn.CONCAT(IF(ISNUMBER('Regional Project List Sheet'!$AA5),'Regional Project List Sheet'!$A$36,"")," ",IF(ISNUMBER('Regional Project List Sheet'!$AD5),'Regional Project List Sheet'!$A$37,"")," ",IF(ISNUMBER('Regional Project List Sheet'!$AG5),'Regional Project List Sheet'!$A$38,"")),"N/A") -> N/A | AH33: =IF(X33=0,AG33,AH32) -> N/A | AI33: =IF(OR('Regional Project List Sheet'!AC5<>'Regional Project List Sheet'!$A$40,'Regional Project List Sheet'!AF5<>'Regional Project List Sheet'!$A$40,'Regional Project List Sheet'!AI5<>'Regional Project List Sheet'!$A$40), IF(LEN(_xlfn.CONCAT(IF('Regional Project List Sheet'!AC5="Yes",'Regional Project List Sheet'!$A$36,"")," ", IF('Regional Project List Sheet'!AF5="Yes",'Regional Project List Sheet'!$A$37,"")," ", IF('Regional Project List Sheet'!AI5="Yes",'Regional Project List Sheet'!$A$38,"")))<3,"No", _xlfn.CONCAT(IF('Regional Project List Sheet'!AC5="Yes",'Regional Project List Sheet'!$A$36,"")," ", IF('Regional Project List Sheet'!AF5="Yes",'Regional Project List Sheet'!$A$37,"")," ", IF('Regional Project List Sheet'!AI5="Yes",'Regional Project List Sheet'!$A$38,"")))) -> FALSE | AJ33: =IF(X33=0,AI33,AJ32) -> FALSE | AK33: ='Regional Project List Sheet'!AK5 -> 0 | AM33: ='Regional Project List Sheet'!AL5 -> 0 | AO33: 0 | AZ33: 1 | BA33: =IF(AND(BB33="OK",BC33="OK",BD33="OK"),"OK","ERR!") -> OK | BB33: =IF(AND(Y33>0,SUM(BN33:BX33)<1),"ERR!",IF(AND(Z33>0,SUM(BY33:CI33)<1),"ERR!",IF(AND(AA33>0,SUM(CJ33:CT33)<1),"ERR",IF(AND(AB33>0,SUM(CU33:DE33)<1),"ERR",IF(AND(AC33>0,SUM(DF33:DP33)<1),"ERR",IF(AND(AD33>0,SUM(DQ33:EA33)<1),"ERR","OK")))))) -> OK | BC33: =IF(OR(SUM(BN33:BX33)<>1,SUM(BY33:CI33)<>1,SUM(CJ33:CT33)<>1,SUM(CU33:DE33)<>1,SUM(DF33:DP33)<>1,SUM(DQ33:EA33)<>1),"ERR!","OK") -> OK | BD33: =IF(AND(OR(BE33=BK33,BE33=0),OR(BF33=BK33,BF33=0),OR(BG33=BK33,BG33=0),OR(BH33=BK33,BH33=0),OR(BI33=BK33,BI33=0),OR(BJ33=BK33,BJ33=0)),"OK","ERR!") -> OK | BE33: =(BN33*POWER(10,0)+BO33*POWER(10,1)+BP33*POWER(10,2)+BQ33*POWER(10,3)+BR33*POWER(10,4)+BS33*POWER(10,5)+BT33*POWER(10,6)+BU33*POWER(10,7)+BV33*POWER(10,8)+BW33*POWER(10,9)+BX33*POWER(10,10)) -> 100 | BF33: =(BY33*POWER(10,0)+BZ33*POWER(10,1)+CA33*POWER(10,2)+CB33*POWER(10,3)+CC33*POWER(10,4)+CD33*POWER(10,5)+CE33*POWER(10,6)+CF33*POWER(10,7)+CG33*POWER(10,8)+CH33*POWER(10,9)+CI33*POWER(10,10)) -> 100 | BG33: =(CJ33*POWER(10,0)+CK33*POWER(10,1)+CL33*POWER(10,2)+CM33*POWER(10,3)+CN33*POWER(10,4)+CO33*POWER(10,5)+CP33*POWER(10,6)+CQ33*POWER(10,7)+CR33*POWER(10,8)+CS33*POWER(10,9)+CT33*POWER(10,10)) -> 100 | BH33: =(CU33*POWER(10,0)+CV33*POWER(10,1)+CW33*POWER(10,2)+CX33*POWER(10,3)+CY33*POWER(10,4)+CZ33*POWER(10,5)+DA33*POWER(10,6)+DB33*POWER(10,7)+DC33*POWER(10,8)+DD33*POWER(10,9)+DE33*POWER(10,10)) -> 100 | BI33: =(DF33*POWER(10,0)+DG33*POWER(10,1)+DH33*POWER(10,2)+DI33*POWER(10,3)+DJ33*POWER(10,4)+DK33*POWER(10,5)+DL33*POWER(10,6)+DM33*POWER(10,7)+DN33*POWER(10,8)+DO33*POWER(10,9)+DP33*POWER(10,10)) -> 100 | BJ33: =(DQ33*POWER(10,0)+DR33*POWER(10,1)+DS33*POWER(10,2)+DT33*POWER(10,3)+DU33*POWER(10,4)+DV33*POWER(10,5)+DW33*POWER(10,6)+DX33*POWER(10,7)+DY33*POWER(10,8)+DZ33*POWER(10,9)+EA33*POWER(10,10)) -> 100 | BK33: =MAX(BE33:BJ33) -> 100 | BM33: 0 | BP33: 1 | CA33: 1 | CL33: 1 | CW33: 1 | DH33: 1 | DS33: 1 | EC33: 0 | ED33: =($Y33*D$33)/1000 ->  | EG33: =($Z33*D$33)/1000 ->  | EJ33: =($AA33*D$33)/1000 ->  | EM33: =($AB33*D$33)/1000 ->  | EP33: =($AC33*D$33)/1000 ->  | ES33: =($AD33*D$33)/1000 ->  | EW33: 0 | EX33: =$AZ$33*$Y33 -> 0 | EY33: =($AZ$33*$BN33*D$33*$Y33)/1000 ->  | FB33: =($AZ$33*$BO33*D$33*$Y33)/1000 ->  | FE33: =($AZ$33*$BP33*D$33*$Y33)/1000 ->  | FH33: =($AZ$33*$BQ33*D$33*$Y33)/1000 ->  | FK33: =($AZ$33*$BR33*D$33*$Y33)/1000 ->  | FN33: =($AZ$33*$BS33*D$33*$Y33)/1000 ->  | FQ33: =($AZ$33*$BT33*D$33*$Y33)/1000 ->  | FT33: =($AZ$33*$BU33*D$33*$Y33)/1000 ->  | FW33: =($AZ$33*$BV33*D$33*$Y33)/1000 ->  | FZ33: =($AZ$33*$BW33*D$33*$Y33)/1000 ->  | GC33: =($AZ$33*$BX33*D$33*$Y33)/1000 ->  | GF33: 0 | GG33: =$AZ$33*$Z33 -> 0 | GH33: =($AZ$33*$BY33*D$33*$Z33)/1000 ->  | GK33: =($AZ$33*$BZ33*D$33*$Z33)/1000 ->  | GN33: =($AZ$33*$CA33*D$33*$Z33)/1000 ->  | GQ33: =($AZ$33*$CB33*D$33*$Z33)/1000 ->  | GT33: =($AZ$33*$CD33*D$33*$Z33)/1000 ->  | GW33: =($AZ$33*$CD33*D$33*$Z33)/1000 ->  | GZ33: =($AZ$33*$CE33*D$33*$Z33)/1000 ->  | HC33: =($AZ$33*$CF33*D$33*$Z33)/1000 ->  | HF33: =($AZ$33*$CG33*D$33*$Z33)/1000 ->  | HI33: =($AZ$33*$CH33*D$33*$Z33)/1000 ->  | HL33: =($AZ$33*$CI33*D$33*$Z33)/1000 ->  | HO33: 0 | HP33: =$AZ$33*$AA33 -> 0 | HQ33: =($AZ$33*$CJ33*D$33*$AA33)/1000 ->  | HT33: =($AZ$33*$CK33*D$33*$AA33)/1000 ->  | HW33: =($AZ$33*$CL33*D$33*$AA33)/1000 ->  | HZ33: =($AZ$33*$CM33*D$33*$AA33)/1000 ->  | IC33: =($AZ$33*$CN33*D$33*$AA33)/1000 ->  | IF33: =($AZ$33*$CO33*D$33*$AA33)/1000 ->  | II33: =($AZ$33*$CP33*D$33*$AA33)/1000 ->  | IL33: =($AZ$33*$CQ33*D$33*$AA33)/1000 ->  | IO33: =($AZ$33*$CR33*D$33*$AA33)/1000 ->  | IR33: =($AZ$33*$CS33*D$33*$AA33)/1000 ->  | IU33: =($AZ$33*$CT33*D$33*$AA33)/1000 ->  | IX33: 0 | IY33: =$AZ$33*$AB33 -> 0 | IZ33: =($AZ$33*$CU33*D$33*$AB33)/1000 ->  | JC33: =($AZ$33*$CV33*D$33*$AB33)/1000 ->  | JF33: =($AZ$33*$CW33*D$33*$AB33)/1000 ->  | JI33: =($AZ$33*$CX33*D$33*$AB33)/1000 ->  | JL33: =($AZ$33*$CY33*D$33*$AB33)/1000 ->  | JO33: =($AZ$33*$CZ33*D$33*$AB33)/1000 ->  | JR33: =($AZ$33*$DA33*D$33*$AB33)/1000 ->  | JU33: =($AZ$33*$DB33*D$33*$AB33)/1000 ->  | JX33: =($AZ$33*$DC33*D$33*$AB33)/1000 ->  | KA33: =($AZ$33*$DD33*D$33*$AB33)/1000 ->  | KD33: =($AZ$33*$DE33*D$33*$AB33)/1000 ->  | KG33: 0 | KH33: =$AZ$33*$AC33 -> 0 | KI33: =($AZ$33*$DF33*D$33*$AC33)/1000 ->  | KL33: =($AZ$33*$DG33*D$33*$AC33)/1000 ->  | KO33: =($AZ$33*$DH33*D$33*$AC33)/1000 ->  | KR33: =($AZ$33*$DI33*D$33*$AC33)/1000 ->  | KU33: =($AZ$33*$DJ33*D$33*$AC33)/1000 ->  | KX33: =($AZ$33*$DK33*D$33*$AC33)/1000 ->  | LA33: =($AZ$33*$DL33*D$33*$AC33)/1000 ->  | LD33: =($AZ$33*$DM33*D$33*$AC33)/1000 ->  | LG33: =($AZ$33*$DN33*D$33*$AC33)/1000 ->  | LJ33: =($AZ$33*$DO33*D$33*$AC33)/1000 ->  | LM33: =($AZ$33*$DP33*D$33*$AC33)/1000 ->  | LP33: 0 | LQ33: =$AZ$33*$AD33 -> 0 | LR33: =($AZ$33*$DQ33*D$33*$AD33)/1000 ->  | LU33: =($AZ$33*$DR33*D$33*$AD33)/1000 ->  | LX33: =($AZ$33*$DS33*D$33*$AD33)/1000 ->  | MA33: =($AZ$33*$DT33*D$33*$AD33)/1000 ->  | MD33: =($AZ$33*$DU33*D$33*$AD33)/1000 ->  | MG33: =($AZ$33*$DV33*D$33*$AD33)/1000 ->  | MJ33: =($AZ$33*$DW33*D$33*$AD33)/1000 ->  | MM33: =($AZ$33*$DX33*D$33*$AD33)/1000 ->  | MP33: =($AZ$33*$DY33*D$33*$AD33)/1000 ->  | MS33: =($AZ$33*$DZ33*D$33*$AD33)/1000 ->  | MV33: =($AZ$33*$EA33*D$33*$AD33)/1000 -> 
X34: 2 | AH34: =IF(X34=0,AG34,AH33) -> N/A | AJ34: FALSE | AO34: 2 | BA34: =IF(AND(BB34="OK",BC34="OK",BD34="OK"),"OK","ERR!") -> OK | BB34: OK | BC34: =IF(OR(SUM(BN34:BX34)<>1,SUM(BY34:CI34)<>1,SUM(CJ34:CT34)<>1,SUM(CU34:DE34)<>1,SUM(DF34:DP34)<>1,SUM(DQ34:EA34)<>1),"ERR!","OK") -> OK | BD34: =IF(AND(OR(BE34=BK34,BE34=0),OR(BF34=BK34,BF34=0),OR(BG34=BK34,BG34=0),OR(BH34=BK34,BH34=0),OR(BI34=BK34,BI34=0),OR(BJ34=BK34,BJ34=0)),"OK","ERR!") -> OK | BE34: =(BN34*POWER(10,0)+BO34*POWER(10,1)+BP34*POWER(10,2)+BQ34*POWER(10,3)+BR34*POWER(10,4)+BS34*POWER(10,5)+BT34*POWER(10,6)+BU34*POWER(10,7)+BV34*POWER(10,8)+BW34*POWER(10,9)+BX34*POWER(10,10)) -> 100 | BF34: =(BY34*POWER(10,0)+BZ34*POWER(10,1)+CA34*POWER(10,2)+CB34*POWER(10,3)+CC34*POWER(10,4)+CD34*POWER(10,5)+CE34*POWER(10,6)+CF34*POWER(10,7)+CG34*POWER(10,8)+CH34*POWER(10,9)+CI34*POWER(10,10)) -> 100 | BG34: =(CJ34*POWER(10,0)+CK34*POWER(10,1)+CL34*POWER(10,2)+CM34*POWER(10,3)+CN34*POWER(10,4)+CO34*POWER(10,5)+CP34*POWER(10,6)+CQ34*POWER(10,7)+CR34*POWER(10,8)+CS34*POWER(10,9)+CT34*POWER(10,10)) -> 100 | BH34: =(CU34*POWER(10,0)+CV34*POWER(10,1)+CW34*POWER(10,2)+CX34*POWER(10,3)+CY34*POWER(10,4)+CZ34*POWER(10,5)+DA34*POWER(10,6)+DB34*POWER(10,7)+DC34*POWER(10,8)+DD34*POWER(10,9)+DE34*POWER(10,10)) -> 100 | BI34: =(DF34*POWER(10,0)+DG34*POWER(10,1)+DH34*POWER(10,2)+DI34*POWER(10,3)+DJ34*POWER(10,4)+DK34*POWER(10,5)+DL34*POWER(10,6)+DM34*POWER(10,7)+DN34*POWER(10,8)+DO34*POWER(10,9)+DP34*POWER(10,10)) -> 100 | BJ34: =(DQ34*POWER(10,0)+DR34*POWER(10,1)+DS34*POWER(10,2)+DT34*POWER(10,3)+DU34*POWER(10,4)+DV34*POWER(10,5)+DW34*POWER(10,6)+DX34*POWER(10,7)+DY34*POWER(10,8)+DZ34*POWER(10,9)+EA34*POWER(10,10)) -> 100 | BK34: =MAX(BE34:BJ34) -> 100 | BM34: 2 | BP34: 1 | CA34: 1 | CL34: 1 | CW34: 1 | DH34: 1 | DS34: 1 | EC34: 2 | EW34: 2 | EX34: 0 | GF34: 2 | GG34: 0 | HO34: 2 | HP34: 0 | IX34: 2 | IY34: 0 | KG34: 2 | KH34: 0 | LP34: 2 | LQ34: 0
X35: 3 | AH35: N/A | AJ35: FALSE | AO35: 3 | BA35: OK | BB35: OK | BC35: =IF(OR(SUM(BN35:BX35)<>1,SUM(BY35:CI35)<>1,SUM(CJ35:CT35)<>1,SUM(CU35:DE35)<>1,SUM(DF35:DP35)<>1,SUM(DQ35:EA35)<>1),"ERR!","OK") -> OK | BD35: =IF(AND(OR(BE35=BK35,BE35=0),OR(BF35=BK35,BF35=0),OR(BG35=BK35,BG35=0),OR(BH35=BK35,BH35=0),OR(BI35=BK35,BI35=0),OR(BJ35=BK35,BJ35=0)),"OK","ERR!") -> OK | BE35: 100 | BF35: 100 | BG35: 100 | BH35: 100 | BI35: 100 | BJ35: 100 | BK35: =MAX(BE35:BJ35) -> 100 | BM35: 3 | BP35: 1 | CA35: 1 | CL35: 1 | CW35: 1 | DH35: 1 | DS35: 1 | EC35: 3 | EW35: 3 | EX35: 0 | GF35: 3 | GG35: 0 | HO35: 3 | HP35: 0 | IX35: 3 | IY35: 0 | KG35: 3 | KH35: 0 | LP35: 3 | LQ35: 0
X36: 4 | AH36: N/A | AJ36: FALSE | AO36: 4 | BA36: =IF(AND(BB36="OK",BC36="OK",BD36="OK"),"OK","ERR!") -> OK | BB36: OK | BC36: OK | BD36: =IF(AND(OR(BE36=BK36,BE36=0),OR(BF36=BK36,BF36=0),OR(BG36=BK36,BG36=0),OR(BH36=BK36,BH36=0),OR(BI36=BK36,BI36=0),OR(BJ36=BK36,BJ36=0)),"OK","ERR!") -> OK | BE36: 100 | BF36: 100 | BG36: 100 | BH36: 100 | BI36: 100 | BJ36: 100 | BK36: 100 | BM36: 4 | BP36: 1 | CA36: 1 | CL36: 1 | CW36: 1 | DH36: 1 | DS36: 1 | EC36: 4 | EW36: 4 | EX36: 0 | GF36: 4 | GG36: 0 | HO36: 4 | HP36: 0 | IX36: 4 | IY36: 0 | KG36: 4 | KH36: 0 | LP36: 4 | LQ36: 0
X37: 7 | AH37: N/A | AJ37: FALSE | AO37: 7 | BA37: OK | BB37: OK | BC37: OK | BD37: OK | BE37: 100 | BF37: 100 | BG37: 100 | BH37: 100 | BI37: 100 | BJ37: 100 | BK37: 100 | BM37: 7 | BP37: 1 | CA37: 1 | CL37: 1 | CW37: 1 | DH37: 1 | DS37: 1 | EC37: 7 | EW37: 7 | EX37: 0 | GF37: 7 | GG37: 0 | HO37: 7 | HP37: 0 | IX37: 7 | IY37: 0 | KG37: 7 | KH37: 0 | LP37: 7 | LQ37: 0
X38: 8 | AH38: N/A | AJ38: FALSE | AO38: 8 | BA38: OK | BB38: OK | BC38: OK | BD38: OK | BE38: 100 | BF38: 100 | BG38: 100 | BH38: 100 | BI38: 100 | BJ38: 100 | BK38: 100 | BM38: 8 | BP38: 1 | CA38: 1 | CL38: 1 | CW38: 1 | DH38: 1 | DS38: 1 | EC38: 8 | EW38: 8 | EX38: 0 | GF38: 8 | GG38: 0 | HO38: 8 | HP38: 0 | IX38: 8 | IY38: 0 | KG38: 8 | KH38: 0 | LP38: 8 | LQ38: 0
X39: 9 | AH39: N/A | AJ39: FALSE | AO39: 9 | BA39: OK | BB39: OK | BC39: OK | BD39: OK | BE39: 100 | BF39: 100 | BG39: 100 | BH39: =(CU39*POWER(10,0)+CV39*POWER(10,1)+CW39*POWER(10,2)+CX39*POWER(10,3)+CY39*POWER(10,4)+CZ39*POWER(10,5)+DA39*POWER(10,6)+DB39*POWER(10,7)+DC39*POWER(10,8)+DD39*POWER(10,9)+DE39*POWER(10,10)) -> 100 | BI39: =(DF39*POWER(10,0)+DG39*POWER(10,1)+DH39*POWER(10,2)+DI39*POWER(10,3)+DJ39*POWER(10,4)+DK39*POWER(10,5)+DL39*POWER(10,6)+DM39*POWER(10,7)+DN39*POWER(10,8)+DO39*POWER(10,9)+DP39*POWER(10,10)) -> 100 | BJ39: 100 | BK39: 100 | BM39: 9 | BP39: 1 | CA39: 1 | CL39: 1 | CW39: 1 | DH39: 1 | DS39: 1 | EC39: 9 | EW39: 9 | EX39: 0 | GF39: 9 | GG39: 0 | HO39: 9 | HP39: 0 | IX39: 9 | IY39: 0 | KG39: 9 | KH39: 0 | LP39: 9 | LQ39: 0
X40: Total | Y40: =SUM(Y33:Y39) -> 0 | Z40: =SUM(Z33:Z39) -> 0 | AA40: 0 | AB40: 0 | AC40: 0 | AD40: 0 | AH40: N/A | AJ40: FALSE | AO40: Total | BM40: Total | EC40: Total | ED40: =SUM(ED33:ED39) ->  | EE40: =SUM(EE33:EE39) ->  | EF40: =SUM(EF33:EF39) ->  | EG40: =SUM(EG33:EG39) ->  | EH40: =SUM(EH33:EH39) ->  | EW40: Total | EX40: =SUM(EX33:EX39) -> 0 | EY40: =SUM(EY33:EY39) ->  | EZ40: =SUM(EZ33:EZ39) ->  | FC40: =SUM(FC33:FC39) ->  | FN40: =SUM(FN33:FN39) ->  | FP40: =SUM(FP33:FP39) ->  | FQ40: =SUM(FQ33:FQ39) ->  | GC40: =SUM(GC33:GC39) ->  | GD40: =SUM(GD33:GD39) ->  | GF40: Total | GG40: =SUM(GG33:GG39) -> 0 | GH40: =SUM(GH33:GH39) ->  | GI40: =SUM(GI33:GI39) ->  | GL40: =SUM(GL33:GL39) ->  | GM40: =SUM(GM33:GM39) ->  | GN40: =SUM(GN33:GN39) ->  | GW40: =SUM(GW33:GW39) ->  | GX40: =SUM(GX33:GX39) ->  | GY40: =SUM(GY33:GY39) ->  | GZ40: =SUM(GZ33:GZ39) ->  | HL40: =SUM(HL33:HL39) ->  | HM40: =SUM(HM33:HM39) ->  | HO40: Total | HP40: =SUM(HP33:HP39) -> 0 | HQ40: =SUM(HQ33:HQ39) ->  | HR40: =SUM(HR33:HR39) ->  | HU40: =SUM(HU33:HU39) ->  | HV40: =SUM(HV33:HV39) ->  | IF40: =SUM(IF33:IF39) ->  | IG40: =SUM(IG33:IG39) ->  | IH40: =SUM(IH33:IH39) ->  | II40: =SUM(II33:II39) ->  | IU40: =SUM(IU33:IU39) ->  | IV40: =SUM(IV33:IV39) ->  | IX40: Total | IY40: =SUM(IY33:IY39) -> 0 | IZ40: =SUM(IZ33:IZ39) ->  | JA40: =SUM(JA33:JA39) ->  | JD40: =SUM(JD33:JD39) ->  | JE40: =SUM(JE33:JE39) ->  | JO40: =SUM(JO33:JO39) ->  | JP40: =SUM(JP33:JP39) ->  | JQ40: =SUM(JQ33:JQ39) ->  | JR40: =SUM(JR33:JR39) ->  | KD40: =SUM(KD33:KD39) ->  | KE40: =SUM(KE33:KE39) ->  | KG40: Total | KH40: =SUM(KH33:KH39) -> 0 | KI40: =SUM(KI33:KI39) ->  | KJ40: =SUM(KJ33:KJ39) ->  | KM40: =SUM(KM33:KM39) ->  | KN40: =SUM(KN33:KN39) ->  | KX40: =SUM(KX33:KX39) ->  | KY40: =SUM(KY33:KY39) ->  | KZ40: =SUM(KZ33:KZ39) ->  | LA40: =SUM(LA33:LA39) ->  | LM40: =SUM(LM33:LM39) ->  | LN40: =SUM(LN33:LN39) ->  | LP40: Total | LQ40: =SUM(LQ33:LQ39) -> 0 | LR40: =SUM(LR33:LR39) ->  | LS40: =SUM(LS33:LS39) ->  | LV40: =SUM(LV33:LV39) ->  | LW40: =SUM(LW33:LW39) ->  | MF40: =SUM(MF33:MF39) ->  | MG40: =SUM(MG33:MG39) ->  | MH40: =SUM(MH33:MH39) ->  | MI40: =SUM(MI33:MI39) ->  | MJ40: =SUM(MJ33:MJ39) ->  | MV40: =SUM(MV33:MV39) ->  | MW40: =SUM(MW33:MW39) -> 
B41: =B33+1 -> 2 | C41: ='Regional Project List Sheet'!F6 -> 0 | D41: =IF('Regional Project List Sheet'!$G6="New",1,"") ->  | E41: =IF('Regional Project List Sheet'!$G6="Funded Old",1,"") ->  | F41: =IF('Regional Project List Sheet'!$G6="Unfunded Old",1,"") ->  | G41: ='Regional Project List Sheet'!H6 -> 0 | H41: ='Regional Project List Sheet'!I6 -> 0 | I41: ='Regional Project List Sheet'!L6 -> 0 | J41: ='Regional Project List Sheet'!M6 -> 0 | K41: ='Regional Project List Sheet'!N6 -> 0 | L41: ='Regional Project List Sheet'!O6 -> 0 | M41: ='Regional Project List Sheet'!P6 -> 0 | N41: =IF('Regional Project List Sheet'!$Q6="N/A","N/A",IF($Y44<>0,5,IF($Z44<>0,4,IF($AA44<>0,3,IF($AB44<>0,2,1))))) -> 1 | O41: =VLOOKUP($C41,'[2]Ranking|Priority'!$B$5:$O$40,12,FALSE) ->  | P41: =VLOOKUP($C41,'[2]Ranking|Priority'!$B$5:$O$68,13,FALSE) ->  | Q41: =VLOOKUP($C41,'[2]Ranking|Priority'!$B$5:$O$68,14,FALSE) ->  | R41: ='Regional Project List Sheet'!T6 -> 0 | S41: ='Regional Project List Sheet'!U6 -> 0 | T41: ='Regional Project List Sheet'!V6 -> 0 | U41: ='Regional Project List Sheet'!W6 -> 0 | V41: ='Regional Project List Sheet'!X6 -> 0 | W41: ='Regional Project List Sheet'!Y6 -> Choose from Project List in cell I2 | X41: 0 | AF41: ='Regional Project List Sheet'!AJ6 -> 0 | AG41: =IF(OR('Regional Project List Sheet'!$AA6<>'Regional Project List Sheet'!$A$40,'Regional Project List Sheet'!$AD6<>'Regional Project List Sheet'!$A$40,'Regional Project List Sheet'!$AG6<>'Regional Project List Sheet'!$A$40),_xlfn.CONCAT(IF(ISNUMBER('Regional Project List Sheet'!$AA6),'Regional Project List Sheet'!$A$36,"")," ",IF(ISNUMBER('Regional Project List Sheet'!$AD6),'Regional Project List Sheet'!$A$37,"")," ",IF(ISNUMBER('Regional Project List Sheet'!$AG6),'Regional Project List Sheet'!$A$38,"")),"N/A") -> N/A | AH41: N/A | AI41: =IF(OR('Regional Project List Sheet'!AC6<>'Regional Project List Sheet'!$A$40,'Regional Project List Sheet'!AF6<>'Regional Project List Sheet'!$A$40,'Regional Project List Sheet'!AI6<>'Regional Project List Sheet'!$A$40), IF(LEN(_xlfn.CONCAT(IF('Regional Project List Sheet'!AC6="Yes",'Regional Project List Sheet'!$A$36,"")," ", IF('Regional Project List Sheet'!AF6="Yes",'Regional Project List Sheet'!$A$37,"")," ", IF('Regional Project List Sheet'!AI6="Yes",'Regional Project List Sheet'!$A$38,"")))<3,"No", _xlfn.CONCAT(IF('Regional Project List Sheet'!AC6="Yes",'Regional Project List Sheet'!$A$36,"")," ", IF('Regional Project List Sheet'!AF6="Yes",'Regional Project List Sheet'!$A$37,"")," ", IF('Regional Project List Sheet'!AI6="Yes",'Regional Project List Sheet'!$A$38,"")))) -> FALSE | AJ41: FALSE | AK41: ='Regional Project List Sheet'!AK6 -> 0 | AM41: ='Regional Project List Sheet'!AL6 -> 0 | AO41: 0 | AZ41: 1 | BA41: =IF(AND(BB41="OK",BC41="OK",BD41="OK"),"OK","ERR!") -> OK | BB41: =IF(AND(Y41>0,SUM(BN41:BX41)<1),"ERR!",IF(AND(Z41>0,SUM(BY41:CI41)<1),"ERR!",IF(AND(AA41>0,SUM(CJ41:CT41)<1),"ERR",IF(AND(AB41>0,SUM(CU41:DE41)<1),"ERR",IF(AND(AC41>0,SUM(DF41:DP41)<1),"ERR",IF(AND(AD41>0,SUM(DQ41:EA41)<1),"ERR","OK")))))) -> OK | BC41: =IF(OR(SUM(BN41:BX41)<>1,SUM(BY41:CI41)<>1,SUM(CJ41:CT41)<>1,SUM(CU41:DE41)<>1,SUM(DF41:DP41)<>1,SUM(DQ41:EA41)<>1),"ERR!","OK") -> OK | BD41: =IF(AND(OR(BE41=BK41,BE41=0),OR(BF41=BK41,BF41=0),OR(BG41=BK41,BG41=0),OR(BH41=BK41,BH41=0),OR(BI41=BK41,BI41=0),OR(BJ41=BK41,BJ41=0)),"OK","ERR!") -> OK | BE41: =(BN41*POWER(10,0)+BO41*POWER(10,1)+BP41*POWER(10,2)+BQ41*POWER(10,3)+BR41*POWER(10,4)+BS41*POWER(10,5)+BT41*POWER(10,6)+BU41*POWER(10,7)+BV41*POWER(10,8)+BW41*POWER(10,9)+BX41*POWER(10,10)) -> 100 | BF41: =(BY41*POWER(10,0)+BZ41*POWER(10,1)+CA41*POWER(10,2)+CB41*POWER(10,3)+CC41*POWER(10,4)+CD41*POWER(10,5)+CE41*POWER(10,6)+CF41*POWER(10,7)+CG41*POWER(10,8)+CH41*POWER(10,9)+CI41*POWER(10,10)) -> 100 | BG41: =(CJ41*POWER(10,0)+CK41*POWER(10,1)+CL41*POWER(10,2)+CM41*POWER(10,3)+CN41*POWER(10,4)+CO41*POWER(10,5)+CP41*POWER(10,6)+CQ41*POWER(10,7)+CR41*POWER(10,8)+CS41*POWER(10,9)+CT41*POWER(10,10)) -> 100 | BH41: =(CU41*POWER(10,0)+CV41*POWER(10,1)+CW41*POWER(10,2)+CX41*POWER(10,3)+CY41*POWER(10,4)+CZ41*POWER(10,5)+DA41*POWER(10,6)+DB41*POWER(10,7)+DC41*POWER(10,8)+DD41*POWER(10,9)+DE41*POWER(10,10)) -> 100 | BI41: =(DF41*POWER(10,0)+DG41*POWER(10,1)+DH41*POWER(10,2)+DI41*POWER(10,3)+DJ41*POWER(10,4)+DK41*POWER(10,5)+DL41*POWER(10,6)+DM41*POWER(10,7)+DN41*POWER(10,8)+DO41*POWER(10,9)+DP41*POWER(10,10)) -> 100 | BJ41: =(DQ41*POWER(10,0)+DR41*POWER(10,1)+DS41*POWER(10,2)+DT41*POWER(10,3)+DU41*POWER(10,4)+DV41*POWER(10,5)+DW41*POWER(10,6)+DX41*POWER(10,7)+DY41*POWER(10,8)+DZ41*POWER(10,9)+EA41*POWER(10,10)) -> 100 | BK41: =MAX(BE41:BJ41) -> 100 | BM41: 0 | BP41: 1 | CA41: 1 | CL41: 1 | CW41: 1 | DH41: 1 | DS41: 1 | EC41: 0 | ED41: =($Y41*D$41)/1000 ->  | EG41: =($Z41*D$41)/1000 ->  | EJ41: =($AA41*D$41)/1000 ->  | EM41: =($AB41*D$41)/1000 ->  | EP41: =($AC41*D$41)/1000 ->  | ES41: =($AD41*D$41)/1000 ->  | EW41: 0 | EX41: =$AZ$41*$Y41 -> 0 | EY41: =($AZ$41*$BN41*D$41*$Y41)/1000 ->  | FB41: =($AZ$41*$BO41*D$41*$Y41)/1000 ->  | FE41: =($AZ$41*$BP41*D$41*$Y41)/1000 ->  | FH41: =($AZ$41*$BQ41*D$41*$Y41)/1000 ->  | FK41: =($AZ$41*$BR41*D$41*$Y41)/1000 ->  | FN41: =($AZ$41*$BS41*D$41*$Y41)/1000 ->  | FQ41: =($AZ$41*$BT41*D$41*$Y41)/1000 ->  | FT41: =($AZ$41*$BU41*D$41*$Y41)/1000 ->  | FW41: =($AZ$41*$BV41*D$41*$Y41)/1000 ->  | FZ41: =($AZ$41*$BW41*D$41*$Y41)/1000 ->  | GC41: =($AZ$41*$BX41*D$41*$Y41)/1000 ->  | GF41: 0 | GG41: =$AZ$41*$Z41 -> 0 | GH41: =($AZ$41*$BY41*D$41*$Z41)/1000 ->  | GK41: =($AZ$41*$BZ41*D$41*$Z41)/1000 ->  | GN41: =($AZ$41*$CA41*D$41*$Z41)/1000 ->  | GQ41: =($AZ$41*$CB41*D$41*$Z41)/1000 ->  | GT41: =($AZ$41*$CD41*D$41*$Z41)/1000 ->  | GW41: =($AZ$41*$CD41*D$41*$Z41)/1000 ->  | GZ41: =($AZ$41*$CE41*D$41*$Z41)/1000 ->  | HC41: =($AZ$41*$CF41*D$41*$Z41)/1000 ->  | HF41: =($AZ$41*$CG41*D$41*$Z41)/1000 ->  | HI41: =($AZ$41*$CH41*D$41*$Z41)/1000 ->  | HL41: =($AZ$41*$CI41*D$41*$Z41)/1000 ->  | HO41: 0 | HP41: =$AZ$41*$AA41 -> 0 | HQ41: =($AZ$41*$CJ41*D$41*$AA41)/1000 ->  | HT41: =($AZ$41*$CK41*D$41*$AA41)/1000 ->  | HW41: =($AZ$41*$CL41*D$41*$AA41)/1000 ->  | HZ41: =($AZ$41*$CM41*D$41*$AA41)/1000 ->  | IC41: =($AZ$41*$CN41*D$41*$AA41)/1000 ->  | IF41: =($AZ$41*$CO41*D$41*$AA41)/1000 ->  | II41: =($AZ$41*$CP41*D$41*$AA41)/1000 ->  | IL41: =($AZ$41*$CQ41*D$41*$AA41)/1000 ->  | IO41: =($AZ$41*$CR41*D$41*$AA41)/1000 ->  | IR41: =($AZ$41*$CS41*D$41*$AA41)/1000 ->  | IU41: =($AZ$41*$CT41*D$41*$AA41)/1000 ->  | IX41: 0 | IY41: =$AZ$41*$AB41 -> 0 | IZ41: =($AZ$41*$CU41*D$41*$AB41)/1000 ->  | JC41: =($AZ$41*$CV41*D$41*$AB41)/1000 ->  | JF41: =($AZ$41*$CW41*D$41*$AB41)/1000 ->  | JI41: =($AZ$41*$CX41*D$41*$AB41)/1000 ->  | JL41: =($AZ$41*$CY41*D$41*$AB41)/1000 ->  | JO41: =($AZ$41*$CZ41*D$41*$AB41)/1000 ->  | JR41: =($AZ$41*$DA41*D$41*$AB41)/1000 ->  | JU41: =($AZ$41*$DB41*D$41*$AB41)/1000 ->  | JX41: =($AZ$41*$DC41*D$41*$AB41)/1000 ->  | KA41: =($AZ$41*$DD41*D$41*$AB41)/1000 ->  | KD41: =($AZ$41*$DE41*D$41*$AB41)/1000 ->  | KG41: 0 | KH41: =$AZ$41*$AC41 -> 0 | KI41: =($AZ$41*$DF41*D$41*$AC41)/1000 ->  | KL41: =($AZ$41*$DG41*D$41*$AC41)/1000 ->  | KO41: =($AZ$41*$DH41*D$41*$AC41)/1000 ->  | KR41: =($AZ$41*$DI41*D$41*$AC41)/1000 ->  | KU41: =($AZ$41*$DJ41*D$41*$AC41)/1000 ->  | KX41: =($AZ$41*$DK41*D$41*$AC41)/1000 ->  | LA41: =($AZ$41*$DL41*D$41*$AC41)/1000 ->  | LD41: =($AZ$41*$DM41*D$41*$AC41)/1000 ->  | LG41: =($AZ$41*$DN41*D$41*$AC41)/1000 ->  | LJ41: =($AZ$41*$DO41*D$41*$AC41)/1000 ->  | LM41: =($AZ$41*$DP41*D$41*$AC41)/1000 ->  | LP41: 0 | LQ41: =$AZ$41*$AD41 -> 0 | LR41: =($AZ$41*$DQ41*D$41*$AD41)/1000 ->  | LU41: =($AZ$41*$DR41*D$41*$AD41)/1000 ->  | LX41: =($AZ$41*$DS41*D$41*$AD41)/1000 ->  | MA41: =($AZ$41*$DT41*D$41*$AD41)/1000 ->  | MD41: =($AZ$41*$DU41*D$41*$AD41)/1000 ->  | MG41: =($AZ$41*$DV41*D$41*$AD41)/1000 ->  | MJ41: =($AZ$41*$DW41*D$41*$AD41)/1000 ->  | MM41: =($AZ$41*$DX41*D$41*$AD41)/1000 ->  | MP41: =($AZ$41*$DY41*D$41*$AD41)/1000 ->  | MS41: =($AZ$41*$DZ41*D$41*$AD41)/1000 ->  | MV41: =($AZ$41*$EA41*D$41*$AD41)/1000 -> 
X42: 2 | AH42: N/A | AJ42: FALSE | AO42: 2 | BA42: =IF(AND(BB42="OK",BC42="OK",BD42="OK"),"OK","ERR!") -> OK | BB42: OK | BC42: =IF(OR(SUM(BN42:BX42)<>1,SUM(BY42:CI42)<>1,SUM(CJ42:CT42)<>1,SUM(CU42:DE42)<>1,SUM(DF42:DP42)<>1,SUM(DQ42:EA42)<>1),"ERR!","OK") -> OK | BD42: =IF(AND(OR(BE42=BK42,BE42=0),OR(BF42=BK42,BF42=0),OR(BG42=BK42,BG42=0),OR(BH42=BK42,BH42=0),OR(BI42=BK42,BI42=0),OR(BJ42=BK42,BJ42=0)),"OK","ERR!") -> OK | BE42: =(BN42*POWER(10,0)+BO42*POWER(10,1)+BP42*POWER(10,2)+BQ42*POWER(10,3)+BR42*POWER(10,4)+BS42*POWER(10,5)+BT42*POWER(10,6)+BU42*POWER(10,7)+BV42*POWER(10,8)+BW42*POWER(10,9)+BX42*POWER(10,10)) -> 100 | BF42: =(BY42*POWER(10,0)+BZ42*POWER(10,1)+CA42*POWER(10,2)+CB42*POWER(10,3)+CC42*POWER(10,4)+CD42*POWER(10,5)+CE42*POWER(10,6)+CF42*POWER(10,7)+CG42*POWER(10,8)+CH42*POWER(10,9)+CI42*POWER(10,10)) -> 100 | BG42: =(CJ42*POWER(10,0)+CK42*POWER(10,1)+CL42*POWER(10,2)+CM42*POWER(10,3)+CN42*POWER(10,4)+CO42*POWER(10,5)+CP42*POWER(10,6)+CQ42*POWER(10,7)+CR42*POWER(10,8)+CS42*POWER(10,9)+CT42*POWER(10,10)) -> 100 | BH42: =(CU42*POWER(10,0)+CV42*POWER(10,1)+CW42*POWER(10,2)+CX42*POWER(10,3)+CY42*POWER(10,4)+CZ42*POWER(10,5)+DA42*POWER(10,6)+DB42*POWER(10,7)+DC42*POWER(10,8)+DD42*POWER(10,9)+DE42*POWER(10,10)) -> 100 | BI42: =(DF42*POWER(10,0)+DG42*POWER(10,1)+DH42*POWER(10,2)+DI42*POWER(10,3)+DJ42*POWER(10,4)+DK42*POWER(10,5)+DL42*POWER(10,6)+DM42*POWER(10,7)+DN42*POWER(10,8)+DO42*POWER(10,9)+DP42*POWER(10,10)) -> 100 | BJ42: =(DQ42*POWER(10,0)+DR42*POWER(10,1)+DS42*POWER(10,2)+DT42*POWER(10,3)+DU42*POWER(10,4)+DV42*POWER(10,5)+DW42*POWER(10,6)+DX42*POWER(10,7)+DY42*POWER(10,8)+DZ42*POWER(10,9)+EA42*POWER(10,10)) -> 100 | BK42: =MAX(BE42:BJ42) -> 100 | BM42: 2 | BP42: 1 | CA42: 1 | CL42: 1 | CW42: 1 | DH42: 1 | DS42: 1 | EC42: 2 | EW42: 2 | EX42: 0 | GF42: 2 | GG42: 0 | HO42: 2 | HP42: 0 | IX42: 2 | IY42: 0 | KG42: 2 | KH42: 0 | LP42: 2 | LQ42: 0
X43: 3 | AH43: N/A | AJ43: FALSE | AO43: 3 | BA43: =IF(AND(BB43="OK",BC43="OK",BD43="OK"),"OK","ERR!") -> OK | BB43: OK | BC43: =IF(OR(SUM(BN43:BX43)<>1,SUM(BY43:CI43)<>1,SUM(CJ43:CT43)<>1,SUM(CU43:DE43)<>1,SUM(DF43:DP43)<>1,SUM(DQ43:EA43)<>1),"ERR!","OK") -> OK | BD43: =IF(AND(OR(BE43=BK43,BE43=0),OR(BF43=BK43,BF43=0),OR(BG43=BK43,BG43=0),OR(BH43=BK43,BH43=0),OR(BI43=BK43,BI43=0),OR(BJ43=BK43,BJ43=0)),"OK","ERR!") -> OK | BE43: 100 | BF43: 100 | BG43: 100 | BH43: 100 | BI43: 100 | BJ43: 100 | BK43: =MAX(BE43:BJ43) -> 100 | BM43: 3 | BP43: 1 | CA43: 1 | CL43: 1 | CW43: 1 | DH43: 1 | DS43: 1 | EC43: 3 | EW43: 3 | EX43: 0 | GF43: 3 | GG43: 0 | HO43: 3 | HP43: 0 | IX43: 3 | IY43: 0 | KG43: 3 | KH43: 0 | LP43: 3 | LQ43: 0
X44: 4 | AH44: N/A | AJ44: FALSE | AO44: 4 | BA44: =IF(AND(BB44="OK",BC44="OK",BD44="OK"),"OK","ERR!") -> OK | BB44: OK | BC44: OK | BD44: =IF(AND(OR(BE44=BK44,BE44=0),OR(BF44=BK44,BF44=0),OR(BG44=BK44,BG44=0),OR(BH44=BK44,BH44=0),OR(BI44=BK44,BI44=0),OR(BJ44=BK44,BJ44=0)),"OK","ERR!") -> OK | BE44: 100 | BF44: 100 | BG44: 100 | BH44: 100 | BI44: 100 | BJ44: 100 | BK44: 100 | BM44: 4 | BP44: 1 | CA44: 1 | CL44: 1 | CW44: 1 | DH44: 1 | DS44: 1 | EC44: 4 | EW44: 4 | EX44: 0 | GF44: 4 | GG44: 0 | HO44: 4 | HP44: 0 | IX44: 4 | IY44: 0 | KG44: 4 | KH44: 0 | LP44: 4 | LQ44: 0
X45: 7 | AH45: N/A | AJ45: FALSE | AO45: 7 | BA45: =IF(AND(BB45="OK",BC45="OK",BD45="OK"),"OK","ERR!") -> OK | BB45: OK | BC45: OK | BD45: OK | BE45: 100 | BF45: 100 | BG45: 100 | BH45: 100 | BI45: 100 | BJ45: 100 | BK45: 100 | BM45: 7 | BP45: 1 | CA45: 1 | CL45: 1 | CW45: 1 | DH45: 1 | DS45: 1 | EC45: 7 | EW45: 7 | EX45: 0 | GF45: 7 | GG45: 0 | HO45: 7 | HP45: 0 | IX45: 7 | IY45: 0 | KG45: 7 | KH45: 0 | LP45: 7 | LQ45: 0
X46: 8 | AH46: N/A | AJ46: FALSE | AO46: 8 | BA46: OK | BB46: OK | BC46: OK | BD46: OK | BE46: 100 | BF46: 100 | BG46: 100 | BH46: 100 | BI46: 100 | BJ46: 100 | BK46: 100 | BM46: 8 | BP46: 1 | CA46: 1 | CL46: 1 | CW46: 1 | DH46: 1 | DS46: 1 | EC46: 8 | EW46: 8 | EX46: 0 | GF46: 8 | GG46: 0 | HO46: 8 | HP46: 0 | IX46: 8 | IY46: 0 | KG46: 8 | KH46: 0 | LP46: 8 | LQ46: 0
X47: 9 | AH47: N/A | AJ47: FALSE | AO47: 9 | BA47: OK | BB47: OK | BC47: OK | BD47: OK | BE47: 100 | BF47: 100 | BG47: 100 | BH47: =(CU47*POWER(10,0)+CV47*POWER(10,1)+CW47*POWER(10,2)+CX47*POWER(10,3)+CY47*POWER(10,4)+CZ47*POWER(10,5)+DA47*POWER(10,6)+DB47*POWER(10,7)+DC47*POWER(10,8)+DD47*POWER(10,9)+DE47*POWER(10,10)) -> 100 | BI47: =(DF47*POWER(10,0)+DG47*POWER(10,1)+DH47*POWER(10,2)+DI47*POWER(10,3)+DJ47*POWER(10,4)+DK47*POWER(10,5)+DL47*POWER(10,6)+DM47*POWER(10,7)+DN47*POWER(10,8)+DO47*POWER(10,9)+DP47*POWER(10,10)) -> 100 | BJ47: 100 | BK47: 100 | BM47: 9 | BP47: 1 | CA47: 1 | CL47: 1 | CW47: 1 | DH47: 1 | DS47: 1 | EC47: 9 | EW47: 9 | EX47: 0 | GF47: 9 | GG47: 0 | HO47: 9 | HP47: 0 | IX47: 9 | IY47: 0 | KG47: 9 | KH47: 0 | LP47: 9 | LQ47: 0
X48: Total | Y48: =SUM(Y41:Y47) -> 0 | Z48: =SUM(Z41:Z47) -> 0 | AA48: 0 | AB48: 0 | AC48: 0 | AD48: 0 | AH48: N/A | AJ48: FALSE | AO48: Total | BM48: Total | EC48: Total | ED48: =SUM(ED41:ED47) ->  | EE48: =SUM(EE41:EE47) ->  | EF48: =SUM(EF41:EF47) ->  | EG48: =SUM(EG41:EG47) ->  | EH48: =SUM(EH41:EH47) ->  | EI48: =SUM(EI41:EI47) ->  | EW48: Total | EX48: =SUM(EX41:EX47) -> 0 | EY48: =SUM(EY41:EY47) ->  | EZ48: =SUM(EZ41:EZ47) ->  | FC48: =SUM(FC41:FC47) ->  | FD48: =SUM(FD41:FD47) ->  | FN48: =SUM(FN41:FN47) ->  | FO48: =SUM(FO41:FO47) ->  | FP48: =SUM(FP41:FP47) ->  | FQ48: =SUM(FQ41:FQ47) ->  | GC48: =SUM(GC41:GC47) ->  | GD48: =SUM(GD41:GD47) ->  | GF48: Total | GG48: =SUM(GG41:GG47) -> 0 | GH48: =SUM(GH41:GH47) ->  | GI48: =SUM(GI41:GI47) ->  | GL48: =SUM(GL41:GL47) ->  | GM48: =SUM(GM41:GM47) ->  | GN48: =SUM(GN41:GN47) ->  | GW48: =SUM(GW41:GW47) ->  | GX48: =SUM(GX41:GX47) ->  | GY48: =SUM(GY41:GY47) ->  | GZ48: =SUM(GZ41:GZ47) ->  | HL48: =SUM(HL41:HL47) ->  | HM48: =SUM(HM41:HM47) ->  | HO48: Total | HP48: =SUM(HP41:HP47) -> 0 | HQ48: =SUM(HQ41:HQ47) ->  | HR48: =SUM(HR41:HR47) ->  | HU48: =SUM(HU41:HU47) ->  | HV48: =SUM(HV41:HV47) ->  | IF48: =SUM(IF41:IF47) ->  | IG48: =SUM(IG41:IG47) ->  | IH48: =SUM(IH41:IH47) ->  | II48: =SUM(II41:II47) ->  | IU48: =SUM(IU41:IU47) ->  | IV48: =SUM(IV41:IV47) ->  | IX48: Total | IY48: =SUM(IY41:IY47) -> 0 | IZ48: =SUM(IZ41:IZ47) ->  | JA48: =SUM(JA41:JA47) ->  | JD48: =SUM(JD41:JD47) ->  | JE48: =SUM(JE41:JE47) ->  | JO48: =SUM(JO41:JO47) ->  | JP48: =SUM(JP41:JP47) ->  | JQ48: =SUM(JQ41:JQ47) ->  | JR48: =SUM(JR41:JR47) ->  | KD48: =SUM(KD41:KD47) ->  | KE48: =SUM(KE41:KE47) ->  | KG48: Total | KH48: =SUM(KH41:KH47) -> 0 | KI48: =SUM(KI41:KI47) ->  | KJ48: =SUM(KJ41:KJ47) ->  | KM48: =SUM(KM41:KM47) ->  | KN48: =SUM(KN41:KN47) ->  | KX48: =SUM(KX41:KX47) ->  | KY48: =SUM(KY41:KY47) ->  | KZ48: =SUM(KZ41:KZ47) ->  | LA48: =SUM(LA41:LA47) ->  | LM48: =SUM(LM41:LM47) ->  | LN48: =SUM(LN41:LN47) ->  | LP48: Total | LQ48: =SUM(LQ41:LQ47) -> 0 | LR48: =SUM(LR41:LR47) ->  | LS48: =SUM(LS41:LS47) ->  | LV48: =SUM(LV41:LV47) ->  | LW48: =SUM(LW41:LW47) ->  | MF48: =SUM(MF41:MF47) ->  | MG48: =SUM(MG41:MG47) ->  | MH48: =SUM(MH41:MH47) ->  | MI48: =SUM(MI41:MI47) ->  | MJ48: =SUM(MJ41:MJ47) ->  | MV48: =SUM(MV41:MV47) ->  | MW48: =SUM(MW41:MW47) -> 
B49: =B41+1 -> 3 | C49: ='Regional Project List Sheet'!F7 -> 0 | D49: =IF('Regional Project List Sheet'!$G7="New",1,"") ->  | E49: =IF('Regional Project List Sheet'!$G7="Funded Old",1,"") ->  | F49: =IF('Regional Project List Sheet'!$G7="Unfunded Old",1,"") ->  | G49: ='Regional Project List Sheet'!H7 -> 0 | H49: ='Regional Project List Sheet'!I7 -> 0 | I49: ='Regional Project List Sheet'!L7 -> 0 | J49: ='Regional Project List Sheet'!M7 -> 0 | K49: ='Regional Project List Sheet'!N7 -> 0 | L49: ='Regional Project List Sheet'!O7 -> 0 | M49: ='Regional Project List Sheet'!P7 -> 0 | N49: =IF('Regional Project List Sheet'!$Q7="N/A","N/A",IF($Y52<>0,5,IF($Z52<>0,4,IF($AA52<>0,3,IF($AB52<>0,2,1))))) -> 1 | O49: =VLOOKUP($C49,'[2]Ranking|Priority'!$B$5:$O$68,12,FALSE) ->  | P49: =VLOOKUP($C49,'[2]Ranking|Priority'!$B$5:$O$68,13,FALSE) ->  | Q49: =VLOOKUP($C49,'[2]Ranking|Priority'!$B$5:$O$68,14,FALSE) ->  | R49: ='Regional Project List Sheet'!T7 -> 0 | S49: ='Regional Project List Sheet'!U7 -> 0 | T49: ='Regional Project List Sheet'!V7 -> 0 | U49: ='Regional Project List Sheet'!W7 -> 0 | V49: ='Regional Project List Sheet'!X7 -> 0 | W49: ='Regional Project List Sheet'!Y7 -> Choose from Project List in cell I2 | X49: 0 | AF49: ='Regional Project List Sheet'!AJ7 -> 0 | AG49: =IF(OR('Regional Project List Sheet'!$AA7<>'Regional Project List Sheet'!$A$40,'Regional Project List Sheet'!$AD7<>'Regional Project List Sheet'!$A$40,'Regional Project List Sheet'!$AG7<>'Regional Project List Sheet'!$A$40),_xlfn.CONCAT(IF(ISNUMBER('Regional Project List Sheet'!$AA7),'Regional Project List Sheet'!$A$36,"")," ",IF(ISNUMBER('Regional Project List Sheet'!$AD7),'Regional Project List Sheet'!$A$37,"")," ",IF(ISNUMBER('Regional Project List Sheet'!$AG7),'Regional Project List Sheet'!$A$38,"")),"N/A") -> N/A | AH49: N/A | AI49: =IF(OR('Regional Project List Sheet'!AC7<>'Regional Project List Sheet'!$A$40,'Regional Project List Sheet'!AF7<>'Regional Project List Sheet'!$A$40,'Regional Project List Sheet'!AI7<>'Regional Project List Sheet'!$A$40), IF(LEN(_xlfn.CONCAT(IF('Regional Project List Sheet'!AC7="Yes",'Regional Project List Sheet'!$A$36,"")," ", IF('Regional Project List Sheet'!AF7="Yes",'Regional Project List Sheet'!$A$37,"")," ", IF('Regional Project List Sheet'!AI7="Yes",'Regional Project List Sheet'!$A$38,"")))<3,"No", _xlfn.CONCAT(IF('Regional Project List Sheet'!AC7="Yes",'Regional Project List Sheet'!$A$36,"")," ", IF('Regional Project List Sheet'!AF7="Yes",'Regional Project List Sheet'!$A$37,"")," ", IF('Regional Project List Sheet'!AI7="Yes",'Regional Project List Sheet'!$A$38,"")))) -> FALSE | AJ49: FALSE | AK49: ='Regional Project List Sheet'!AK7 -> 0 | AM49: ='Regional Project List Sheet'!AL7 -> 0 | AO49: 0 | AZ49: 1 | BA49: =IF(AND(BB49="OK",BC49="OK",BD49="OK"),"OK","ERR!") -> OK | BB49: =IF(AND(Y49>0,SUM(BN49:BX49)<1),"ERR!",IF(AND(Z49>0,SUM(BY49:CI49)<1),"ERR!",IF(AND(AA49>0,SUM(CJ49:CT49)<1),"ERR",IF(AND(AB49>0,SUM(CU49:DE49)<1),"ERR",IF(AND(AC49>0,SUM(DF49:DP49)<1),"ERR",IF(AND(AD49>0,SUM(DQ49:EA49)<1),"ERR","OK")))))) -> OK | BC49: =IF(OR(SUM(BN49:BX49)<>1,SUM(BY49:CI49)<>1,SUM(CJ49:CT49)<>1,SUM(CU49:DE49)<>1,SUM(DF49:DP49)<>1,SUM(DQ49:EA49)<>1),"ERR!","OK") -> OK | BD49: =IF(AND(OR(BE49=BK49,BE49=0),OR(BF49=BK49,BF49=0),OR(BG49=BK49,BG49=0),OR(BH49=BK49,BH49=0),OR(BI49=BK49,BI49=0),OR(BJ49=BK49,BJ49=0)),"OK","ERR!") -> OK | BE49: =(BN49*POWER(10,0)+BO49*POWER(10,1)+BP49*POWER(10,2)+BQ49*POWER(10,3)+BR49*POWER(10,4)+BS49*POWER(10,5)+BT49*POWER(10,6)+BU49*POWER(10,7)+BV49*POWER(10,8)+BW49*POWER(10,9)+BX49*POWER(10,10)) -> 100 | BF49: =(BY49*POWER(10,0)+BZ49*POWER(10,1)+CA49*POWER(10,2)+CB49*POWER(10,3)+CC49*POWER(10,4)+CD49*POWER(10,5)+CE49*POWER(10,6)+CF49*POWER(10,7)+CG49*POWER(10,8)+CH49*POWER(10,9)+CI49*POWER(10,10)) -> 100 | BG49: =(CJ49*POWER(10,0)+CK49*POWER(10,1)+CL49*POWER(10,2)+CM49*POWER(10,3)+CN49*POWER(10,4)+CO49*POWER(10,5)+CP49*POWER(10,6)+CQ49*POWER(10,7)+CR49*POWER(10,8)+CS49*POWER(10,9)+CT49*POWER(10,10)) -> 100 | BH49: =(CU49*POWER(10,0)+CV49*POWER(10,1)+CW49*POWER(10,2)+CX49*POWER(10,3)+CY49*POWER(10,4)+CZ49*POWER(10,5)+DA49*POWER(10,6)+DB49*POWER(10,7)+DC49*POWER(10,8)+DD49*POWER(10,9)+DE49*POWER(10,10)) -> 100 | BI49: =(DF49*POWER(10,0)+DG49*POWER(10,1)+DH49*POWER(10,2)+DI49*POWER(10,3)+DJ49*POWER(10,4)+DK49*POWER(10,5)+DL49*POWER(10,6)+DM49*POWER(10,7)+DN49*POWER(10,8)+DO49*POWER(10,9)+DP49*POWER(10,10)) -> 100 | BJ49: =(DQ49*POWER(10,0)+DR49*POWER(10,1)+DS49*POWER(10,2)+DT49*POWER(10,3)+DU49*POWER(10,4)+DV49*POWER(10,5)+DW49*POWER(10,6)+DX49*POWER(10,7)+DY49*POWER(10,8)+DZ49*POWER(10,9)+EA49*POWER(10,10)) -> 100 | BK49: =MAX(BE49:BJ49) -> 100 | BM49: 0 | BP49: 1 | CA49: 1 | CL49: 1 | CW49: 1 | DH49: 1 | DS49: 1 | EC49: 0 | ED49: =($Y49*D$49)/1000 ->  | EG49: =($Z49*D$49)/1000 ->  | EJ49: =($AA49*D$49)/1000 ->  | EM49: =($AB49*D$49)/1000 ->  | EP49: =($AC49*D$49)/1000 ->  | ES49: =($AD49*D$49)/1000 ->  | EW49: 0 | EX49: =$AZ$49*$Y49 -> 0 | EY49: =($AZ$49*$BN49*D$49*$Y49)/1000 ->  | FB49: =($AZ$49*$BO49*D$49*$Y49)/1000 ->  | FE49: =($AZ$49*$BP49*D$49*$Y49)/1000 ->  | FH49: =($AZ$49*$BQ49*D$49*$Y49)/1000 ->  | FK49: =($AZ$49*$BR49*D$49*$Y49)/1000 ->  | FN49: =($AZ$49*$BS49*D$49*$Y49)/1000 ->  | FQ49: =($AZ$49*$BT49*D$49*$Y49)/1000 ->  | FT49: =($AZ$49*$BU49*D$49*$Y49)/1000 ->  | FW49: =($AZ$49*$BV49*D$49*$Y49)/1000 ->  | FZ49: =($AZ$49*$BW49*D$49*$Y49)/1000 ->  | GC49: =($AZ$49*$BX49*D$49*$Y49)/1000 ->  | GF49: 0 | GG49: =$AZ$49*$Z49 -> 0 | GH49: =($AZ$49*$BY49*D$49*$Z49)/1000 ->  | GK49: =($AZ$49*$BZ49*D$49*$Z49)/1000 ->  | GN49: =($AZ$49*$CA49*D$49*$Z49)/1000 ->  | GQ49: =($AZ$49*$CB49*D$49*$Z49)/1000 ->  | GT49: =($AZ$49*$CD49*D$49*$Z49)/1000 ->  | GW49: =($AZ$49*$CD49*D$49*$Z49)/1000 ->  | GZ49: =($AZ$49*$CE49*D$49*$Z49)/1000 ->  | HC49: =($AZ$49*$CF49*D$49*$Z49)/1000 ->  | HF49: =($AZ$49*$CG49*D$49*$Z49)/1000 ->  | HI49: =($AZ$49*$CH49*D$49*$Z49)/1000 ->  | HL49: =($AZ$49*$CI49*D$49*$Z49)/1000 ->  | HO49: 0 | HP49: =$AZ$49*$AA49 -> 0 | HQ49: =($AZ$49*$CJ49*D$49*$AA49)/1000 ->  | HT49: =($AZ$49*$CK49*D$49*$AA49)/1000 ->  | HW49: =($AZ$49*$CL49*D$49*$AA49)/1000 ->  | HZ49: =($AZ$49*$CM49*D$49*$AA49)/1000 ->  | IC49: =($AZ$49*$CN49*D$49*$AA49)/1000 ->  | IF49: =($AZ$49*$CO49*D$49*$AA49)/1000 ->  | II49: =($AZ$49*$CP49*D$49*$AA49)/1000 ->  | IL49: =($AZ$49*$CQ49*D$49*$AA49)/1000 ->  | IO49: =($AZ$49*$CR49*D$49*$AA49)/1000 ->  | IR49: =($AZ$49*$CS49*D$49*$AA49)/1000 ->  | IU49: =($AZ$49*$CT49*D$49*$AA49)/1000 ->  | IX49: 0 | IY49: =$AZ$49*$AB49 -> 0 | IZ49: =($AZ$49*$CU49*D$49*$AB49)/1000 ->  | JC49: =($AZ$49*$CV49*D$49*$AB49)/1000 ->  | JF49: =($AZ$49*$CW49*D$49*$AB49)/1000 ->  | JI49: =($AZ$49*$CX49*D$49*$AB49)/1000 ->  | JL49: =($AZ$49*$CY49*D$49*$AB49)/1000 ->  | JO49: =($AZ$49*$CZ49*D$49*$AB49)/1000 ->  | JR49: =($AZ$49*$DA49*D$49*$AB49)/1000 ->  | JU49: =($AZ$49*$DB49*D$49*$AB49)/1000 ->  | JX49: =($AZ$49*$DC49*D$49*$AB49)/1000 ->  | KA49: =($AZ$49*$DD49*D$49*$AB49)/1000 ->  | KD49: =($AZ$49*$DE49*D$49*$AB49)/1000 ->  | KG49: 0 | KH49: =$AZ$49*$AC49 -> 0 | KI49: =($AZ$49*$DF49*D$49*$AC49)/1000 ->  | KL49: =($AZ$49*$DG49*D$49*$AC49)/1000 ->  | KO49: =($AZ$49*$DH49*D$49*$AC49)/1000 ->  | KR49: =($AZ$49*$DI49*D$49*$AC49)/1000 ->  | KU49: =($AZ$49*$DJ49*D$49*$AC49)/1000 ->  | KX49: =($AZ$49*$DK49*D$49*$AC49)/1000 ->  | LA49: =($AZ$49*$DL49*D$49*$AC49)/1000 ->  | LD49: =($AZ$49*$DM49*D$49*$AC49)/1000 ->  | LG49: =($AZ$49*$DN49*D$49*$AC49)/1000 ->  | LJ49: =($AZ$49*$DO49*D$49*$AC49)/1000 ->  | LM49: =($AZ$49*$DP49*D$49*$AC49)/1000 ->  | LP49: 0 | LQ49: =$AZ$49*$AD49 -> 0 | LR49: =($AZ$49*$DQ49*D$49*$AD49)/1000 ->  | LU49: =($AZ$49*$DR49*D$49*$AD49)/1000 ->  | LX49: =($AZ$49*$DS49*D$49*$AD49)/1000 ->  | MA49: =($AZ$49*$DT49*D$49*$AD49)/1000 ->  | MD49: =($AZ$49*$DU49*D$49*$AD49)/1000 ->  | MG49: =($AZ$49*$DV49*D$49*$AD49)/1000 ->  | MJ49: =($AZ$49*$DW49*D$49*$AD49)/1000 ->  | MM49: =($AZ$49*$DX49*D$49*$AD49)/1000 ->  | MP49: =($AZ$49*$DY49*D$49*$AD49)/1000 ->  | MS49: =($AZ$49*$DZ49*D$49*$AD49)/1000 ->  | MV49: =($AZ$49*$EA49*D$49*$AD49)/1000 -> 
X50: 2 | AH50: N/A | AJ50: FALSE | AO50: 2 | BA50: =IF(AND(BB50="OK",BC50="OK",BD50="OK"),"OK","ERR!") -> OK | BB50: OK | BC50: =IF(OR(SUM(BN50:BX50)<>1,SUM(BY50:CI50)<>1,SUM(CJ50:CT50)<>1,SUM(CU50:DE50)<>1,SUM(DF50:DP50)<>1,SUM(DQ50:EA50)<>1),"ERR!","OK") -> OK | BD50: =IF(AND(OR(BE50=BK50,BE50=0),OR(BF50=BK50,BF50=0),OR(BG50=BK50,BG50=0),OR(BH50=BK50,BH50=0),OR(BI50=BK50,BI50=0),OR(BJ50=BK50,BJ50=0)),"OK","ERR!") -> OK | BE50: =(BN50*POWER(10,0)+BO50*POWER(10,1)+BP50*POWER(10,2)+BQ50*POWER(10,3)+BR50*POWER(10,4)+BS50*POWER(10,5)+BT50*POWER(10,6)+BU50*POWER(10,7)+BV50*POWER(10,8)+BW50*POWER(10,9)+BX50*POWER(10,10)) -> 100 | BF50: =(BY50*POWER(10,0)+BZ50*POWER(10,1)+CA50*POWER(10,2)+CB50*POWER(10,3)+CC50*POWER(10,4)+CD50*POWER(10,5)+CE50*POWER(10,6)+CF50*POWER(10,7)+CG50*POWER(10,8)+CH50*POWER(10,9)+CI50*POWER(10,10)) -> 100 | BG50: =(CJ50*POWER(10,0)+CK50*POWER(10,1)+CL50*POWER(10,2)+CM50*POWER(10,3)+CN50*POWER(10,4)+CO50*POWER(10,5)+CP50*POWER(10,6)+CQ50*POWER(10,7)+CR50*POWER(10,8)+CS50*POWER(10,9)+CT50*POWER(10,10)) -> 100 | BH50: =(CU50*POWER(10,0)+CV50*POWER(10,1)+CW50*POWER(10,2)+CX50*POWER(10,3)+CY50*POWER(10,4)+CZ50*POWER(10,5)+DA50*POWER(10,6)+DB50*POWER(10,7)+DC50*POWER(10,8)+DD50*POWER(10,9)+DE50*POWER(10,10)) -> 100 | BI50: =(DF50*POWER(10,0)+DG50*POWER(10,1)+DH50*POWER(10,2)+DI50*POWER(10,3)+DJ50*POWER(10,4)+DK50*POWER(10,5)+DL50*POWER(10,6)+DM50*POWER(10,7)+DN50*POWER(10,8)+DO50*POWER(10,9)+DP50*POWER(10,10)) -> 100 | BJ50: =(DQ50*POWER(10,0)+DR50*POWER(10,1)+DS50*POWER(10,2)+DT50*POWER(10,3)+DU50*POWER(10,4)+DV50*POWER(10,5)+DW50*POWER(10,6)+DX50*POWER(10,7)+DY50*POWER(10,8)+DZ50*POWER(10,9)+EA50*POWER(10,10)) -> 100 | BK50: =MAX(BE50:BJ50) -> 100 | BM50: 2 | BP50: 1 | CA50: 1 | CL50: 1 | CW50: 1 | DH50: 1 | DS50: 1 | EC50: 2 | EW50: 2 | EX50: 0 | GF50: 2 | GG50: 0 | HO50: 2 | HP50: 0 | IX50: 2 | IY50: 0 | KG50: 2 | KH50: 0 | LP50: 2 | LQ50: 0
X51: 3 | AH51: N/A | AJ51: FALSE | AO51: 3 | BA51: =IF(AND(BB51="OK",BC51="OK",BD51="OK"),"OK","ERR!") -> OK | BB51: OK | BC51: =IF(OR(SUM(BN51:BX51)<>1,SUM(BY51:CI51)<>1,SUM(CJ51:CT51)<>1,SUM(CU51:DE51)<>1,SUM(DF51:DP51)<>1,SUM(DQ51:EA51)<>1),"ERR!","OK") -> OK | BD51: =IF(AND(OR(BE51=BK51,BE51=0),OR(BF51=BK51,BF51=0),OR(BG51=BK51,BG51=0),OR(BH51=BK51,BH51=0),OR(BI51=BK51,BI51=0),OR(BJ51=BK51,BJ51=0)),"OK","ERR!") -> OK | BE51: 100 | BF51: 100 | BG51: 100 | BH51: 100 | BI51: 100 | BJ51: 100 | BK51: =MAX(BE51:BJ51) -> 100 | BM51: 3 | BP51: 1 | CA51: 1 | CL51: 1 | CW51: 1 | DH51: 1 | DS51: 1 | EC51: 3 | EW51: 3 | EX51: 0 | GF51: 3 | GG51: 0 | HO51: 3 | HP51: 0 | IX51: 3 | IY51: 0 | KG51: 3 | KH51: 0 | LP51: 3 | LQ51: 0
X52: 4 | AH52: N/A | AJ52: FALSE | AO52: 4 | BA52: =IF(AND(BB52="OK",BC52="OK",BD52="OK"),"OK","ERR!") -> OK | BB52: OK | BC52: OK | BD52: =IF(AND(OR(BE52=BK52,BE52=0),OR(BF52=BK52,BF52=0),OR(BG52=BK52,BG52=0),OR(BH52=BK52,BH52=0),OR(BI52=BK52,BI52=0),OR(BJ52=BK52,BJ52=0)),"OK","ERR!") -> OK | BE52: 100 | BF52: 100 | BG52: 100 | BH52: 100 | BI52: 100 | BJ52: 100 | BK52: 100 | BM52: 4 | BP52: 1 | CA52: 1 | CL52: 1 | CW52: 1 | DH52: 1 | DS52: 1 | EC52: 4 | EW52: 4 | EX52: 0 | GF52: 4 | GG52: 0 | HO52: 4 | HP52: 0 | IX52: 4 | IY52: 0 | KG52: 4 | KH52: 0 | LP52: 4 | LQ52: 0
X53: 7 | AH53: N/A | AJ53: FALSE | AO53: 7 | BA53: =IF(AND(BB53="OK",BC53="OK",BD53="OK"),"OK","ERR!") -> OK | BB53: OK | BC53: OK | BD53: OK | BE53: 100 | BF53: 100 | BG53: 100 | BH53: 100 | BI53: 100 | BJ53: 100 | BK53: 100 | BM53: 7 | BP53: 1 | CA53: 1 | CL53: 1 | CW53: 1 | DH53: 1 | DS53: 1 | EC53: 7 | EW53: 7 | EX53: 0 | GF53: 7 | GG53: 0 | HO53: 7 | HP53: 0 | IX53: 7 | IY53: 0 | KG53: 7 | KH53: 0 | LP53: 7 | LQ53: 0
X54: 8 | AH54: N/A | AJ54: FALSE | AO54: 8 | BA54: OK | BB54: OK | BC54: OK | BD54: OK | BE54: 100 | BF54: 100 | BG54: 100 | BH54: 100 | BI54: 100 | BJ54: 100 | BK54: 100 | BM54: 8 | BP54: 1 | CA54: 1 | CL54: 1 | CW54: 1 | DH54: 1 | DS54: 1 | EC54: 8 | EW54: 8 | EX54: 0 | GF54: 8 | GG54: 0 | HO54: 8 | HP54: 0 | IX54: 8 | IY54: 0 | KG54: 8 | KH54: 0 | LP54: 8 | LQ54: 0
X55: 9 | AH55: N/A | AJ55: FALSE | AO55: 9 | BA55: OK | BB55: OK | BC55: OK | BD55: OK | BE55: 100 | BF55: 100 | BG55: 100 | BH55: =(CU55*POWER(10,0)+CV55*POWER(10,1)+CW55*POWER(10,2)+CX55*POWER(10,3)+CY55*POWER(10,4)+CZ55*POWER(10,5)+DA55*POWER(10,6)+DB55*POWER(10,7)+DC55*POWER(10,8)+DD55*POWER(10,9)+DE55*POWER(10,10)) -> 100 | BI55: =(DF55*POWER(10,0)+DG55*POWER(10,1)+DH55*POWER(10,2)+DI55*POWER(10,3)+DJ55*POWER(10,4)+DK55*POWER(10,5)+DL55*POWER(10,6)+DM55*POWER(10,7)+DN55*POWER(10,8)+DO55*POWER(10,9)+DP55*POWER(10,10)) -> 100 | BJ55: 100 | BK55: 100 | BM55: 9 | BP55: 1 | CA55: 1 | CL55: 1 | CW55: 1 | DH55: 1 | DS55: 1 | EC55: 9 | EW55: 9 | EX55: 0 | GF55: 9 | GG55: 0 | HO55: 9 | HP55: 0 | IX55: 9 | IY55: 0 | KG55: 9 | KH55: 0 | LP55: 9 | LQ55: 0
X56: Total | Y56: =SUM(Y49:Y55) -> 0 | Z56: =SUM(Z49:Z55) -> 0 | AA56: 0 | AB56: 0 | AC56: 0 | AD56: 0 | AH56: N/A | AJ56: FALSE | AO56: Total | BM56: Total | EC56: Total | ED56: =SUM(ED49:ED55) ->  | EE56: =SUM(EE49:EE55) ->  | EF56: =SUM(EF49:EF55) ->  | EG56: =SUM(EG49:EG55) ->  | EH56: =SUM(EH49:EH55) ->  | EI56: =SUM(EI49:EI55) ->  | EW56: Total | EX56: =SUM(EX49:EX55) -> 0 | EY56: =SUM(EY49:EY55) ->  | EZ56: =SUM(EZ49:EZ55) ->  | FC56: =SUM(FC49:FC55) ->  | FD56: =SUM(FD49:FD55) ->  | FN56: =SUM(FN49:FN55) ->  | FO56: =SUM(FO49:FO55) ->  | FP56: =SUM(FP49:FP55) ->  | FQ56: =SUM(FQ49:FQ55) ->  | GC56: =SUM(GC49:GC55) ->  | GD56: =SUM(GD49:GD55) ->  | GF56: Total | GG56: =SUM(GG49:GG55) -> 0 | GH56: =SUM(GH49:GH55) ->  | GI56: =SUM(GI49:GI55) ->  | GL56: =SUM(GL49:GL55) ->  | GM56: =SUM(GM49:GM55) ->  | GN56: =SUM(GN49:GN55) ->  | GW56: =SUM(GW49:GW55) ->  | GX56: =SUM(GX49:GX55) ->  | GY56: =SUM(GY49:GY55) ->  | GZ56: =SUM(GZ49:GZ55) ->  | HL56: =SUM(HL49:HL55) ->  | HM56: =SUM(HM49:HM55) ->  | HO56: Total | HP56: =SUM(HP49:HP55) -> 0 | HQ56: =SUM(HQ49:HQ55) ->  | HR56: =SUM(HR49:HR55) ->  | HU56: =SUM(HU49:HU55) ->  | HV56: =SUM(HV49:HV55) ->  | IF56: =SUM(IF49:IF55) ->  | IG56: =SUM(IG49:IG55) ->  | IH56: =SUM(IH49:IH55) ->  | II56: =SUM(II49:II55) ->  | IU56: =SUM(IU49:IU55) ->  | IV56: =SUM(IV49:IV55) ->  | IX56: Total | IY56: =SUM(IY49:IY55) -> 0 | IZ56: =SUM(IZ49:IZ55) ->  | JA56: =SUM(JA49:JA55) ->  | JD56: =SUM(JD49:JD55) ->  | JE56: =SUM(JE49:JE55) ->  | JO56: =SUM(JO49:JO55) ->  | JP56: =SUM(JP49:JP55) ->  | JQ56: =SUM(JQ49:JQ55) ->  | JR56: =SUM(JR49:JR55) ->  | KD56: =SUM(KD49:KD55) ->  | KE56: =SUM(KE49:KE55) ->  | KG56: Total | KH56: =SUM(KH49:KH55) -> 0 | KI56: =SUM(KI49:KI55) ->  | KJ56: =SUM(KJ49:KJ55) ->  | KM56: =SUM(KM49:KM55) ->  | KN56: =SUM(KN49:KN55) ->  | KX56: =SUM(KX49:KX55) ->  | KY56: =SUM(KY49:KY55) ->  | KZ56: =SUM(KZ49:KZ55) ->  | LA56: =SUM(LA49:LA55) ->  | LM56: =SUM(LM49:LM55) ->  | LN56: =SUM(LN49:LN55) ->  | LP56: Total | LQ56: =SUM(LQ49:LQ55) -> 0 | LR56: =SUM(LR49:LR55) ->  | LS56: =SUM(LS49:LS55) ->  | LV56: =SUM(LV49:LV55) ->  | LW56: =SUM(LW49:LW55) ->  | MF56: =SUM(MF49:MF55) ->  | MG56: =SUM(MG49:MG55) ->  | MH56: =SUM(MH49:MH55) ->  | MI56: =SUM(MI49:MI55) ->  | MJ56: =SUM(MJ49:MJ55) ->  | MV56: =SUM(MV49:MV55) ->  | MW56: =SUM(MW49:MW55) -> 
B57: =B49+1 -> 4 | C57: ='Regional Project List Sheet'!F8 -> 0 | D57: =IF('Regional Project List Sheet'!$G8="New",1,"") ->  | E57: =IF('Regional Project List Sheet'!$G8="Funded Old",1,"") ->  | F57: =IF('Regional Project List Sheet'!$G8="Unfunded Old",1,"") ->  | G57: ='Regional Project List Sheet'!H8 -> 0 | H57: ='Regional Project List Sheet'!I8 -> 0 | I57: ='Regional Project List Sheet'!L8 -> 0 | J57: ='Regional Project List Sheet'!M8 -> 0 | K57: ='Regional Project List Sheet'!N8 -> 0 | L57: ='Regional Project List Sheet'!O8 -> 0 | M57: ='Regional Project List Sheet'!P8 -> 0 | N57: =IF('Regional Project List Sheet'!$Q8="N/A","N/A",IF($Y60<>0,5,IF($Z60<>0,4,IF($AA60<>0,3,IF($AB60<>0,2,1))))) -> 1 | O57: =VLOOKUP($C57,'[2]Ranking|Priority'!$B$5:$O$40,12,FALSE) ->  | P57: =VLOOKUP($C57,'[2]Ranking|Priority'!$B$5:$O$68,13,FALSE) ->  | Q57: =VLOOKUP($C57,'[2]Ranking|Priority'!$B$5:$O$68,14,FALSE) ->  | R57: ='Regional Project List Sheet'!T8 -> 0 | S57: ='Regional Project List Sheet'!U8 -> 0 | T57: ='Regional Project List Sheet'!V8 -> 0 | U57: ='Regional Project List Sheet'!W8 -> 0 | V57: ='Regional Project List Sheet'!X8 -> 0 | W57: ='Regional Project List Sheet'!Y8 -> Choose from Project List in cell I2 | X57: 0 | AF57: ='Regional Project List Sheet'!AJ8 -> 0 | AG57: =IF(OR('Regional Project List Sheet'!$AA8<>'Regional Project List Sheet'!$A$40,'Regional Project List Sheet'!$AD8<>'Regional Project List Sheet'!$A$40,'Regional Project List Sheet'!$AG8<>'Regional Project List Sheet'!$A$40),_xlfn.CONCAT(IF(ISNUMBER('Regional Project List Sheet'!$AA8),'Regional Project List Sheet'!$A$36,"")," ",IF(ISNUMBER('Regional Project List Sheet'!$AD8),'Regional Project List Sheet'!$A$37,"")," ",IF(ISNUMBER('Regional Project List Sheet'!$AG8),'Regional Project List Sheet'!$A$38,"")),"N/A") -> N/A | AH57: N/A | AI57: =IF(OR('Regional Project List Sheet'!AC8<>'Regional Project List Sheet'!$A$40,'Regional Project List Sheet'!AF8<>'Regional Project List Sheet'!$A$40,'Regional Project List Sheet'!AI8<>'Regional Project List Sheet'!$A$40), IF(LEN(_xlfn.CONCAT(IF('Regional Project List Sheet'!AC8="Yes",'Regional Project List Sheet'!$A$36,"")," ", IF('Regional Project List Sheet'!AF8="Yes",'Regional Project List Sheet'!$A$37,"")," ", IF('Regional Project List Sheet'!AI8="Yes",'Regional Project List Sheet'!$A$38,"")))<3,"No", _xlfn.CONCAT(IF('Regional Project List Sheet'!AC8="Yes",'Regional Project List Sheet'!$A$36,"")," ", IF('Regional Project List Sheet'!AF8="Yes",'Regional Project List Sheet'!$A$37,"")," ", IF('Regional Project List Sheet'!AI8="Yes",'Regional Project List Sheet'!$A$38,"")))) -> FALSE | AJ57: FALSE | AK57: ='Regional Project List Sheet'!AK8 -> 0 | AM57: ='Regional Project List Sheet'!AL8 -> 0 | AO57: 0 | AZ57: 1 | BA57: =IF(AND(BB57="OK",BC57="OK",BD57="OK"),"OK","ERR!") -> OK | BB57: =IF(AND(Y57>0,SUM(BN57:BX57)<1),"ERR!",IF(AND(Z57>0,SUM(BY57:CI57)<1),"ERR!",IF(AND(AA57>0,SUM(CJ57:CT57)<1),"ERR",IF(AND(AB57>0,SUM(CU57:DE57)<1),"ERR",IF(AND(AC57>0,SUM(DF57:DP57)<1),"ERR",IF(AND(AD57>0,SUM(DQ57:EA57)<1),"ERR","OK")))))) -> OK | BC57: =IF(OR(SUM(BN57:BX57)<>1,SUM(BY57:CI57)<>1,SUM(CJ57:CT57)<>1,SUM(CU57:DE57)<>1,SUM(DF57:DP57)<>1,SUM(DQ57:EA57)<>1),"ERR!","OK") -> OK | BD57: =IF(AND(OR(BE57=BK57,BE57=0),OR(BF57=BK57,BF57=0),OR(BG57=BK57,BG57=0),OR(BH57=BK57,BH57=0),OR(BI57=BK57,BI57=0),OR(BJ57=BK57,BJ57=0)),"OK","ERR!") -> OK | BE57: =(BN57*POWER(10,0)+BO57*POWER(10,1)+BP57*POWER(10,2)+BQ57*POWER(10,3)+BR57*POWER(10,4)+BS57*POWER(10,5)+BT57*POWER(10,6)+BU57*POWER(10,7)+BV57*POWER(10,8)+BW57*POWER(10,9)+BX57*POWER(10,10)) -> 100 | BF57: =(BY57*POWER(10,0)+BZ57*POWER(10,1)+CA57*POWER(10,2)+CB57*POWER(10,3)+CC57*POWER(10,4)+CD57*POWER(10,5)+CE57*POWER(10,6)+CF57*POWER(10,7)+CG57*POWER(10,8)+CH57*POWER(10,9)+CI57*POWER(10,10)) -> 100 | BG57: =(CJ57*POWER(10,0)+CK57*POWER(10,1)+CL57*POWER(10,2)+CM57*POWER(10,3)+CN57*POWER(10,4)+CO57*POWER(10,5)+CP57*POWER(10,6)+CQ57*POWER(10,7)+CR57*POWER(10,8)+CS57*POWER(10,9)+CT57*POWER(10,10)) -> 100 | BH57: =(CU57*POWER(10,0)+CV57*POWER(10,1)+CW57*POWER(10,2)+CX57*POWER(10,3)+CY57*POWER(10,4)+CZ57*POWER(10,5)+DA57*POWER(10,6)+DB57*POWER(10,7)+DC57*POWER(10,8)+DD57*POWER(10,9)+DE57*POWER(10,10)) -> 100 | BI57: =(DF57*POWER(10,0)+DG57*POWER(10,1)+DH57*POWER(10,2)+DI57*POWER(10,3)+DJ57*POWER(10,4)+DK57*POWER(10,5)+DL57*POWER(10,6)+DM57*POWER(10,7)+DN57*POWER(10,8)+DO57*POWER(10,9)+DP57*POWER(10,10)) -> 100 | BJ57: =(DQ57*POWER(10,0)+DR57*POWER(10,1)+DS57*POWER(10,2)+DT57*POWER(10,3)+DU57*POWER(10,4)+DV57*POWER(10,5)+DW57*POWER(10,6)+DX57*POWER(10,7)+DY57*POWER(10,8)+DZ57*POWER(10,9)+EA57*POWER(10,10)) -> 100 | BK57: =MAX(BE57:BJ57) -> 100 | BM57: 0 | BP57: 1 | CA57: 1 | CL57: 1 | CW57: 1 | DH57: 1 | DS57: 1 | EC57: 0 | ED57: =($Y57*D$57)/1000 ->  | EG57: =($Z57*D$57)/1000 ->  | EJ57: =($AA57*D$57)/1000 ->  | EM57: =($AB57*D$57)/1000 ->  | EP57: =($AC57*D$57)/1000 ->  | ES57: =($AD57*D$57)/1000 ->  | EW57: 0 | EX57: =$AZ$57*$Y57 -> 0 | EY57: =($AZ$57*$BN57*D$57*$Y57)/1000 ->  | FB57: =($AZ$57*$BO57*D$57*$Y57)/1000 ->  | FE57: =($AZ$57*$BP57*D$57*$Y57)/1000 ->  | FH57: =($AZ$57*$BQ57*D$57*$Y57)/1000 ->  | FK57: =($AZ$57*$BR57*D$57*$Y57)/1000 ->  | FN57: =($AZ$57*$BS57*D$57*$Y57)/1000 ->  | FQ57: =($AZ$57*$BT57*D$57*$Y57)/1000 ->  | FT57: =($AZ$57*$BU57*D$57*$Y57)/1000 ->  | FW57: =($AZ$57*$BV57*D$57*$Y57)/1000 ->  | FZ57: =($AZ$57*$BW57*D$57*$Y57)/1000 ->  | GC57: =($AZ$57*$BX57*D$57*$Y57)/1000 ->  | GF57: 0 | GG57: =$AZ$57*$Z57 -> 0 | GH57: =($AZ$57*$BY57*D$57*$Z57)/1000 ->  | GK57: =($AZ$57*$BZ57*D$57*$Z57)/1000 ->  | GN57: =($AZ$57*$CA57*D$57*$Z57)/1000 ->  | GQ57: =($AZ$57*$CB57*D$57*$Z57)/1000 ->  | GT57: =($AZ$57*$CD57*D$57*$Z57)/1000 ->  | GW57: =($AZ$57*$CD57*D$57*$Z57)/1000 ->  | GZ57: =($AZ$57*$CE57*D$57*$Z57)/1000 ->  | HC57: =($AZ$57*$CF57*D$57*$Z57)/1000 ->  | HF57: =($AZ$57*$CG57*D$57*$Z57)/1000 ->  | HI57: =($AZ$57*$CH57*D$57*$Z57)/1000 ->  | HL57: =($AZ$57*$CI57*D$57*$Z57)/1000 ->  | HO57: 0 | HP57: =$AZ$57*$AA57 -> 0 | HQ57: =($AZ$57*$CJ57*D$57*$AA57)/1000 ->  | HT57: =($AZ$57*$CK57*D$57*$AA57)/1000 ->  | HW57: =($AZ$57*$CL57*D$57*$AA57)/1000 ->  | HZ57: =($AZ$57*$CM57*D$57*$AA57)/1000 ->  | IC57: =($AZ$57*$CN57*D$57*$AA57)/1000 ->  | IF57: =($AZ$57*$CO57*D$57*$AA57)/1000 ->  | II57: =($AZ$57*$CP57*D$57*$AA57)/1000 ->  | IL57: =($AZ$57*$CQ57*D$57*$AA57)/1000 ->  | IO57: =($AZ$57*$CR57*D$57*$AA57)/1000 ->  | IR57: =($AZ$57*$CS57*D$57*$AA57)/1000 ->  | IU57: =($AZ$57*$CT57*D$57*$AA57)/1000 ->  | IX57: 0 | IY57: =$AZ$57*$AB57 -> 0 | IZ57: =($AZ$57*$CU57*D$57*$AB57)/1000 ->  | JC57: =($AZ$57*$CV57*D$57*$AB57)/1000 ->  | JF57: =($AZ$57*$CW57*D$57*$AB57)/1000 ->  | JI57: =($AZ$57*$CX57*D$57*$AB57)/1000 ->  | JL57: =($AZ$57*$CY57*D$57*$AB57)/1000 ->  | JO57: =($AZ$57*$CZ57*D$57*$AB57)/1000 ->  | JR57: =($AZ$57*$DA57*D$57*$AB57)/1000 ->  | JU57: =($AZ$57*$DB57*D$57*$AB57)/1000 ->  | JX57: =($AZ$57*$DC57*D$57*$AB57)/1000 ->  | KA57: =($AZ$57*$DD57*D$57*$AB57)/1000 ->  | KD57: =($AZ$57*$DE57*D$57*$AB57)/1000 ->  | KG57: 0 | KH57: =$AZ$57*$AC57 -> 0 | KI57: =($AZ$57*$DF57*D$57*$AC57)/1000 ->  | KL57: =($AZ$57*$DG57*D$57*$AC57)/1000 ->  | KO57: =($AZ$57*$DH57*D$57*$AC57)/1000 ->  | KR57: =($AZ$57*$DI57*D$57*$AC57)/1000 ->  | KU57: =($AZ$57*$DJ57*D$57*$AC57)/1000 ->  | KX57: =($AZ$57*$DK57*D$57*$AC57)/1000 ->  | LA57: =($AZ$57*$DL57*D$57*$AC57)/1000 ->  | LD57: =($AZ$57*$DM57*D$57*$AC57)/1000 ->  | LG57: =($AZ$57*$DN57*D$57*$AC57)/1000 ->  | LJ57: =($AZ$57*$DO57*D$57*$AC57)/1000 ->  | LM57: =($AZ$57*$DP57*D$57*$AC57)/1000 ->  | LP57: 0 | LQ57: =$AZ$57*$AD57 -> 0 | LR57: =($AZ$57*$DQ57*D$57*$AD57)/1000 ->  | LU57: =($AZ$57*$DR57*D$57*$AD57)/1000 ->  | LX57: =($AZ$57*$DS57*D$57*$AD57)/1000 ->  | MA57: =($AZ$57*$DT57*D$57*$AD57)/1000 ->  | MD57: =($AZ$57*$DU57*D$57*$AD57)/1000 ->  | MG57: =($AZ$57*$DV57*D$57*$AD57)/1000 ->  | MJ57: =($AZ$57*$DW57*D$57*$AD57)/1000 ->  | MM57: =($AZ$57*$DX57*D$57*$AD57)/1000 ->  | MP57: =($AZ$57*$DY57*D$57*$AD57)/1000 ->  | MS57: =($AZ$57*$DZ57*D$57*$AD57)/1000 ->  | MV57: =($AZ$57*$EA57*D$57*$AD57)/1000 -> 
X58: 2 | AH58: N/A | AJ58: FALSE | AO58: 2 | BA58: =IF(AND(BB58="OK",BC58="OK",BD58="OK"),"OK","ERR!") -> OK | BB58: OK | BC58: =IF(OR(SUM(BN58:BX58)<>1,SUM(BY58:CI58)<>1,SUM(CJ58:CT58)<>1,SUM(CU58:DE58)<>1,SUM(DF58:DP58)<>1,SUM(DQ58:EA58)<>1),"ERR!","OK") -> OK | BD58: =IF(AND(OR(BE58=BK58,BE58=0),OR(BF58=BK58,BF58=0),OR(BG58=BK58,BG58=0),OR(BH58=BK58,BH58=0),OR(BI58=BK58,BI58=0),OR(BJ58=BK58,BJ58=0)),"OK","ERR!") -> OK | BE58: =(BN58*POWER(10,0)+BO58*POWER(10,1)+BP58*POWER(10,2)+BQ58*POWER(10,3)+BR58*POWER(10,4)+BS58*POWER(10,5)+BT58*POWER(10,6)+BU58*POWER(10,7)+BV58*POWER(10,8)+BW58*POWER(10,9)+BX58*POWER(10,10)) -> 1000 | BF58: =(BY58*POWER(10,0)+BZ58*POWER(10,1)+CA58*POWER(10,2)+CB58*POWER(10,3)+CC58*POWER(10,4)+CD58*POWER(10,5)+CE58*POWER(10,6)+CF58*POWER(10,7)+CG58*POWER(10,8)+CH58*POWER(10,9)+CI58*POWER(10,10)) -> 1000 | BG58: =(CJ58*POWER(10,0)+CK58*POWER(10,1)+CL58*POWER(10,2)+CM58*POWER(10,3)+CN58*POWER(10,4)+CO58*POWER(10,5)+CP58*POWER(10,6)+CQ58*POWER(10,7)+CR58*POWER(10,8)+CS58*POWER(10,9)+CT58*POWER(10,10)) -> 1000 | BH58: =(CU58*POWER(10,0)+CV58*POWER(10,1)+CW58*POWER(10,2)+CX58*POWER(10,3)+CY58*POWER(10,4)+CZ58*POWER(10,5)+DA58*POWER(10,6)+DB58*POWER(10,7)+DC58*POWER(10,8)+DD58*POWER(10,9)+DE58*POWER(10,10)) -> 1000 | BI58: =(DF58*POWER(10,0)+DG58*POWER(10,1)+DH58*POWER(10,2)+DI58*POWER(10,3)+DJ58*POWER(10,4)+DK58*POWER(10,5)+DL58*POWER(10,6)+DM58*POWER(10,7)+DN58*POWER(10,8)+DO58*POWER(10,9)+DP58*POWER(10,10)) -> 1000 | BJ58: =(DQ58*POWER(10,0)+DR58*POWER(10,1)+DS58*POWER(10,2)+DT58*POWER(10,3)+DU58*POWER(10,4)+DV58*POWER(10,5)+DW58*POWER(10,6)+DX58*POWER(10,7)+DY58*POWER(10,8)+DZ58*POWER(10,9)+EA58*POWER(10,10)) -> 1000 | BK58: =MAX(BE58:BJ58) -> 1000 | BM58: 2 | BQ58: 1 | CB58: 1 | CM58: 1 | CX58: 1 | DI58: 1 | DT58: 1 | EC58: 2 | EW58: 2 | EX58: 0 | GF58: 2 | GG58: 0 | HO58: 2 | HP58: 0 | IX58: 2 | IY58: 0 | KG58: 2 | KH58: 0 | LP58: 2 | LQ58: 0
X59: 3 | AH59: N/A | AJ59: FALSE | AO59: 3 | BA59: =IF(AND(BB59="OK",BC59="OK",BD59="OK"),"OK","ERR!") -> OK | BB59: OK | BC59: =IF(OR(SUM(BN59:BX59)<>1,SUM(BY59:CI59)<>1,SUM(CJ59:CT59)<>1,SUM(CU59:DE59)<>1,SUM(DF59:DP59)<>1,SUM(DQ59:EA59)<>1),"ERR!","OK") -> OK | BD59: =IF(AND(OR(BE59=BK59,BE59=0),OR(BF59=BK59,BF59=0),OR(BG59=BK59,BG59=0),OR(BH59=BK59,BH59=0),OR(BI59=BK59,BI59=0),OR(BJ59=BK59,BJ59=0)),"OK","ERR!") -> OK | BE59: 100 | BF59: 100 | BG59: 100 | BH59: 100 | BI59: 100 | BJ59: 100 | BK59: =MAX(BE59:BJ59) -> 100 | BM59: 3 | BP59: 1 | CA59: 1 | CL59: 1 | CW59: 1 | DH59: 1 | DS59: 1 | EC59: 3 | EW59: 3 | EX59: 0 | GF59: 3 | GG59: 0 | HO59: 3 | HP59: 0 | IX59: 3 | IY59: 0 | KG59: 3 | KH59: 0 | LP59: 3 | LQ59: 0
X60: 4 | AH60: N/A | AJ60: FALSE | AO60: 4 | BA60: =IF(AND(BB60="OK",BC60="OK",BD60="OK"),"OK","ERR!") -> OK | BB60: OK | BC60: OK | BD60: =IF(AND(OR(BE60=BK60,BE60=0),OR(BF60=BK60,BF60=0),OR(BG60=BK60,BG60=0),OR(BH60=BK60,BH60=0),OR(BI60=BK60,BI60=0),OR(BJ60=BK60,BJ60=0)),"OK","ERR!") -> OK | BE60: 100 | BF60: 100 | BG60: 100 | BH60: 100 | BI60: 100 | BJ60: 100 | BK60: 100 | BM60: 4 | BP60: 1 | CA60: 1 | CL60: 1 | CW60: 1 | DH60: 1 | DS60: 1 | EC60: 4 | EW60: 4 | EX60: 0 | GF60: 4 | GG60: 0 | HO60: 4 | HP60: 0 | IX60: 4 | IY60: 0 | KG60: 4 | KH60: 0 | LP60: 4 | LQ60: 0
X61: 7 | AH61: N/A | AJ61: FALSE | AO61: 7 | BA61: =IF(AND(BB61="OK",BC61="OK",BD61="OK"),"OK","ERR!") -> OK | BB61: OK | BC61: OK | BD61: OK | BE61: 100 | BF61: 100 | BG61: 100 | BH61: 100 | BI61: 100 | BJ61: 100 | BK61: 100 | BM61: 7 | BP61: 1 | CA61: 1 | CL61: 1 | CW61: 1 | DH61: 1 | DS61: 1 | EC61: 7 | EW61: 7 | EX61: 0 | GF61: 7 | GG61: 0 | HO61: 7 | HP61: 0 | IX61: 7 | IY61: 0 | KG61: 7 | KH61: 0 | LP61: 7 | LQ61: 0
X62: 8 | AH62: N/A | AJ62: FALSE | AO62: 8 | BA62: OK | BB62: OK | BC62: OK | BD62: OK | BE62: 100 | BF62: 100 | BG62: 100 | BH62: 100 | BI62: 100 | BJ62: 100 | BK62: 100 | BM62: 8 | BP62: 1 | CA62: 1 | CL62: 1 | CW62: 1 | DH62: 1 | DS62: 1 | EC62: 8 | EW62: 8 | EX62: 0 | GF62: 8 | GG62: 0 | HO62: 8 | HP62: 0 | IX62: 8 | IY62: 0 | KG62: 8 | KH62: 0 | LP62: 8 | LQ62: 0
X63: 9 | AH63: N/A | AJ63: FALSE | AO63: 9 | BA63: OK | BB63: OK | BC63: OK | BD63: OK | BE63: 100 | BF63: 100 | BG63: 100 | BH63: =(CU63*POWER(10,0)+CV63*POWER(10,1)+CW63*POWER(10,2)+CX63*POWER(10,3)+CY63*POWER(10,4)+CZ63*POWER(10,5)+DA63*POWER(10,6)+DB63*POWER(10,7)+DC63*POWER(10,8)+DD63*POWER(10,9)+DE63*POWER(10,10)) -> 100 | BI63: =(DF63*POWER(10,0)+DG63*POWER(10,1)+DH63*POWER(10,2)+DI63*POWER(10,3)+DJ63*POWER(10,4)+DK63*POWER(10,5)+DL63*POWER(10,6)+DM63*POWER(10,7)+DN63*POWER(10,8)+DO63*POWER(10,9)+DP63*POWER(10,10)) -> 100 | BJ63: 100 | BK63: 100 | BM63: 9 | BP63: 1 | CA63: 1 | CL63: 1 | CW63: 1 | DH63: 1 | DS63: 1 | EC63: 9 | EW63: 9 | EX63: 0 | GF63: 9 | GG63: 0 | HO63: 9 | HP63: 0 | IX63: 9 | IY63: 0 | KG63: 9 | KH63: 0 | LP63: 9 | LQ63: 0
X64: Total | Y64: =SUM(Y57:Y63) -> 0 | Z64: =SUM(Z57:Z63) -> 0 | AA64: 0 | AB64: 0 | AC64: 0 | AD64: 0 | AH64: N/A | AJ64: FALSE | AO64: Total | BM64: Total | EC64: Total | ED64: =SUM(ED57:ED63) ->  | EE64: =SUM(EE57:EE63) ->  | EF64: =SUM(EF57:EF63) ->  | EG64: =SUM(EG57:EG63) ->  | EH64: =SUM(EH57:EH63) ->  | EI64: =SUM(EI57:EI63) ->  | EW64: Total | EX64: =SUM(EX57:EX63) -> 0 | EY64: =SUM(EY57:EY63) ->  | EZ64: =SUM(EZ57:EZ63) ->  | FC64: =SUM(FC57:FC63) ->  | FD64: =SUM(FD57:FD63) ->  | FN64: =SUM(FN57:FN63) ->  | FO64: =SUM(FO57:FO63) ->  | FP64: =SUM(FP57:FP63) ->  | FQ64: =SUM(FQ57:FQ63) ->  | GC64: =SUM(GC57:GC63) ->  | GD64: =SUM(GD57:GD63) ->  | GF64: Total | GG64: =SUM(GG57:GG63) -> 0 | GH64: =SUM(GH57:GH63) ->  | GI64: =SUM(GI57:GI63) ->  | GL64: =SUM(GL57:GL63) ->  | GM64: =SUM(GM57:GM63) ->  | GN64: =SUM(GN57:GN63) ->  | GW64: =SUM(GW57:GW63) ->  | GX64: =SUM(GX57:GX63) ->  | GY64: =SUM(GY57:GY63) ->  | GZ64: =SUM(GZ57:GZ63) ->  | HL64: =SUM(HL57:HL63) ->  | HM64: =SUM(HM57:HM63) ->  | HO64: Total | HP64: =SUM(HP57:HP63) -> 0 | HQ64: =SUM(HQ57:HQ63) ->  | HR64: =SUM(HR57:HR63) ->  | HU64: =SUM(HU57:HU63) ->  | HV64: =SUM(HV57:HV63) ->  | IF64: =SUM(IF57:IF63) ->  | IG64: =SUM(IG57:IG63) ->  | IH64: =SUM(IH57:IH63) ->  | II64: =SUM(II57:II63) ->  | IU64: =SUM(IU57:IU63) ->  | IV64: =SUM(IV57:IV63) ->  | IX64: Total | IY64: =SUM(IY57:IY63) -> 0 | IZ64: =SUM(IZ57:IZ63) ->  | JA64: =SUM(JA57:JA63) ->  | JD64: =SUM(JD57:JD63) ->  | JE64: =SUM(JE57:JE63) ->  | JO64: =SUM(JO57:JO63) ->  | JP64: =SUM(JP57:JP63) ->  | JQ64: =SUM(JQ57:JQ63) ->  | JR64: =SUM(JR57:JR63) ->  | KD64: =SUM(KD57:KD63) ->  | KE64: =SUM(KE57:KE63) ->  | KG64: Total | KH64: =SUM(KH57:KH63) -> 0 | KI64: =SUM(KI57:KI63) ->  | KJ64: =SUM(KJ57:KJ63) ->  | KM64: =SUM(KM57:KM63) ->  | KN64: =SUM(KN57:KN63) ->  | KX64: =SUM(KX57:KX63) ->  | KY64: =SUM(KY57:KY63) ->  | KZ64: =SUM(KZ57:KZ63) ->  | LA64: =SUM(LA57:LA63) ->  | LM64: =SUM(LM57:LM63) ->  | LN64: =SUM(LN57:LN63) ->  | LP64: Total | LQ64: =SUM(LQ57:LQ63) -> 0 | LR64: =SUM(LR57:LR63) ->  | LS64: =SUM(LS57:LS63) ->  | LV64: =SUM(LV57:LV63) ->  | LW64: =SUM(LW57:LW63) ->  | MF64: =SUM(MF57:MF63) ->  | MG64: =SUM(MG57:MG63) ->  | MH64: =SUM(MH57:MH63) ->  | MI64: =SUM(MI57:MI63) ->  | MJ64: =SUM(MJ57:MJ63) ->  | MV64: =SUM(MV57:MV63) ->  | MW64: =SUM(MW57:MW63) -> 
B65: =B57+1 -> 5 | C65: ='Regional Project List Sheet'!F9 -> 0 | D65: =IF('Regional Project List Sheet'!$G9="New",1,"") ->  | E65: =IF('Regional Project List Sheet'!$G9="Funded Old",1,"") ->  | F65: =IF('Regional Project List Sheet'!$G9="Unfunded Old",1,"") ->  | G65: ='Regional Project List Sheet'!H9 -> 0 | H65: ='Regional Project List Sheet'!I9 -> 0 | I65: ='Regional Project List Sheet'!L9 -> 0 | J65: ='Regional Project List Sheet'!M9 -> 0 | K65: ='Regional Project List Sheet'!N9 -> 0 | L65: ='Regional Project List Sheet'!O9 -> 0 | M65: ='Regional Project List Sheet'!P9 -> 0 | N65: =IF('Regional Project List Sheet'!$Q9="N/A","N/A",IF($Y68<>0,5,IF($Z68<>0,4,IF($AA68<>0,3,IF($AB68<>0,2,1))))) -> 1 | O65: =VLOOKUP($C65,'[2]Ranking|Priority'!$B$5:$O$68,12,FALSE) ->  | P65: =VLOOKUP($C65,'[2]Ranking|Priority'!$B$5:$O$68,13,FALSE) ->  | Q65: =VLOOKUP($C65,'[2]Ranking|Priority'!$B$5:$O$68,14,FALSE) ->  | R65: ='Regional Project List Sheet'!T9 -> 0 | S65: ='Regional Project List Sheet'!U9 -> 0 | T65: ='Regional Project List Sheet'!V9 -> 0 | U65: ='Regional Project List Sheet'!W9 -> 0 | V65: ='Regional Project List Sheet'!X9 -> 0 | W65: ='Regional Project List Sheet'!Y9 -> Choose from Project List in cell I2 | X65: 0 | AF65: ='Regional Project List Sheet'!AJ9 -> 0 | AG65: =IF(OR('Regional Project List Sheet'!$AA9<>'Regional Project List Sheet'!$A$40,'Regional Project List Sheet'!$AD9<>'Regional Project List Sheet'!$A$40,'Regional Project List Sheet'!$AG9<>'Regional Project List Sheet'!$A$40),_xlfn.CONCAT(IF(ISNUMBER('Regional Project List Sheet'!$AA9),'Regional Project List Sheet'!$A$36,"")," ",IF(ISNUMBER('Regional Project List Sheet'!$AD9),'Regional Project List Sheet'!$A$37,"")," ",IF(ISNUMBER('Regional Project List Sheet'!$AG9),'Regional Project List Sheet'!$A$38,"")),"N/A") -> N/A | AH65: N/A | AI65: =IF(OR('Regional Project List Sheet'!AC9<>'Regional Project List Sheet'!$A$40,'Regional Project List Sheet'!AF9<>'Regional Project List Sheet'!$A$40,'Regional Project List Sheet'!AI9<>'Regional Project List Sheet'!$A$40), IF(LEN(_xlfn.CONCAT(IF('Regional Project List Sheet'!AC9="Yes",'Regional Project List Sheet'!$A$36,"")," ", IF('Regional Project List Sheet'!AF9="Yes",'Regional Project List Sheet'!$A$9,"")," ", IF('Regional Project List Sheet'!AI9="Yes",'Regional Project List Sheet'!$A$38,"")))<3,"No", _xlfn.CONCAT(IF('Regional Project List Sheet'!AC9="Yes",'Regional Project List Sheet'!$A$36,"")," ", IF('Regional Project List Sheet'!AF9="Yes",'Regional Project List Sheet'!$A$9,"")," ", IF('Regional Project List Sheet'!AI9="Yes",'Regional Project List Sheet'!$A$38,"")))) -> FALSE | AJ65: FALSE | AK65: ='Regional Project List Sheet'!AK9 -> 0 | AM65: ='Regional Project List Sheet'!AL9 -> 0 | AO65: 0 | AZ65: 1 | BA65: =IF(AND(BB65="OK",BC65="OK",BD65="OK"),"OK","ERR!") -> OK | BB65: =IF(AND(Y65>0,SUM(BN65:BX65)<1),"ERR!",IF(AND(Z65>0,SUM(BY65:CI65)<1),"ERR!",IF(AND(AA65>0,SUM(CJ65:CT65)<1),"ERR",IF(AND(AB65>0,SUM(CU65:DE65)<1),"ERR",IF(AND(AC65>0,SUM(DF65:DP65)<1),"ERR",IF(AND(AD65>0,SUM(DQ65:EA65)<1),"ERR","OK")))))) -> OK | BC65: =IF(OR(SUM(BN65:BX65)<>1,SUM(BY65:CI65)<>1,SUM(CJ65:CT65)<>1,SUM(CU65:DE65)<>1,SUM(DF65:DP65)<>1,SUM(DQ65:EA65)<>1),"ERR!","OK") -> OK | BD65: =IF(AND(OR(BE65=BK65,BE65=0),OR(BF65=BK65,BF65=0),OR(BG65=BK65,BG65=0),OR(BH65=BK65,BH65=0),OR(BI65=BK65,BI65=0),OR(BJ65=BK65,BJ65=0)),"OK","ERR!") -> OK | BE65: =(BN65*POWER(10,0)+BO65*POWER(10,1)+BP65*POWER(10,2)+BQ65*POWER(10,3)+BR65*POWER(10,4)+BS65*POWER(10,5)+BT65*POWER(10,6)+BU65*POWER(10,7)+BV65*POWER(10,8)+BW65*POWER(10,9)+BX65*POWER(10,10)) -> 1000 | BF65: =(BY65*POWER(10,0)+BZ65*POWER(10,1)+CA65*POWER(10,2)+CB65*POWER(10,3)+CC65*POWER(10,4)+CD65*POWER(10,5)+CE65*POWER(10,6)+CF65*POWER(10,7)+CG65*POWER(10,8)+CH65*POWER(10,9)+CI65*POWER(10,10)) -> 1000 | BG65: =(CJ65*POWER(10,0)+CK65*POWER(10,1)+CL65*POWER(10,2)+CM65*POWER(10,3)+CN65*POWER(10,4)+CO65*POWER(10,5)+CP65*POWER(10,6)+CQ65*POWER(10,7)+CR65*POWER(10,8)+CS65*POWER(10,9)+CT65*POWER(10,10)) -> 1000 | BH65: =(CU65*POWER(10,0)+CV65*POWER(10,1)+CW65*POWER(10,2)+CX65*POWER(10,3)+CY65*POWER(10,4)+CZ65*POWER(10,5)+DA65*POWER(10,6)+DB65*POWER(10,7)+DC65*POWER(10,8)+DD65*POWER(10,9)+DE65*POWER(10,10)) -> 1000 | BI65: =(DF65*POWER(10,0)+DG65*POWER(10,1)+DH65*POWER(10,2)+DI65*POWER(10,3)+DJ65*POWER(10,4)+DK65*POWER(10,5)+DL65*POWER(10,6)+DM65*POWER(10,7)+DN65*POWER(10,8)+DO65*POWER(10,9)+DP65*POWER(10,10)) -> 1000 | BJ65: =(DQ65*POWER(10,0)+DR65*POWER(10,1)+DS65*POWER(10,2)+DT65*POWER(10,3)+DU65*POWER(10,4)+DV65*POWER(10,5)+DW65*POWER(10,6)+DX65*POWER(10,7)+DY65*POWER(10,8)+DZ65*POWER(10,9)+EA65*POWER(10,10)) -> 1000 | BK65: =MAX(BE65:BJ65) -> 1000 | BM65: 0 | BQ65: 1 | CB65: 1 | CM65: 1 | CX65: 1 | DI65: 1 | DT65: 1 | EC65: 0 | ED65: =($Y65*D$65)/1000 ->  | EG65: =($Z65*D$65)/1000 ->  | EJ65: =($AA65*D$65)/1000 ->  | EM65: =($AB65*D$65)/1000 ->  | EP65: =($AC65*D$65)/1000 ->  | ES65: =($AD65*D$65)/1000 ->  | EW65: 0 | EX65: =$AZ$65*$Y65 -> 0 | EY65: =($AZ$65*$BN65*D$65*$Y65)/1000 ->  | FB65: =($AZ$65*$BO65*D$65*$Y65)/1000 ->  | FE65: =($AZ$65*$BP65*D$65*$Y65)/1000 ->  | FH65: =($AZ$65*$BQ65*D$65*$Y65)/1000 ->  | FK65: =($AZ$65*$BR65*D$65*$Y65)/1000 ->  | FN65: =($AZ$65*$BS65*D$65*$Y65)/1000 ->  | FQ65: =($AZ$65*$BT65*D$65*$Y65)/1000 ->  | FT65: =($AZ$65*$BU65*D$65*$Y65)/1000 ->  | FW65: =($AZ$65*$BV65*D$65*$Y65)/1000 ->  | FZ65: =($AZ$65*$BW65*D$65*$Y65)/1000 ->  | GC65: =($AZ$65*$BX65*D$65*$Y65)/1000 ->  | GF65: 0 | GG65: =$AZ$65*$Z65 -> 0 | GH65: =($AZ$65*$BY65*D$65*$Z65)/1000 ->  | GK65: =($AZ$65*$BZ65*D$65*$Z65)/1000 ->  | GN65: =($AZ$65*$CA65*D$65*$Z65)/1000 ->  | GQ65: =($AZ$65*$CB65*D$65*$Z65)/1000 ->  | GT65: =($AZ$65*$CD65*D$65*$Z65)/1000 ->  | GW65: =($AZ$65*$CD65*D$65*$Z65)/1000 ->  | GZ65: =($AZ$65*$CE65*D$65*$Z65)/1000 ->  | HC65: =($AZ$65*$CF65*D$65*$Z65)/1000 ->  | HF65: =($AZ$65*$CG65*D$65*$Z65)/1000 ->  | HI65: =($AZ$65*$CH65*D$65*$Z65)/1000 ->  | HL65: =($AZ$65*$CI65*D$65*$Z65)/1000 ->  | HO65: 0 | HP65: =$AZ$65*$AA65 -> 0 | HQ65: =($AZ$65*$CJ65*D$65*$AA65)/1000 ->  | HT65: =($AZ$65*$CK65*D$65*$AA65)/1000 ->  | HW65: =($AZ$65*$CL65*D$65*$AA65)/1000 ->  | HZ65: =($AZ$65*$CM65*D$65*$AA65)/1000 ->  | IC65: =($AZ$65*$CN65*D$65*$AA65)/1000 ->  | IF65: =($AZ$65*$CO65*D$65*$AA65)/1000 ->  | II65: =($AZ$65*$CP65*D$65*$AA65)/1000 ->  | IL65: =($AZ$65*$CQ65*D$65*$AA65)/1000 ->  | IO65: =($AZ$65*$CR65*D$65*$AA65)/1000 ->  | IR65: =($AZ$65*$CS65*D$65*$AA65)/1000 ->  | IU65: =($AZ$65*$CT65*D$65*$AA65)/1000 ->  | IX65: 0 | IY65: =$AZ$65*$AB65 -> 0 | IZ65: =($AZ$65*$CU65*D$65*$AB65)/1000 ->  | JC65: =($AZ$65*$CV65*D$65*$AB65)/1000 ->  | JF65: =($AZ$65*$CW65*D$65*$AB65)/1000 ->  | JI65: =($AZ$65*$CX65*D$65*$AB65)/1000 ->  | JL65: =($AZ$65*$CY65*D$65*$AB65)/1000 ->  | JO65: =($AZ$65*$CZ65*D$65*$AB65)/1000 ->  | JR65: =($AZ$65*$DA65*D$65*$AB65)/1000 ->  | JU65: =($AZ$65*$DB65*D$65*$AB65)/1000 ->  | JX65: =($AZ$65*$DC65*D$65*$AB65)/1000 ->  | KA65: =($AZ$65*$DD65*D$65*$AB65)/1000 ->  | KD65: =($AZ$65*$DE65*D$65*$AB65)/1000 ->  | KG65: 0 | KH65: =$AZ$65*$AC65 -> 0 | KI65: =($AZ$65*$DF65*D$65*$AC65)/1000 ->  | KL65: =($AZ$65*$DG65*D$65*$AC65)/1000 ->  | KO65: =($AZ$65*$DH65*D$65*$AC65)/1000 ->  | KR65: =($AZ$65*$DI65*D$65*$AC65)/1000 ->  | KU65: =($AZ$65*$DJ65*D$65*$AC65)/1000 ->  | KX65: =($AZ$65*$DK65*D$65*$AC65)/1000 ->  | LA65: =($AZ$65*$DL65*D$65*$AC65)/1000 ->  | LD65: =($AZ$65*$DM65*D$65*$AC65)/1000 ->  | LG65: =($AZ$65*$DN65*D$65*$AC65)/1000 ->  | LJ65: =($AZ$65*$DO65*D$65*$AC65)/1000 ->  | LM65: =($AZ$65*$DP65*D$65*$AC65)/1000 ->  | LP65: 0 | LQ65: =$AZ$65*$AD65 -> 0 | LR65: =($AZ$65*$DQ65*D$65*$AD65)/1000 ->  | LU65: =($AZ$65*$DR65*D$65*$AD65)/1000 ->  | LX65: =($AZ$65*$DS65*D$65*$AD65)/1000 ->  | MA65: =($AZ$65*$DT65*D$65*$AD65)/1000 ->  | MD65: =($AZ$65*$DU65*D$65*$AD65)/1000 ->  | MG65: =($AZ$65*$DV65*D$65*$AD65)/1000 ->  | MJ65: =($AZ$65*$DW65*D$65*$AD65)/1000 ->  | MM65: =($AZ$65*$DX65*D$65*$AD65)/1000 ->  | MP65: =($AZ$65*$DY65*D$65*$AD65)/1000 ->  | MS65: =($AZ$65*$DZ65*D$65*$AD65)/1000 ->  | MV65: =($AZ$65*$EA65*D$65*$AD65)/1000 -> 
X66: 2 | AH66: N/A | AJ66: FALSE | AO66: 2 | BA66: =IF(AND(BB66="OK",BC66="OK",BD66="OK"),"OK","ERR!") -> OK | BB66: OK | BC66: =IF(OR(SUM(BN66:BX66)<>1,SUM(BY66:CI66)<>1,SUM(CJ66:CT66)<>1,SUM(CU66:DE66)<>1,SUM(DF66:DP66)<>1,SUM(DQ66:EA66)<>1),"ERR!","OK") -> OK | BD66: =IF(AND(OR(BE66=BK66,BE66=0),OR(BF66=BK66,BF66=0),OR(BG66=BK66,BG66=0),OR(BH66=BK66,BH66=0),OR(BI66=BK66,BI66=0),OR(BJ66=BK66,BJ66=0)),"OK","ERR!") -> OK | BE66: =(BN66*POWER(10,0)+BO66*POWER(10,1)+BP66*POWER(10,2)+BQ66*POWER(10,3)+BR66*POWER(10,4)+BS66*POWER(10,5)+BT66*POWER(10,6)+BU66*POWER(10,7)+BV66*POWER(10,8)+BW66*POWER(10,9)+BX66*POWER(10,10)) -> 1000 | BF66: =(BY66*POWER(10,0)+BZ66*POWER(10,1)+CA66*POWER(10,2)+CB66*POWER(10,3)+CC66*POWER(10,4)+CD66*POWER(10,5)+CE66*POWER(10,6)+CF66*POWER(10,7)+CG66*POWER(10,8)+CH66*POWER(10,9)+CI66*POWER(10,10)) -> 1000 | BG66: =(CJ66*POWER(10,0)+CK66*POWER(10,1)+CL66*POWER(10,2)+CM66*POWER(10,3)+CN66*POWER(10,4)+CO66*POWER(10,5)+CP66*POWER(10,6)+CQ66*POWER(10,7)+CR66*POWER(10,8)+CS66*POWER(10,9)+CT66*POWER(10,10)) -> 1000 | BH66: =(CU66*POWER(10,0)+CV66*POWER(10,1)+CW66*POWER(10,2)+CX66*POWER(10,3)+CY66*POWER(10,4)+CZ66*POWER(10,5)+DA66*POWER(10,6)+DB66*POWER(10,7)+DC66*POWER(10,8)+DD66*POWER(10,9)+DE66*POWER(10,10)) -> 1000 | BI66: =(DF66*POWER(10,0)+DG66*POWER(10,1)+DH66*POWER(10,2)+DI66*POWER(10,3)+DJ66*POWER(10,4)+DK66*POWER(10,5)+DL66*POWER(10,6)+DM66*POWER(10,7)+DN66*POWER(10,8)+DO66*POWER(10,9)+DP66*POWER(10,10)) -> 1000 | BJ66: =(DQ66*POWER(10,0)+DR66*POWER(10,1)+DS66*POWER(10,2)+DT66*POWER(10,3)+DU66*POWER(10,4)+DV66*POWER(10,5)+DW66*POWER(10,6)+DX66*POWER(10,7)+DY66*POWER(10,8)+DZ66*POWER(10,9)+EA66*POWER(10,10)) -> 1000 | BK66: =MAX(BE66:BJ66) -> 1000 | BM66: 2 | BQ66: 1 | CB66: 1 | CM66: 1 | CX66: 1 | DI66: 1 | DT66: 1 | EC66: 2 | EW66: 2 | EX66: 0 | GF66: 2 | GG66: 0 | HO66: 2 | HP66: 0 | IX66: 2 | IY66: 0 | KG66: 2 | KH66: 0 | LP66: 2 | LQ66: 0
X67: 3 | AH67: N/A | AJ67: FALSE | AO67: 3 | BA67: =IF(AND(BB67="OK",BC67="OK",BD67="OK"),"OK","ERR!") -> OK | BB67: OK | BC67: =IF(OR(SUM(BN67:BX67)<>1,SUM(BY67:CI67)<>1,SUM(CJ67:CT67)<>1,SUM(CU67:DE67)<>1,SUM(DF67:DP67)<>1,SUM(DQ67:EA67)<>1),"ERR!","OK") -> OK | BD67: =IF(AND(OR(BE67=BK67,BE67=0),OR(BF67=BK67,BF67=0),OR(BG67=BK67,BG67=0),OR(BH67=BK67,BH67=0),OR(BI67=BK67,BI67=0),OR(BJ67=BK67,BJ67=0)),"OK","ERR!") -> OK | BE67: 1000 | BF67: 1000 | BG67: 1000 | BH67: 1000 | BI67: 1000 | BJ67: 1000 | BK67: =MAX(BE67:BJ67) -> 1000 | BM67: 3 | BQ67: 1 | CB67: 1 | CM67: 1 | CX67: 1 | DI67: 1 | DT67: 1 | EC67: 3 | EW67: 3 | EX67: 0 | GF67: 3 | GG67: 0 | HO67: 3 | HP67: 0 | IX67: 3 | IY67: 0 | KG67: 3 | KH67: 0 | LP67: 3 | LQ67: 0
X68: 4 | AH68: N/A | AJ68: FALSE | AO68: 4 | BA68: =IF(AND(BB68="OK",BC68="OK",BD68="OK"),"OK","ERR!") -> OK | BB68: OK | BC68: OK | BD68: =IF(AND(OR(BE68=BK68,BE68=0),OR(BF68=BK68,BF68=0),OR(BG68=BK68,BG68=0),OR(BH68=BK68,BH68=0),OR(BI68=BK68,BI68=0),OR(BJ68=BK68,BJ68=0)),"OK","ERR!") -> OK | BE68: 1000 | BF68: 1000 | BG68: 1000 | BH68: 1000 | BI68: 1000 | BJ68: 1000 | BK68: 1000 | BM68: 4 | BQ68: 1 | CB68: 1 | CM68: 1 | CX68: 1 | DI68: 1 | DT68: 1 | EC68: 4 | EW68: 4 | EX68: 0 | GF68: 4 | GG68: 0 | HO68: 4 | HP68: 0 | IX68: 4 | IY68: 0 | KG68: 4 | KH68: 0 | LP68: 4 | LQ68: 0
X69: 7 | AH69: N/A | AJ69: FALSE | AO69: 7 | BA69: =IF(AND(BB69="OK",BC69="OK",BD69="OK"),"OK","ERR!") -> OK | BB69: OK | BC69: OK | BD69: OK | BE69: 1000 | BF69: 1000 | BG69: 1000 | BH69: 1000 | BI69: 1000 | BJ69: 1000 | BK69: 1000 | BM69: 7 | BQ69: 1 | CB69: 1 | CM69: 1 | CX69: 1 | DI69: 1 | DT69: 1 | EC69: 7 | EW69: 7 | EX69: 0 | GF69: 7 | GG69: 0 | HO69: 7 | HP69: 0 | IX69: 7 | IY69: 0 | KG69: 7 | KH69: 0 | LP69: 7 | LQ69: 0
X70: 8 | AH70: N/A | AJ70: FALSE | AO70: 8 | BA70: OK | BB70: OK | BC70: OK | BD70: OK | BE70: 1000 | BF70: 1000 | BG70: 1000 | BH70: 1000 | BI70: 1000 | BJ70: 1000 | BK70: 1000 | BM70: 8 | BQ70: 1 | CB70: 1 | CM70: 1 | CX70: 1 | DI70: 1 | DT70: 1 | EC70: 8 | EW70: 8 | EX70: 0 | GF70: 8 | GG70: 0 | HO70: 8 | HP70: 0 | IX70: 8 | IY70: 0 | KG70: 8 | KH70: 0 | LP70: 8 | LQ70: 0
X71: 9 | AH71: N/A | AJ71: FALSE | AO71: 9 | BA71: OK | BB71: OK | BC71: OK | BD71: OK | BE71: 1000 | BF71: 1000 | BG71: 1000 | BH71: =(CU71*POWER(10,0)+CV71*POWER(10,1)+CW71*POWER(10,2)+CX71*POWER(10,3)+CY71*POWER(10,4)+CZ71*POWER(10,5)+DA71*POWER(10,6)+DB71*POWER(10,7)+DC71*POWER(10,8)+DD71*POWER(10,9)+DE71*POWER(10,10)) -> 1000 | BI71: =(DF71*POWER(10,0)+DG71*POWER(10,1)+DH71*POWER(10,2)+DI71*POWER(10,3)+DJ71*POWER(10,4)+DK71*POWER(10,5)+DL71*POWER(10,6)+DM71*POWER(10,7)+DN71*POWER(10,8)+DO71*POWER(10,9)+DP71*POWER(10,10)) -> 1000 | BJ71: 1000 | BK71: 1000 | BM71: 9 | BQ71: 1 | CB71: 1 | CM71: 1 | CX71: 1 | DI71: 1 | DT71: 1 | EC71: 9 | EW71: 9 | EX71: 0 | GF71: 9 | GG71: 0 | HO71: 9 | HP71: 0 | IX71: 9 | IY71: 0 | KG71: 9 | KH71: 0 | LP71: 9 | LQ71: 0
X72: Total | Y72: =SUM(Y65:Y71) -> 0 | Z72: =SUM(Z65:Z71) -> 0 | AA72: 0 | AB72: 0 | AC72: 0 | AD72: 0 | AH72: N/A | AJ72: FALSE | AO72: Total | BM72: Total | EC72: Total | ED72: =SUM(ED65:ED71) ->  | EE72: =SUM(EE65:EE71) ->  | EF72: =SUM(EF65:EF71) ->  | EG72: =SUM(EG65:EG71) ->  | EH72: =SUM(EH65:EH71) ->  | EI72: =SUM(EI65:EI71) ->  | EW72: Total | EX72: =SUM(EX65:EX71) -> 0 | EY72: =SUM(EY65:EY71) ->  | EZ72: =SUM(EZ65:EZ71) ->  | FC72: =SUM(FC65:FC71) ->  | FD72: =SUM(FD65:FD71) ->  | FN72: =SUM(FN65:FN71) ->  | FO72: =SUM(FO65:FO71) ->  | FP72: =SUM(FP65:FP71) ->  | FQ72: =SUM(FQ65:FQ71) ->  | GC72: =SUM(GC65:GC71) ->  | GD72: =SUM(GD65:GD71) ->  | GF72: Total | GG72: =SUM(GG65:GG71) -> 0 | GH72: =SUM(GH65:GH71) ->  | GI72: =SUM(GI65:GI71) ->  | GL72: =SUM(GL65:GL71) ->  | GM72: =SUM(GM65:GM71) ->  | GN72: =SUM(GN65:GN71) ->  | GW72: =SUM(GW65:GW71) ->  | GX72: =SUM(GX65:GX71) ->  | GY72: =SUM(GY65:GY71) ->  | GZ72: =SUM(GZ65:GZ71) ->  | HL72: =SUM(HL65:HL71) ->  | HM72: =SUM(HM65:HM71) ->  | HO72: Total | HP72: =SUM(HP65:HP71) -> 0 | HQ72: =SUM(HQ65:HQ71) ->  | HR72: =SUM(HR65:HR71) ->  | HU72: =SUM(HU65:HU71) ->  | HV72: =SUM(HV65:HV71) ->  | IF72: =SUM(IF65:IF71) ->  | IG72: =SUM(IG65:IG71) ->  | IH72: =SUM(IH65:IH71) ->  | II72: =SUM(II65:II71) ->  | IU72: =SUM(IU65:IU71) ->  | IV72: =SUM(IV65:IV71) ->  | IX72: Total | IY72: =SUM(IY65:IY71) -> 0 | IZ72: =SUM(IZ65:IZ71) ->  | JA72: =SUM(JA65:JA71) ->  | JD72: =SUM(JD65:JD71) ->  | JE72: =SUM(JE65:JE71) ->  | JO72: =SUM(JO65:JO71) ->  | JP72: =SUM(JP65:JP71) ->  | JQ72: =SUM(JQ65:JQ71) ->  | JR72: =SUM(JR65:JR71) ->  | KD72: =SUM(KD65:KD71) ->  | KE72: =SUM(KE65:KE71) ->  | KG72: Total | KH72: =SUM(KH65:KH71) -> 0 | KI72: =SUM(KI65:KI71) ->  | KJ72: =SUM(KJ65:KJ71) ->  | KM72: =SUM(KM65:KM71) ->  | KN72: =SUM(KN65:KN71) ->  | KX72: =SUM(KX65:KX71) ->  | KY72: =SUM(KY65:KY71) ->  | KZ72: =SUM(KZ65:KZ71) ->  | LA72: =SUM(LA65:LA71) ->  | LM72: =SUM(LM65:LM71) ->  | LN72: =SUM(LN65:LN71) ->  | LP72: Total | LQ72: =SUM(LQ65:LQ71) -> 0 | LR72: =SUM(LR65:LR71) ->  | LS72: =SUM(LS65:LS71) ->  | LV72: =SUM(LV65:LV71) ->  | LW72: =SUM(LW65:LW71) ->  | MF72: =SUM(MF65:MF71) ->  | MG72: =SUM(MG65:MG71) ->  | MH72: =SUM(MH65:MH71) ->  | MI72: =SUM(MI65:MI71) ->  | MJ72: =SUM(MJ65:MJ71) ->  | MV72: =SUM(MV65:MV71) ->  | MW72: =SUM(MW65:MW71) -> 
B73: 6 | C73: ='Regional Project List Sheet'!F10 -> 0 | D73: =IF('Regional Project List Sheet'!$G10="New",1,"") ->  | E73: =IF('Regional Project List Sheet'!$G10="Funded Old",1,"") ->  | F73: =IF('Regional Project List Sheet'!$G10="Unfunded Old",1,"") ->  | G73: ='Regional Project List Sheet'!H10 -> 0 | H73: ='Regional Project List Sheet'!I10 -> 0 | I73: ='Regional Project List Sheet'!L10 -> 0 | J73: ='Regional Project List Sheet'!M10 -> 0 | K73: ='Regional Project List Sheet'!N10 -> 0 | L73: ='Regional Project List Sheet'!O10 -> 0 | M73: ='Regional Project List Sheet'!P10 -> 0 | N73: =IF('Regional Project List Sheet'!$Q10="N/A","N/A",IF($Y76<>0,5,IF($Z76<>0,4,IF($AA76<>0,3,IF($AB76<>0,2,1))))) -> 1 | O73: =VLOOKUP($C73,'[2]Ranking|Priority'!$B$5:$O$40,12,FALSE) ->  | P73: =VLOOKUP($C73,'[2]Ranking|Priority'!$B$5:$O$68,13,FALSE) ->  | Q73: =VLOOKUP($C73,'[2]Ranking|Priority'!$B$5:$O$68,14,FALSE) ->  | R73: ='Regional Project List Sheet'!T10 -> 0 | S73: ='Regional Project List Sheet'!U10 -> 0 | T73: ='Regional Project List Sheet'!V10 -> 0 | U73: ='Regional Project List Sheet'!W10 -> 0 | V73: ='Regional Project List Sheet'!X10 -> 0 | W73: ='Regional Project List Sheet'!Y10 -> Choose from Project List in cell I2 | X73: 0 | AF73: ='Regional Project List Sheet'!AJ10 -> 0 | AG73: =IF(OR('Regional Project List Sheet'!$AA10<>'Regional Project List Sheet'!$A$40,'Regional Project List Sheet'!$AD10<>'Regional Project List Sheet'!$A$40,'Regional Project List Sheet'!$AG10<>'Regional Project List Sheet'!$A$40),_xlfn.CONCAT(IF(ISNUMBER('Regional Project List Sheet'!$AA10),'Regional Project List Sheet'!$A$36,"")," ",IF(ISNUMBER('Regional Project List Sheet'!$AD10),'Regional Project List Sheet'!$A$37,"")," ",IF(ISNUMBER('Regional Project List Sheet'!$AG10),'Regional Project List Sheet'!$A$38,"")),"N/A") -> N/A | AH73: N/A | AI73: =IF(OR('Regional Project List Sheet'!AC10<>'Regional Project List Sheet'!$A$40,'Regional Project List Sheet'!AF10<>'Regional Project List Sheet'!$A$40,'Regional Project List Sheet'!AI10<>'Regional Project List Sheet'!$A$40), IF(LEN(_xlfn.CONCAT(IF('Regional Project List Sheet'!AC10="Yes",'Regional Project List Sheet'!$A$36,"")," ", IF('Regional Project List Sheet'!AF10="Yes",'Regional Project List Sheet'!$A$37,"")," ", IF('Regional Project List Sheet'!AI10="Yes",'Regional Project List Sheet'!$A$38,"")))<3,"No", _xlfn.CONCAT(IF('Regional Project List Sheet'!AC10="Yes",'Regional Project List Sheet'!$A$36,"")," ", IF('Regional Project List Sheet'!AF10="Yes",'Regional Project List Sheet'!$A$37,"")," ", IF('Regional Project List Sheet'!AI10="Yes",'Regional Project List Sheet'!$A$38,"")))) -> FALSE | AJ73: FALSE | AK73: ='Regional Project List Sheet'!AK10 -> 0 | AM73: ='Regional Project List Sheet'!AL10 -> 0 | AO73: 0 | AZ73: 1 | BA73: =IF(AND(BB73="OK",BC73="OK",BD73="OK"),"OK","ERR!") -> OK | BB73: =IF(AND(Y73>0,SUM(BN73:BX73)<1),"ERR!",IF(AND(Z73>0,SUM(BY73:CI73)<1),"ERR!",IF(AND(AA73>0,SUM(CJ73:CT73)<1),"ERR",IF(AND(AB73>0,SUM(CU73:DE73)<1),"ERR",IF(AND(AC73>0,SUM(DF73:DP73)<1),"ERR",IF(AND(AD73>0,SUM(DQ73:EA73)<1),"ERR","OK")))))) -> OK | BC73: =IF(OR(SUM(BN73:BX73)<>1,SUM(BY73:CI73)<>1,SUM(CJ73:CT73)<>1,SUM(CU73:DE73)<>1,SUM(DF73:DP73)<>1,SUM(DQ73:EA73)<>1),"ERR!","OK") -> OK | BD73: =IF(AND(OR(BE73=BK73,BE73=0),OR(BF73=BK73,BF73=0),OR(BG73=BK73,BG73=0),OR(BH73=BK73,BH73=0),OR(BI73=BK73,BI73=0),OR(BJ73=BK73,BJ73=0)),"OK","ERR!") -> OK | BE73: =(BN73*POWER(10,0)+BO73*POWER(10,1)+BP73*POWER(10,2)+BQ73*POWER(10,3)+BR73*POWER(10,4)+BS73*POWER(10,5)+BT73*POWER(10,6)+BU73*POWER(10,7)+BV73*POWER(10,8)+BW73*POWER(10,9)+BX73*POWER(10,10)) -> 100 | BF73: =(BY73*POWER(10,0)+BZ73*POWER(10,1)+CA73*POWER(10,2)+CB73*POWER(10,3)+CC73*POWER(10,4)+CD73*POWER(10,5)+CE73*POWER(10,6)+CF73*POWER(10,7)+CG73*POWER(10,8)+CH73*POWER(10,9)+CI73*POWER(10,10)) -> 100 | BG73: =(CJ73*POWER(10,0)+CK73*POWER(10,1)+CL73*POWER(10,2)+CM73*POWER(10,3)+CN73*POWER(10,4)+CO73*POWER(10,5)+CP73*POWER(10,6)+CQ73*POWER(10,7)+CR73*POWER(10,8)+CS73*POWER(10,9)+CT73*POWER(10,10)) -> 100 | BH73: =(CU73*POWER(10,0)+CV73*POWER(10,1)+CW73*POWER(10,2)+CX73*POWER(10,3)+CY73*POWER(10,4)+CZ73*POWER(10,5)+DA73*POWER(10,6)+DB73*POWER(10,7)+DC73*POWER(10,8)+DD73*POWER(10,9)+DE73*POWER(10,10)) -> 100 | BI73: =(DF73*POWER(10,0)+DG73*POWER(10,1)+DH73*POWER(10,2)+DI73*POWER(10,3)+DJ73*POWER(10,4)+DK73*POWER(10,5)+DL73*POWER(10,6)+DM73*POWER(10,7)+DN73*POWER(10,8)+DO73*POWER(10,9)+DP73*POWER(10,10)) -> 100 | BJ73: =(DQ73*POWER(10,0)+DR73*POWER(10,1)+DS73*POWER(10,2)+DT73*POWER(10,3)+DU73*POWER(10,4)+DV73*POWER(10,5)+DW73*POWER(10,6)+DX73*POWER(10,7)+DY73*POWER(10,8)+DZ73*POWER(10,9)+EA73*POWER(10,10)) -> 100 | BK73: =MAX(BE73:BJ73) -> 100 | BM73: 0 | BP73: 1 | CA73: 1 | CL73: 1 | CW73: 1 | DH73: 1 | DS73: 1 | EC73: 0 | ED73: =($Y73*D$73)/1000 ->  | EG73: =($Z73*D$73)/1000 ->  | EJ73: =($AA73*D$73)/1000 ->  | EM73: =($AB73*D$73)/1000 ->  | EP73: =($AC73*D$73)/1000 ->  | ES73: =($AD73*D$73)/1000 ->  | EW73: 0 | EX73: =$AZ$73*$Y73 -> 0 | EY73: =($AZ$73*$BN73*D$73*$Y73)/1000 ->  | FB73: =($AZ$73*$BO73*D$73*$Y73)/1000 ->  | FE73: =($AZ$73*$BP73*D$73*$Y73)/1000 ->  | FH73: =($AZ$73*$BQ73*D$73*$Y73)/1000 ->  | FK73: =($AZ$73*$BR73*D$73*$Y73)/1000 ->  | FN73: =($AZ$73*$BS73*D$73*$Y73)/1000 ->  | FQ73: =($AZ$73*$BT73*D$73*$Y73)/1000 ->  | FT73: =($AZ$73*$BU73*D$73*$Y73)/1000 ->  | FW73: =($AZ$73*$BV73*D$73*$Y73)/1000 ->  | FZ73: =($AZ$73*$BW73*D$73*$Y73)/1000 ->  | GC73: =($AZ$73*$BX73*D$73*$Y73)/1000 ->  | GF73: 0 | GG73: =$AZ$73*$Z73 -> 0 | GH73: =($AZ$73*$BY73*D$73*$Z73)/1000 ->  | GK73: =($AZ$73*$BZ73*D$73*$Z73)/1000 ->  | GN73: =($AZ$73*$CA73*D$73*$Z73)/1000 ->  | GQ73: =($AZ$73*$CB73*D$73*$Z73)/1000 ->  | GT73: =($AZ$73*$CD73*D$73*$Z73)/1000 ->  | GW73: =($AZ$73*$CD73*D$73*$Z73)/1000 ->  | GZ73: =($AZ$73*$CE73*D$73*$Z73)/1000 ->  | HC73: =($AZ$73*$CF73*D$73*$Z73)/1000 ->  | HF73: =($AZ$73*$CG73*D$73*$Z73)/1000 ->  | HI73: =($AZ$73*$CH73*D$73*$Z73)/1000 ->  | HL73: =($AZ$73*$CI73*D$73*$Z73)/1000 ->  | HO73: 0 | HP73: =$AZ$73*$AA73 -> 0 | HQ73: =($AZ$73*$CJ73*D$73*$AA73)/1000 ->  | HT73: =($AZ$73*$CK73*D$73*$AA73)/1000 ->  | HW73: =($AZ$73*$CL73*D$73*$AA73)/1000 ->  | HZ73: =($AZ$73*$CM73*D$73*$AA73)/1000 ->  | IC73: =($AZ$73*$CN73*D$73*$AA73)/1000 ->  | IF73: =($AZ$73*$CO73*D$73*$AA73)/1000 ->  | II73: =($AZ$73*$CP73*D$73*$AA73)/1000 ->  | IL73: =($AZ$73*$CQ73*D$73*$AA73)/1000 ->  | IO73: =($AZ$73*$CR73*D$73*$AA73)/1000 ->  | IR73: =($AZ$73*$CS73*D$73*$AA73)/1000 ->  | IU73: =($AZ$73*$CT73*D$73*$AA73)/1000 ->  | IX73: 0 | IY73: =$AZ$73*$AB73 -> 0 | IZ73: =($AZ$73*$CU73*D$73*$AB73)/1000 ->  | JC73: =($AZ$73*$CV73*D$73*$AB73)/1000 ->  | JF73: =($AZ$73*$CW73*D$73*$AB73)/1000 ->  | JI73: =($AZ$73*$CX73*D$73*$AB73)/1000 ->  | JL73: =($AZ$73*$CY73*D$73*$AB73)/1000 ->  | JO73: =($AZ$73*$CZ73*D$73*$AB73)/1000 ->  | JR73: =($AZ$73*$DA73*D$73*$AB73)/1000 ->  | JU73: =($AZ$73*$DB73*D$73*$AB73)/1000 ->  | JX73: =($AZ$73*$DC73*D$73*$AB73)/1000 ->  | KA73: =($AZ$73*$DD73*D$73*$AB73)/1000 ->  | KD73: =($AZ$73*$DE73*D$73*$AB73)/1000 ->  | KG73: 0 | KH73: =$AZ$73*$AC73 -> 0 | KI73: =($AZ$73*$DF73*D$73*$AC73)/1000 ->  | KL73: =($AZ$73*$DG73*D$73*$AC73)/1000 ->  | KO73: =($AZ$73*$DH73*D$73*$AC73)/1000 ->  | KR73: =($AZ$73*$DI73*D$73*$AC73)/1000 ->  | KU73: =($AZ$73*$DJ73*D$73*$AC73)/1000 ->  | KX73: =($AZ$73*$DK73*D$73*$AC73)/1000 ->  | LA73: =($AZ$73*$DL73*D$73*$AC73)/1000 ->  | LD73: =($AZ$73*$DM73*D$73*$AC73)/1000 ->  | LG73: =($AZ$73*$DN73*D$73*$AC73)/1000 ->  | LJ73: =($AZ$73*$DO73*D$73*$AC73)/1000 ->  | LM73: =($AZ$73*$DP73*D$73*$AC73)/1000 ->  | LP73: 0 | LQ73: =$AZ$73*$AD73 -> 0 | LR73: =($AZ$73*$DQ73*D$73*$AD73)/1000 ->  | LU73: =($AZ$73*$DR73*D$73*$AD73)/1000 ->  | LX73: =($AZ$73*$DS73*D$73*$AD73)/1000 ->  | MA73: =($AZ$73*$DT73*D$73*$AD73)/1000 ->  | MD73: =($AZ$73*$DU73*D$73*$AD73)/1000 ->  | MG73: =($AZ$73*$DV73*D$73*$AD73)/1000 ->  | MJ73: =($AZ$73*$DW73*D$73*$AD73)/1000 ->  | MM73: =($AZ$73*$DX73*D$73*$AD73)/1000 ->  | MP73: =($AZ$73*$DY73*D$73*$AD73)/1000 ->  | MS73: =($AZ$73*$DZ73*D$73*$AD73)/1000 ->  | MV73: =($AZ$73*$EA73*D$73*$AD73)/1000 -> 
X74: 2 | AH74: N/A | AJ74: FALSE | AO74: 2 | BA74: =IF(AND(BB74="OK",BC74="OK",BD74="OK"),"OK","ERR!") -> OK | BB74: OK | BC74: =IF(OR(SUM(BN74:BX74)<>1,SUM(BY74:CI74)<>1,SUM(CJ74:CT74)<>1,SUM(CU74:DE74)<>1,SUM(DF74:DP74)<>1,SUM(DQ74:EA74)<>1),"ERR!","OK") -> OK | BD74: =IF(AND(OR(BE74=BK74,BE74=0),OR(BF74=BK74,BF74=0),OR(BG74=BK74,BG74=0),OR(BH74=BK74,BH74=0),OR(BI74=BK74,BI74=0),OR(BJ74=BK74,BJ74=0)),"OK","ERR!") -> OK | BE74: =(BN74*POWER(10,0)+BO74*POWER(10,1)+BP74*POWER(10,2)+BQ74*POWER(10,3)+BR74*POWER(10,4)+BS74*POWER(10,5)+BT74*POWER(10,6)+BU74*POWER(10,7)+BV74*POWER(10,8)+BW74*POWER(10,9)+BX74*POWER(10,10)) -> 100 | BF74: =(BY74*POWER(10,0)+BZ74*POWER(10,1)+CA74*POWER(10,2)+CB74*POWER(10,3)+CC74*POWER(10,4)+CD74*POWER(10,5)+CE74*POWER(10,6)+CF74*POWER(10,7)+CG74*POWER(10,8)+CH74*POWER(10,9)+CI74*POWER(10,10)) -> 100 | BG74: =(CJ74*POWER(10,0)+CK74*POWER(10,1)+CL74*POWER(10,2)+CM74*POWER(10,3)+CN74*POWER(10,4)+CO74*POWER(10,5)+CP74*POWER(10,6)+CQ74*POWER(10,7)+CR74*POWER(10,8)+CS74*POWER(10,9)+CT74*POWER(10,10)) -> 100 | BH74: =(CU74*POWER(10,0)+CV74*POWER(10,1)+CW74*POWER(10,2)+CX74*POWER(10,3)+CY74*POWER(10,4)+CZ74*POWER(10,5)+DA74*POWER(10,6)+DB74*POWER(10,7)+DC74*POWER(10,8)+DD74*POWER(10,9)+DE74*POWER(10,10)) -> 100 | BI74: =(DF74*POWER(10,0)+DG74*POWER(10,1)+DH74*POWER(10,2)+DI74*POWER(10,3)+DJ74*POWER(10,4)+DK74*POWER(10,5)+DL74*POWER(10,6)+DM74*POWER(10,7)+DN74*POWER(10,8)+DO74*POWER(10,9)+DP74*POWER(10,10)) -> 100 | BJ74: =(DQ74*POWER(10,0)+DR74*POWER(10,1)+DS74*POWER(10,2)+DT74*POWER(10,3)+DU74*POWER(10,4)+DV74*POWER(10,5)+DW74*POWER(10,6)+DX74*POWER(10,7)+DY74*POWER(10,8)+DZ74*POWER(10,9)+EA74*POWER(10,10)) -> 100 | BK74: =MAX(BE74:BJ74) -> 100 | BM74: 2 | BP74: 1 | CA74: 1 | CL74: 1 | CW74: 1 | DH74: 1 | DS74: 1 | EC74: 2 | EW74: 2 | EX74: 0 | GF74: 2 | GG74: 0 | HO74: 2 | HP74: 0 | IX74: 2 | IY74: 0 | KG74: 2 | KH74: 0 | LP74: 2 | LQ74: 0
X75: 3 | AH75: N/A | AJ75: FALSE | AO75: 3 | BA75: =IF(AND(BB75="OK",BC75="OK",BD75="OK"),"OK","ERR!") -> OK | BB75: OK | BC75: =IF(OR(SUM(BN75:BX75)<>1,SUM(BY75:CI75)<>1,SUM(CJ75:CT75)<>1,SUM(CU75:DE75)<>1,SUM(DF75:DP75)<>1,SUM(DQ75:EA75)<>1),"ERR!","OK") -> OK | BD75: =IF(AND(OR(BE75=BK75,BE75=0),OR(BF75=BK75,BF75=0),OR(BG75=BK75,BG75=0),OR(BH75=BK75,BH75=0),OR(BI75=BK75,BI75=0),OR(BJ75=BK75,BJ75=0)),"OK","ERR!") -> OK | BE75: 100 | BF75: 100 | BG75: 100 | BH75: 100 | BI75: 100 | BJ75: 100 | BK75: =MAX(BE75:BJ75) -> 100 | BM75: 3 | BP75: 1 | CA75: 1 | CL75: 1 | CW75: 1 | DH75: 1 | DS75: 1 | EC75: 3 | EW75: 3 | EX75: 0 | GF75: 3 | GG75: 0 | HO75: 3 | HP75: 0 | IX75: 3 | IY75: 0 | KG75: 3 | KH75: 0 | LP75: 3 | LQ75: 0
X76: 4 | AH76: N/A | AJ76: FALSE | AO76: 4 | BA76: =IF(AND(BB76="OK",BC76="OK",BD76="OK"),"OK","ERR!") -> OK | BB76: OK | BC76: OK | BD76: =IF(AND(OR(BE76=BK76,BE76=0),OR(BF76=BK76,BF76=0),OR(BG76=BK76,BG76=0),OR(BH76=BK76,BH76=0),OR(BI76=BK76,BI76=0),OR(BJ76=BK76,BJ76=0)),"OK","ERR!") -> OK | BE76: 100 | BF76: 100 | BG76: 100 | BH76: 100 | BI76: 100 | BJ76: 100 | BK76: 100 | BM76: 4 | BP76: 1 | CA76: 1 | CL76: 1 | CW76: 1 | DH76: 1 | DS76: 1 | EC76: 4 | EW76: 4 | EX76: 0 | GF76: 4 | GG76: 0 | HO76: 4 | HP76: 0 | IX76: 4 | IY76: 0 | KG76: 4 | KH76: 0 | LP76: 4 | LQ76: 0
X77: 7 | AH77: N/A | AJ77: FALSE | AO77: 7 | BA77: =IF(AND(BB77="OK",BC77="OK",BD77="OK"),"OK","ERR!") -> OK | BB77: OK | BC77: OK | BD77: OK | BE77: 100 | BF77: 100 | BG77: 100 | BH77: 100 | BI77: 100 | BJ77: 100 | BK77: 100 | BM77: 7 | BP77: 1 | CA77: 1 | CL77: 1 | CW77: 1 | DH77: 1 | DS77: 1 | EC77: 7 | EW77: 7 | EX77: 0 | GF77: 7 | GG77: 0 | HO77: 7 | HP77: 0 | IX77: 7 | IY77: 0 | KG77: 7 | KH77: 0 | LP77: 7 | LQ77: 0
X78: 8 | AH78: N/A | AJ78: FALSE | AO78: 8 | BA78: OK | BB78: OK | BC78: OK | BD78: OK | BE78: 100 | BF78: 100 | BG78: 100 | BH78: 100 | BI78: 100 | BJ78: 100 | BK78: 100 | BM78: 8 | BP78: 1 | CA78: 1 | CL78: 1 | CW78: 1 | DH78: 1 | DS78: 1 | EC78: 8 | EW78: 8 | EX78: 0 | GF78: 8 | GG78: 0 | HO78: 8 | HP78: 0 | IX78: 8 | IY78: 0 | KG78: 8 | KH78: 0 | LP78: 8 | LQ78: 0
X79: 9 | AH79: N/A | AJ79: FALSE | AO79: 9 | BA79: OK | BB79: OK | BC79: OK | BD79: OK | BE79: 100 | BF79: 100 | BG79: 100 | BH79: =(CU79*POWER(10,0)+CV79*POWER(10,1)+CW79*POWER(10,2)+CX79*POWER(10,3)+CY79*POWER(10,4)+CZ79*POWER(10,5)+DA79*POWER(10,6)+DB79*POWER(10,7)+DC79*POWER(10,8)+DD79*POWER(10,9)+DE79*POWER(10,10)) -> 100 | BI79: =(DF79*POWER(10,0)+DG79*POWER(10,1)+DH79*POWER(10,2)+DI79*POWER(10,3)+DJ79*POWER(10,4)+DK79*POWER(10,5)+DL79*POWER(10,6)+DM79*POWER(10,7)+DN79*POWER(10,8)+DO79*POWER(10,9)+DP79*POWER(10,10)) -> 100 | BJ79: 100 | BK79: 100 | BM79: 9 | BP79: 1 | CA79: 1 | CL79: 1 | CW79: 1 | DH79: 1 | DS79: 1 | EC79: 9 | EW79: 9 | EX79: 0 | GF79: 9 | GG79: 0 | HO79: 9 | HP79: 0 | IX79: 9 | IY79: 0 | KG79: 9 | KH79: 0 | LP79: 9 | LQ79: 0
X80: Total | Y80: =SUM(Y73:Y79) -> 0 | Z80: =SUM(Z73:Z79) -> 0 | AA80: 0 | AB80: 0 | AC80: 0 | AD80: 0 | AH80: N/A | AJ80: FALSE | AO80: Total | BM80: Total | EC80: Total | ED80: =SUM(ED73:ED79) ->  | EE80: =SUM(EE73:EE79) ->  | EF80: =SUM(EF73:EF79) ->  | EG80: =SUM(EG73:EG79) ->  | EH80: =SUM(EH73:EH79) ->  | EI80: =SUM(EI73:EI79) ->  | EW80: Total | EX80: =SUM(EX73:EX79) -> 0 | EY80: =SUM(EY73:EY79) ->  | EZ80: =SUM(EZ73:EZ79) ->  | FC80: =SUM(FC73:FC79) ->  | FD80: =SUM(FD73:FD79) ->  | FN80: =SUM(FN73:FN79) ->  | FO80: =SUM(FO73:FO79) ->  | FP80: =SUM(FP73:FP79) ->  | FQ80: =SUM(FQ73:FQ79) ->  | GC80: =SUM(GC73:GC79) ->  | GD80: =SUM(GD73:GD79) ->  | GF80: Total | GG80: =SUM(GG73:GG79) -> 0 | GH80: =SUM(GH73:GH79) ->  | GI80: =SUM(GI73:GI79) ->  | GL80: =SUM(GL73:GL79) ->  | GM80: =SUM(GM73:GM79) ->  | GN80: =SUM(GN73:GN79) ->  | GW80: =SUM(GW73:GW79) ->  | GX80: =SUM(GX73:GX79) ->  | GY80: =SUM(GY73:GY79) ->  | GZ80: =SUM(GZ73:GZ79) ->  | HL80: =SUM(HL73:HL79) ->  | HM80: =SUM(HM73:HM79) ->  | HO80: Total | HP80: =SUM(HP73:HP79) -> 0 | HQ80: =SUM(HQ73:HQ79) ->  | HR80: =SUM(HR73:HR79) ->  | HU80: =SUM(HU73:HU79) ->  | HV80: =SUM(HV73:HV79) ->  | IF80: =SUM(IF73:IF79) ->  | IG80: =SUM(IG73:IG79) ->  | IH80: =SUM(IH73:IH79) ->  | II80: =SUM(II73:II79) ->  | IU80: =SUM(IU73:IU79) ->  | IV80: =SUM(IV73:IV79) ->  | IX80: Total | IY80: =SUM(IY73:IY79) -> 0 | IZ80: =SUM(IZ73:IZ79) ->  | JA80: =SUM(JA73:JA79) ->  | JD80: =SUM(JD73:JD79) ->  | JE80: =SUM(JE73:JE79) ->  | JO80: =SUM(JO73:JO79) ->  | JP80: =SUM(JP73:JP79) ->  | JQ80: =SUM(JQ73:JQ79) ->  | JR80: =SUM(JR73:JR79) ->  | KD80: =SUM(KD73:KD79) ->  | KE80: =SUM(KE73:KE79) ->  | KG80: Total | KH80: =SUM(KH73:KH79) -> 0 | KI80: =SUM(KI73:KI79) ->  | KJ80: =SUM(KJ73:KJ79) ->  | KM80: =SUM(KM73:KM79) ->  | KN80: =SUM(KN73:KN79) ->  | KX80: =SUM(KX73:KX79) ->  | KY80: =SUM(KY73:KY79) ->  | KZ80: =SUM(KZ73:KZ79) ->  | LA80: =SUM(LA73:LA79) ->  | LM80: =SUM(LM73:LM79) ->  | LN80: =SUM(LN73:LN79) ->  | LP80: Total | LQ80: =SUM(LQ73:LQ79) -> 0 | LR80: =SUM(LR73:LR79) ->  | LS80: =SUM(LS73:LS79) ->  | LV80: =SUM(LV73:LV79) ->  | LW80: =SUM(LW73:LW79) ->  | MF80: =SUM(MF73:MF79) ->  | MG80: =SUM(MG73:MG79) ->  | MH80: =SUM(MH73:MH79) ->  | MI80: =SUM(MI73:MI79) ->  | MJ80: =SUM(MJ73:MJ79) ->  | MV80: =SUM(MV73:MV79) ->  | MW80: =SUM(MW73:MW79) -> 
B81: 7 | C81: ='Regional Project List Sheet'!F11 -> 0 | D81: =IF('Regional Project List Sheet'!$G11="New",1,"") ->  | E81: =IF('Regional Project List Sheet'!$G11="Funded Old",1,"") ->  | F81: =IF('Regional Project List Sheet'!$G11="Unfunded Old",1,"") ->  | G81: ='Regional Project List Sheet'!H11 -> 0 | H81: ='Regional Project List Sheet'!I11 -> 0 | I81: ='Regional Project List Sheet'!L11 -> 0 | J81: ='Regional Project List Sheet'!M11 -> 0 | K81: ='Regional Project List Sheet'!N11 -> 0 | L81: ='Regional Project List Sheet'!O11 -> 0 | M81: ='Regional Project List Sheet'!P11 -> 0 | N81: =IF('Regional Project List Sheet'!$Q11="N/A","N/A",IF($Y84<>0,5,IF($Z84<>0,4,IF($AA84<>0,3,IF($AB84<>0,2,1))))) -> 1 | O81: =VLOOKUP($C81,'[2]Ranking|Priority'!$B$5:$O$40,12,FALSE) ->  | P81: =VLOOKUP($C81,'[2]Ranking|Priority'!$B$5:$O$68,13,FALSE) ->  | Q81: =VLOOKUP($C81,'[2]Ranking|Priority'!$B$5:$O$68,14,FALSE) ->  | R81: ='Regional Project List Sheet'!T11 -> 0 | S81: ='Regional Project List Sheet'!U11 -> 0 | T81: ='Regional Project List Sheet'!V11 -> 0 | U81: ='Regional Project List Sheet'!W11 -> 0 | V81: ='Regional Project List Sheet'!X11 -> 0 | W81: ='Regional Project List Sheet'!Y11 -> Choose from Project List in cell I2 | X81: 0 | AF81: ='Regional Project List Sheet'!AJ11 -> 0 | AG81: =IF(OR('Regional Project List Sheet'!$AA11<>'Regional Project List Sheet'!$A$40,'Regional Project List Sheet'!$AD11<>'Regional Project List Sheet'!$A$40,'Regional Project List Sheet'!$AG11<>'Regional Project List Sheet'!$A$40),_xlfn.CONCAT(IF(ISNUMBER('Regional Project List Sheet'!$AA11),'Regional Project List Sheet'!$A$36,"")," ",IF(ISNUMBER('Regional Project List Sheet'!$AD11),'Regional Project List Sheet'!$A$37,"")," ",IF(ISNUMBER('Regional Project List Sheet'!$AG11),'Regional Project List Sheet'!$A$38,"")),"N/A") -> N/A | AH81: N/A | AI81: =IF(OR('Regional Project List Sheet'!AC11<>'Regional Project List Sheet'!$A$40,'Regional Project List Sheet'!AF11<>'Regional Project List Sheet'!$A$40,'Regional Project List Sheet'!AI11<>'Regional Project List Sheet'!$A$40), IF(LEN(_xlfn.CONCAT(IF('Regional Project List Sheet'!AC11="Yes",'Regional Project List Sheet'!$A$36,"")," ", IF('Regional Project List Sheet'!AF11="Yes",'Regional Project List Sheet'!$A$37,"")," ", IF('Regional Project List Sheet'!AI11="Yes",'Regional Project List Sheet'!$A$38,"")))<3,"No", _xlfn.CONCAT(IF('Regional Project List Sheet'!AC11="Yes",'Regional Project List Sheet'!$A$36,"")," ", IF('Regional Project List Sheet'!AF11="Yes",'Regional Project List Sheet'!$A$37,"")," ", IF('Regional Project List Sheet'!AI11="Yes",'Regional Project List Sheet'!$A$38,"")))) -> FALSE | AJ81: FALSE | AK81: ='Regional Project List Sheet'!AK11 -> 0 | AM81: ='Regional Project List Sheet'!AL11 -> 0 | AO81: 0 | AZ81: 1 | BA81: =IF(AND(BB81="OK",BC81="OK",BD81="OK"),"OK","ERR!") -> OK | BB81: =IF(AND(Y81>0,SUM(BN81:BX81)<1),"ERR!",IF(AND(Z81>0,SUM(BY81:CI81)<1),"ERR!",IF(AND(AA81>0,SUM(CJ81:CT81)<1),"ERR",IF(AND(AB81>0,SUM(CU81:DE81)<1),"ERR",IF(AND(AC81>0,SUM(DF81:DP81)<1),"ERR",IF(AND(AD81>0,SUM(DQ81:EA81)<1),"ERR","OK")))))) -> OK | BC81: =IF(OR(SUM(BN81:BX81)<>1,SUM(BY81:CI81)<>1,SUM(CJ81:CT81)<>1,SUM(CU81:DE81)<>1,SUM(DF81:DP81)<>1,SUM(DQ81:EA81)<>1),"ERR!","OK") -> OK | BD81: =IF(AND(OR(BE81=BK81,BE81=0),OR(BF81=BK81,BF81=0),OR(BG81=BK81,BG81=0),OR(BH81=BK81,BH81=0),OR(BI81=BK81,BI81=0),OR(BJ81=BK81,BJ81=0)),"OK","ERR!") -> OK | BE81: =(BN81*POWER(10,0)+BO81*POWER(10,1)+BP81*POWER(10,2)+BQ81*POWER(10,3)+BR81*POWER(10,4)+BS81*POWER(10,5)+BT81*POWER(10,6)+BU81*POWER(10,7)+BV81*POWER(10,8)+BW81*POWER(10,9)+BX81*POWER(10,10)) -> 100 | BF81: =(BY81*POWER(10,0)+BZ81*POWER(10,1)+CA81*POWER(10,2)+CB81*POWER(10,3)+CC81*POWER(10,4)+CD81*POWER(10,5)+CE81*POWER(10,6)+CF81*POWER(10,7)+CG81*POWER(10,8)+CH81*POWER(10,9)+CI81*POWER(10,10)) -> 100 | BG81: =(CJ81*POWER(10,0)+CK81*POWER(10,1)+CL81*POWER(10,2)+CM81*POWER(10,3)+CN81*POWER(10,4)+CO81*POWER(10,5)+CP81*POWER(10,6)+CQ81*POWER(10,7)+CR81*POWER(10,8)+CS81*POWER(10,9)+CT81*POWER(10,10)) -> 100 | BH81: =(CU81*POWER(10,0)+CV81*POWER(10,1)+CW81*POWER(10,2)+CX81*POWER(10,3)+CY81*POWER(10,4)+CZ81*POWER(10,5)+DA81*POWER(10,6)+DB81*POWER(10,7)+DC81*POWER(10,8)+DD81*POWER(10,9)+DE81*POWER(10,10)) -> 100 | BI81: =(DF81*POWER(10,0)+DG81*POWER(10,1)+DH81*POWER(10,2)+DI81*POWER(10,3)+DJ81*POWER(10,4)+DK81*POWER(10,5)+DL81*POWER(10,6)+DM81*POWER(10,7)+DN81*POWER(10,8)+DO81*POWER(10,9)+DP81*POWER(10,10)) -> 100 | BJ81: =(DQ81*POWER(10,0)+DR81*POWER(10,1)+DS81*POWER(10,2)+DT81*POWER(10,3)+DU81*POWER(10,4)+DV81*POWER(10,5)+DW81*POWER(10,6)+DX81*POWER(10,7)+DY81*POWER(10,8)+DZ81*POWER(10,9)+EA81*POWER(10,10)) -> 100 | BK81: =MAX(BE81:BJ81) -> 100 | BM81: 0 | BP81: 1 | CA81: 1 | CL81: 1 | CW81: 1 | DH81: 1 | DS81: 1 | EC81: 0 | ED81: =($Y81*D$81)/1000 ->  | EG81: =($Z81*D$81)/1000 ->  | EJ81: =($AA81*D$81)/1000 ->  | EM81: =($AB81*D$81)/1000 ->  | EP81: =($AC81*D$81)/1000 ->  | ES81: =($AD81*D$81)/1000 ->  | EW81: 0 | EX81: =$AZ$81*$Y81 -> 0 | EY81: =($AZ$81*$BN81*D$81*$Y81)/1000 ->  | FB81: =($AZ$81*$BO81*D$81*$Y81)/1000 ->  | FE81: =($AZ$81*$BP81*D$81*$Y81)/1000 ->  | FH81: =($AZ$81*$BQ81*D$81*$Y81)/1000 ->  | FK81: =($AZ$81*$BR81*D$81*$Y81)/1000 ->  | FN81: =($AZ$81*$BS81*D$81*$Y81)/1000 ->  | FQ81: =($AZ$81*$BT81*D$81*$Y81)/1000 ->  | FT81: =($AZ$81*$BU81*D$81*$Y81)/1000 ->  | FW81: =($AZ$81*$BV81*D$81*$Y81)/1000 ->  | FZ81: =($AZ$81*$BW81*D$81*$Y81)/1000 ->  | GC81: =($AZ$81*$BX81*D$81*$Y81)/1000 ->  | GF81: 0 | GG81: =$AZ$81*$Z81 -> 0 | GH81: =($AZ$81*$BY81*D$81*$Z81)/1000 ->  | GK81: =($AZ$81*$BZ81*D$81*$Z81)/1000 ->  | GN81: =($AZ$81*$CA81*D$81*$Z81)/1000 ->  | GQ81: =($AZ$81*$CB81*D$81*$Z81)/1000 ->  | GT81: =($AZ$81*$CD81*D$81*$Z81)/1000 ->  | GW81: =($AZ$81*$CD81*D$81*$Z81)/1000 ->  | GZ81: =($AZ$81*$CE81*D$81*$Z81)/1000 ->  | HC81: =($AZ$81*$CF81*D$81*$Z81)/1000 ->  | HF81: =($AZ$81*$CG81*D$81*$Z81)/1000 ->  | HI81: =($AZ$81*$CH81*D$81*$Z81)/1000 ->  | HL81: =($AZ$81*$CI81*D$81*$Z81)/1000 ->  | HO81: 0 | HP81: =$AZ$81*$AA81 -> 0 | HQ81: =($AZ$81*$CJ81*D$81*$AA81)/1000 ->  | HT81: =($AZ$81*$CK81*D$81*$AA81)/1000 ->  | HW81: =($AZ$81*$CL81*D$81*$AA81)/1000 ->  | HZ81: =($AZ$81*$CM81*D$81*$AA81)/1000 ->  | IC81: =($AZ$81*$CN81*D$81*$AA81)/1000 ->  | IF81: =($AZ$81*$CO81*D$81*$AA81)/1000 ->  | II81: =($AZ$81*$CP81*D$81*$AA81)/1000 ->  | IL81: =($AZ$81*$CQ81*D$81*$AA81)/1000 ->  | IO81: =($AZ$81*$CR81*D$81*$AA81)/1000 ->  | IR81: =($AZ$81*$CS81*D$81*$AA81)/1000 ->  | IU81: =($AZ$81*$CT81*D$81*$AA81)/1000 ->  | IX81: 0 | IY81: =$AZ$81*$AB81 -> 0 | IZ81: =($AZ$81*$CU81*D$81*$AB81)/1000 ->  | JC81: =($AZ$81*$CV81*D$81*$AB81)/1000 ->  | JF81: =($AZ$81*$CW81*D$81*$AB81)/1000 ->  | JI81: =($AZ$81*$CX81*D$81*$AB81)/1000 ->  | JL81: =($AZ$81*$CY81*D$81*$AB81)/1000 ->  | JO81: =($AZ$81*$CZ81*D$81*$AB81)/1000 ->  | JR81: =($AZ$81*$DA81*D$81*$AB81)/1000 ->  | JU81: =($AZ$81*$DB81*D$81*$AB81)/1000 ->  | JX81: =($AZ$81*$DC81*D$81*$AB81)/1000 ->  | KA81: =($AZ$81*$DD81*D$81*$AB81)/1000 ->  | KD81: =($AZ$81*$DE81*D$81*$AB81)/1000 ->  | KG81: 0 | KH81: =$AZ$81*$AC81 -> 0 | KI81: =($AZ$81*$DF81*D$81*$AC81)/1000 ->  | KL81: =($AZ$81*$DG81*D$81*$AC81)/1000 ->  | KO81: =($AZ$81*$DH81*D$81*$AC81)/1000 ->  | KR81: =($AZ$81*$DI81*D$81*$AC81)/1000 ->  | KU81: =($AZ$81*$DJ81*D$81*$AC81)/1000 ->  | KX81: =($AZ$81*$DK81*D$81*$AC81)/1000 ->  | LA81: =($AZ$81*$DL81*D$81*$AC81)/1000 ->  | LD81: =($AZ$81*$DM81*D$81*$AC81)/1000 ->  | LG81: =($AZ$81*$DN81*D$81*$AC81)/1000 ->  | LJ81: =($AZ$81*$DO81*D$81*$AC81)/1000 ->  | LM81: =($AZ$81*$DP81*D$81*$AC81)/1000 ->  | LP81: 0 | LQ81: =$AZ$81*$AD81 -> 0 | LR81: =($AZ$81*$DQ81*D$81*$AD81)/1000 ->  | LU81: =($AZ$81*$DR81*D$81*$AD81)/1000 ->  | LX81: =($AZ$81*$DS81*D$81*$AD81)/1000 ->  | MA81: =($AZ$81*$DT81*D$81*$AD81)/1000 ->  | MD81: =($AZ$81*$DU81*D$81*$AD81)/1000 ->  | MG81: =($AZ$81*$DV81*D$81*$AD81)/1000 ->  | MJ81: =($AZ$81*$DW81*D$81*$AD81)/1000 ->  | MM81: =($AZ$81*$DX81*D$81*$AD81)/1000 ->  | MP81: =($AZ$81*$DY81*D$81*$AD81)/1000 ->  | MS81: =($AZ$81*$DZ81*D$81*$AD81)/1000 ->  | MV81: =($AZ$81*$EA81*D$81*$AD81)/1000 -> 
X82: 2 | AH82: N/A | AJ82: FALSE | AO82: 2 | BA82: =IF(AND(BB82="OK",BC82="OK",BD82="OK"),"OK","ERR!") -> OK | BB82: OK | BC82: =IF(OR(SUM(BN82:BX82)<>1,SUM(BY82:CI82)<>1,SUM(CJ82:CT82)<>1,SUM(CU82:DE82)<>1,SUM(DF82:DP82)<>1,SUM(DQ82:EA82)<>1),"ERR!","OK") -> OK | BD82: =IF(AND(OR(BE82=BK82,BE82=0),OR(BF82=BK82,BF82=0),OR(BG82=BK82,BG82=0),OR(BH82=BK82,BH82=0),OR(BI82=BK82,BI82=0),OR(BJ82=BK82,BJ82=0)),"OK","ERR!") -> OK | BE82: =(BN82*POWER(10,0)+BO82*POWER(10,1)+BP82*POWER(10,2)+BQ82*POWER(10,3)+BR82*POWER(10,4)+BS82*POWER(10,5)+BT82*POWER(10,6)+BU82*POWER(10,7)+BV82*POWER(10,8)+BW82*POWER(10,9)+BX82*POWER(10,10)) -> 100 | BF82: =(BY82*POWER(10,0)+BZ82*POWER(10,1)+CA82*POWER(10,2)+CB82*POWER(10,3)+CC82*POWER(10,4)+CD82*POWER(10,5)+CE82*POWER(10,6)+CF82*POWER(10,7)+CG82*POWER(10,8)+CH82*POWER(10,9)+CI82*POWER(10,10)) -> 100 | BG82: =(CJ82*POWER(10,0)+CK82*POWER(10,1)+CL82*POWER(10,2)+CM82*POWER(10,3)+CN82*POWER(10,4)+CO82*POWER(10,5)+CP82*POWER(10,6)+CQ82*POWER(10,7)+CR82*POWER(10,8)+CS82*POWER(10,9)+CT82*POWER(10,10)) -> 100 | BH82: =(CU82*POWER(10,0)+CV82*POWER(10,1)+CW82*POWER(10,2)+CX82*POWER(10,3)+CY82*POWER(10,4)+CZ82*POWER(10,5)+DA82*POWER(10,6)+DB82*POWER(10,7)+DC82*POWER(10,8)+DD82*POWER(10,9)+DE82*POWER(10,10)) -> 100 | BI82: =(DF82*POWER(10,0)+DG82*POWER(10,1)+DH82*POWER(10,2)+DI82*POWER(10,3)+DJ82*POWER(10,4)+DK82*POWER(10,5)+DL82*POWER(10,6)+DM82*POWER(10,7)+DN82*POWER(10,8)+DO82*POWER(10,9)+DP82*POWER(10,10)) -> 100 | BJ82: =(DQ82*POWER(10,0)+DR82*POWER(10,1)+DS82*POWER(10,2)+DT82*POWER(10,3)+DU82*POWER(10,4)+DV82*POWER(10,5)+DW82*POWER(10,6)+DX82*POWER(10,7)+DY82*POWER(10,8)+DZ82*POWER(10,9)+EA82*POWER(10,10)) -> 100 | BK82: =MAX(BE82:BJ82) -> 100 | BM82: 2 | BP82: 1 | CA82: 1 | CL82: 1 | CW82: 1 | DH82: 1 | DS82: 1 | EC82: 2 | EW82: 2 | EX82: 0 | GF82: 2 | GG82: 0 | HO82: 2 | HP82: 0 | IX82: 2 | IY82: 0 | KG82: 2 | KH82: 0 | LP82: 2 | LQ82: 0
X83: 3 | AH83: N/A | AJ83: FALSE | AO83: 3 | BA83: =IF(AND(BB83="OK",BC83="OK",BD83="OK"),"OK","ERR!") -> OK | BB83: OK | BC83: =IF(OR(SUM(BN83:BX83)<>1,SUM(BY83:CI83)<>1,SUM(CJ83:CT83)<>1,SUM(CU83:DE83)<>1,SUM(DF83:DP83)<>1,SUM(DQ83:EA83)<>1),"ERR!","OK") -> OK | BD83: =IF(AND(OR(BE83=BK83,BE83=0),OR(BF83=BK83,BF83=0),OR(BG83=BK83,BG83=0),OR(BH83=BK83,BH83=0),OR(BI83=BK83,BI83=0),OR(BJ83=BK83,BJ83=0)),"OK","ERR!") -> OK | BE83: 100 | BF83: 100 | BG83: 100 | BH83: 100 | BI83: 100 | BJ83: 100 | BK83: =MAX(BE83:BJ83) -> 100 | BM83: 3 | BP83: 1 | CA83: 1 | CL83: 1 | CW83: 1 | DH83: 1 | DS83: 1 | EC83: 3 | EW83: 3 | EX83: 0 | GF83: 3 | GG83: 0 | HO83: 3 | HP83: 0 | IX83: 3 | IY83: 0 | KG83: 3 | KH83: 0 | LP83: 3 | LQ83: 0
X84: 4 | AH84: N/A | AJ84: FALSE | AO84: 4 | BA84: =IF(AND(BB84="OK",BC84="OK",BD84="OK"),"OK","ERR!") -> OK | BB84: OK | BC84: OK | BD84: =IF(AND(OR(BE84=BK84,BE84=0),OR(BF84=BK84,BF84=0),OR(BG84=BK84,BG84=0),OR(BH84=BK84,BH84=0),OR(BI84=BK84,BI84=0),OR(BJ84=BK84,BJ84=0)),"OK","ERR!") -> OK | BE84: 100 | BF84: 100 | BG84: 100 | BH84: 100 | BI84: 100 | BJ84: 100 | BK84: 100 | BM84: 4 | BP84: 1 | CA84: 1 | CL84: 1 | CW84: 1 | DH84: 1 | DS84: 1 | EC84: 4 | EW84: 4 | EX84: 0 | GF84: 4 | GG84: 0 | HO84: 4 | HP84: 0 | IX84: 4 | IY84: 0 | KG84: 4 | KH84: 0 | LP84: 4 | LQ84: 0
X85: 7 | AH85: N/A | AJ85: FALSE | AO85: 7 | BA85: =IF(AND(BB85="OK",BC85="OK",BD85="OK"),"OK","ERR!") -> OK | BB85: OK | BC85: OK | BD85: OK | BE85: 100 | BF85: 100 | BG85: 100 | BH85: 100 | BI85: 100 | BJ85: 100 | BK85: 100 | BM85: 7 | BP85: 1 | CA85: 1 | CL85: 1 | CW85: 1 | DH85: 1 | DS85: 1 | EC85: 7 | EW85: 7 | EX85: 0 | GF85: 7 | GG85: 0 | HO85: 7 | HP85: 0 | IX85: 7 | IY85: 0 | KG85: 7 | KH85: 0 | LP85: 7 | LQ85: 0
X86: 8 | AH86: N/A | AJ86: FALSE | AO86: 8 | BA86: OK | BB86: OK | BC86: OK | BD86: OK | BE86: 100 | BF86: 100 | BG86: 100 | BH86: 100 | BI86: 100 | BJ86: 100 | BK86: 100 | BM86: 8 | BP86: 1 | CA86: 1 | CL86: 1 | CW86: 1 | DH86: 1 | DS86: 1 | EC86: 8 | EW86: 8 | EX86: 0 | GF86: 8 | GG86: 0 | HO86: 8 | HP86: 0 | IX86: 8 | IY86: 0 | KG86: 8 | KH86: 0 | LP86: 8 | LQ86: 0
X87: 9 | AH87: N/A | AJ87: FALSE | AO87: 9 | BA87: OK | BB87: OK | BC87: OK | BD87: OK | BE87: 100 | BF87: 100 | BG87: 100 | BH87: =(CU87*POWER(10,0)+CV87*POWER(10,1)+CW87*POWER(10,2)+CX87*POWER(10,3)+CY87*POWER(10,4)+CZ87*POWER(10,5)+DA87*POWER(10,6)+DB87*POWER(10,7)+DC87*POWER(10,8)+DD87*POWER(10,9)+DE87*POWER(10,10)) -> 100 | BI87: =(DF87*POWER(10,0)+DG87*POWER(10,1)+DH87*POWER(10,2)+DI87*POWER(10,3)+DJ87*POWER(10,4)+DK87*POWER(10,5)+DL87*POWER(10,6)+DM87*POWER(10,7)+DN87*POWER(10,8)+DO87*POWER(10,9)+DP87*POWER(10,10)) -> 100 | BJ87: 100 | BK87: 100 | BM87: 9 | BP87: 1 | CA87: 1 | CL87: 1 | CW87: 1 | DH87: 1 | DS87: 1 | EC87: 9 | EW87: 9 | EX87: 0 | GF87: 9 | GG87: 0 | HO87: 9 | HP87: 0 | IX87: 9 | IY87: 0 | KG87: 9 | KH87: 0 | LP87: 9 | LQ87: 0
X88: Total | Y88: =SUM(Y81:Y87) -> 0 | Z88: =SUM(Z81:Z87) -> 0 | AA88: 0 | AB88: 0 | AC88: 0 | AD88: 0 | AH88: N/A | AJ88: FALSE | AO88: Total | BM88: Total | EC88: Total | ED88: =SUM(ED81:ED87) ->  | EE88: =SUM(EE81:EE87) ->  | EF88: =SUM(EF81:EF87) ->  | EG88: =SUM(EG81:EG87) ->  | EH88: =SUM(EH81:EH87) ->  | EI88: =SUM(EI81:EI87) ->  | EW88: Total | EX88: =SUM(EX81:EX87) -> 0 | EY88: =SUM(EY81:EY87) ->  | EZ88: =SUM(EZ81:EZ87) ->  | FC88: =SUM(FC81:FC87) ->  | FD88: =SUM(FD81:FD87) ->  | FN88: =SUM(FN81:FN87) ->  | FO88: =SUM(FO81:FO87) ->  | FP88: =SUM(FP81:FP87) ->  | FQ88: =SUM(FQ81:FQ87) ->  | GC88: =SUM(GC81:GC87) ->  | GD88: =SUM(GD81:GD87) ->  | GF88: Total | GG88: =SUM(GG81:GG87) -> 0 | GH88: =SUM(GH81:GH87) ->  | GI88: =SUM(GI81:GI87) ->  | GL88: =SUM(GL81:GL87) ->  | GM88: =SUM(GM81:GM87) ->  | GN88: =SUM(GN81:GN87) ->  | GW88: =SUM(GW81:GW87) ->  | GX88: =SUM(GX81:GX87) ->  | GY88: =SUM(GY81:GY87) ->  | GZ88: =SUM(GZ81:GZ87) ->  | HL88: =SUM(HL81:HL87) ->  | HM88: =SUM(HM81:HM87) ->  | HO88: Total | HP88: =SUM(HP81:HP87) -> 0 | HQ88: =SUM(HQ81:HQ87) ->  | HR88: =SUM(HR81:HR87) ->  | HU88: =SUM(HU81:HU87) ->  | HV88: =SUM(HV81:HV87) ->  | IF88: =SUM(IF81:IF87) ->  | IG88: =SUM(IG81:IG87) ->  | IH88: =SUM(IH81:IH87) ->  | II88: =SUM(II81:II87) ->  | IU88: =SUM(IU81:IU87) ->  | IV88: =SUM(IV81:IV87) ->  | IX88: Total | IY88: =SUM(IY81:IY87) -> 0 | IZ88: =SUM(IZ81:IZ87) ->  | JA88: =SUM(JA81:JA87) ->  | JD88: =SUM(JD81:JD87) ->  | JE88: =SUM(JE81:JE87) ->  | JO88: =SUM(JO81:JO87) ->  | JP88: =SUM(JP81:JP87) ->  | JQ88: =SUM(JQ81:JQ87) ->  | JR88: =SUM(JR81:JR87) ->  | KD88: =SUM(KD81:KD87) ->  | KE88: =SUM(KE81:KE87) ->  | KG88: Total | KH88: =SUM(KH81:KH87) -> 0 | KI88: =SUM(KI81:KI87) ->  | KJ88: =SUM(KJ81:KJ87) ->  | KM88: =SUM(KM81:KM87) ->  | KN88: =SUM(KN81:KN87) ->  | KX88: =SUM(KX81:KX87) ->  | KY88: =SUM(KY81:KY87) ->  | KZ88: =SUM(KZ81:KZ87) ->  | LA88: =SUM(LA81:LA87) ->  | LM88: =SUM(LM81:LM87) ->  | LN88: =SUM(LN81:LN87) ->  | LP88: Total | LQ88: =SUM(LQ81:LQ87) -> 0 | LR88: =SUM(LR81:LR87) ->  | LS88: =SUM(LS81:LS87) ->  | LV88: =SUM(LV81:LV87) ->  | LW88: =SUM(LW81:LW87) ->  | MF88: =SUM(MF81:MF87) ->  | MG88: =SUM(MG81:MG87) ->  | MH88: =SUM(MH81:MH87) ->  | MI88: =SUM(MI81:MI87) ->  | MJ88: =SUM(MJ81:MJ87) ->  | MV88: =SUM(MV81:MV87) ->  | MW88: =SUM(MW81:MW87) -> 
B89: 8 | C89: ='Regional Project List Sheet'!F12 -> 0 | D89: =IF('Regional Project List Sheet'!$G12="New",1,"") ->  | E89: =IF('Regional Project List Sheet'!$G12="Funded Old",1,"") ->  | F89: =IF('Regional Project List Sheet'!$G12="Unfunded Old",1,"") ->  | G89: ='Regional Project List Sheet'!H12 -> 0 | H89: ='Regional Project List Sheet'!I12 -> 0 | I89: ='Regional Project List Sheet'!L12 -> 0 | J89: ='Regional Project List Sheet'!M12 -> 0 | K89: ='Regional Project List Sheet'!N12 -> 0 | L89: ='Regional Project List Sheet'!O12 -> 0 | M89: ='Regional Project List Sheet'!P12 -> 0 | N89: =IF('Regional Project List Sheet'!$Q12="N/A","N/A",IF($Y92<>0,5,IF($Z92<>0,4,IF($AA92<>0,3,IF($AB92<>0,2,1))))) -> 1 | O89: =VLOOKUP($C89,'[2]Ranking|Priority'!$B$5:$O$40,12,FALSE) ->  | P89: =VLOOKUP($C89,'[2]Ranking|Priority'!$B$5:$O$68,13,FALSE) ->  | Q89: =VLOOKUP($C89,'[2]Ranking|Priority'!$B$5:$O$68,14,FALSE) ->  | R89: ='Regional Project List Sheet'!T12 -> 0 | S89: ='Regional Project List Sheet'!U12 -> 0 | T89: ='Regional Project List Sheet'!V12 -> 0 | U89: ='Regional Project List Sheet'!W12 -> 0 | V89: ='Regional Project List Sheet'!X12 -> 0 | W89: ='Regional Project List Sheet'!Y12 -> Choose from Project List in cell I2 | X89: 0 | AF89: ='Regional Project List Sheet'!AJ12 -> 0 | AG89: =IF(OR('Regional Project List Sheet'!$AA12<>'Regional Project List Sheet'!$A$40,'Regional Project List Sheet'!$AD12<>'Regional Project List Sheet'!$A$40,'Regional Project List Sheet'!$AG12<>'Regional Project List Sheet'!$A$40),_xlfn.CONCAT(IF(ISNUMBER('Regional Project List Sheet'!$AA12),'Regional Project List Sheet'!$A$36,"")," ",IF(ISNUMBER('Regional Project List Sheet'!$AD12),'Regional Project List Sheet'!$A$37,"")," ",IF(ISNUMBER('Regional Project List Sheet'!$AG12),'Regional Project List Sheet'!$A$38,"")),"N/A") -> N/A | AH89: N/A | AI89: =IF(OR('Regional Project List Sheet'!AC12<>'Regional Project List Sheet'!$A$40,'Regional Project List Sheet'!AF12<>'Regional Project List Sheet'!$A$40,'Regional Project List Sheet'!AI12<>'Regional Project List Sheet'!$A$40), IF(LEN(_xlfn.CONCAT(IF('Regional Project List Sheet'!AC12="Yes",'Regional Project List Sheet'!$A$36,"")," ", IF('Regional Project List Sheet'!AF12="Yes",'Regional Project List Sheet'!$A$37,"")," ", IF('Regional Project List Sheet'!AI12="Yes",'Regional Project List Sheet'!$A$38,"")))<3,"No", _xlfn.CONCAT(IF('Regional Project List Sheet'!AC12="Yes",'Regional Project List Sheet'!$A$36,"")," ", IF('Regional Project List Sheet'!AF12="Yes",'Regional Project List Sheet'!$A$37,"")," ", IF('Regional Project List Sheet'!AI12="Yes",'Regional Project List Sheet'!$A$38,"")))) -> FALSE | AJ89: FALSE | AK89: ='Regional Project List Sheet'!AK12 -> 0 | AM89: ='Regional Project List Sheet'!AL12 -> 0 | AO89: 0 | AZ89: 1 | BA89: =IF(AND(BB89="OK",BC89="OK",BD89="OK"),"OK","ERR!") -> OK | BB89: =IF(AND(Y89>0,SUM(BN89:BX89)<1),"ERR!",IF(AND(Z89>0,SUM(BY89:CI89)<1),"ERR!",IF(AND(AA89>0,SUM(CJ89:CT89)<1),"ERR",IF(AND(AB89>0,SUM(CU89:DE89)<1),"ERR",IF(AND(AC89>0,SUM(DF89:DP89)<1),"ERR",IF(AND(AD89>0,SUM(DQ89:EA89)<1),"ERR","OK")))))) -> OK | BC89: =IF(OR(SUM(BN89:BX89)<>1,SUM(BY89:CI89)<>1,SUM(CJ89:CT89)<>1,SUM(CU89:DE89)<>1,SUM(DF89:DP89)<>1,SUM(DQ89:EA89)<>1),"ERR!","OK") -> OK | BD89: =IF(AND(OR(BE89=BK89,BE89=0),OR(BF89=BK89,BF89=0),OR(BG89=BK89,BG89=0),OR(BH89=BK89,BH89=0),OR(BI89=BK89,BI89=0),OR(BJ89=BK89,BJ89=0)),"OK","ERR!") -> OK | BE89: =(BN89*POWER(10,0)+BO89*POWER(10,1)+BP89*POWER(10,2)+BQ89*POWER(10,3)+BR89*POWER(10,4)+BS89*POWER(10,5)+BT89*POWER(10,6)+BU89*POWER(10,7)+BV89*POWER(10,8)+BW89*POWER(10,9)+BX89*POWER(10,10)) -> 100 | BF89: =(BY89*POWER(10,0)+BZ89*POWER(10,1)+CA89*POWER(10,2)+CB89*POWER(10,3)+CC89*POWER(10,4)+CD89*POWER(10,5)+CE89*POWER(10,6)+CF89*POWER(10,7)+CG89*POWER(10,8)+CH89*POWER(10,9)+CI89*POWER(10,10)) -> 100 | BG89: =(CJ89*POWER(10,0)+CK89*POWER(10,1)+CL89*POWER(10,2)+CM89*POWER(10,3)+CN89*POWER(10,4)+CO89*POWER(10,5)+CP89*POWER(10,6)+CQ89*POWER(10,7)+CR89*POWER(10,8)+CS89*POWER(10,9)+CT89*POWER(10,10)) -> 100 | BH89: =(CU89*POWER(10,0)+CV89*POWER(10,1)+CW89*POWER(10,2)+CX89*POWER(10,3)+CY89*POWER(10,4)+CZ89*POWER(10,5)+DA89*POWER(10,6)+DB89*POWER(10,7)+DC89*POWER(10,8)+DD89*POWER(10,9)+DE89*POWER(10,10)) -> 100 | BI89: =(DF89*POWER(10,0)+DG89*POWER(10,1)+DH89*POWER(10,2)+DI89*POWER(10,3)+DJ89*POWER(10,4)+DK89*POWER(10,5)+DL89*POWER(10,6)+DM89*POWER(10,7)+DN89*POWER(10,8)+DO89*POWER(10,9)+DP89*POWER(10,10)) -> 100 | BJ89: =(DQ89*POWER(10,0)+DR89*POWER(10,1)+DS89*POWER(10,2)+DT89*POWER(10,3)+DU89*POWER(10,4)+DV89*POWER(10,5)+DW89*POWER(10,6)+DX89*POWER(10,7)+DY89*POWER(10,8)+DZ89*POWER(10,9)+EA89*POWER(10,10)) -> 100 | BK89: =MAX(BE89:BJ89) -> 100 | BM89: 0 | BP89: 1 | CA89: 1 | CL89: 1 | CW89: 1 | DH89: 1 | DS89: 1 | EC89: 0 | ED89: =($Y89*D$89)/1000 ->  | EG89: =($Z89*D$89)/1000 ->  | EJ89: =($AA89*D$89)/1000 ->  | EM89: =($AB89*D$89)/1000 ->  | EP89: =($AC89*D$89)/1000 ->  | ES89: =($AD89*D$89)/1000 ->  | EW89: 0 | EX89: =$AZ$89*$Y89 -> 0 | EY89: =($AZ$89*$BN89*D$89*$Y89)/1000 ->  | FB89: =($AZ$89*$BO89*D$89*$Y89)/1000 ->  | FE89: =($AZ$89*$BP89*D$89*$Y89)/1000 ->  | FH89: =($AZ$89*$BQ89*D$89*$Y89)/1000 ->  | FK89: =($AZ$89*$BR89*D$89*$Y89)/1000 ->  | FN89: =($AZ$89*$BS89*D$89*$Y89)/1000 ->  | FQ89: =($AZ$89*$BT89*D$89*$Y89)/1000 ->  | FT89: =($AZ$89*$BU89*D$89*$Y89)/1000 ->  | FW89: =($AZ$89*$BV89*D$89*$Y89)/1000 ->  | FZ89: =($AZ$89*$BW89*D$89*$Y89)/1000 ->  | GC89: =($AZ$89*$BX89*D$89*$Y89)/1000 ->  | GF89: 0 | GG89: =$AZ$89*$Z89 -> 0 | GH89: =($AZ$89*$BY89*D$89*$Z89)/1000 ->  | GK89: =($AZ$89*$BZ89*D$89*$Z89)/1000 ->  | GN89: =($AZ$89*$CA89*D$89*$Z89)/1000 ->  | GQ89: =($AZ$89*$CB89*D$89*$Z89)/1000 ->  | GT89: =($AZ$89*$CD89*D$89*$Z89)/1000 ->  | GW89: =($AZ$89*$CD89*D$89*$Z89)/1000 ->  | GZ89: =($AZ$89*$CE89*D$89*$Z89)/1000 ->  | HC89: =($AZ$89*$CF89*D$89*$Z89)/1000 ->  | HF89: =($AZ$89*$CG89*D$89*$Z89)/1000 ->  | HI89: =($AZ$89*$CH89*D$89*$Z89)/1000 ->  | HL89: =($AZ$89*$CI89*D$89*$Z89)/1000 ->  | HO89: 0 | HP89: =$AZ$89*$AA89 -> 0 | HQ89: =($AZ$89*$CJ89*D$89*$AA89)/1000 ->  | HT89: =($AZ$89*$CK89*D$89*$AA89)/1000 ->  | HW89: =($AZ$89*$CL89*D$89*$AA89)/1000 ->  | HZ89: =($AZ$89*$CM89*D$89*$AA89)/1000 ->  | IC89: =($AZ$89*$CN89*D$89*$AA89)/1000 ->  | IF89: =($AZ$89*$CO89*D$89*$AA89)/1000 ->  | II89: =($AZ$89*$CP89*D$89*$AA89)/1000 ->  | IL89: =($AZ$89*$CQ89*D$89*$AA89)/1000 ->  | IO89: =($AZ$89*$CR89*D$89*$AA89)/1000 ->  | IR89: =($AZ$89*$CS89*D$89*$AA89)/1000 ->  | IU89: =($AZ$89*$CT89*D$89*$AA89)/1000 ->  | IX89: 0 | IY89: =$AZ$89*$AB89 -> 0 | IZ89: =($AZ$89*$CU89*D$89*$AB89)/1000 ->  | JC89: =($AZ$89*$CV89*D$89*$AB89)/1000 ->  | JF89: =($AZ$89*$CW89*D$89*$AB89)/1000 ->  | JI89: =($AZ$89*$CX89*D$89*$AB89)/1000 ->  | JL89: =($AZ$89*$CY89*D$89*$AB89)/1000 ->  | JO89: =($AZ$89*$CZ89*D$89*$AB89)/1000 ->  | JR89: =($AZ$89*$DA89*D$89*$AB89)/1000 ->  | JU89: =($AZ$89*$DB89*D$89*$AB89)/1000 ->  | JX89: =($AZ$89*$DC89*D$89*$AB89)/1000 ->  | KA89: =($AZ$89*$DD89*D$89*$AB89)/1000 ->  | KD89: =($AZ$89*$DE89*D$89*$AB89)/1000 ->  | KG89: 0 | KH89: =$AZ$89*$AC89 -> 0 | KI89: =($AZ$89*$DF89*D$89*$AC89)/1000 ->  | KL89: =($AZ$89*$DG89*D$89*$AC89)/1000 ->  | KO89: =($AZ$89*$DH89*D$89*$AC89)/1000 ->  | KR89: =($AZ$89*$DI89*D$89*$AC89)/1000 ->  | KU89: =($AZ$89*$DJ89*D$89*$AC89)/1000 ->  | KX89: =($AZ$89*$DK89*D$89*$AC89)/1000 ->  | LA89: =($AZ$89*$DL89*D$89*$AC89)/1000 ->  | LD89: =($AZ$89*$DM89*D$89*$AC89)/1000 ->  | LG89: =($AZ$89*$DN89*D$89*$AC89)/1000 ->  | LJ89: =($AZ$89*$DO89*D$89*$AC89)/1000 ->  | LM89: =($AZ$89*$DP89*D$89*$AC89)/1000 ->  | LP89: 0 | LQ89: =$AZ$89*$AD89 -> 0 | LR89: =($AZ$89*$DQ89*D$89*$AD89)/1000 ->  | LU89: =($AZ$89*$DR89*D$89*$AD89)/1000 ->  | LX89: =($AZ$89*$DS89*D$89*$AD89)/1000 ->  | MA89: =($AZ$89*$DT89*D$89*$AD89)/1000 ->  | MD89: =($AZ$89*$DU89*D$89*$AD89)/1000 ->  | MG89: =($AZ$89*$DV89*D$89*$AD89)/1000 ->  | MJ89: =($AZ$89*$DW89*D$89*$AD89)/1000 ->  | MM89: =($AZ$89*$DX89*D$89*$AD89)/1000 ->  | MP89: =($AZ$89*$DY89*D$89*$AD89)/1000 ->  | MS89: =($AZ$89*$DZ89*D$89*$AD89)/1000 ->  | MV89: =($AZ$89*$EA89*D$89*$AD89)/1000 -> 
X90: 2 | AH90: N/A | AJ90: FALSE | AO90: 2 | BA90: =IF(AND(BB90="OK",BC90="OK",BD90="OK"),"OK","ERR!") -> OK | BB90: OK | BC90: =IF(OR(SUM(BN90:BX90)<>1,SUM(BY90:CI90)<>1,SUM(CJ90:CT90)<>1,SUM(CU90:DE90)<>1,SUM(DF90:DP90)<>1,SUM(DQ90:EA90)<>1),"ERR!","OK") -> OK | BD90: =IF(AND(OR(BE90=BK90,BE90=0),OR(BF90=BK90,BF90=0),OR(BG90=BK90,BG90=0),OR(BH90=BK90,BH90=0),OR(BI90=BK90,BI90=0),OR(BJ90=BK90,BJ90=0)),"OK","ERR!") -> OK | BE90: =(BN90*POWER(10,0)+BO90*POWER(10,1)+BP90*POWER(10,2)+BQ90*POWER(10,3)+BR90*POWER(10,4)+BS90*POWER(10,5)+BT90*POWER(10,6)+BU90*POWER(10,7)+BV90*POWER(10,8)+BW90*POWER(10,9)+BX90*POWER(10,10)) -> 100 | BF90: =(BY90*POWER(10,0)+BZ90*POWER(10,1)+CA90*POWER(10,2)+CB90*POWER(10,3)+CC90*POWER(10,4)+CD90*POWER(10,5)+CE90*POWER(10,6)+CF90*POWER(10,7)+CG90*POWER(10,8)+CH90*POWER(10,9)+CI90*POWER(10,10)) -> 100 | BG90: =(CJ90*POWER(10,0)+CK90*POWER(10,1)+CL90*POWER(10,2)+CM90*POWER(10,3)+CN90*POWER(10,4)+CO90*POWER(10,5)+CP90*POWER(10,6)+CQ90*POWER(10,7)+CR90*POWER(10,8)+CS90*POWER(10,9)+CT90*POWER(10,10)) -> 100 | BH90: =(CU90*POWER(10,0)+CV90*POWER(10,1)+CW90*POWER(10,2)+CX90*POWER(10,3)+CY90*POWER(10,4)+CZ90*POWER(10,5)+DA90*POWER(10,6)+DB90*POWER(10,7)+DC90*POWER(10,8)+DD90*POWER(10,9)+DE90*POWER(10,10)) -> 100 | BI90: =(DF90*POWER(10,0)+DG90*POWER(10,1)+DH90*POWER(10,2)+DI90*POWER(10,3)+DJ90*POWER(10,4)+DK90*POWER(10,5)+DL90*POWER(10,6)+DM90*POWER(10,7)+DN90*POWER(10,8)+DO90*POWER(10,9)+DP90*POWER(10,10)) -> 100 | BJ90: =(DQ90*POWER(10,0)+DR90*POWER(10,1)+DS90*POWER(10,2)+DT90*POWER(10,3)+DU90*POWER(10,4)+DV90*POWER(10,5)+DW90*POWER(10,6)+DX90*POWER(10,7)+DY90*POWER(10,8)+DZ90*POWER(10,9)+EA90*POWER(10,10)) -> 100 | BK90: =MAX(BE90:BJ90) -> 100 | BM90: 2 | BP90: 1 | CA90: 1 | CL90: 1 | CW90: 1 | DH90: 1 | DS90: 1 | EC90: 2 | EW90: 2 | EX90: 0 | GF90: 2 | GG90: 0 | HO90: 2 | HP90: 0 | IX90: 2 | IY90: 0 | KG90: 2 | KH90: 0 | LP90: 2 | LQ90: 0
X91: 3 | AH91: N/A | AJ91: FALSE | AO91: 3 | BA91: =IF(AND(BB91="OK",BC91="OK",BD91="OK"),"OK","ERR!") -> OK | BB91: OK | BC91: =IF(OR(SUM(BN91:BX91)<>1,SUM(BY91:CI91)<>1,SUM(CJ91:CT91)<>1,SUM(CU91:DE91)<>1,SUM(DF91:DP91)<>1,SUM(DQ91:EA91)<>1),"ERR!","OK") -> OK | BD91: =IF(AND(OR(BE91=BK91,BE91=0),OR(BF91=BK91,BF91=0),OR(BG91=BK91,BG91=0),OR(BH91=BK91,BH91=0),OR(BI91=BK91,BI91=0),OR(BJ91=BK91,BJ91=0)),"OK","ERR!") -> OK | BE91: 100 | BF91: 100 | BG91: 100 | BH91: 100 | BI91: 100 | BJ91: 100 | BK91: =MAX(BE91:BJ91) -> 100 | BM91: 3 | BP91: 1 | CA91: 1 | CL91: 1 | CW91: 1 | DH91: 1 | DS91: 1 | EC91: 3 | EW91: 3 | EX91: 0 | GF91: 3 | GG91: 0 | HO91: 3 | HP91: 0 | IX91: 3 | IY91: 0 | KG91: 3 | KH91: 0 | LP91: 3 | LQ91: 0
X92: 4 | AH92: N/A | AJ92: FALSE | AO92: 4 | BA92: =IF(AND(BB92="OK",BC92="OK",BD92="OK"),"OK","ERR!") -> OK | BB92: OK | BC92: OK | BD92: =IF(AND(OR(BE92=BK92,BE92=0),OR(BF92=BK92,BF92=0),OR(BG92=BK92,BG92=0),OR(BH92=BK92,BH92=0),OR(BI92=BK92,BI92=0),OR(BJ92=BK92,BJ92=0)),"OK","ERR!") -> OK | BE92: 100 | BF92: 100 | BG92: 100 | BH92: 100 | BI92: 100 | BJ92: 100 | BK92: 100 | BM92: 4 | BP92: 1 | CA92: 1 | CL92: 1 | CW92: 1 | DH92: 1 | DS92: 1 | EC92: 4 | EW92: 4 | EX92: 0 | GF92: 4 | GG92: 0 | HO92: 4 | HP92: 0 | IX92: 4 | IY92: 0 | KG92: 4 | KH92: 0 | LP92: 4 | LQ92: 0
X93: 7 | AH93: N/A | AJ93: FALSE | AO93: 7 | BA93: =IF(AND(BB93="OK",BC93="OK",BD93="OK"),"OK","ERR!") -> OK | BB93: OK | BC93: OK | BD93: OK | BE93: 100 | BF93: 100 | BG93: 100 | BH93: 100 | BI93: 100 | BJ93: 100 | BK93: 100 | BM93: 7 | BP93: 1 | CA93: 1 | CL93: 1 | CW93: 1 | DH93: 1 | DS93: 1 | EC93: 7 | EW93: 7 | EX93: 0 | GF93: 7 | GG93: 0 | HO93: 7 | HP93: 0 | IX93: 7 | IY93: 0 | KG93: 7 | KH93: 0 | LP93: 7 | LQ93: 0
X94: 8 | AH94: N/A | AJ94: FALSE | AO94: 8 | BA94: OK | BB94: OK | BC94: OK | BD94: OK | BE94: 100 | BF94: 100 | BG94: 100 | BH94: 100 | BI94: 100 | BJ94: 100 | BK94: 100 | BM94: 8 | BP94: 1 | CA94: 1 | CL94: 1 | CW94: 1 | DH94: 1 | DS94: 1 | EC94: 8 | EW94: 8 | EX94: 0 | GF94: 8 | GG94: 0 | HO94: 8 | HP94: 0 | IX94: 8 | IY94: 0 | KG94: 8 | KH94: 0 | LP94: 8 | LQ94: 0
X95: 9 | AH95: N/A | AJ95: FALSE | AO95: 9 | BA95: OK | BB95: OK | BC95: OK | BD95: OK | BE95: 100 | BF95: 100 | BG95: 100 | BH95: =(CU95*POWER(10,0)+CV95*POWER(10,1)+CW95*POWER(10,2)+CX95*POWER(10,3)+CY95*POWER(10,4)+CZ95*POWER(10,5)+DA95*POWER(10,6)+DB95*POWER(10,7)+DC95*POWER(10,8)+DD95*POWER(10,9)+DE95*POWER(10,10)) -> 100 | BI95: =(DF95*POWER(10,0)+DG95*POWER(10,1)+DH95*POWER(10,2)+DI95*POWER(10,3)+DJ95*POWER(10,4)+DK95*POWER(10,5)+DL95*POWER(10,6)+DM95*POWER(10,7)+DN95*POWER(10,8)+DO95*POWER(10,9)+DP95*POWER(10,10)) -> 100 | BJ95: 100 | BK95: 100 | BM95: 9 | BP95: 1 | CA95: 1 | CL95: 1 | CW95: 1 | DH95: 1 | DS95: 1 | EC95: 9 | EW95: 9 | EX95: 0 | GF95: 9 | GG95: 0 | HO95: 9 | HP95: 0 | IX95: 9 | IY95: 0 | KG95: 9 | KH95: 0 | LP95: 9 | LQ95: 0
X96: Total | Y96: =SUM(Y89:Y95) -> 0 | Z96: =SUM(Z89:Z95) -> 0 | AA96: 0 | AB96: 0 | AC96: 0 | AD96: 0 | AH96: N/A | AJ96: FALSE | AO96: Total | BM96: Total | EC96: Total | ED96: =SUM(ED89:ED95) ->  | EE96: =SUM(EE89:EE95) ->  | EF96: =SUM(EF89:EF95) ->  | EG96: =SUM(EG89:EG95) ->  | EH96: =SUM(EH89:EH95) ->  | EI96: =SUM(EI89:EI95) ->  | EW96: Total | EX96: =SUM(EX89:EX95) -> 0 | EY96: =SUM(EY89:EY95) ->  | EZ96: =SUM(EZ89:EZ95) ->  | FC96: =SUM(FC89:FC95) ->  | FD96: =SUM(FD89:FD95) ->  | FN96: =SUM(FN89:FN95) ->  | FO96: =SUM(FO89:FO95) ->  | FP96: =SUM(FP89:FP95) ->  | FQ96: =SUM(FQ89:FQ95) ->  | GC96: =SUM(GC89:GC95) ->  | GD96: =SUM(GD89:GD95) ->  | GF96: Total | GG96: =SUM(GG89:GG95) -> 0 | GH96: =SUM(GH89:GH95) ->  | GI96: =SUM(GI89:GI95) ->  | GL96: =SUM(GL89:GL95) ->  | GM96: =SUM(GM89:GM95) ->  | GN96: =SUM(GN89:GN95) ->  | GW96: =SUM(GW89:GW95) ->  | GX96: =SUM(GX89:GX95) ->  | GY96: =SUM(GY89:GY95) ->  | GZ96: =SUM(GZ89:GZ95) ->  | HL96: =SUM(HL89:HL95) ->  | HM96: =SUM(HM89:HM95) ->  | HO96: Total | HP96: =SUM(HP89:HP95) -> 0 | HQ96: =SUM(HQ89:HQ95) ->  | HR96: =SUM(HR89:HR95) ->  | HU96: =SUM(HU89:HU95) ->  | HV96: =SUM(HV89:HV95) ->  | IF96: =SUM(IF89:IF95) ->  | IG96: =SUM(IG89:IG95) ->  | IH96: =SUM(IH89:IH95) ->  | II96: =SUM(II89:II95) ->  | IU96: =SUM(IU89:IU95) ->  | IV96: =SUM(IV89:IV95) ->  | IX96: Total | IY96: =SUM(IY89:IY95) -> 0 | IZ96: =SUM(IZ89:IZ95) ->  | JA96: =SUM(JA89:JA95) ->  | JD96: =SUM(JD89:JD95) ->  | JE96: =SUM(JE89:JE95) ->  | JO96: =SUM(JO89:JO95) ->  | JP96: =SUM(JP89:JP95) ->  | JQ96: =SUM(JQ89:JQ95) ->  | JR96: =SUM(JR89:JR95) ->  | KD96: =SUM(KD89:KD95) ->  | KE96: =SUM(KE89:KE95) ->  | KG96: Total | KH96: =SUM(KH89:KH95) -> 0 | KI96: =SUM(KI89:KI95) ->  | KJ96: =SUM(KJ89:KJ95) ->  | KM96: =SUM(KM89:KM95) ->  | KN96: =SUM(KN89:KN95) ->  | KX96: =SUM(KX89:KX95) ->  | KY96: =SUM(KY89:KY95) ->  | KZ96: =SUM(KZ89:KZ95) ->  | LA96: =SUM(LA89:LA95) ->  | LM96: =SUM(LM89:LM95) ->  | LN96: =SUM(LN89:LN95) ->  | LP96: Total | LQ96: =SUM(LQ89:LQ95) -> 0 | LR96: =SUM(LR89:LR95) ->  | LS96: =SUM(LS89:LS95) ->  | LV96: =SUM(LV89:LV95) ->  | LW96: =SUM(LW89:LW95) ->  | MF96: =SUM(MF89:MF95) ->  | MG96: =SUM(MG89:MG95) ->  | MH96: =SUM(MH89:MH95) ->  | MI96: =SUM(MI89:MI95) ->  | MJ96: =SUM(MJ89:MJ95) ->  | MV96: =SUM(MV89:MV95) ->  | MW96: =SUM(MW89:MW95) -> 
B97: 9 | C97: ='Regional Project List Sheet'!F13 -> 0 | D97: =IF('Regional Project List Sheet'!$G13="New",1,"") ->  | E97: =IF('Regional Project List Sheet'!$G13="Funded Old",1,"") ->  | F97: =IF('Regional Project List Sheet'!$G13="Unfunded Old",1,"") ->  | G97: ='Regional Project List Sheet'!H13 -> 0 | H97: ='Regional Project List Sheet'!I13 -> 0 | I97: ='Regional Project List Sheet'!L13 -> 0 | J97: ='Regional Project List Sheet'!M13 -> 0 | K97: ='Regional Project List Sheet'!N13 -> 0 | L97: ='Regional Project List Sheet'!O13 -> 0 | M97: ='Regional Project List Sheet'!P13 -> 0 | N97: =IF('Regional Project List Sheet'!$Q13="N/A","N/A",IF($Y100<>0,5,IF($Z100<>0,4,IF($AA100<>0,3,IF($AB100<>0,2,1))))) -> 1 | O97: =VLOOKUP($C97,'[2]Ranking|Priority'!$B$5:$O$40,12,FALSE) ->  | P97: =VLOOKUP($C97,'[2]Ranking|Priority'!$B$5:$O$68,13,FALSE) ->  | Q97: =VLOOKUP($C97,'[2]Ranking|Priority'!$B$5:$O$68,14,FALSE) ->  | R97: ='Regional Project List Sheet'!T13 -> 0 | S97: ='Regional Project List Sheet'!U13 -> 0 | T97: ='Regional Project List Sheet'!V13 -> 0 | U97: ='Regional Project List Sheet'!W13 -> 0 | V97: ='Regional Project List Sheet'!X13 -> 0 | W97: ='Regional Project List Sheet'!Y13 -> Choose from Project List in cell I2 | X97: 0 | AF97: ='Regional Project List Sheet'!AJ13 -> 0 | AG97: =IF(OR('Regional Project List Sheet'!$AA13<>'Regional Project List Sheet'!$A$40,'Regional Project List Sheet'!$AD13<>'Regional Project List Sheet'!$A$40,'Regional Project List Sheet'!$AG13<>'Regional Project List Sheet'!$A$40),_xlfn.CONCAT(IF(ISNUMBER('Regional Project List Sheet'!$AA13),'Regional Project List Sheet'!$A$36,"")," ",IF(ISNUMBER('Regional Project List Sheet'!$AD13),'Regional Project List Sheet'!$A$37,"")," ",IF(ISNUMBER('Regional Project List Sheet'!$AG13),'Regional Project List Sheet'!$A$38,"")),"N/A") -> N/A | AH97: N/A | AI97: =IF(OR('Regional Project List Sheet'!AC13<>'Regional Project List Sheet'!$A$40,'Regional Project List Sheet'!AF13<>'Regional Project List Sheet'!$A$40,'Regional Project List Sheet'!AI13<>'Regional Project List Sheet'!$A$40), IF(LEN(_xlfn.CONCAT(IF('Regional Project List Sheet'!AC13="Yes",'Regional Project List Sheet'!$A$36,"")," ", IF('Regional Project List Sheet'!AF13="Yes",'Regional Project List Sheet'!$A$37,"")," ", IF('Regional Project List Sheet'!AI13="Yes",'Regional Project List Sheet'!$A$38,"")))<3,"No", _xlfn.CONCAT(IF('Regional Project List Sheet'!AC13="Yes",'Regional Project List Sheet'!$A$36,"")," ", IF('Regional Project List Sheet'!AF13="Yes",'Regional Project List Sheet'!$A$37,"")," ", IF('Regional Project List Sheet'!AI13="Yes",'Regional Project List Sheet'!$A$38,"")))) -> FALSE | AJ97: =IF(X97=0,AI97,AJ96) -> FALSE | AK97: ='Regional Project List Sheet'!AK13 -> 0 | AM97: ='Regional Project List Sheet'!AL13 -> 0 | AO97: 0 | AZ97: 1 | BA97: =IF(AND(BB97="OK",BC97="OK",BD97="OK"),"OK","ERR!") -> OK | BB97: =IF(AND(Y97>0,SUM(BN97:BX97)<1),"ERR!",IF(AND(Z97>0,SUM(BY97:CI97)<1),"ERR!",IF(AND(AA97>0,SUM(CJ97:CT97)<1),"ERR",IF(AND(AB97>0,SUM(CU97:DE97)<1),"ERR",IF(AND(AC97>0,SUM(DF97:DP97)<1),"ERR",IF(AND(AD97>0,SUM(DQ97:EA97)<1),"ERR","OK")))))) -> OK | BC97: =IF(OR(SUM(BN97:BX97)<>1,SUM(BY97:CI97)<>1,SUM(CJ97:CT97)<>1,SUM(CU97:DE97)<>1,SUM(DF97:DP97)<>1,SUM(DQ97:EA97)<>1),"ERR!","OK") -> OK | BD97: =IF(AND(OR(BE97=BK97,BE97=0),OR(BF97=BK97,BF97=0),OR(BG97=BK97,BG97=0),OR(BH97=BK97,BH97=0),OR(BI97=BK97,BI97=0),OR(BJ97=BK97,BJ97=0)),"OK","ERR!") -> OK | BE97: =(BN97*POWER(10,0)+BO97*POWER(10,1)+BP97*POWER(10,2)+BQ97*POWER(10,3)+BR97*POWER(10,4)+BS97*POWER(10,5)+BT97*POWER(10,6)+BU97*POWER(10,7)+BV97*POWER(10,8)+BW97*POWER(10,9)+BX97*POWER(10,10)) -> 10000 | BF97: =(BY97*POWER(10,0)+BZ97*POWER(10,1)+CA97*POWER(10,2)+CB97*POWER(10,3)+CC97*POWER(10,4)+CD97*POWER(10,5)+CE97*POWER(10,6)+CF97*POWER(10,7)+CG97*POWER(10,8)+CH97*POWER(10,9)+CI97*POWER(10,10)) -> 10000 | BG97: =(CJ97*POWER(10,0)+CK97*POWER(10,1)+CL97*POWER(10,2)+CM97*POWER(10,3)+CN97*POWER(10,4)+CO97*POWER(10,5)+CP97*POWER(10,6)+CQ97*POWER(10,7)+CR97*POWER(10,8)+CS97*POWER(10,9)+CT97*POWER(10,10)) -> 10000 | BH97: =(CU97*POWER(10,0)+CV97*POWER(10,1)+CW97*POWER(10,2)+CX97*POWER(10,3)+CY97*POWER(10,4)+CZ97*POWER(10,5)+DA97*POWER(10,6)+DB97*POWER(10,7)+DC97*POWER(10,8)+DD97*POWER(10,9)+DE97*POWER(10,10)) -> 10000 | BI97: =(DF97*POWER(10,0)+DG97*POWER(10,1)+DH97*POWER(10,2)+DI97*POWER(10,3)+DJ97*POWER(10,4)+DK97*POWER(10,5)+DL97*POWER(10,6)+DM97*POWER(10,7)+DN97*POWER(10,8)+DO97*POWER(10,9)+DP97*POWER(10,10)) -> 10000 | BJ97: =(DQ97*POWER(10,0)+DR97*POWER(10,1)+DS97*POWER(10,2)+DT97*POWER(10,3)+DU97*POWER(10,4)+DV97*POWER(10,5)+DW97*POWER(10,6)+DX97*POWER(10,7)+DY97*POWER(10,8)+DZ97*POWER(10,9)+EA97*POWER(10,10)) -> 10000 | BK97: =MAX(BE97:BJ97) -> 10000 | BM97: 0 | BR97: 1 | CC97: 1 | CN97: 1 | CY97: 1 | DJ97: 1 | DU97: 1 | EC97: 0 | ED97: =($Y97*D$97)/1000 ->  | EG97: =($Z97*D$97)/1000 ->  | EJ97: =($AA97*D$97)/1000 ->  | EM97: =($AB97*D$97)/1000 ->  | EP97: =($AC97*D$97)/1000 ->  | ES97: =($AD97*D$97)/1000 ->  | EW97: 0 | EX97: =$AZ$97*$Y97 -> 0 | EY97: =($AZ$97*$BN97*D$97*$Y97)/1000 ->  | FB97: =($AZ$97*$BO97*D$97*$Y97)/1000 ->  | FE97: =($AZ$97*$BP97*D$97*$Y97)/1000 ->  | FH97: =($AZ$97*$BQ97*D$97*$Y97)/1000 ->  | FK97: =($AZ$97*$BR97*D$97*$Y97)/1000 ->  | FN97: =($AZ$97*$BS97*D$97*$Y97)/1000 ->  | FQ97: =($AZ$97*$BT97*D$97*$Y97)/1000 ->  | FT97: =($AZ$97*$BU97*D$97*$Y97)/1000 ->  | FW97: =($AZ$97*$BV97*D$97*$Y97)/1000 ->  | FZ97: =($AZ$97*$BW97*D$97*$Y97)/1000 ->  | GC97: =($AZ$97*$BX97*D$97*$Y97)/1000 ->  | GF97: 0 | GG97: =$AZ$97*$Z97 -> 0 | GH97: =($AZ$97*$BY97*D$97*$Z97)/1000 ->  | GK97: =($AZ$97*$BZ97*D$97*$Z97)/1000 ->  | GN97: =($AZ$97*$CA97*D$97*$Z97)/1000 ->  | GQ97: =($AZ$97*$CB97*D$97*$Z97)/1000 ->  | GT97: =($AZ$97*$CD97*D$97*$Z97)/1000 ->  | GW97: =($AZ$97*$CD97*D$97*$Z97)/1000 ->  | GZ97: =($AZ$97*$CE97*D$97*$Z97)/1000 ->  | HC97: =($AZ$97*$CF97*D$97*$Z97)/1000 ->  | HF97: =($AZ$97*$CG97*D$97*$Z97)/1000 ->  | HI97: =($AZ$97*$CH97*D$97*$Z97)/1000 ->  | HL97: =($AZ$97*$CI97*D$97*$Z97)/1000 ->  | HO97: 0 | HP97: =$AZ$97*$AA97 -> 0 | HQ97: =($AZ$97*$CJ97*D$97*$AA97)/1000 ->  | HT97: =($AZ$97*$CK97*D$97*$AA97)/1000 ->  | HW97: =($AZ$97*$CL97*D$97*$AA97)/1000 ->  | HZ97: =($AZ$97*$CM97*D$97*$AA97)/1000 ->  | IC97: =($AZ$97*$CN97*D$97*$AA97)/1000 ->  | IF97: =($AZ$97*$CO97*D$97*$AA97)/1000 ->  | II97: =($AZ$97*$CP97*D$97*$AA97)/1000 ->  | IL97: =($AZ$97*$CQ97*D$97*$AA97)/1000 ->  | IO97: =($AZ$97*$CR97*D$97*$AA97)/1000 ->  | IR97: =($AZ$97*$CS97*D$97*$AA97)/1000 ->  | IU97: =($AZ$97*$CT97*D$97*$AA97)/1000 ->  | IX97: 0 | IY97: =$AZ$97*$AB97 -> 0 | IZ97: =($AZ$97*$CU97*D$97*$AB97)/1000 ->  | JC97: =($AZ$97*$CV97*D$97*$AB97)/1000 ->  | JF97: =($AZ$97*$CW97*D$97*$AB97)/1000 ->  | JI97: =($AZ$97*$CX97*D$97*$AB97)/1000 ->  | JL97: =($AZ$97*$CY97*D$97*$AB97)/1000 ->  | JO97: =($AZ$97*$CZ97*D$97*$AB97)/1000 ->  | JR97: =($AZ$97*$DA97*D$97*$AB97)/1000 ->  | JU97: =($AZ$97*$DB97*D$97*$AB97)/1000 ->  | JX97: =($AZ$97*$DC97*D$97*$AB97)/1000 ->  | KA97: =($AZ$97*$DD97*D$97*$AB97)/1000 ->  | KD97: =($AZ$97*$DE97*D$97*$AB97)/1000 ->  | KG97: 0 | KH97: =$AZ$97*$AC97 -> 0 | KI97: =($AZ$97*$DF97*D$97*$AC97)/1000 ->  | KL97: =($AZ$97*$DG97*D$97*$AC97)/1000 ->  | KO97: =($AZ$97*$DH97*D$97*$AC97)/1000 ->  | KR97: =($AZ$97*$DI97*D$97*$AC97)/1000 ->  | KU97: =($AZ$97*$DJ97*D$97*$AC97)/1000 ->  | KX97: =($AZ$97*$DK97*D$97*$AC97)/1000 ->  | LA97: =($AZ$97*$DL97*D$97*$AC97)/1000 ->  | LD97: =($AZ$97*$DM97*D$97*$AC97)/1000 ->  | LG97: =($AZ$97*$DN97*D$97*$AC97)/1000 ->  | LJ97: =($AZ$97*$DO97*D$97*$AC97)/1000 ->  | LM97: =($AZ$97*$DP97*D$97*$AC97)/1000 ->  | LP97: 0 | LQ97: =$AZ$97*$AD97 -> 0 | LR97: =($AZ$97*$DQ97*D$97*$AD97)/1000 ->  | LU97: =($AZ$97*$DR97*D$97*$AD97)/1000 ->  | LX97: =($AZ$97*$DS97*D$97*$AD97)/1000 ->  | MA97: =($AZ$97*$DT97*D$97*$AD97)/1000 ->  | MD97: =($AZ$97*$DU97*D$97*$AD97)/1000 ->  | MG97: =($AZ$97*$DV97*D$97*$AD97)/1000 ->  | MJ97: =($AZ$97*$DW97*D$97*$AD97)/1000 ->  | MM97: =($AZ$97*$DX97*D$97*$AD97)/1000 ->  | MP97: =($AZ$97*$DY97*D$97*$AD97)/1000 ->  | MS97: =($AZ$97*$DZ97*D$97*$AD97)/1000 ->  | MV97: =($AZ$97*$EA97*D$97*$AD97)/1000 -> 
X98: 2 | AH98: =IF(X98=0,AG98,AH97) -> N/A | AJ98: FALSE | AO98: 2 | BA98: =IF(AND(BB98="OK",BC98="OK",BD98="OK"),"OK","ERR!") -> OK | BB98: OK | BC98: =IF(OR(SUM(BN98:BX98)<>1,SUM(BY98:CI98)<>1,SUM(CJ98:CT98)<>1,SUM(CU98:DE98)<>1,SUM(DF98:DP98)<>1,SUM(DQ98:EA98)<>1),"ERR!","OK") -> OK | BD98: =IF(AND(OR(BE98=BK98,BE98=0),OR(BF98=BK98,BF98=0),OR(BG98=BK98,BG98=0),OR(BH98=BK98,BH98=0),OR(BI98=BK98,BI98=0),OR(BJ98=BK98,BJ98=0)),"OK","ERR!") -> OK | BE98: =(BN98*POWER(10,0)+BO98*POWER(10,1)+BP98*POWER(10,2)+BQ98*POWER(10,3)+BR98*POWER(10,4)+BS98*POWER(10,5)+BT98*POWER(10,6)+BU98*POWER(10,7)+BV98*POWER(10,8)+BW98*POWER(10,9)+BX98*POWER(10,10)) -> 10000 | BF98: =(BY98*POWER(10,0)+BZ98*POWER(10,1)+CA98*POWER(10,2)+CB98*POWER(10,3)+CC98*POWER(10,4)+CD98*POWER(10,5)+CE98*POWER(10,6)+CF98*POWER(10,7)+CG98*POWER(10,8)+CH98*POWER(10,9)+CI98*POWER(10,10)) -> 10000 | BG98: =(CJ98*POWER(10,0)+CK98*POWER(10,1)+CL98*POWER(10,2)+CM98*POWER(10,3)+CN98*POWER(10,4)+CO98*POWER(10,5)+CP98*POWER(10,6)+CQ98*POWER(10,7)+CR98*POWER(10,8)+CS98*POWER(10,9)+CT98*POWER(10,10)) -> 10000 | BH98: =(CU98*POWER(10,0)+CV98*POWER(10,1)+CW98*POWER(10,2)+CX98*POWER(10,3)+CY98*POWER(10,4)+CZ98*POWER(10,5)+DA98*POWER(10,6)+DB98*POWER(10,7)+DC98*POWER(10,8)+DD98*POWER(10,9)+DE98*POWER(10,10)) -> 10000 | BI98: =(DF98*POWER(10,0)+DG98*POWER(10,1)+DH98*POWER(10,2)+DI98*POWER(10,3)+DJ98*POWER(10,4)+DK98*POWER(10,5)+DL98*POWER(10,6)+DM98*POWER(10,7)+DN98*POWER(10,8)+DO98*POWER(10,9)+DP98*POWER(10,10)) -> 10000 | BJ98: =(DQ98*POWER(10,0)+DR98*POWER(10,1)+DS98*POWER(10,2)+DT98*POWER(10,3)+DU98*POWER(10,4)+DV98*POWER(10,5)+DW98*POWER(10,6)+DX98*POWER(10,7)+DY98*POWER(10,8)+DZ98*POWER(10,9)+EA98*POWER(10,10)) -> 10000 | BK98: =MAX(BE98:BJ98) -> 10000 | BM98: 2 | BR98: 1 | CC98: 1 | CN98: 1 | CY98: 1 | DJ98: 1 | DU98: 1 | EC98: 2 | EW98: 2 | EX98: 0 | GF98: 2 | GG98: 0 | HO98: 2 | HP98: 0 | IX98: 2 | IY98: 0 | KG98: 2 | KH98: 0 | LP98: 2 | LQ98: 0
X99: 3 | AH99: N/A | AJ99: FALSE | AO99: 3 | BA99: =IF(AND(BB99="OK",BC99="OK",BD99="OK"),"OK","ERR!") -> OK | BB99: OK | BC99: =IF(OR(SUM(BN99:BX99)<>1,SUM(BY99:CI99)<>1,SUM(CJ99:CT99)<>1,SUM(CU99:DE99)<>1,SUM(DF99:DP99)<>1,SUM(DQ99:EA99)<>1),"ERR!","OK") -> OK | BD99: =IF(AND(OR(BE99=BK99,BE99=0),OR(BF99=BK99,BF99=0),OR(BG99=BK99,BG99=0),OR(BH99=BK99,BH99=0),OR(BI99=BK99,BI99=0),OR(BJ99=BK99,BJ99=0)),"OK","ERR!") -> OK | BE99: 10000 | BF99: 10000 | BG99: 10000 | BH99: 10000 | BI99: 10000 | BJ99: 10000 | BK99: =MAX(BE99:BJ99) -> 10000 | BM99: 3 | BR99: 1 | CC99: 1 | CN99: 1 | CY99: 1 | DJ99: 1 | DU99: 1 | EC99: 3 | EW99: 3 | EX99: 0 | GF99: 3 | GG99: 0 | HO99: 3 | HP99: 0 | IX99: 3 | IY99: 0 | KG99: 3 | KH99: 0 | LP99: 3 | LQ99: 0
X100: 4 | AH100: N/A | AJ100: FALSE | AO100: 4 | BA100: =IF(AND(BB100="OK",BC100="OK",BD100="OK"),"OK","ERR!") -> OK | BB100: OK | BC100: OK | BD100: =IF(AND(OR(BE100=BK100,BE100=0),OR(BF100=BK100,BF100=0),OR(BG100=BK100,BG100=0),OR(BH100=BK100,BH100=0),OR(BI100=BK100,BI100=0),OR(BJ100=BK100,BJ100=0)),"OK","ERR!") -> OK | BE100: 10000 | BF100: 10000 | BG100: 10000 | BH100: 10000 | BI100: 10000 | BJ100: 10000 | BK100: 10000 | BM100: 4 | BR100: 1 | CC100: 1 | CN100: 1 | CY100: 1 | DJ100: 1 | DU100: 1 | EC100: 4 | EW100: 4 | EX100: 0 | GF100: 4 | GG100: 0 | HO100: 4 | HP100: 0 | IX100: 4 | IY100: 0 | KG100: 4 | KH100: 0 | LP100: 4 | LQ100: 0
X101: 7 | AH101: N/A | AJ101: FALSE | AO101: 7 | BA101: =IF(AND(BB101="OK",BC101="OK",BD101="OK"),"OK","ERR!") -> OK | BB101: OK | BC101: OK | BD101: OK | BE101: 10000 | BF101: 10000 | BG101: 10000 | BH101: 10000 | BI101: 10000 | BJ101: 10000 | BK101: 10000 | BM101: 7 | BR101: 1 | CC101: 1 | CN101: 1 | CY101: 1 | DJ101: 1 | DU101: 1 | EC101: 7 | EW101: 7 | EX101: 0 | GF101: 7 | GG101: 0 | HO101: 7 | HP101: 0 | IX101: 7 | IY101: 0 | KG101: 7 | KH101: 0 | LP101: 7 | LQ101: 0
X102: 8 | AH102: N/A | AJ102: FALSE | AO102: 8 | BA102: OK | BB102: OK | BC102: OK | BD102: OK | BE102: 10000 | BF102: 10000 | BG102: 10000 | BH102: 10000 | BI102: 10000 | BJ102: 10000 | BK102: 10000 | BM102: 8 | BR102: 1 | CC102: 1 | CN102: 1 | CY102: 1 | DJ102: 1 | DU102: 1 | EC102: 8 | EW102: 8 | EX102: 0 | GF102: 8 | GG102: 0 | HO102: 8 | HP102: 0 | IX102: 8 | IY102: 0 | KG102: 8 | KH102: 0 | LP102: 8 | LQ102: 0
X103: 9 | AH103: N/A | AJ103: FALSE | AO103: 9 | BA103: OK | BB103: OK | BC103: OK | BD103: OK | BE103: 10000 | BF103: 10000 | BG103: 10000 | BH103: =(CU103*POWER(10,0)+CV103*POWER(10,1)+CW103*POWER(10,2)+CX103*POWER(10,3)+CY103*POWER(10,4)+CZ103*POWER(10,5)+DA103*POWER(10,6)+DB103*POWER(10,7)+DC103*POWER(10,8)+DD103*POWER(10,9)+DE103*POWER(10,10)) -> 10000 | BI103: =(DF103*POWER(10,0)+DG103*POWER(10,1)+DH103*POWER(10,2)+DI103*POWER(10,3)+DJ103*POWER(10,4)+DK103*POWER(10,5)+DL103*POWER(10,6)+DM103*POWER(10,7)+DN103*POWER(10,8)+DO103*POWER(10,9)+DP103*POWER(10,10)) -> 10000 | BJ103: 10000 | BK103: 10000 | BM103: 9 | BR103: 1 | CC103: 1 | CN103: 1 | CY103: 1 | DJ103: 1 | DU103: 1 | EC103: 9 | EW103: 9 | EX103: 0 | GF103: 9 | GG103: 0 | HO103: 9 | HP103: 0 | IX103: 9 | IY103: 0 | KG103: 9 | KH103: 0 | LP103: 9 | LQ103: 0
X104: Total | Y104: =SUM(Y97:Y103) -> 0 | Z104: =SUM(Z97:Z103) -> 0 | AA104: 0 | AB104: 0 | AC104: 0 | AD104: 0 | AH104: N/A | AJ104: FALSE | AO104: Total | BM104: Total | EC104: Total | ED104: =SUM(ED97:ED103) ->  | EE104: =SUM(EE97:EE103) ->  | EF104: =SUM(EF97:EF103) ->  | EG104: =SUM(EG97:EG103) ->  | EH104: =SUM(EH97:EH103) ->  | EI104: =SUM(EI97:EI103) ->  | EW104: Total | EX104: =SUM(EX97:EX103) -> 0 | EY104: =SUM(EY97:EY103) ->  | EZ104: =SUM(EZ97:EZ103) ->  | FC104: =SUM(FC97:FC103) ->  | FD104: =SUM(FD97:FD103) ->  | FN104: =SUM(FN97:FN103) ->  | FO104: =SUM(FO97:FO103) ->  | FP104: =SUM(FP97:FP103) ->  | FQ104: =SUM(FQ97:FQ103) ->  | GC104: =SUM(GC97:GC103) ->  | GD104: =SUM(GD97:GD103) ->  | GF104: Total | GG104: =SUM(GG97:GG103) -> 0 | GH104: =SUM(GH97:GH103) ->  | GI104: =SUM(GI97:GI103) ->  | GL104: =SUM(GL97:GL103) ->  | GM104: =SUM(GM97:GM103) ->  | GN104: =SUM(GN97:GN103) ->  | GW104: =SUM(GW97:GW103) ->  | GX104: =SUM(GX97:GX103) ->  | GY104: =SUM(GY97:GY103) ->  | GZ104: =SUM(GZ97:GZ103) ->  | HL104: =SUM(HL97:HL103) ->  | HM104: =SUM(HM97:HM103) ->  | HO104: Total | HP104: =SUM(HP97:HP103) -> 0 | HQ104: =SUM(HQ97:HQ103) ->  | HR104: =SUM(HR97:HR103) ->  | HU104: =SUM(HU97:HU103) ->  | HV104: =SUM(HV97:HV103) ->  | IF104: =SUM(IF97:IF103) ->  | IG104: =SUM(IG97:IG103) ->  | IH104: =SUM(IH97:IH103) ->  | II104: =SUM(II97:II103) ->  | IU104: =SUM(IU97:IU103) ->  | IV104: =SUM(IV97:IV103) ->  | IX104: Total | IY104: =SUM(IY97:IY103) -> 0 | IZ104: =SUM(IZ97:IZ103) ->  | JA104: =SUM(JA97:JA103) ->  | JD104: =SUM(JD97:JD103) ->  | JE104: =SUM(JE97:JE103) ->  | JO104: =SUM(JO97:JO103) ->  | JP104: =SUM(JP97:JP103) ->  | JQ104: =SUM(JQ97:JQ103) ->  | JR104: =SUM(JR97:JR103) ->  | KD104: =SUM(KD97:KD103) ->  | KE104: =SUM(KE97:KE103) ->  | KG104: Total | KH104: =SUM(KH97:KH103) -> 0 | KI104: =SUM(KI97:KI103) ->  | KJ104: =SUM(KJ97:KJ103) ->  | KM104: =SUM(KM97:KM103) ->  | KN104: =SUM(KN97:KN103) ->  | KX104: =SUM(KX97:KX103) ->  | KY104: =SUM(KY97:KY103) ->  | KZ104: =SUM(KZ97:KZ103) ->  | LA104: =SUM(LA97:LA103) ->  | LM104: =SUM(LM97:LM103) ->  | LN104: =SUM(LN97:LN103) ->  | LP104: Total | LQ104: =SUM(LQ97:LQ103) -> 0 | LR104: =SUM(LR97:LR103) ->  | LS104: =SUM(LS97:LS103) ->  | LV104: =SUM(LV97:LV103) ->  | LW104: =SUM(LW97:LW103) ->  | MF104: =SUM(MF97:MF103) ->  | MG104: =SUM(MG97:MG103) ->  | MH104: =SUM(MH97:MH103) ->  | MI104: =SUM(MI97:MI103) ->  | MJ104: =SUM(MJ97:MJ103) ->  | MV104: =SUM(MV97:MV103) ->  | MW104: =SUM(MW97:MW103) -> 
B105: 10 | C105: ='Regional Project List Sheet'!F14 -> 0 | D105: =IF('Regional Project List Sheet'!$G14="New",1,"") ->  | E105: =IF('Regional Project List Sheet'!$G14="Funded Old",1,"") ->  | F105: =IF('Regional Project List Sheet'!$G14="Unfunded Old",1,"") ->  | G105: ='Regional Project List Sheet'!H14 -> 0 | H105: ='Regional Project List Sheet'!I14 -> 0 | I105: ='Regional Project List Sheet'!L14 -> 0 | J105: ='Regional Project List Sheet'!M14 -> 0 | K105: ='Regional Project List Sheet'!N14 -> 0 | L105: ='Regional Project List Sheet'!O14 -> 0 | M105: ='Regional Project List Sheet'!P14 -> 0 | N105: =IF('Regional Project List Sheet'!$Q14="N/A","N/A",IF($Y108<>0,5,IF($Z108<>0,4,IF($AA108<>0,3,IF($AB108<>0,2,1))))) -> 1 | O105: =VLOOKUP($C105,'[2]Ranking|Priority'!$B$5:$O$40,12,FALSE) ->  | P105: =VLOOKUP($C105,'[2]Ranking|Priority'!$B$5:$O$68,13,FALSE) ->  | Q105: =VLOOKUP($C105,'[2]Ranking|Priority'!$B$5:$O$68,14,FALSE) ->  | R105: ='Regional Project List Sheet'!T14 -> 0 | S105: ='Regional Project List Sheet'!U14 -> 0 | T105: ='Regional Project List Sheet'!V14 -> 0 | U105: ='Regional Project List Sheet'!W14 -> 0 | V105: ='Regional Project List Sheet'!X14 -> 0 | W105: ='Regional Project List Sheet'!Y14 -> Choose from Project List in cell I2 | X105: 0 | AF105: ='Regional Project List Sheet'!AJ14 -> 0 | AG105: =IF(OR('Regional Project List Sheet'!$AA14<>'Regional Project List Sheet'!$A$40,'Regional Project List Sheet'!$AD14<>'Regional Project List Sheet'!$A$40,'Regional Project List Sheet'!$AG14<>'Regional Project List Sheet'!$A$40),_xlfn.CONCAT(IF(ISNUMBER('Regional Project List Sheet'!$AA14),'Regional Project List Sheet'!$A$36,"")," ",IF(ISNUMBER('Regional Project List Sheet'!$AD14),'Regional Project List Sheet'!$A$37,"")," ",IF(ISNUMBER('Regional Project List Sheet'!$AG14),'Regional Project List Sheet'!$A$38,"")),"N/A") -> N/A | AH105: N/A | AI105: =IF(OR('Regional Project List Sheet'!AC14<>'Regional Project List Sheet'!$A$40,'Regional Project List Sheet'!AF14<>'Regional Project List Sheet'!$A$40,'Regional Project List Sheet'!AI14<>'Regional Project List Sheet'!$A$40), IF(LEN(_xlfn.CONCAT(IF('Regional Project List Sheet'!AC14="Yes",'Regional Project List Sheet'!$A$36,"")," ", IF('Regional Project List Sheet'!AF14="Yes",'Regional Project List Sheet'!$A$37,"")," ", IF('Regional Project List Sheet'!AI14="Yes",'Regional Project List Sheet'!$A$38,"")))<3,"No", _xlfn.CONCAT(IF('Regional Project List Sheet'!AC14="Yes",'Regional Project List Sheet'!$A$36,"")," ", IF('Regional Project List Sheet'!AF14="Yes",'Regional Project List Sheet'!$A$37,"")," ", IF('Regional Project List Sheet'!AI14="Yes",'Regional Project List Sheet'!$A$38,"")))) -> FALSE | AJ105: FALSE | AK105: ='Regional Project List Sheet'!AK14 -> 0 | AM105: ='Regional Project List Sheet'!AL14 -> 0 | AO105: 0 | AZ105: 1 | BA105: =IF(AND(BB105="OK",BC105="OK",BD105="OK"),"OK","ERR!") -> OK | BB105: =IF(AND(Y105>0,SUM(BN105:BX105)<1),"ERR!",IF(AND(Z105>0,SUM(BY105:CI105)<1),"ERR!",IF(AND(AA105>0,SUM(CJ105:CT105)<1),"ERR",IF(AND(AB105>0,SUM(CU105:DE105)<1),"ERR",IF(AND(AC105>0,SUM(DF105:DP105)<1),"ERR",IF(AND(AD105>0,SUM(DQ105:EA105)<1),"ERR","OK")))))) -> OK | BC105: =IF(OR(SUM(BN105:BX105)<>1,SUM(BY105:CI105)<>1,SUM(CJ105:CT105)<>1,SUM(CU105:DE105)<>1,SUM(DF105:DP105)<>1,SUM(DQ105:EA105)<>1),"ERR!","OK") -> OK | BD105: =IF(AND(OR(BE105=BK105,BE105=0),OR(BF105=BK105,BF105=0),OR(BG105=BK105,BG105=0),OR(BH105=BK105,BH105=0),OR(BI105=BK105,BI105=0),OR(BJ105=BK105,BJ105=0)),"OK","ERR!") -> OK | BE105: =(BN105*POWER(10,0)+BO105*POWER(10,1)+BP105*POWER(10,2)+BQ105*POWER(10,3)+BR105*POWER(10,4)+BS105*POWER(10,5)+BT105*POWER(10,6)+BU105*POWER(10,7)+BV105*POWER(10,8)+BW105*POWER(10,9)+BX105*POWER(10,10)) -> 100 | BF105: =(BY105*POWER(10,0)+BZ105*POWER(10,1)+CA105*POWER(10,2)+CB105*POWER(10,3)+CC105*POWER(10,4)+CD105*POWER(10,5)+CE105*POWER(10,6)+CF105*POWER(10,7)+CG105*POWER(10,8)+CH105*POWER(10,9)+CI105*POWER(10,10)) -> 100 | BG105: =(CJ105*POWER(10,0)+CK105*POWER(10,1)+CL105*POWER(10,2)+CM105*POWER(10,3)+CN105*POWER(10,4)+CO105*POWER(10,5)+CP105*POWER(10,6)+CQ105*POWER(10,7)+CR105*POWER(10,8)+CS105*POWER(10,9)+CT105*POWER(10,10)) -> 100 | BH105: =(CU105*POWER(10,0)+CV105*POWER(10,1)+CW105*POWER(10,2)+CX105*POWER(10,3)+CY105*POWER(10,4)+CZ105*POWER(10,5)+DA105*POWER(10,6)+DB105*POWER(10,7)+DC105*POWER(10,8)+DD105*POWER(10,9)+DE105*POWER(10,10)) -> 100 | BI105: =(DF105*POWER(10,0)+DG105*POWER(10,1)+DH105*POWER(10,2)+DI105*POWER(10,3)+DJ105*POWER(10,4)+DK105*POWER(10,5)+DL105*POWER(10,6)+DM105*POWER(10,7)+DN105*POWER(10,8)+DO105*POWER(10,9)+DP105*POWER(10,10)) -> 100 | BJ105: =(DQ105*POWER(10,0)+DR105*POWER(10,1)+DS105*POWER(10,2)+DT105*POWER(10,3)+DU105*POWER(10,4)+DV105*POWER(10,5)+DW105*POWER(10,6)+DX105*POWER(10,7)+DY105*POWER(10,8)+DZ105*POWER(10,9)+EA105*POWER(10,10)) -> 100 | BK105: =MAX(BE105:BJ105) -> 100 | BM105: 0 | BP105: 1 | CA105: 1 | CL105: 1 | CW105: 1 | DH105: 1 | DS105: 1 | EC105: 0 | ED105: =($Y105*D$97)/1000 ->  | EG105: =($Z105*D$97)/1000 ->  | EJ105: =($AA105*D$97)/1000 ->  | EM105: =($AB105*D$97)/1000 ->  | EP105: =($AC105*D$97)/1000 ->  | ES105: =($AD105*D$97)/1000 ->  | EW105: 0 | EX105: =$AZ$105*$Y105 -> 0 | EY105: =($AZ$105*$BN105*D$97*$Y105)/1000 ->  | FB105: =($AZ$105*$BO105*D$97*$Y105)/1000 ->  | FE105: =($AZ$105*$BP105*D$97*$Y105)/1000 ->  | FH105: =($AZ$105*$BQ105*D$97*$Y105)/1000 ->  | FK105: =($AZ$105*$BR105*D$97*$Y105)/1000 ->  | FN105: =($AZ$105*$BS105*D$97*$Y105)/1000 ->  | FQ105: =($AZ$105*$BT105*D$97*$Y105)/1000 ->  | FT105: =($AZ$105*$BU105*D$97*$Y105)/1000 ->  | FW105: =($AZ$105*$BV105*D$97*$Y105)/1000 ->  | FZ105: =($AZ$105*$BW105*D$97*$Y105)/1000 ->  | GC105: =($AZ$105*$BX105*D$97*$Y105)/1000 ->  | GF105: 0 | GG105: =$AZ$105*$Z105 -> 0 | GH105: =($AZ$105*$BY105*D$97*$Z105)/1000 ->  | GK105: =($AZ$105*$BZ105*D$97*$Z105)/1000 ->  | GN105: =($AZ$105*$CA105*D$97*$Z105)/1000 ->  | GQ105: =($AZ$105*$CB105*D$97*$Z105)/1000 ->  | GT105: =($AZ$105*$CD105*D$97*$Z105)/1000 ->  | GW105: =($AZ$105*$CD105*D$97*$Z105)/1000 ->  | GZ105: =($AZ$105*$CE105*D$97*$Z105)/1000 ->  | HC105: =($AZ$105*$CF105*D$97*$Z105)/1000 ->  | HF105: =($AZ$105*$CG105*D$97*$Z105)/1000 ->  | HI105: =($AZ$105*$CH105*D$97*$Z105)/1000 ->  | HL105: =($AZ$105*$CI105*D$97*$Z105)/1000 ->  | HO105: 0 | HP105: =$AZ$105*$AA105 -> 0 | HQ105: =($AZ$105*$CJ105*D$97*$AA105)/1000 ->  | HT105: =($AZ$105*$CK105*D$97*$AA105)/1000 ->  | HW105: =($AZ$105*$CL105*D$97*$AA105)/1000 ->  | HZ105: =($AZ$105*$CM105*D$97*$AA105)/1000 ->  | IC105: =($AZ$105*$CN105*D$97*$AA105)/1000 ->  | IF105: =($AZ$105*$CO105*D$97*$AA105)/1000 ->  | II105: =($AZ$105*$CP105*D$97*$AA105)/1000 ->  | IL105: =($AZ$105*$CQ105*D$97*$AA105)/1000 ->  | IO105: =($AZ$105*$CR105*D$97*$AA105)/1000 ->  | IR105: =($AZ$105*$CS105*D$97*$AA105)/1000 ->  | IU105: =($AZ$105*$CT105*D$97*$AA105)/1000 ->  | IX105: 0 | IY105: =$AZ$105*$AB105 -> 0 | IZ105: =($AZ$105*$CU105*D$97*$AB105)/1000 ->  | JC105: =($AZ$105*$CV105*D$97*$AB105)/1000 ->  | JF105: =($AZ$105*$CW105*D$97*$AB105)/1000 ->  | JI105: =($AZ$105*$CX105*D$97*$AB105)/1000 ->  | JL105: =($AZ$105*$CY105*D$97*$AB105)/1000 ->  | JO105: =($AZ$105*$CZ105*D$97*$AB105)/1000 ->  | JR105: =($AZ$105*$DA105*D$97*$AB105)/1000 ->  | JU105: =($AZ$105*$DB105*D$97*$AB105)/1000 ->  | JX105: =($AZ$105*$DC105*D$97*$AB105)/1000 ->  | KA105: =($AZ$105*$DD105*D$97*$AB105)/1000 ->  | KD105: =($AZ$105*$DE105*D$97*$AB105)/1000 ->  | KG105: 0 | KH105: =$AZ$105*$AC105 -> 0 | KI105: =($AZ$105*$DF105*D$97*$AC105)/1000 ->  | KL105: =($AZ$105*$DG105*D$97*$AC105)/1000 ->  | KO105: =($AZ$105*$DH105*D$97*$AC105)/1000 ->  | KR105: =($AZ$105*$DI105*D$97*$AC105)/1000 ->  | KU105: =($AZ$105*$DJ105*D$97*$AC105)/1000 ->  | KX105: =($AZ$105*$DK105*D$97*$AC105)/1000 ->  | LA105: =($AZ$105*$DL105*D$97*$AC105)/1000 ->  | LD105: =($AZ$105*$DM105*D$97*$AC105)/1000 ->  | LG105: =($AZ$105*$DN105*D$97*$AC105)/1000 ->  | LJ105: =($AZ$105*$DO105*D$97*$AC105)/1000 ->  | LM105: =($AZ$105*$DP105*D$97*$AC105)/1000 ->  | LP105: 0 | LQ105: =$AZ$105*$AD105 -> 0 | LR105: =($AZ$105*$DQ105*D$97*$AD105)/1000 ->  | LU105: =($AZ$105*$DR105*D$97*$AD105)/1000 ->  | LX105: =($AZ$105*$DS105*D$97*$AD105)/1000 ->  | MA105: =($AZ$105*$DT105*D$97*$AD105)/1000 ->  | MD105: =($AZ$105*$DU105*D$97*$AD105)/1000 ->  | MG105: =($AZ$105*$DV105*D$97*$AD105)/1000 ->  | MJ105: =($AZ$105*$DW105*D$97*$AD105)/1000 ->  | MM105: =($AZ$105*$DX105*D$97*$AD105)/1000 ->  | MP105: =($AZ$105*$DY105*D$97*$AD105)/1000 ->  | MS105: =($AZ$105*$DZ105*D$97*$AD105)/1000 ->  | MV105: =($AZ$105*$EA105*D$97*$AD105)/1000 -> 
X106: 2 | AH106: N/A | AJ106: FALSE | AO106: 2 | BA106: =IF(AND(BB106="OK",BC106="OK",BD106="OK"),"OK","ERR!") -> OK | BB106: OK | BC106: =IF(OR(SUM(BN106:BX106)<>1,SUM(BY106:CI106)<>1,SUM(CJ106:CT106)<>1,SUM(CU106:DE106)<>1,SUM(DF106:DP106)<>1,SUM(DQ106:EA106)<>1),"ERR!","OK") -> OK | BD106: =IF(AND(OR(BE106=BK106,BE106=0),OR(BF106=BK106,BF106=0),OR(BG106=BK106,BG106=0),OR(BH106=BK106,BH106=0),OR(BI106=BK106,BI106=0),OR(BJ106=BK106,BJ106=0)),"OK","ERR!") -> OK | BE106: =(BN106*POWER(10,0)+BO106*POWER(10,1)+BP106*POWER(10,2)+BQ106*POWER(10,3)+BR106*POWER(10,4)+BS106*POWER(10,5)+BT106*POWER(10,6)+BU106*POWER(10,7)+BV106*POWER(10,8)+BW106*POWER(10,9)+BX106*POWER(10,10)) -> 100 | BF106: =(BY106*POWER(10,0)+BZ106*POWER(10,1)+CA106*POWER(10,2)+CB106*POWER(10,3)+CC106*POWER(10,4)+CD106*POWER(10,5)+CE106*POWER(10,6)+CF106*POWER(10,7)+CG106*POWER(10,8)+CH106*POWER(10,9)+CI106*POWER(10,10)) -> 100 | BG106: =(CJ106*POWER(10,0)+CK106*POWER(10,1)+CL106*POWER(10,2)+CM106*POWER(10,3)+CN106*POWER(10,4)+CO106*POWER(10,5)+CP106*POWER(10,6)+CQ106*POWER(10,7)+CR106*POWER(10,8)+CS106*POWER(10,9)+CT106*POWER(10,10)) -> 100 | BH106: =(CU106*POWER(10,0)+CV106*POWER(10,1)+CW106*POWER(10,2)+CX106*POWER(10,3)+CY106*POWER(10,4)+CZ106*POWER(10,5)+DA106*POWER(10,6)+DB106*POWER(10,7)+DC106*POWER(10,8)+DD106*POWER(10,9)+DE106*POWER(10,10)) -> 100 | BI106: =(DF106*POWER(10,0)+DG106*POWER(10,1)+DH106*POWER(10,2)+DI106*POWER(10,3)+DJ106*POWER(10,4)+DK106*POWER(10,5)+DL106*POWER(10,6)+DM106*POWER(10,7)+DN106*POWER(10,8)+DO106*POWER(10,9)+DP106*POWER(10,10)) -> 100 | BJ106: =(DQ106*POWER(10,0)+DR106*POWER(10,1)+DS106*POWER(10,2)+DT106*POWER(10,3)+DU106*POWER(10,4)+DV106*POWER(10,5)+DW106*POWER(10,6)+DX106*POWER(10,7)+DY106*POWER(10,8)+DZ106*POWER(10,9)+EA106*POWER(10,10)) -> 100 | BK106: =MAX(BE106:BJ106) -> 100 | BM106: 2 | BP106: 1 | CA106: 1 | CL106: 1 | CW106: 1 | DH106: 1 | DS106: 1 | EC106: 2 | EW106: 2 | EX106: 0 | GF106: 2 | GG106: 0 | HO106: 2 | HP106: 0 | IX106: 2 | IY106: 0 | KG106: 2 | KH106: 0 | LP106: 2 | LQ106: 0
X107: 3 | AH107: N/A | AJ107: FALSE | AO107: 3 | BA107: =IF(AND(BB107="OK",BC107="OK",BD107="OK"),"OK","ERR!") -> OK | BB107: OK | BC107: =IF(OR(SUM(BN107:BX107)<>1,SUM(BY107:CI107)<>1,SUM(CJ107:CT107)<>1,SUM(CU107:DE107)<>1,SUM(DF107:DP107)<>1,SUM(DQ107:EA107)<>1),"ERR!","OK") -> OK | BD107: =IF(AND(OR(BE107=BK107,BE107=0),OR(BF107=BK107,BF107=0),OR(BG107=BK107,BG107=0),OR(BH107=BK107,BH107=0),OR(BI107=BK107,BI107=0),OR(BJ107=BK107,BJ107=0)),"OK","ERR!") -> OK | BE107: 100 | BF107: 100 | BG107: 100 | BH107: 100 | BI107: 100 | BJ107: 100 | BK107: =MAX(BE107:BJ107) -> 100 | BM107: 3 | BP107: 1 | CA107: 1 | CL107: 1 | CW107: 1 | DH107: 1 | DS107: 1 | EC107: 3 | EW107: 3 | EX107: 0 | GF107: 3 | GG107: 0 | HO107: 3 | HP107: 0 | IX107: 3 | IY107: 0 | KG107: 3 | KH107: 0 | LP107: 3 | LQ107: 0
X108: 4 | AH108: N/A | AJ108: FALSE | AO108: 4 | BA108: =IF(AND(BB108="OK",BC108="OK",BD108="OK"),"OK","ERR!") -> OK | BB108: OK | BC108: OK | BD108: =IF(AND(OR(BE108=BK108,BE108=0),OR(BF108=BK108,BF108=0),OR(BG108=BK108,BG108=0),OR(BH108=BK108,BH108=0),OR(BI108=BK108,BI108=0),OR(BJ108=BK108,BJ108=0)),"OK","ERR!") -> OK | BE108: 100 | BF108: 100 | BG108: 100 | BH108: 100 | BI108: 100 | BJ108: 100 | BK108: 100 | BM108: 4 | BP108: 1 | CA108: 1 | CL108: 1 | CW108: 1 | DH108: 1 | DS108: 1 | EC108: 4 | EW108: 4 | EX108: 0 | GF108: 4 | GG108: 0 | HO108: 4 | HP108: 0 | IX108: 4 | IY108: 0 | KG108: 4 | KH108: 0 | LP108: 4 | LQ108: 0
X109: 7 | AH109: N/A | AJ109: FALSE | AO109: 7 | BA109: =IF(AND(BB109="OK",BC109="OK",BD109="OK"),"OK","ERR!") -> OK | BB109: OK | BC109: OK | BD109: OK | BE109: 100 | BF109: 100 | BG109: 100 | BH109: 100 | BI109: 100 | BJ109: 100 | BK109: 100 | BM109: 7 | BP109: 1 | CA109: 1 | CL109: 1 | CW109: 1 | DH109: 1 | DS109: 1 | EC109: 7 | EW109: 7 | EX109: 0 | GF109: 7 | GG109: 0 | HO109: 7 | HP109: 0 | IX109: 7 | IY109: 0 | KG109: 7 | KH109: 0 | LP109: 7 | LQ109: 0
X110: 8 | AH110: N/A | AJ110: FALSE | AO110: 8 | BA110: OK | BB110: OK | BC110: OK | BD110: OK | BE110: 100 | BF110: 100 | BG110: 100 | BH110: 100 | BI110: 100 | BJ110: 100 | BK110: 100 | BM110: 8 | BP110: 1 | CA110: 1 | CL110: 1 | CW110: 1 | DH110: 1 | DS110: 1 | EC110: 8 | EW110: 8 | EX110: 0 | GF110: 8 | GG110: 0 | HO110: 8 | HP110: 0 | IX110: 8 | IY110: 0 | KG110: 8 | KH110: 0 | LP110: 8 | LQ110: 0
X111: 9 | AH111: N/A | AJ111: FALSE | AO111: 9 | BA111: OK | BB111: OK | BC111: OK | BD111: OK | BE111: 100 | BF111: 100 | BG111: 100 | BH111: =(CU111*POWER(10,0)+CV111*POWER(10,1)+CW111*POWER(10,2)+CX111*POWER(10,3)+CY111*POWER(10,4)+CZ111*POWER(10,5)+DA111*POWER(10,6)+DB111*POWER(10,7)+DC111*POWER(10,8)+DD111*POWER(10,9)+DE111*POWER(10,10)) -> 100 | BI111: =(DF111*POWER(10,0)+DG111*POWER(10,1)+DH111*POWER(10,2)+DI111*POWER(10,3)+DJ111*POWER(10,4)+DK111*POWER(10,5)+DL111*POWER(10,6)+DM111*POWER(10,7)+DN111*POWER(10,8)+DO111*POWER(10,9)+DP111*POWER(10,10)) -> 100 | BJ111: 100 | BK111: 100 | BM111: 9 | BP111: 1 | CA111: 1 | CL111: 1 | CW111: 1 | DH111: 1 | DS111: 1 | EC111: 9 | EW111: 9 | EX111: 0 | GF111: 9 | GG111: 0 | HO111: 9 | HP111: 0 | IX111: 9 | IY111: 0 | KG111: 9 | KH111: 0 | LP111: 9 | LQ111: 0
X112: Total | Y112: =SUM(Y105:Y111) -> 0 | Z112: =SUM(Z105:Z111) -> 0 | AA112: 0 | AB112: 0 | AC112: 0 | AD112: 0 | AH112: N/A | AJ112: FALSE | AO112: Total | BM112: Total | EC112: Total | ED112: =SUM(ED105:ED111) ->  | EE112: =SUM(EE105:EE111) ->  | EF112: =SUM(EF105:EF111) ->  | EG112: =SUM(EG105:EG111) ->  | EH112: =SUM(EH105:EH111) ->  | EI112: =SUM(EI105:EI111) ->  | EW112: Total | EX112: =SUM(EX105:EX111) -> 0 | EY112: =SUM(EY105:EY111) ->  | EZ112: =SUM(EZ105:EZ111) ->  | FC112: =SUM(FC105:FC111) ->  | FD112: =SUM(FD105:FD111) ->  | FN112: =SUM(FN105:FN111) ->  | FO112: =SUM(FO105:FO111) ->  | FP112: =SUM(FP105:FP111) ->  | FQ112: =SUM(FQ105:FQ111) ->  | GC112: =SUM(GC105:GC111) ->  | GD112: =SUM(GD105:GD111) ->  | GF112: Total | GG112: =SUM(GG105:GG111) -> 0 | GH112: =SUM(GH105:GH111) ->  | GI112: =SUM(GI105:GI111) ->  | GL112: =SUM(GL105:GL111) ->  | GM112: =SUM(GM105:GM111) ->  | GN112: =SUM(GN105:GN111) ->  | GW112: =SUM(GW105:GW111) ->  | GX112: =SUM(GX105:GX111) ->  | GY112: =SUM(GY105:GY111) ->  | GZ112: =SUM(GZ105:GZ111) ->  | HL112: =SUM(HL105:HL111) ->  | HM112: =SUM(HM105:HM111) ->  | HO112: Total | HP112: =SUM(HP105:HP111) -> 0 | HQ112: =SUM(HQ105:HQ111) ->  | HR112: =SUM(HR105:HR111) ->  | HU112: =SUM(HU105:HU111) ->  | HV112: =SUM(HV105:HV111) ->  | IF112: =SUM(IF105:IF111) ->  | IG112: =SUM(IG105:IG111) ->  | IH112: =SUM(IH105:IH111) ->  | II112: =SUM(II105:II111) ->  | IU112: =SUM(IU105:IU111) ->  | IV112: =SUM(IV105:IV111) ->  | IX112: Total | IY112: =SUM(IY105:IY111) -> 0 | IZ112: =SUM(IZ105:IZ111) ->  | JA112: =SUM(JA105:JA111) ->  | JD112: =SUM(JD105:JD111) ->  | JE112: =SUM(JE105:JE111) ->  | JO112: =SUM(JO105:JO111) ->  | JP112: =SUM(JP105:JP111) ->  | JQ112: =SUM(JQ105:JQ111) ->  | JR112: =SUM(JR105:JR111) ->  | KD112: =SUM(KD105:KD111) ->  | KE112: =SUM(KE105:KE111) ->  | KG112: Total | KH112: =SUM(KH105:KH111) -> 0 | KI112: =SUM(KI105:KI111) ->  | KJ112: =SUM(KJ105:KJ111) ->  | KM112: =SUM(KM105:KM111) ->  | KN112: =SUM(KN105:KN111) ->  | KX112: =SUM(KX105:KX111) ->  | KY112: =SUM(KY105:KY111) ->  | KZ112: =SUM(KZ105:KZ111) ->  | LA112: =SUM(LA105:LA111) ->  | LM112: =SUM(LM105:LM111) ->  | LN112: =SUM(LN105:LN111) ->  | LP112: Total | LQ112: =SUM(LQ105:LQ111) -> 0 | LR112: =SUM(LR105:LR111) ->  | LS112: =SUM(LS105:LS111) ->  | LV112: =SUM(LV105:LV111) ->  | LW112: =SUM(LW105:LW111) ->  | MF112: =SUM(MF105:MF111) ->  | MG112: =SUM(MG105:MG111) ->  | MH112: =SUM(MH105:MH111) ->  | MI112: =SUM(MI105:MI111) ->  | MJ112: =SUM(MJ105:MJ111) ->  | MV112: =SUM(MV105:MV111) ->  | MW112: =SUM(MW105:MW111) -> 
B113: 11 | C113: ='Regional Project List Sheet'!F15 -> 0 | D113: =IF('Regional Project List Sheet'!$G15="New",1,"") ->  | E113: =IF('Regional Project List Sheet'!$G15="Funded Old",1,"") ->  | F113: =IF('Regional Project List Sheet'!$G15="Unfunded Old",1,"") ->  | G113: ='Regional Project List Sheet'!H15 -> 0 | H113: ='Regional Project List Sheet'!I15 -> 0 | I113: ='Regional Project List Sheet'!L15 -> 0 | J113: ='Regional Project List Sheet'!M15 -> 0 | K113: ='Regional Project List Sheet'!N15 -> 0 | L113: ='Regional Project List Sheet'!O15 -> 0 | M113: ='Regional Project List Sheet'!P15 -> 0 | N113: =IF('Regional Project List Sheet'!$Q15="N/A","N/A",IF($Y116<>0,5,IF($Z116<>0,4,IF($AA116<>0,3,IF($AB116<>0,2,1))))) -> 1 | O113: =VLOOKUP($C113,'[2]Ranking|Priority'!$B$5:$O$40,12,FALSE) ->  | P113: =VLOOKUP($C113,'[2]Ranking|Priority'!$B$5:$O$68,13,FALSE) ->  | Q113: =VLOOKUP($C113,'[2]Ranking|Priority'!$B$5:$O$68,14,FALSE) ->  | R113: ='Regional Project List Sheet'!T15 -> 0 | S113: ='Regional Project List Sheet'!U15 -> 0 | T113: ='Regional Project List Sheet'!V15 -> 0 | U113: ='Regional Project List Sheet'!W15 -> 0 | V113: ='Regional Project List Sheet'!X15 -> 0 | W113: ='Regional Project List Sheet'!Y15 -> Choose from Project List in cell I2 | X113: 0 | AF113: ='Regional Project List Sheet'!AJ15 -> 0 | AG113: =IF(OR('Regional Project List Sheet'!$AA15<>'Regional Project List Sheet'!$A$40,'Regional Project List Sheet'!$AD15<>'Regional Project List Sheet'!$A$40,'Regional Project List Sheet'!$AG15<>'Regional Project List Sheet'!$A$40),_xlfn.CONCAT(IF(ISNUMBER('Regional Project List Sheet'!$AA15),'Regional Project List Sheet'!$A$36,"")," ",IF(ISNUMBER('Regional Project List Sheet'!$AD15),'Regional Project List Sheet'!$A$37,"")," ",IF(ISNUMBER('Regional Project List Sheet'!$AG15),'Regional Project List Sheet'!$A$38,"")),"N/A") -> N/A | AH113: N/A | AI113: =IF(OR('Regional Project List Sheet'!AC15<>'Regional Project List Sheet'!$A$40,'Regional Project List Sheet'!AF15<>'Regional Project List Sheet'!$A$40,'Regional Project List Sheet'!AI15<>'Regional Project List Sheet'!$A$40), IF(LEN(_xlfn.CONCAT(IF('Regional Project List Sheet'!AC15="Yes",'Regional Project List Sheet'!$A$36,"")," ", IF('Regional Project List Sheet'!AF15="Yes",'Regional Project List Sheet'!$A$37,"")," ", IF('Regional Project List Sheet'!AI15="Yes",'Regional Project List Sheet'!$A$38,"")))<3,"No", _xlfn.CONCAT(IF('Regional Project List Sheet'!AC15="Yes",'Regional Project List Sheet'!$A$36,"")," ", IF('Regional Project List Sheet'!AF15="Yes",'Regional Project List Sheet'!$A$37,"")," ", IF('Regional Project List Sheet'!AI15="Yes",'Regional Project List Sheet'!$A$38,"")))) -> FALSE | AJ113: FALSE | AK113: ='Regional Project List Sheet'!AK15 -> 0 | AL113: PIH occurred 11/12/24 | AM113: ='Regional Project List Sheet'!AL15 -> 0 | AO113: 0 | AZ113: 1 | BA113: =IF(AND(BB113="OK",BC113="OK",BD113="OK"),"OK","ERR!") -> OK | BB113: =IF(AND(Y113>0,SUM(BN113:BX113)<1),"ERR!",IF(AND(Z113>0,SUM(BY113:CI113)<1),"ERR!",IF(AND(AA113>0,SUM(CJ113:CT113)<1),"ERR",IF(AND(AB113>0,SUM(CU113:DE113)<1),"ERR",IF(AND(AC113>0,SUM(DF113:DP113)<1),"ERR",IF(AND(AD113>0,SUM(DQ113:EA113)<1),"ERR","OK")))))) -> OK | BC113: =IF(OR(SUM(BN113:BX113)<>1,SUM(BY113:CI113)<>1,SUM(CJ113:CT113)<>1,SUM(CU113:DE113)<>1,SUM(DF113:DP113)<>1,SUM(DQ113:EA113)<>1),"ERR!","OK") -> OK | BD113: =IF(AND(OR(BE113=BK113,BE113=0),OR(BF113=BK113,BF113=0),OR(BG113=BK113,BG113=0),OR(BH113=BK113,BH113=0),OR(BI113=BK113,BI113=0),OR(BJ113=BK113,BJ113=0)),"OK","ERR!") -> OK | BE113: =(BN113*POWER(10,0)+BO113*POWER(10,1)+BP113*POWER(10,2)+BQ113*POWER(10,3)+BR113*POWER(10,4)+BS113*POWER(10,5)+BT113*POWER(10,6)+BU113*POWER(10,7)+BV113*POWER(10,8)+BW113*POWER(10,9)+BX113*POWER(10,10)) -> 100 | BF113: =(BY113*POWER(10,0)+BZ113*POWER(10,1)+CA113*POWER(10,2)+CB113*POWER(10,3)+CC113*POWER(10,4)+CD113*POWER(10,5)+CE113*POWER(10,6)+CF113*POWER(10,7)+CG113*POWER(10,8)+CH113*POWER(10,9)+CI113*POWER(10,10)) -> 100 | BG113: =(CJ113*POWER(10,0)+CK113*POWER(10,1)+CL113*POWER(10,2)+CM113*POWER(10,3)+CN113*POWER(10,4)+CO113*POWER(10,5)+CP113*POWER(10,6)+CQ113*POWER(10,7)+CR113*POWER(10,8)+CS113*POWER(10,9)+CT113*POWER(10,10)) -> 100 | BH113: =(CU113*POWER(10,0)+CV113*POWER(10,1)+CW113*POWER(10,2)+CX113*POWER(10,3)+CY113*POWER(10,4)+CZ113*POWER(10,5)+DA113*POWER(10,6)+DB113*POWER(10,7)+DC113*POWER(10,8)+DD113*POWER(10,9)+DE113*POWER(10,10)) -> 100 | BI113: =(DF113*POWER(10,0)+DG113*POWER(10,1)+DH113*POWER(10,2)+DI113*POWER(10,3)+DJ113*POWER(10,4)+DK113*POWER(10,5)+DL113*POWER(10,6)+DM113*POWER(10,7)+DN113*POWER(10,8)+DO113*POWER(10,9)+DP113*POWER(10,10)) -> 100 | BJ113: =(DQ113*POWER(10,0)+DR113*POWER(10,1)+DS113*POWER(10,2)+DT113*POWER(10,3)+DU113*POWER(10,4)+DV113*POWER(10,5)+DW113*POWER(10,6)+DX113*POWER(10,7)+DY113*POWER(10,8)+DZ113*POWER(10,9)+EA113*POWER(10,10)) -> 100 | BK113: =MAX(BE113:BJ113) -> 100 | BM113: 0 | BP113: 1 | CA113: 1 | CL113: 1 | CW113: 1 | DH113: 1 | DS113: 1 | EC113: 0 | ED113: =($Y113*D$113)/1000 ->  | EG113: =($Z113*D$113)/1000 ->  | EJ113: =($AA113*D$113)/1000 ->  | EM113: =($AB113*D$113)/1000 ->  | EP113: =($AC113*D$113)/1000 ->  | ES113: =($AD113*D$113)/1000 ->  | EW113: 0 | EX113: =$AZ$113*$Y113 -> 0 | EY113: =($AZ$113*$BN113*D$113*$Y113)/1000 ->  | FB113: =($AZ$113*$BO113*D$113*$Y113)/1000 ->  | FE113: =($AZ$113*$BP113*D$113*$Y113)/1000 ->  | FH113: =($AZ$113*$BQ113*D$113*$Y113)/1000 ->  | FK113: =($AZ$113*$BR113*D$113*$Y113)/1000 ->  | FN113: =($AZ$113*$BS113*D$113*$Y113)/1000 ->  | FQ113: =($AZ$113*$BT113*D$113*$Y113)/1000 ->  | FT113: =($AZ$113*$BU113*D$113*$Y113)/1000 ->  | FW113: =($AZ$113*$BV113*D$113*$Y113)/1000 ->  | FZ113: =($AZ$113*$BW113*D$113*$Y113)/1000 ->  | GC113: =($AZ$113*$BX113*D$113*$Y113)/1000 ->  | GF113: 0 | GG113: =$AZ$113*$Z113 -> 0 | GH113: =($AZ$113*$BY113*D$113*$Z113)/1000 ->  | GK113: =($AZ$113*$BZ113*D$113*$Z113)/1000 ->  | GN113: =($AZ$113*$CA113*D$113*$Z113)/1000 ->  | GQ113: =($AZ$113*$CB113*D$113*$Z113)/1000 ->  | GT113: =($AZ$113*$CD113*D$113*$Z113)/1000 ->  | GW113: =($AZ$113*$CD113*D$113*$Z113)/1000 ->  | GZ113: =($AZ$113*$CE113*D$113*$Z113)/1000 ->  | HC113: =($AZ$113*$CF113*D$113*$Z113)/1000 ->  | HF113: =($AZ$113*$CG113*D$113*$Z113)/1000 ->  | HI113: =($AZ$113*$CH113*D$113*$Z113)/1000 ->  | HL113: =($AZ$113*$CI113*D$113*$Z113)/1000 ->  | HO113: 0 | HP113: =$AZ$113*$AA113 -> 0 | HQ113: =($AZ$113*$CJ113*D$113*$AA113)/1000 ->  | HT113: =($AZ$113*$CK113*D$113*$AA113)/1000 ->  | HW113: =($AZ$113*$CL113*D$113*$AA113)/1000 ->  | HZ113: =($AZ$113*$CM113*D$113*$AA113)/1000 ->  | IC113: =($AZ$113*$CN113*D$113*$AA113)/1000 ->  | IF113: =($AZ$113*$CO113*D$113*$AA113)/1000 ->  | II113: =($AZ$113*$CP113*D$113*$AA113)/1000 ->  | IL113: =($AZ$113*$CQ113*D$113*$AA113)/1000 ->  | IO113: =($AZ$113*$CR113*D$113*$AA113)/1000 ->  | IR113: =($AZ$113*$CS113*D$113*$AA113)/1000 ->  | IU113: =($AZ$113*$CT113*D$113*$AA113)/1000 ->  | IX113: 0 | IY113: =$AZ$113*$AB113 -> 0 | IZ113: =($AZ$113*$CU113*D$113*$AB113)/1000 ->  | JC113: =($AZ$113*$CV113*D$113*$AB113)/1000 ->  | JF113: =($AZ$113*$CW113*D$113*$AB113)/1000 ->  | JI113: =($AZ$113*$CX113*D$113*$AB113)/1000 ->  | JL113: =($AZ$113*$CY113*D$113*$AB113)/1000 ->  | JO113: =($AZ$113*$CZ113*D$113*$AB113)/1000 ->  | JR113: =($AZ$113*$DA113*D$113*$AB113)/1000 ->  | JU113: =($AZ$113*$DB113*D$113*$AB113)/1000 ->  | JX113: =($AZ$113*$DC113*D$113*$AB113)/1000 ->  | KA113: =($AZ$113*$DD113*D$113*$AB113)/1000 ->  | KD113: =($AZ$113*$DE113*D$113*$AB113)/1000 ->  | KG113: 0 | KH113: =$AZ$113*$AC113 -> 0 | KI113: =($AZ$113*$DF113*D$113*$AC113)/1000 ->  | KL113: =($AZ$113*$DG113*D$113*$AC113)/1000 ->  | KO113: =($AZ$113*$DH113*D$113*$AC113)/1000 ->  | KR113: =($AZ$113*$DI113*D$113*$AC113)/1000 ->  | KU113: =($AZ$113*$DJ113*D$113*$AC113)/1000 ->  | KX113: =($AZ$113*$DK113*D$113*$AC113)/1000 ->  | LA113: =($AZ$113*$DL113*D$113*$AC113)/1000 ->  | LD113: =($AZ$113*$DM113*D$113*$AC113)/1000 ->  | LG113: =($AZ$113*$DN113*D$113*$AC113)/1000 ->  | LJ113: =($AZ$113*$DO113*D$113*$AC113)/1000 ->  | LM113: =($AZ$113*$DP113*D$113*$AC113)/1000 ->  | LP113: 0 | LQ113: =$AZ$113*$AD113 -> 0 | LR113: =($AZ$113*$DQ113*D$113*$AD113)/1000 ->  | LU113: =($AZ$113*$DR113*D$113*$AD113)/1000 ->  | LX113: =($AZ$113*$DS113*D$113*$AD113)/1000 ->  | MA113: =($AZ$113*$DT113*D$113*$AD113)/1000 ->  | MD113: =($AZ$113*$DU113*D$113*$AD113)/1000 ->  | MG113: =($AZ$113*$DV113*D$113*$AD113)/1000 ->  | MJ113: =($AZ$113*$DW113*D$113*$AD113)/1000 ->  | MM113: =($AZ$113*$DX113*D$113*$AD113)/1000 ->  | MP113: =($AZ$113*$DY113*D$113*$AD113)/1000 ->  | MS113: =($AZ$113*$DZ113*D$113*$AD113)/1000 ->  | MV113: =($AZ$113*$EA113*D$113*$AD113)/1000 -> 
X114: 2 | AH114: N/A | AJ114: FALSE | AO114: 2 | BA114: =IF(AND(BB114="OK",BC114="OK",BD114="OK"),"OK","ERR!") -> OK | BB114: OK | BC114: =IF(OR(SUM(BN114:BX114)<>1,SUM(BY114:CI114)<>1,SUM(CJ114:CT114)<>1,SUM(CU114:DE114)<>1,SUM(DF114:DP114)<>1,SUM(DQ114:EA114)<>1),"ERR!","OK") -> OK | BD114: =IF(AND(OR(BE114=BK114,BE114=0),OR(BF114=BK114,BF114=0),OR(BG114=BK114,BG114=0),OR(BH114=BK114,BH114=0),OR(BI114=BK114,BI114=0),OR(BJ114=BK114,BJ114=0)),"OK","ERR!") -> OK | BE114: =(BN114*POWER(10,0)+BO114*POWER(10,1)+BP114*POWER(10,2)+BQ114*POWER(10,3)+BR114*POWER(10,4)+BS114*POWER(10,5)+BT114*POWER(10,6)+BU114*POWER(10,7)+BV114*POWER(10,8)+BW114*POWER(10,9)+BX114*POWER(10,10)) -> 100 | BF114: =(BY114*POWER(10,0)+BZ114*POWER(10,1)+CA114*POWER(10,2)+CB114*POWER(10,3)+CC114*POWER(10,4)+CD114*POWER(10,5)+CE114*POWER(10,6)+CF114*POWER(10,7)+CG114*POWER(10,8)+CH114*POWER(10,9)+CI114*POWER(10,10)) -> 100 | BG114: =(CJ114*POWER(10,0)+CK114*POWER(10,1)+CL114*POWER(10,2)+CM114*POWER(10,3)+CN114*POWER(10,4)+CO114*POWER(10,5)+CP114*POWER(10,6)+CQ114*POWER(10,7)+CR114*POWER(10,8)+CS114*POWER(10,9)+CT114*POWER(10,10)) -> 100 | BH114: =(CU114*POWER(10,0)+CV114*POWER(10,1)+CW114*POWER(10,2)+CX114*POWER(10,3)+CY114*POWER(10,4)+CZ114*POWER(10,5)+DA114*POWER(10,6)+DB114*POWER(10,7)+DC114*POWER(10,8)+DD114*POWER(10,9)+DE114*POWER(10,10)) -> 100 | BI114: =(DF114*POWER(10,0)+DG114*POWER(10,1)+DH114*POWER(10,2)+DI114*POWER(10,3)+DJ114*POWER(10,4)+DK114*POWER(10,5)+DL114*POWER(10,6)+DM114*POWER(10,7)+DN114*POWER(10,8)+DO114*POWER(10,9)+DP114*POWER(10,10)) -> 100 | BJ114: =(DQ114*POWER(10,0)+DR114*POWER(10,1)+DS114*POWER(10,2)+DT114*POWER(10,3)+DU114*POWER(10,4)+DV114*POWER(10,5)+DW114*POWER(10,6)+DX114*POWER(10,7)+DY114*POWER(10,8)+DZ114*POWER(10,9)+EA114*POWER(10,10)) -> 100 | BK114: =MAX(BE114:BJ114) -> 100 | BM114: 2 | BP114: 1 | CA114: 1 | CL114: 1 | CW114: 1 | DH114: 1 | DS114: 1 | EC114: 2 | EW114: 2 | EX114: 0 | GF114: 2 | GG114: 0 | HO114: 2 | HP114: 0 | IX114: 2 | IY114: 0 | KG114: 2 | KH114: 0 | LP114: 2 | LQ114: 0
X115: 3 | AH115: N/A | AJ115: FALSE | AO115: 3 | BA115: =IF(AND(BB115="OK",BC115="OK",BD115="OK"),"OK","ERR!") -> OK | BB115: OK | BC115: =IF(OR(SUM(BN115:BX115)<>1,SUM(BY115:CI115)<>1,SUM(CJ115:CT115)<>1,SUM(CU115:DE115)<>1,SUM(DF115:DP115)<>1,SUM(DQ115:EA115)<>1),"ERR!","OK") -> OK | BD115: =IF(AND(OR(BE115=BK115,BE115=0),OR(BF115=BK115,BF115=0),OR(BG115=BK115,BG115=0),OR(BH115=BK115,BH115=0),OR(BI115=BK115,BI115=0),OR(BJ115=BK115,BJ115=0)),"OK","ERR!") -> OK | BE115: 100 | BF115: 100 | BG115: 100 | BH115: 100 | BI115: 100 | BJ115: 100 | BK115: =MAX(BE115:BJ115) -> 100 | BM115: 3 | BP115: 1 | CA115: 1 | CL115: 1 | CW115: 1 | DH115: 1 | DS115: 1 | EC115: 3 | EW115: 3 | EX115: 0 | GF115: 3 | GG115: 0 | HO115: 3 | HP115: 0 | IX115: 3 | IY115: 0 | KG115: 3 | KH115: 0 | LP115: 3 | LQ115: 0
X116: 4 | AH116: N/A | AJ116: FALSE | AO116: 4 | BA116: =IF(AND(BB116="OK",BC116="OK",BD116="OK"),"OK","ERR!") -> OK | BB116: OK | BC116: OK | BD116: =IF(AND(OR(BE116=BK116,BE116=0),OR(BF116=BK116,BF116=0),OR(BG116=BK116,BG116=0),OR(BH116=BK116,BH116=0),OR(BI116=BK116,BI116=0),OR(BJ116=BK116,BJ116=0)),"OK","ERR!") -> OK | BE116: 100 | BF116: 100 | BG116: 100 | BH116: 100 | BI116: 100 | BJ116: 100 | BK116: 100 | BM116: 4 | BP116: 1 | CA116: 1 | CL116: 1 | CW116: 1 | DH116: 1 | DS116: 1 | EC116: 4 | EW116: 4 | EX116: 0 | GF116: 4 | GG116: 0 | HO116: 4 | HP116: 0 | IX116: 4 | IY116: 0 | KG116: 4 | KH116: 0 | LP116: 4 | LQ116: 0
X117: 7 | AH117: N/A | AJ117: FALSE | AO117: 7 | BA117: =IF(AND(BB117="OK",BC117="OK",BD117="OK"),"OK","ERR!") -> OK | BB117: OK | BC117: OK | BD117: OK | BE117: 100 | BF117: 100 | BG117: 100 | BH117: 100 | BI117: 100 | BJ117: 100 | BK117: 100 | BM117: 7 | BP117: 1 | CA117: 1 | CL117: 1 | CW117: 1 | DH117: 1 | DS117: 1 | EC117: 7 | EW117: 7 | EX117: 0 | GF117: 7 | GG117: 0 | HO117: 7 | HP117: 0 | IX117: 7 | IY117: 0 | KG117: 7 | KH117: 0 | LP117: 7 | LQ117: 0
X118: 8 | AH118: N/A | AJ118: FALSE | AO118: 8 | BA118: OK | BB118: OK | BC118: OK | BD118: OK | BE118: 100 | BF118: 100 | BG118: 100 | BH118: 100 | BI118: 100 | BJ118: 100 | BK118: 100 | BM118: 8 | BP118: 1 | CA118: 1 | CL118: 1 | CW118: 1 | DH118: 1 | DS118: 1 | EC118: 8 | EW118: 8 | EX118: 0 | GF118: 8 | GG118: 0 | HO118: 8 | HP118: 0 | IX118: 8 | IY118: 0 | KG118: 8 | KH118: 0 | LP118: 8 | LQ118: 0
X119: 9 | AH119: N/A | AJ119: FALSE | AO119: 9 | BA119: OK | BB119: OK | BC119: OK | BD119: OK | BE119: 100 | BF119: 100 | BG119: 100 | BH119: =(CU119*POWER(10,0)+CV119*POWER(10,1)+CW119*POWER(10,2)+CX119*POWER(10,3)+CY119*POWER(10,4)+CZ119*POWER(10,5)+DA119*POWER(10,6)+DB119*POWER(10,7)+DC119*POWER(10,8)+DD119*POWER(10,9)+DE119*POWER(10,10)) -> 100 | BI119: =(DF119*POWER(10,0)+DG119*POWER(10,1)+DH119*POWER(10,2)+DI119*POWER(10,3)+DJ119*POWER(10,4)+DK119*POWER(10,5)+DL119*POWER(10,6)+DM119*POWER(10,7)+DN119*POWER(10,8)+DO119*POWER(10,9)+DP119*POWER(10,10)) -> 100 | BJ119: 100 | BK119: 100 | BM119: 9 | BP119: 1 | CA119: 1 | CL119: 1 | CW119: 1 | DH119: 1 | DS119: 1 | EC119: 9 | EW119: 9 | EX119: 0 | GF119: 9 | GG119: 0 | HO119: 9 | HP119: 0 | IX119: 9 | IY119: 0 | KG119: 9 | KH119: 0 | LP119: 9 | LQ119: 0
X120: Total | Y120: =SUM(Y113:Y119) -> 0 | Z120: =SUM(Z113:Z119) -> 0 | AA120: 0 | AB120: 0 | AC120: 0 | AD120: 0 | AH120: N/A | AJ120: FALSE | AO120: Total | BM120: Total | EC120: Total | ED120: =SUM(ED113:ED119) ->  | EE120: =SUM(EE113:EE119) ->  | EF120: =SUM(EF113:EF119) ->  | EG120: =SUM(EG113:EG119) ->  | EH120: =SUM(EH113:EH119) ->  | EI120: =SUM(EI113:EI119) ->  | EW120: Total | EX120: =SUM(EX113:EX119) -> 0 | EY120: =SUM(EY113:EY119) ->  | EZ120: =SUM(EZ113:EZ119) ->  | FC120: =SUM(FC113:FC119) ->  | FD120: =SUM(FD113:FD119) ->  | FN120: =SUM(FN113:FN119) ->  | FO120: =SUM(FO113:FO119) ->  | FP120: =SUM(FP113:FP119) ->  | FQ120: =SUM(FQ113:FQ119) ->  | GC120: =SUM(GC113:GC119) ->  | GD120: =SUM(GD113:GD119) ->  | GF120: Total | GG120: =SUM(GG113:GG119) -> 0 | GH120: =SUM(GH113:GH119) ->  | GI120: =SUM(GI113:GI119) ->  | GL120: =SUM(GL113:GL119) ->  | GM120: =SUM(GM113:GM119) ->  | GN120: =SUM(GN113:GN119) ->  | GW120: =SUM(GW113:GW119) ->  | GX120: =SUM(GX113:GX119) ->  | GY120: =SUM(GY113:GY119) ->  | GZ120: =SUM(GZ113:GZ119) ->  | HL120: =SUM(HL113:HL119) ->  | HM120: =SUM(HM113:HM119) ->  | HO120: Total | HP120: =SUM(HP113:HP119) -> 0 | HQ120: =SUM(HQ113:HQ119) ->  | HR120: =SUM(HR113:HR119) ->  | HU120: =SUM(HU113:HU119) ->  | HV120: =SUM(HV113:HV119) ->  | IF120: =SUM(IF113:IF119) ->  | IG120: =SUM(IG113:IG119) ->  | IH120: =SUM(IH113:IH119) ->  | II120: =SUM(II113:II119) ->  | IU120: =SUM(IU113:IU119) ->  | IV120: =SUM(IV113:IV119) ->  | IX120: Total | IY120: =SUM(IY113:IY119) -> 0 | IZ120: =SUM(IZ113:IZ119) ->  | JA120: =SUM(JA113:JA119) ->  | JD120: =SUM(JD113:JD119) ->  | JE120: =SUM(JE113:JE119) ->  | JO120: =SUM(JO113:JO119) ->  | JP120: =SUM(JP113:JP119) ->  | JQ120: =SUM(JQ113:JQ119) ->  | JR120: =SUM(JR113:JR119) ->  | KD120: =SUM(KD113:KD119) ->  | KE120: =SUM(KE113:KE119) ->  | KG120: Total | KH120: =SUM(KH113:KH119) -> 0 | KI120: =SUM(KI113:KI119) ->  | KJ120: =SUM(KJ113:KJ119) ->  | KM120: =SUM(KM113:KM119) ->  | KN120: =SUM(KN113:KN119) ->  | KX120: =SUM(KX113:KX119) ->  | KY120: =SUM(KY113:KY119) ->  | KZ120: =SUM(KZ113:KZ119) ->  | LA120: =SUM(LA113:LA119) ->  | LM120: =SUM(LM113:LM119) ->  | LN120: =SUM(LN113:LN119) ->  | LP120: Total | LQ120: =SUM(LQ113:LQ119) -> 0 | LR120: =SUM(LR113:LR119) ->  | LS120: =SUM(LS113:LS119) ->  | LV120: =SUM(LV113:LV119) ->  | LW120: =SUM(LW113:LW119) ->  | MF120: =SUM(MF113:MF119) ->  | MG120: =SUM(MG113:MG119) ->  | MH120: =SUM(MH113:MH119) ->  | MI120: =SUM(MI113:MI119) ->  | MJ120: =SUM(MJ113:MJ119) ->  | MV120: =SUM(MV113:MV119) ->  | MW120: =SUM(MW113:MW119) -> 
B121: 12 | C121: ='Regional Project List Sheet'!F16 -> 0 | D121: =IF('Regional Project List Sheet'!$G16="New",1,"") ->  | E121: =IF('Regional Project List Sheet'!$G16="Funded Old",1,"") ->  | F121: =IF('Regional Project List Sheet'!$G16="Unfunded Old",1,"") ->  | G121: ='Regional Project List Sheet'!H16 -> 0 | H121: ='Regional Project List Sheet'!I16 -> 0 | I121: ='Regional Project List Sheet'!L16 -> 0 | J121: ='Regional Project List Sheet'!M16 -> 0 | K121: ='Regional Project List Sheet'!N16 -> 0 | L121: ='Regional Project List Sheet'!O16 -> 0 | M121: ='Regional Project List Sheet'!P16 -> 0 | N121: =IF('Regional Project List Sheet'!$Q16="N/A","N/A",IF($Y124<>0,5,IF($Z124<>0,4,IF($AA124<>0,3,IF($AB124<>0,2,1))))) -> 1 | O121: =VLOOKUP($C121,'[2]Ranking|Priority'!$B$5:$O$68,12,FALSE) ->  | P121: =VLOOKUP($C121,'[2]Ranking|Priority'!$B$5:$O$68,13,FALSE) ->  | Q121: =VLOOKUP($C121,'[2]Ranking|Priority'!$B$5:$O$68,14,FALSE) ->  | R121: ='Regional Project List Sheet'!T16 -> 0 | S121: ='Regional Project List Sheet'!U16 -> 0 | T121: ='Regional Project List Sheet'!V16 -> 0 | U121: ='Regional Project List Sheet'!W16 -> 0 | V121: ='Regional Project List Sheet'!X16 -> 0 | W121: ='Regional Project List Sheet'!Y16 -> Choose from Project List in cell I2 | X121: 0 | AF121: ='Regional Project List Sheet'!AJ16 -> 0 | AG121: =IF(OR('Regional Project List Sheet'!$AA16<>'Regional Project List Sheet'!$A$40,'Regional Project List Sheet'!$AD16<>'Regional Project List Sheet'!$A$40,'Regional Project List Sheet'!$AG16<>'Regional Project List Sheet'!$A$40),_xlfn.CONCAT(IF(ISNUMBER('Regional Project List Sheet'!$AA16),'Regional Project List Sheet'!$A$36,"")," ",IF(ISNUMBER('Regional Project List Sheet'!$AD16),'Regional Project List Sheet'!$A$37,"")," ",IF(ISNUMBER('Regional Project List Sheet'!$AG16),'Regional Project List Sheet'!$A$38,"")),"N/A") -> N/A | AH121: N/A | AI121: =IF(OR('Regional Project List Sheet'!AC16<>'Regional Project List Sheet'!$A$40,'Regional Project List Sheet'!AF16<>'Regional Project List Sheet'!$A$40,'Regional Project List Sheet'!AI16<>'Regional Project List Sheet'!$A$40), IF(LEN(_xlfn.CONCAT(IF('Regional Project List Sheet'!AC16="Yes",'Regional Project List Sheet'!$A$36,"")," ", IF('Regional Project List Sheet'!AF16="Yes",'Regional Project List Sheet'!$A$37,"")," ", IF('Regional Project List Sheet'!AI16="Yes",'Regional Project List Sheet'!$A$38,"")))<3,"No", _xlfn.CONCAT(IF('Regional Project List Sheet'!AC16="Yes",'Regional Project List Sheet'!$A$36,"")," ", IF('Regional Project List Sheet'!AF16="Yes",'Regional Project List Sheet'!$A$37,"")," ", IF('Regional Project List Sheet'!AI16="Yes",'Regional Project List Sheet'!$A$38,"")))) -> FALSE | AJ121: FALSE | AK121: ='Regional Project List Sheet'!AK16 -> 0 | AM121: ='Regional Project List Sheet'!AL16 -> 0 | AO121: 0 | AZ121: 1 | BA121: =IF(AND(BB121="OK",BC121="OK",BD121="OK"),"OK","ERR!") -> OK | BB121: =IF(AND(Y121>0,SUM(BN121:BX121)<1),"ERR!",IF(AND(Z121>0,SUM(BY121:CI121)<1),"ERR!",IF(AND(AA121>0,SUM(CJ121:CT121)<1),"ERR",IF(AND(AB121>0,SUM(CU121:DE121)<1),"ERR",IF(AND(AC121>0,SUM(DF121:DP121)<1),"ERR",IF(AND(AD121>0,SUM(DQ121:EA121)<1),"ERR","OK")))))) -> OK | BC121: =IF(OR(SUM(BN121:BX121)<>1,SUM(BY121:CI121)<>1,SUM(CJ121:CT121)<>1,SUM(CU121:DE121)<>1,SUM(DF121:DP121)<>1,SUM(DQ121:EA121)<>1),"ERR!","OK") -> OK | BD121: =IF(AND(OR(BE121=BK121,BE121=0),OR(BF121=BK121,BF121=0),OR(BG121=BK121,BG121=0),OR(BH121=BK121,BH121=0),OR(BI121=BK121,BI121=0),OR(BJ121=BK121,BJ121=0)),"OK","ERR!") -> OK | BE121: =(BN121*POWER(10,0)+BO121*POWER(10,1)+BP121*POWER(10,2)+BQ121*POWER(10,3)+BR121*POWER(10,4)+BS121*POWER(10,5)+BT121*POWER(10,6)+BU121*POWER(10,7)+BV121*POWER(10,8)+BW121*POWER(10,9)+BX121*POWER(10,10)) -> 100 | BF121: =(BY121*POWER(10,0)+BZ121*POWER(10,1)+CA121*POWER(10,2)+CB121*POWER(10,3)+CC121*POWER(10,4)+CD121*POWER(10,5)+CE121*POWER(10,6)+CF121*POWER(10,7)+CG121*POWER(10,8)+CH121*POWER(10,9)+CI121*POWER(10,10)) -> 100 | BG121: =(CJ121*POWER(10,0)+CK121*POWER(10,1)+CL121*POWER(10,2)+CM121*POWER(10,3)+CN121*POWER(10,4)+CO121*POWER(10,5)+CP121*POWER(10,6)+CQ121*POWER(10,7)+CR121*POWER(10,8)+CS121*POWER(10,9)+CT121*POWER(10,10)) -> 100 | BH121: =(CU121*POWER(10,0)+CV121*POWER(10,1)+CW121*POWER(10,2)+CX121*POWER(10,3)+CY121*POWER(10,4)+CZ121*POWER(10,5)+DA121*POWER(10,6)+DB121*POWER(10,7)+DC121*POWER(10,8)+DD121*POWER(10,9)+DE121*POWER(10,10)) -> 100 | BI121: =(DF121*POWER(10,0)+DG121*POWER(10,1)+DH121*POWER(10,2)+DI121*POWER(10,3)+DJ121*POWER(10,4)+DK121*POWER(10,5)+DL121*POWER(10,6)+DM121*POWER(10,7)+DN121*POWER(10,8)+DO121*POWER(10,9)+DP121*POWER(10,10)) -> 100 | BJ121: =(DQ121*POWER(10,0)+DR121*POWER(10,1)+DS121*POWER(10,2)+DT121*POWER(10,3)+DU121*POWER(10,4)+DV121*POWER(10,5)+DW121*POWER(10,6)+DX121*POWER(10,7)+DY121*POWER(10,8)+DZ121*POWER(10,9)+EA121*POWER(10,10)) -> 100 | BK121: =MAX(BE121:BJ121) -> 100 | BM121: 0 | BP121: 1 | CA121: 1 | CL121: 1 | CW121: 1 | DH121: 1 | DS121: 1 | EC121: 0 | ED121: =($Y121*D$121)/1000 ->  | EE121: =($Y121*E$121)/1000 ->  | EF121: =($Y121*F$121)/1000 ->  | EG121: =($Z121*D$121)/1000 ->  | EJ121: =($AA121*D$121)/1000 ->  | EM121: =($AB121*D$121)/1000 ->  | EP121: =($AC121*D$121)/1000 ->  | ES121: =($AD121*D$121)/1000 ->  | EW121: 0 | EX121: =$AZ$121*$Y121 -> 0 | EY121: =($AZ$121*$BN121*D$121*$Y121)/1000 ->  | EZ121: =($AZ$121*$BN121*E$121*$Y121)/1000 ->  | FA121: =($AZ$121*$BN121*F$121*$Y121)/1000 ->  | FB121: =($AZ$121*$BO121*D$121*$Y121)/1000 ->  | FC121: =($AZ$121*$BO121*E$121*$Y121)/1000 ->  | FD121: =($AZ$121*$BO121*F$121*$Y121)/1000 ->  | FE121: =($AZ$121*$BP121*D$121*$Y121)/1000 ->  | FF121: =($AZ$121*$BP121*E$121*$Y121)/1000 ->  | FG121: =($AZ$121*$BP121*F$121*$Y121)/1000 ->  | FH121: =($AZ$121*$BQ121*D$121*$Y121)/1000 ->  | FI121: =($AZ$121*$BQ121*E$121*$Y121)/1000 ->  | FJ121: =($AZ$121*$BQ121*F$121*$Y121)/1000 ->  | FK121: =($AZ$121*$BR121*D$121*$Y121)/1000 ->  | FL121: =($AZ$121*$BR121*E$121*$Y121)/1000 ->  | FM121: =($AZ$121*$BR121*F$121*$Y121)/1000 ->  | FN121: =($AZ$121*$BS121*D$121*$Y121)/1000 ->  | FO121: =($AZ$121*$BS121*E$121*$Y121)/1000 ->  | FP121: =($AZ$121*$BS121*F$121*$Y121)/1000 ->  | FQ121: =($AZ$121*$BT121*D$121*$Y121)/1000 ->  | FR121: =($AZ$121*$BT121*E$121*$Y121)/1000 ->  | FS121: =($AZ$121*$BT121*F$121*$Y121)/1000 ->  | FT121: =($AZ$121*$BU121*D$121*$Y121)/1000 ->  | FU121: =($AZ$121*$BU121*E$121*$Y121)/1000 ->  | FV121: =($AZ$121*$BU121*F$121*$Y121)/1000 ->  | FW121: =($AZ$121*$BV121*D$121*$Y121)/1000 ->  | FX121: =($AZ$121*$BV121*E$121*$Y121)/1000 ->  | FY121: =($AZ$121*$BV121*F$121*$Y121)/1000 ->  | FZ121: =($AZ$121*$BW121*D$121*$Y121)/1000 ->  | GA121: =($AZ$121*$BW121*E$121*$Y121)/1000 ->  | GB121: =($AZ$121*$BW121*F$121*$Y121)/1000 ->  | GC121: =($AZ$121*$BX121*D$121*$Y121)/1000 ->  | GD121: =($AZ$121*$BX121*E$121*$Y121)/1000 ->  | GE121: =($AZ$121*$BX121*F$121*$Y121)/1000 ->  | GF121: 0 | GG121: =$AZ$121*$Z121 -> 0 | GH121: =($AZ$121*$BY121*D$121*$Z121)/1000 ->  | GK121: =($AZ$121*$BZ121*D$121*$Z121)/1000 ->  | GN121: =($AZ$121*$CA121*D$121*$Z121)/1000 ->  | GQ121: =($AZ$121*$CB121*D$121*$Z121)/1000 ->  | GT121: =($AZ$121*$CD121*D$121*$Z121)/1000 ->  | GW121: =($AZ$121*$CD121*D$121*$Z121)/1000 ->  | GZ121: =($AZ$121*$CE121*D$121*$Z121)/1000 ->  | HC121: =($AZ$121*$CF121*D$121*$Z121)/1000 ->  | HF121: =($AZ$121*$CG121*D$121*$Z121)/1000 ->  | HI121: =($AZ$121*$CH121*D$121*$Z121)/1000 ->  | HL121: =($AZ$121*$CI121*D$121*$Z121)/1000 ->  | HO121: 0 | HP121: =$AZ$121*$AA121 -> 0 | HQ121: =($AZ$121*$CJ121*D$121*$AA121)/1000 ->  | HT121: =($AZ$121*$CK121*D$121*$AA121)/1000 ->  | HW121: =($AZ$121*$CL121*D$121*$AA121)/1000 ->  | HZ121: =($AZ$121*$CM121*D$121*$AA121)/1000 ->  | IC121: =($AZ$121*$CN121*D$121*$AA121)/1000 ->  | IF121: =($AZ$121*$CO121*D$121*$AA121)/1000 ->  | II121: =($AZ$121*$CP121*D$121*$AA121)/1000 ->  | IL121: =($AZ$121*$CQ121*D$121*$AA121)/1000 ->  | IO121: =($AZ$121*$CR121*D$121*$AA121)/1000 ->  | IR121: =($AZ$121*$CS121*D$121*$AA121)/1000 ->  | IU121: =($AZ$121*$CT121*D$121*$AA121)/1000 ->  | IX121: 0 | IY121: =$AZ$121*$AB121 -> 0 | IZ121: =($AZ$121*$CU121*D$121*$AB121)/1000 ->  | JC121: =($AZ$121*$CV121*D$121*$AB121)/1000 ->  | JF121: =($AZ$121*$CW121*D$121*$AB121)/1000 ->  | JI121: =($AZ$121*$CX121*D$121*$AB121)/1000 ->  | JL121: =($AZ$121*$CY121*D$121*$AB121)/1000 ->  | JO121: =($AZ$121*$CZ121*D$121*$AB121)/1000 ->  | JR121: =($AZ$121*$DA121*D$121*$AB121)/1000 ->  | JU121: =($AZ$121*$DB121*D$121*$AB121)/1000 ->  | JX121: =($AZ$121*$DC121*D$121*$AB121)/1000 ->  | KA121: =($AZ$121*$DD121*D$121*$AB121)/1000 ->  | KD121: =($AZ$121*$DE121*D$121*$AB121)/1000 ->  | KG121: 0 | KH121: =$AZ$121*$AC121 -> 0 | KI121: =($AZ$121*$DF121*D$121*$AC121)/1000 ->  | KL121: =($AZ$121*$DG121*D$121*$AC121)/1000 ->  | KO121: =($AZ$121*$DH121*D$121*$AC121)/1000 ->  | KR121: =($AZ$121*$DI121*D$121*$AC121)/1000 ->  | KU121: =($AZ$121*$DJ121*D$121*$AC121)/1000 ->  | KX121: =($AZ$121*$DK121*D$121*$AC121)/1000 ->  | LA121: =($AZ$121*$DL121*D$121*$AC121)/1000 ->  | LD121: =($AZ$121*$DM121*D$121*$AC121)/1000 ->  | LG121: =($AZ$121*$DN121*D$121*$AC121)/1000 ->  | LJ121: =($AZ$121*$DO121*D$121*$AC121)/1000 ->  | LM121: =($AZ$121*$DP121*D$121*$AC121)/1000 ->  | LP121: 0 | LQ121: =$AZ$121*$AD121 -> 0 | LR121: =($AZ$121*$DQ121*D$121*$AD121)/1000 ->  | LU121: =($AZ$121*$DR121*D$121*$AD121)/1000 ->  | LX121: =($AZ$121*$DS121*D$121*$AD121)/1000 ->  | MA121: =($AZ$121*$DT121*D$121*$AD121)/1000 ->  | MD121: =($AZ$121*$DU121*D$121*$AD121)/1000 ->  | MG121: =($AZ$121*$DV121*D$121*$AD121)/1000 ->  | MJ121: =($AZ$121*$DW121*D$121*$AD121)/1000 ->  | MM121: =($AZ$121*$DX121*D$121*$AD121)/1000 ->  | MP121: =($AZ$121*$DY121*D$121*$AD121)/1000 ->  | MS121: =($AZ$121*$DZ121*D$121*$AD121)/1000 ->  | MV121: =($AZ$121*$EA121*D$121*$AD121)/1000 -> 
X122: 2 | AH122: N/A | AJ122: FALSE | AO122: 2 | BA122: =IF(AND(BB122="OK",BC122="OK",BD122="OK"),"OK","ERR!") -> OK | BB122: =IF(AND(Y122>0,SUM(BN122:BX122)<1),"ERR!",IF(AND(Z122>0,SUM(BY122:CI122)<1),"ERR!",IF(AND(AA122>0,SUM(CJ122:CT122)<1),"ERR",IF(AND(AB122>0,SUM(CU122:DE122)<1),"ERR",IF(AND(AC122>0,SUM(DF122:DP122)<1),"ERR",IF(AND(AD122>0,SUM(DQ122:EA122)<1),"ERR","OK")))))) -> OK | BC122: =IF(OR(SUM(BN122:BX122)<>1,SUM(BY122:CI122)<>1,SUM(CJ122:CT122)<>1,SUM(CU122:DE122)<>1,SUM(DF122:DP122)<>1,SUM(DQ122:EA122)<>1),"ERR!","OK") -> OK | BD122: =IF(AND(OR(BE122=BK122,BE122=0),OR(BF122=BK122,BF122=0),OR(BG122=BK122,BG122=0),OR(BH122=BK122,BH122=0),OR(BI122=BK122,BI122=0),OR(BJ122=BK122,BJ122=0)),"OK","ERR!") -> OK | BE122: =(BN122*POWER(10,0)+BO122*POWER(10,1)+BP122*POWER(10,2)+BQ122*POWER(10,3)+BR122*POWER(10,4)+BS122*POWER(10,5)+BT122*POWER(10,6)+BU122*POWER(10,7)+BV122*POWER(10,8)+BW122*POWER(10,9)+BX122*POWER(10,10)) -> 100 | BF122: =(BY122*POWER(10,0)+BZ122*POWER(10,1)+CA122*POWER(10,2)+CB122*POWER(10,3)+CC122*POWER(10,4)+CD122*POWER(10,5)+CE122*POWER(10,6)+CF122*POWER(10,7)+CG122*POWER(10,8)+CH122*POWER(10,9)+CI122*POWER(10,10)) -> 100 | BG122: =(CJ122*POWER(10,0)+CK122*POWER(10,1)+CL122*POWER(10,2)+CM122*POWER(10,3)+CN122*POWER(10,4)+CO122*POWER(10,5)+CP122*POWER(10,6)+CQ122*POWER(10,7)+CR122*POWER(10,8)+CS122*POWER(10,9)+CT122*POWER(10,10)) -> 100 | BH122: =(CU122*POWER(10,0)+CV122*POWER(10,1)+CW122*POWER(10,2)+CX122*POWER(10,3)+CY122*POWER(10,4)+CZ122*POWER(10,5)+DA122*POWER(10,6)+DB122*POWER(10,7)+DC122*POWER(10,8)+DD122*POWER(10,9)+DE122*POWER(10,10)) -> 100 | BI122: =(DF122*POWER(10,0)+DG122*POWER(10,1)+DH122*POWER(10,2)+DI122*POWER(10,3)+DJ122*POWER(10,4)+DK122*POWER(10,5)+DL122*POWER(10,6)+DM122*POWER(10,7)+DN122*POWER(10,8)+DO122*POWER(10,9)+DP122*POWER(10,10)) -> 100 | BJ122: =(DQ122*POWER(10,0)+DR122*POWER(10,1)+DS122*POWER(10,2)+DT122*POWER(10,3)+DU122*POWER(10,4)+DV122*POWER(10,5)+DW122*POWER(10,6)+DX122*POWER(10,7)+DY122*POWER(10,8)+DZ122*POWER(10,9)+EA122*POWER(10,10)) -> 100 | BK122: =MAX(BE122:BJ122) -> 100 | BM122: 2 | BP122: 1 | CA122: 1 | CL122: 1 | CW122: 1 | DH122: 1 | DS122: 1 | EC122: 2 | ED122: =($Y122*D$121)/1000 ->  | EW122: 2 | EX122: =$AZ$121*$Y122 -> 0 | EY122: =($AZ$121*$BN122*D$121*$Y122)/1000 ->  | FB122: =($AZ$121*$BO122*D$121*$Y122)/1000 ->  | FE122: =($AZ$121*$BP122*D$121*$Y122)/1000 ->  | FH122: =($AZ$121*$BQ122*D$121*$Y122)/1000 ->  | FK122: =($AZ$121*$BR122*D$121*$Y122)/1000 ->  | FN122: =($AZ$121*$BS122*D$121*$Y122)/1000 ->  | FQ122: =($AZ$121*$BT122*D$121*$Y122)/1000 ->  | FT122: =($AZ$121*$BU122*D$121*$Y122)/1000 ->  | FW122: =($AZ$121*$BV122*D$121*$Y122)/1000 ->  | FZ122: =($AZ$121*$BW122*D$121*$Y122)/1000 ->  | GC122: =($AZ$121*$BX122*D$121*$Y122)/1000 ->  | GF122: 2 | GG122: 0 | HO122: 2 | HP122: 0 | IX122: 2 | IY122: 0 | KG122: 2 | KH122: 0 | LP122: 2 | LQ122: 0
X123: 3 | AH123: N/A | AJ123: FALSE | AO123: 3 | BA123: =IF(AND(BB123="OK",BC123="OK",BD123="OK"),"OK","ERR!") -> OK | BB123: OK | BC123: =IF(OR(SUM(BN123:BX123)<>1,SUM(BY123:CI123)<>1,SUM(CJ123:CT123)<>1,SUM(CU123:DE123)<>1,SUM(DF123:DP123)<>1,SUM(DQ123:EA123)<>1),"ERR!","OK") -> OK | BD123: =IF(AND(OR(BE123=BK123,BE123=0),OR(BF123=BK123,BF123=0),OR(BG123=BK123,BG123=0),OR(BH123=BK123,BH123=0),OR(BI123=BK123,BI123=0),OR(BJ123=BK123,BJ123=0)),"OK","ERR!") -> OK | BE123: 100 | BF123: 100 | BG123: 100 | BH123: 100 | BI123: 100 | BJ123: 100 | BK123: =MAX(BE123:BJ123) -> 100 | BM123: 3 | BP123: 1 | CA123: 1 | CL123: 1 | CW123: 1 | DH123: 1 | DS123: 1 | EC123: 3 | EW123: 3 | EX123: 0 | GF123: 3 | GG123: 0 | HO123: 3 | HP123: 0 | IX123: 3 | IY123: 0 | KG123: 3 | KH123: 0 | LP123: 3 | LQ123: 0
X124: 4 | AH124: N/A | AJ124: FALSE | AO124: 4 | BA124: =IF(AND(BB124="OK",BC124="OK",BD124="OK"),"OK","ERR!") -> OK | BB124: OK | BC124: OK | BD124: =IF(AND(OR(BE124=BK124,BE124=0),OR(BF124=BK124,BF124=0),OR(BG124=BK124,BG124=0),OR(BH124=BK124,BH124=0),OR(BI124=BK124,BI124=0),OR(BJ124=BK124,BJ124=0)),"OK","ERR!") -> OK | BE124: 100 | BF124: 100 | BG124: 100 | BH124: 100 | BI124: 100 | BJ124: 100 | BK124: 100 | BM124: 4 | BP124: 1 | CA124: 1 | CL124: 1 | CW124: 1 | DH124: 1 | DS124: 1 | EC124: 4 | EW124: 4 | EX124: 0 | GF124: 4 | GG124: 0 | HO124: 4 | HP124: 0 | IX124: 4 | IY124: 0 | KG124: 4 | KH124: 0 | LP124: 4 | LQ124: 0
X125: 7 | AH125: N/A | AJ125: FALSE | AO125: 7 | BA125: =IF(AND(BB125="OK",BC125="OK",BD125="OK"),"OK","ERR!") -> OK | BB125: OK | BC125: OK | BD125: OK | BE125: 100 | BF125: 100 | BG125: 100 | BH125: 100 | BI125: 100 | BJ125: 100 | BK125: 100 | BM125: 7 | BP125: 1 | CA125: 1 | CL125: 1 | CW125: 1 | DH125: 1 | DS125: 1 | EC125: 7 | EW125: 7 | EX125: 0 | GF125: 7 | GG125: 0 | HO125: 7 | HP125: 0 | IX125: 7 | IY125: 0 | KG125: 7 | KH125: 0 | LP125: 7 | LQ125: 0
X126: 8 | AH126: N/A | AJ126: FALSE | AO126: 8 | BA126: OK | BB126: OK | BC126: OK | BD126: OK | BE126: 100 | BF126: 100 | BG126: 100 | BH126: 100 | BI126: 100 | BJ126: 100 | BK126: 100 | BM126: 8 | BP126: 1 | CA126: 1 | CL126: 1 | CW126: 1 | DH126: 1 | DS126: 1 | EC126: 8 | EW126: 8 | EX126: 0 | GF126: 8 | GG126: 0 | HO126: 8 | HP126: 0 | IX126: 8 | IY126: 0 | KG126: 8 | KH126: 0 | LP126: 8 | LQ126: 0
X127: 9 | AH127: N/A | AJ127: FALSE | AO127: 9 | BA127: OK | BB127: OK | BC127: OK | BD127: OK | BE127: 100 | BF127: 100 | BG127: 100 | BH127: =(CU127*POWER(10,0)+CV127*POWER(10,1)+CW127*POWER(10,2)+CX127*POWER(10,3)+CY127*POWER(10,4)+CZ127*POWER(10,5)+DA127*POWER(10,6)+DB127*POWER(10,7)+DC127*POWER(10,8)+DD127*POWER(10,9)+DE127*POWER(10,10)) -> 100 | BI127: =(DF127*POWER(10,0)+DG127*POWER(10,1)+DH127*POWER(10,2)+DI127*POWER(10,3)+DJ127*POWER(10,4)+DK127*POWER(10,5)+DL127*POWER(10,6)+DM127*POWER(10,7)+DN127*POWER(10,8)+DO127*POWER(10,9)+DP127*POWER(10,10)) -> 100 | BJ127: 100 | BK127: 100 | BM127: 9 | BP127: 1 | CA127: 1 | CL127: 1 | CW127: 1 | DH127: 1 | DS127: 1 | EC127: 9 | EW127: 9 | EX127: 0 | GF127: 9 | GG127: 0 | HO127: 9 | HP127: 0 | IX127: 9 | IY127: 0 | KG127: 9 | KH127: 0 | LP127: 9 | LQ127: 0
X128: Total | Y128: =SUM(Y121:Y127) -> 0 | Z128: =SUM(Z121:Z127) -> 0 | AA128: 0 | AB128: 0 | AC128: 0 | AD128: 0 | AH128: N/A | AJ128: FALSE | AO128: Total | BM128: Total | EC128: Total | ED128: =SUM(ED121:ED127) ->  | EE128: =SUM(EE121:EE127) ->  | EF128: =SUM(EF121:EF127) ->  | EG128: =SUM(EG121:EG127) ->  | EH128: =SUM(EH121:EH127) ->  | EI128: =SUM(EI121:EI127) ->  | EW128: Total | EX128: =SUM(EX121:EX127) -> 0 | EY128: =SUM(EY121:EY127) ->  | EZ128: =SUM(EZ121:EZ127) ->  | FC128: =SUM(FC121:FC127) ->  | FD128: =SUM(FD121:FD127) ->  | FN128: =SUM(FN121:FN127) ->  | FO128: =SUM(FO121:FO127) ->  | FP128: =SUM(FP121:FP127) ->  | FQ128: =SUM(FQ121:FQ127) ->  | GC128: =SUM(GC121:GC127) ->  | GD128: =SUM(GD121:GD127) ->  | GF128: Total | GG128: =SUM(GG121:GG127) -> 0 | GH128: =SUM(GH121:GH127) ->  | GI128: =SUM(GI121:GI127) ->  | GL128: =SUM(GL121:GL127) ->  | GM128: =SUM(GM121:GM127) ->  | GN128: =SUM(GN121:GN127) ->  | GW128: =SUM(GW121:GW127) ->  | GX128: =SUM(GX121:GX127) ->  | GY128: =SUM(GY121:GY127) ->  | GZ128: =SUM(GZ121:GZ127) ->  | HL128: =SUM(HL121:HL127) ->  | HM128: =SUM(HM121:HM127) ->  | HO128: Total | HP128: =SUM(HP121:HP127) -> 0 | HQ128: =SUM(HQ121:HQ127) ->  | HR128: =SUM(HR121:HR127) ->  | HU128: =SUM(HU121:HU127) ->  | HV128: =SUM(HV121:HV127) ->  | IF128: =SUM(IF121:IF127) ->  | IG128: =SUM(IG121:IG127) ->  | IH128: =SUM(IH121:IH127) ->  | II128: =SUM(II121:II127) ->  | IU128: =SUM(IU121:IU127) ->  | IV128: =SUM(IV121:IV127) ->  | IX128: Total | IY128: =SUM(IY121:IY127) -> 0 | IZ128: =SUM(IZ121:IZ127) ->  | JA128: =SUM(JA121:JA127) ->  | JD128: =SUM(JD121:JD127) ->  | JE128: =SUM(JE121:JE127) ->  | JO128: =SUM(JO121:JO127) ->  | JP128: =SUM(JP121:JP127) ->  | JQ128: =SUM(JQ121:JQ127) ->  | JR128: =SUM(JR121:JR127) ->  | KD128: =SUM(KD121:KD127) ->  | KE128: =SUM(KE121:KE127) ->  | KG128: Total | KH128: =SUM(KH121:KH127) -> 0 | KI128: =SUM(KI121:KI127) ->  | KJ128: =SUM(KJ121:KJ127) ->  | KM128: =SUM(KM121:KM127) ->  | KN128: =SUM(KN121:KN127) ->  | KX128: =SUM(KX121:KX127) ->  | KY128: =SUM(KY121:KY127) ->  | KZ128: =SUM(KZ121:KZ127) ->  | LA128: =SUM(LA121:LA127) ->  | LM128: =SUM(LM121:LM127) ->  | LN128: =SUM(LN121:LN127) ->  | LP128: Total | LQ128: =SUM(LQ121:LQ127) -> 0 | LR128: =SUM(LR121:LR127) ->  | LS128: =SUM(LS121:LS127) ->  | LV128: =SUM(LV121:LV127) ->  | LW128: =SUM(LW121:LW127) ->  | MF128: =SUM(MF121:MF127) ->  | MG128: =SUM(MG121:MG127) ->  | MH128: =SUM(MH121:MH127) ->  | MI128: =SUM(MI121:MI127) ->  | MJ128: =SUM(MJ121:MJ127) ->  | MV128: =SUM(MV121:MV127) ->  | MW128: =SUM(MW121:MW127) -> 
B129: =B121+1 -> 13 | C129: ='Regional Project List Sheet'!F17 -> 0 | D129: =IF('Regional Project List Sheet'!$G17="New",1,"") ->  | E129: =IF('Regional Project List Sheet'!$G17="Funded Old",1,"") ->  | F129: =IF('Regional Project List Sheet'!$G17="Unfunded Old",1,"") ->  | G129: ='Regional Project List Sheet'!H17 -> 0 | H129: ='Regional Project List Sheet'!I17 -> 0 | I129: ='Regional Project List Sheet'!L17 -> 0 | J129: ='Regional Project List Sheet'!M17 -> 0 | K129: ='Regional Project List Sheet'!N17 -> 0 | L129: ='Regional Project List Sheet'!O17 -> 0 | M129: ='Regional Project List Sheet'!P17 -> 0 | N129: =IF('Regional Project List Sheet'!$Q17="N/A","N/A",IF($Y132<>0,5,IF($Z132<>0,4,IF($AA132<>0,3,IF($AB132<>0,2,1))))) -> 1 | O129: =VLOOKUP($C129,'[2]Ranking|Priority'!$B$5:$O$40,12,FALSE) ->  | P129: =VLOOKUP($C129,'[2]Ranking|Priority'!$B$5:$O$68,13,FALSE) ->  | Q129: =VLOOKUP($C129,'[2]Ranking|Priority'!$B$5:$O$68,14,FALSE) ->  | R129: ='Regional Project List Sheet'!T17 -> 0 | S129: ='Regional Project List Sheet'!U17 -> 0 | T129: ='Regional Project List Sheet'!V17 -> 0 | U129: ='Regional Project List Sheet'!W17 -> 0 | V129: ='Regional Project List Sheet'!X17 -> 0 | W129: ='Regional Project List Sheet'!Y17 -> Choose from Project List in cell I2 | X129: 0 | AF129: ='Regional Project List Sheet'!AJ17 -> 0 | AG129: =IF(OR('Regional Project List Sheet'!$AA17<>'Regional Project List Sheet'!$A$40,'Regional Project List Sheet'!$AD17<>'Regional Project List Sheet'!$A$40,'Regional Project List Sheet'!$AG17<>'Regional Project List Sheet'!$A$40),_xlfn.CONCAT(IF(ISNUMBER('Regional Project List Sheet'!$AA17),'Regional Project List Sheet'!$A$36,"")," ",IF(ISNUMBER('Regional Project List Sheet'!$AD17),'Regional Project List Sheet'!$A$37,"")," ",IF(ISNUMBER('Regional Project List Sheet'!$AG17),'Regional Project List Sheet'!$A$38,"")),"N/A") -> N/A | AH129: N/A | AI129: =IF(OR('Regional Project List Sheet'!AC17<>'Regional Project List Sheet'!$A$40,'Regional Project List Sheet'!AF17<>'Regional Project List Sheet'!$A$40,'Regional Project List Sheet'!AI17<>'Regional Project List Sheet'!$A$40), IF(LEN(_xlfn.CONCAT(IF('Regional Project List Sheet'!AC17="Yes",'Regional Project List Sheet'!$A$36,"")," ", IF('Regional Project List Sheet'!AF17="Yes",'Regional Project List Sheet'!$A$37,"")," ", IF('Regional Project List Sheet'!AI17="Yes",'Regional Project List Sheet'!$A$38,"")))<3,"No", _xlfn.CONCAT(IF('Regional Project List Sheet'!AC17="Yes",'Regional Project List Sheet'!$A$36,"")," ", IF('Regional Project List Sheet'!AF17="Yes",'Regional Project List Sheet'!$A$37,"")," ", IF('Regional Project List Sheet'!AI17="Yes",'Regional Project List Sheet'!$A$38,"")))) -> FALSE | AJ129: FALSE | AK129: ='Regional Project List Sheet'!AK17 -> 0 | AM129: ='Regional Project List Sheet'!AL17 -> 0 | AO129: 0 | AZ129: 1 | BA129: =IF(AND(BB129="OK",BC129="OK",BD129="OK"),"OK","ERR!") -> OK | BB129: =IF(AND(Y129>0,SUM(BN129:BX129)<1),"ERR!",IF(AND(Z129>0,SUM(BY129:CI129)<1),"ERR!",IF(AND(AA129>0,SUM(CJ129:CT129)<1),"ERR",IF(AND(AB129>0,SUM(CU129:DE129)<1),"ERR",IF(AND(AC129>0,SUM(DF129:DP129)<1),"ERR",IF(AND(AD129>0,SUM(DQ129:EA129)<1),"ERR","OK")))))) -> OK | BC129: =IF(OR(SUM(BN129:BX129)<>1,SUM(BY129:CI129)<>1,SUM(CJ129:CT129)<>1,SUM(CU129:DE129)<>1,SUM(DF129:DP129)<>1,SUM(DQ129:EA129)<>1),"ERR!","OK") -> OK | BD129: =IF(AND(OR(BE129=BK129,BE129=0),OR(BF129=BK129,BF129=0),OR(BG129=BK129,BG129=0),OR(BH129=BK129,BH129=0),OR(BI129=BK129,BI129=0),OR(BJ129=BK129,BJ129=0)),"OK","ERR!") -> OK | BE129: =(BN129*POWER(10,0)+BO129*POWER(10,1)+BP129*POWER(10,2)+BQ129*POWER(10,3)+BR129*POWER(10,4)+BS129*POWER(10,5)+BT129*POWER(10,6)+BU129*POWER(10,7)+BV129*POWER(10,8)+BW129*POWER(10,9)+BX129*POWER(10,10)) -> 100 | BF129: =(BY129*POWER(10,0)+BZ129*POWER(10,1)+CA129*POWER(10,2)+CB129*POWER(10,3)+CC129*POWER(10,4)+CD129*POWER(10,5)+CE129*POWER(10,6)+CF129*POWER(10,7)+CG129*POWER(10,8)+CH129*POWER(10,9)+CI129*POWER(10,10)) -> 100 | BG129: =(CJ129*POWER(10,0)+CK129*POWER(10,1)+CL129*POWER(10,2)+CM129*POWER(10,3)+CN129*POWER(10,4)+CO129*POWER(10,5)+CP129*POWER(10,6)+CQ129*POWER(10,7)+CR129*POWER(10,8)+CS129*POWER(10,9)+CT129*POWER(10,10)) -> 100 | BH129: =(CU129*POWER(10,0)+CV129*POWER(10,1)+CW129*POWER(10,2)+CX129*POWER(10,3)+CY129*POWER(10,4)+CZ129*POWER(10,5)+DA129*POWER(10,6)+DB129*POWER(10,7)+DC129*POWER(10,8)+DD129*POWER(10,9)+DE129*POWER(10,10)) -> 100 | BI129: =(DF129*POWER(10,0)+DG129*POWER(10,1)+DH129*POWER(10,2)+DI129*POWER(10,3)+DJ129*POWER(10,4)+DK129*POWER(10,5)+DL129*POWER(10,6)+DM129*POWER(10,7)+DN129*POWER(10,8)+DO129*POWER(10,9)+DP129*POWER(10,10)) -> 100 | BJ129: =(DQ129*POWER(10,0)+DR129*POWER(10,1)+DS129*POWER(10,2)+DT129*POWER(10,3)+DU129*POWER(10,4)+DV129*POWER(10,5)+DW129*POWER(10,6)+DX129*POWER(10,7)+DY129*POWER(10,8)+DZ129*POWER(10,9)+EA129*POWER(10,10)) -> 100 | BK129: =MAX(BE129:BJ129) -> 100 | BM129: 0 | BP129: 1 | CA129: 1 | CL129: 1 | CW129: 1 | DH129: 1 | DS129: 1 | EC129: 0 | ED129: =($Y129*D$129)/1000 ->  | EG129: =($Z129*D$129)/1000 ->  | EJ129: =($AA129*D$129)/1000 ->  | EM129: =($AB129*D$129)/1000 ->  | EP129: =($AC129*D$129)/1000 ->  | ES129: =($AD129*D$129)/1000 ->  | EW129: 0 | EX129: =$AZ$129*$Y129 -> 0 | EY129: =($AZ$129*$BN129*D$129*$Y129)/1000 ->  | FB129: =($AZ$129*$BO129*D$129*$Y129)/1000 ->  | FE129: =($AZ$129*$BP129*D$129*$Y129)/1000 ->  | FH129: =($AZ$129*$BQ129*D$129*$Y129)/1000 ->  | FK129: =($AZ$129*$BR129*D$129*$Y129)/1000 ->  | FN129: =($AZ$129*$BS129*D$129*$Y129)/1000 ->  | FQ129: =($AZ$129*$BT129*D$129*$Y129)/1000 ->  | FT129: =($AZ$129*$BU129*D$129*$Y129)/1000 ->  | FW129: =($AZ$129*$BV129*D$129*$Y129)/1000 ->  | FZ129: =($AZ$129*$BW129*D$129*$Y129)/1000 ->  | GC129: =($AZ$129*$BX129*D$129*$Y129)/1000 ->  | GF129: 0 | GG129: =$AZ$129*$Z129 -> 0 | GH129: =($AZ$129*$BY129*D$129*$Z129)/1000 ->  | GK129: =($AZ$129*$BZ129*D$129*$Z129)/1000 ->  | GN129: =($AZ$129*$CA129*D$129*$Z129)/1000 ->  | GQ129: =($AZ$129*$CB129*D$129*$Z129)/1000 ->  | GT129: =($AZ$129*$CD129*D$129*$Z129)/1000 ->  | GW129: =($AZ$129*$CD129*D$129*$Z129)/1000 ->  | GZ129: =($AZ$129*$CE129*D$129*$Z129)/1000 ->  | HC129: =($AZ$129*$CF129*D$129*$Z129)/1000 ->  | HF129: =($AZ$129*$CG129*D$129*$Z129)/1000 ->  | HI129: =($AZ$129*$CH129*D$129*$Z129)/1000 ->  | HL129: =($AZ$129*$CI129*D$129*$Z129)/1000 ->  | HO129: 0 | HP129: =$AZ$129*$AA129 -> 0 | HQ129: =($AZ$129*$CJ129*D$129*$AA129)/1000 ->  | HT129: =($AZ$129*$CK129*D$129*$AA129)/1000 ->  | HW129: =($AZ$129*$CL129*D$129*$AA129)/1000 ->  | HZ129: =($AZ$129*$CM129*D$129*$AA129)/1000 ->  | IC129: =($AZ$129*$CN129*D$129*$AA129)/1000 ->  | IF129: =($AZ$129*$CO129*D$129*$AA129)/1000 ->  | II129: =($AZ$129*$CP129*D$129*$AA129)/1000 ->  | IL129: =($AZ$129*$CQ129*D$129*$AA129)/1000 ->  | IO129: =($AZ$129*$CR129*D$129*$AA129)/1000 ->  | IR129: =($AZ$129*$CS129*D$129*$AA129)/1000 ->  | IU129: =($AZ$129*$CT129*D$129*$AA129)/1000 ->  | IX129: 0 | IY129: =$AZ$129*$AB129 -> 0 | IZ129: =($AZ$129*$CU129*D$129*$AB129)/1000 ->  | JC129: =($AZ$129*$CV129*D$129*$AB129)/1000 ->  | JF129: =($AZ$129*$CW129*D$129*$AB129)/1000 ->  | JI129: =($AZ$129*$CX129*D$129*$AB129)/1000 ->  | JL129: =($AZ$129*$CY129*D$129*$AB129)/1000 ->  | JO129: =($AZ$129*$CZ129*D$129*$AB129)/1000 ->  | JR129: =($AZ$129*$DA129*D$129*$AB129)/1000 ->  | JU129: =($AZ$129*$DB129*D$129*$AB129)/1000 ->  | JX129: =($AZ$129*$DC129*D$129*$AB129)/1000 ->  | KA129: =($AZ$129*$DD129*D$129*$AB129)/1000 ->  | KD129: =($AZ$129*$DE129*D$129*$AB129)/1000 ->  | KG129: 0 | KH129: =$AZ$129*$AC129 -> 0 | KI129: =($AZ$129*$DF129*D$129*$AC129)/1000 ->  | KL129: =($AZ$129*$DG129*D$129*$AC129)/1000 ->  | KO129: =($AZ$129*$DH129*D$129*$AC129)/1000 ->  | KR129: =($AZ$129*$DI129*D$129*$AC129)/1000 ->  | KU129: =($AZ$129*$DJ129*D$129*$AC129)/1000 ->  | KX129: =($AZ$129*$DK129*D$129*$AC129)/1000 ->  | LA129: =($AZ$129*$DL129*D$129*$AC129)/1000 ->  | LD129: =($AZ$129*$DM129*D$129*$AC129)/1000 ->  | LG129: =($AZ$129*$DN129*D$129*$AC129)/1000 ->  | LJ129: =($AZ$129*$DO129*D$129*$AC129)/1000 ->  | LM129: =($AZ$129*$DP129*D$129*$AC129)/1000 ->  | LP129: 0 | LQ129: =$AZ$129*$AD129 -> 0 | LR129: =($AZ$129*$DQ129*D$129*$AD129)/1000 ->  | LU129: =($AZ$129*$DR129*D$129*$AD129)/1000 ->  | LX129: =($AZ$129*$DS129*D$129*$AD129)/1000 ->  | MA129: =($AZ$129*$DT129*D$129*$AD129)/1000 ->  | MD129: =($AZ$129*$DU129*D$129*$AD129)/1000 ->  | MG129: =($AZ$129*$DV129*D$129*$AD129)/1000 ->  | MJ129: =($AZ$129*$DW129*D$129*$AD129)/1000 ->  | MM129: =($AZ$129*$DX129*D$129*$AD129)/1000 ->  | MP129: =($AZ$129*$DY129*D$129*$AD129)/1000 ->  | MS129: =($AZ$129*$DZ129*D$129*$AD129)/1000 ->  | MV129: =($AZ$129*$EA129*D$129*$AD129)/1000 -> 
X130: 2 | AH130: N/A | AJ130: FALSE | AO130: 2 | BA130: =IF(AND(BB130="OK",BC130="OK",BD130="OK"),"OK","ERR!") -> OK | BB130: OK | BC130: =IF(OR(SUM(BN130:BX130)<>1,SUM(BY130:CI130)<>1,SUM(CJ130:CT130)<>1,SUM(CU130:DE130)<>1,SUM(DF130:DP130)<>1,SUM(DQ130:EA130)<>1),"ERR!","OK") -> OK | BD130: =IF(AND(OR(BE130=BK130,BE130=0),OR(BF130=BK130,BF130=0),OR(BG130=BK130,BG130=0),OR(BH130=BK130,BH130=0),OR(BI130=BK130,BI130=0),OR(BJ130=BK130,BJ130=0)),"OK","ERR!") -> OK | BE130: =(BN130*POWER(10,0)+BO130*POWER(10,1)+BP130*POWER(10,2)+BQ130*POWER(10,3)+BR130*POWER(10,4)+BS130*POWER(10,5)+BT130*POWER(10,6)+BU130*POWER(10,7)+BV130*POWER(10,8)+BW130*POWER(10,9)+BX130*POWER(10,10)) -> 100 | BF130: =(BY130*POWER(10,0)+BZ130*POWER(10,1)+CA130*POWER(10,2)+CB130*POWER(10,3)+CC130*POWER(10,4)+CD130*POWER(10,5)+CE130*POWER(10,6)+CF130*POWER(10,7)+CG130*POWER(10,8)+CH130*POWER(10,9)+CI130*POWER(10,10)) -> 100 | BG130: =(CJ130*POWER(10,0)+CK130*POWER(10,1)+CL130*POWER(10,2)+CM130*POWER(10,3)+CN130*POWER(10,4)+CO130*POWER(10,5)+CP130*POWER(10,6)+CQ130*POWER(10,7)+CR130*POWER(10,8)+CS130*POWER(10,9)+CT130*POWER(10,10)) -> 100 | BH130: =(CU130*POWER(10,0)+CV130*POWER(10,1)+CW130*POWER(10,2)+CX130*POWER(10,3)+CY130*POWER(10,4)+CZ130*POWER(10,5)+DA130*POWER(10,6)+DB130*POWER(10,7)+DC130*POWER(10,8)+DD130*POWER(10,9)+DE130*POWER(10,10)) -> 100 | BI130: =(DF130*POWER(10,0)+DG130*POWER(10,1)+DH130*POWER(10,2)+DI130*POWER(10,3)+DJ130*POWER(10,4)+DK130*POWER(10,5)+DL130*POWER(10,6)+DM130*POWER(10,7)+DN130*POWER(10,8)+DO130*POWER(10,9)+DP130*POWER(10,10)) -> 100 | BJ130: =(DQ130*POWER(10,0)+DR130*POWER(10,1)+DS130*POWER(10,2)+DT130*POWER(10,3)+DU130*POWER(10,4)+DV130*POWER(10,5)+DW130*POWER(10,6)+DX130*POWER(10,7)+DY130*POWER(10,8)+DZ130*POWER(10,9)+EA130*POWER(10,10)) -> 100 | BK130: =MAX(BE130:BJ130) -> 100 | BM130: 2 | BP130: 1 | CA130: 1 | CL130: 1 | CW130: 1 | DH130: 1 | DS130: 1 | EC130: 2 | EW130: 2 | EX130: 0 | GF130: 2 | GG130: 0 | HO130: 2 | HP130: 0 | IX130: 2 | IY130: 0 | KG130: 2 | KH130: 0 | LP130: 2 | LQ130: 0
X131: 3 | AH131: N/A | AJ131: FALSE | AO131: 3 | BA131: =IF(AND(BB131="OK",BC131="OK",BD131="OK"),"OK","ERR!") -> OK | BB131: OK | BC131: =IF(OR(SUM(BN131:BX131)<>1,SUM(BY131:CI131)<>1,SUM(CJ131:CT131)<>1,SUM(CU131:DE131)<>1,SUM(DF131:DP131)<>1,SUM(DQ131:EA131)<>1),"ERR!","OK") -> OK | BD131: =IF(AND(OR(BE131=BK131,BE131=0),OR(BF131=BK131,BF131=0),OR(BG131=BK131,BG131=0),OR(BH131=BK131,BH131=0),OR(BI131=BK131,BI131=0),OR(BJ131=BK131,BJ131=0)),"OK","ERR!") -> OK | BE131: 100 | BF131: 100 | BG131: 100 | BH131: 100 | BI131: 100 | BJ131: 100 | BK131: =MAX(BE131:BJ131) -> 100 | BM131: 3 | BP131: 1 | CA131: 1 | CL131: 1 | CW131: 1 | DH131: 1 | DS131: 1 | EC131: 3 | EW131: 3 | EX131: 0 | GF131: 3 | GG131: 0 | HO131: 3 | HP131: 0 | IX131: 3 | IY131: 0 | KG131: 3 | KH131: 0 | LP131: 3 | LQ131: 0
X132: 4 | AH132: N/A | AJ132: FALSE | AO132: 4 | BA132: =IF(AND(BB132="OK",BC132="OK",BD132="OK"),"OK","ERR!") -> OK | BB132: OK | BC132: OK | BD132: =IF(AND(OR(BE132=BK132,BE132=0),OR(BF132=BK132,BF132=0),OR(BG132=BK132,BG132=0),OR(BH132=BK132,BH132=0),OR(BI132=BK132,BI132=0),OR(BJ132=BK132,BJ132=0)),"OK","ERR!") -> OK | BE132: 100 | BF132: 100 | BG132: 100 | BH132: 100 | BI132: 100 | BJ132: 100 | BK132: 100 | BM132: 4 | BP132: 1 | CA132: 1 | CL132: 1 | CW132: 1 | DH132: 1 | DS132: 1 | EC132: 4 | EW132: 4 | EX132: 0 | GF132: 4 | GG132: 0 | HO132: 4 | HP132: 0 | IX132: 4 | IY132: 0 | KG132: 4 | KH132: 0 | LP132: 4 | LQ132: 0
X133: 7 | AH133: N/A | AJ133: FALSE | AO133: 7 | BA133: =IF(AND(BB133="OK",BC133="OK",BD133="OK"),"OK","ERR!") -> OK | BB133: OK | BC133: OK | BD133: OK | BE133: 100 | BF133: 100 | BG133: 100 | BH133: 100 | BI133: 100 | BJ133: 100 | BK133: 100 | BM133: 7 | BP133: 1 | CA133: 1 | CL133: 1 | CW133: 1 | DH133: 1 | DS133: 1 | EC133: 7 | EW133: 7 | EX133: 0 | GF133: 7 | GG133: 0 | HO133: 7 | HP133: 0 | IX133: 7 | IY133: 0 | KG133: 7 | KH133: 0 | LP133: 7 | LQ133: 0
X134: 8 | AH134: N/A | AJ134: FALSE | AO134: 8 | BA134: OK | BB134: OK | BC134: OK | BD134: OK | BE134: 100 | BF134: 100 | BG134: 100 | BH134: 100 | BI134: 100 | BJ134: 100 | BK134: 100 | BM134: 8 | BP134: 1 | CA134: 1 | CL134: 1 | CW134: 1 | DH134: 1 | DS134: 1 | EC134: 8 | EW134: 8 | EX134: 0 | GF134: 8 | GG134: 0 | HO134: 8 | HP134: 0 | IX134: 8 | IY134: 0 | KG134: 8 | KH134: 0 | LP134: 8 | LQ134: 0
X135: 9 | AH135: N/A | AJ135: FALSE | AO135: 9 | BA135: OK | BB135: OK | BC135: OK | BD135: OK | BE135: 100 | BF135: 100 | BG135: 100 | BH135: =(CU135*POWER(10,0)+CV135*POWER(10,1)+CW135*POWER(10,2)+CX135*POWER(10,3)+CY135*POWER(10,4)+CZ135*POWER(10,5)+DA135*POWER(10,6)+DB135*POWER(10,7)+DC135*POWER(10,8)+DD135*POWER(10,9)+DE135*POWER(10,10)) -> 100 | BI135: =(DF135*POWER(10,0)+DG135*POWER(10,1)+DH135*POWER(10,2)+DI135*POWER(10,3)+DJ135*POWER(10,4)+DK135*POWER(10,5)+DL135*POWER(10,6)+DM135*POWER(10,7)+DN135*POWER(10,8)+DO135*POWER(10,9)+DP135*POWER(10,10)) -> 100 | BJ135: 100 | BK135: 100 | BM135: 9 | BP135: 1 | CA135: 1 | CL135: 1 | CW135: 1 | DH135: 1 | DS135: 1 | EC135: 9 | EW135: 9 | EX135: 0 | GF135: 9 | GG135: 0 | HO135: 9 | HP135: 0 | IX135: 9 | IY135: 0 | KG135: 9 | KH135: 0 | LP135: 9 | LQ135: 0
X136: Total | Y136: =SUM(Y129:Y135) -> 0 | Z136: =SUM(Z129:Z135) -> 0 | AA136: 0 | AB136: 0 | AC136: 0 | AD136: 0 | AH136: N/A | AJ136: FALSE | AO136: Total | BM136: Total | EC136: Total | ED136: =SUM(ED129:ED135) ->  | EE136: =SUM(EE129:EE135) ->  | EF136: =SUM(EF129:EF135) ->  | EG136: =SUM(EG129:EG135) ->  | EH136: =SUM(EH129:EH135) ->  | EI136: =SUM(EI129:EI135) ->  | EW136: Total | EX136: =SUM(EX129:EX135) -> 0 | EY136: =SUM(EY129:EY135) ->  | EZ136: =SUM(EZ129:EZ135) ->  | FC136: =SUM(FC129:FC135) ->  | FD136: =SUM(FD129:FD135) ->  | FN136: =SUM(FN129:FN135) ->  | FO136: =SUM(FO129:FO135) ->  | FP136: =SUM(FP129:FP135) ->  | FQ136: =SUM(FQ129:FQ135) ->  | GC136: =SUM(GC129:GC135) ->  | GD136: =SUM(GD129:GD135) ->  | GF136: Total | GG136: =SUM(GG129:GG135) -> 0 | GH136: =SUM(GH129:GH135) ->  | GI136: =SUM(GI129:GI135) ->  | GL136: =SUM(GL129:GL135) ->  | GM136: =SUM(GM129:GM135) ->  | GN136: =SUM(GN129:GN135) ->  | GW136: =SUM(GW129:GW135) ->  | GX136: =SUM(GX129:GX135) ->  | GY136: =SUM(GY129:GY135) ->  | GZ136: =SUM(GZ129:GZ135) ->  | HL136: =SUM(HL129:HL135) ->  | HM136: =SUM(HM129:HM135) ->  | HO136: Total | HP136: =SUM(HP129:HP135) -> 0 | HQ136: =SUM(HQ129:HQ135) ->  | HR136: =SUM(HR129:HR135) ->  | HU136: =SUM(HU129:HU135) ->  | HV136: =SUM(HV129:HV135) ->  | IF136: =SUM(IF129:IF135) ->  | IG136: =SUM(IG129:IG135) ->  | IH136: =SUM(IH129:IH135) ->  | II136: =SUM(II129:II135) ->  | IU136: =SUM(IU129:IU135) ->  | IV136: =SUM(IV129:IV135) ->  | IX136: Total | IY136: =SUM(IY129:IY135) -> 0 | IZ136: =SUM(IZ129:IZ135) ->  | JA136: =SUM(JA129:JA135) ->  | JD136: =SUM(JD129:JD135) ->  | JE136: =SUM(JE129:JE135) ->  | JO136: =SUM(JO129:JO135) ->  | JP136: =SUM(JP129:JP135) ->  | JQ136: =SUM(JQ129:JQ135) ->  | JR136: =SUM(JR129:JR135) ->  | KD136: =SUM(KD129:KD135) ->  | KE136: =SUM(KE129:KE135) ->  | KG136: Total | KH136: =SUM(KH129:KH135) -> 0 | KI136: =SUM(KI129:KI135) ->  | KJ136: =SUM(KJ129:KJ135) ->  | KM136: =SUM(KM129:KM135) ->  | KN136: =SUM(KN129:KN135) ->  | KX136: =SUM(KX129:KX135) ->  | KY136: =SUM(KY129:KY135) ->  | KZ136: =SUM(KZ129:KZ135) ->  | LA136: =SUM(LA129:LA135) ->  | LM136: =SUM(LM129:LM135) ->  | LN136: =SUM(LN129:LN135) ->  | LP136: Total | LQ136: =SUM(LQ129:LQ135) -> 0 | LR136: =SUM(LR129:LR135) ->  | LS136: =SUM(LS129:LS135) ->  | LV136: =SUM(LV129:LV135) ->  | LW136: =SUM(LW129:LW135) ->  | MF136: =SUM(MF129:MF135) ->  | MG136: =SUM(MG129:MG135) ->  | MH136: =SUM(MH129:MH135) ->  | MI136: =SUM(MI129:MI135) ->  | MJ136: =SUM(MJ129:MJ135) ->  | MV136: =SUM(MV129:MV135) ->  | MW136: =SUM(MW129:MW135) -> 
B137: =B129+1 -> 14 | C137: ='Regional Project List Sheet'!F18 -> 0 | D137: =IF('Regional Project List Sheet'!$G18="New",1,"") ->  | E137: =IF('Regional Project List Sheet'!$G18="Funded Old",1,"") ->  | F137: =IF('Regional Project List Sheet'!$G18="Unfunded Old",1,"") ->  | G137: ='Regional Project List Sheet'!H18 -> 0 | H137: ='Regional Project List Sheet'!I18 -> 0 | I137: ='Regional Project List Sheet'!L18 -> 0 | J137: ='Regional Project List Sheet'!M18 -> 0 | K137: ='Regional Project List Sheet'!N18 -> 0 | L137: ='Regional Project List Sheet'!O18 -> 0 | M137: ='Regional Project List Sheet'!P18 -> 0 | N137: =IF('Regional Project List Sheet'!$Q18="N/A","N/A",IF($Y140<>0,5,IF($Z140<>0,4,IF($AA140<>0,3,IF($AB140<>0,2,1))))) -> 1 | O137: =VLOOKUP($C137,'[2]Ranking|Priority'!$B$5:$O$68,12,FALSE) ->  | P137: =VLOOKUP($C137,'[2]Ranking|Priority'!$B$5:$O$68,13,FALSE) ->  | Q137: =VLOOKUP($C137,'[2]Ranking|Priority'!$B$5:$O$68,14,FALSE) ->  | R137: ='Regional Project List Sheet'!T18 -> 0 | S137: ='Regional Project List Sheet'!U18 -> 0 | T137: ='Regional Project List Sheet'!V18 -> 0 | U137: ='Regional Project List Sheet'!W18 -> 0 | V137: ='Regional Project List Sheet'!X18 -> 0 | W137: ='Regional Project List Sheet'!Y18 -> Choose from Project List in cell I2 | X137: 0 | AF137: ='Regional Project List Sheet'!AJ18 -> 0 | AG137: =IF(OR('Regional Project List Sheet'!$AA18<>'Regional Project List Sheet'!$A$40,'Regional Project List Sheet'!$AD18<>'Regional Project List Sheet'!$A$40,'Regional Project List Sheet'!$AG18<>'Regional Project List Sheet'!$A$40),_xlfn.CONCAT(IF(ISNUMBER('Regional Project List Sheet'!$AA18),'Regional Project List Sheet'!$A$36,"")," ",IF(ISNUMBER('Regional Project List Sheet'!$AD18),'Regional Project List Sheet'!$A$37,"")," ",IF(ISNUMBER('Regional Project List Sheet'!$AG18),'Regional Project List Sheet'!$A$38,"")),"N/A") -> N/A | AH137: N/A | AI137: =IF(OR('Regional Project List Sheet'!AC18<>'Regional Project List Sheet'!$A$40,'Regional Project List Sheet'!AF18<>'Regional Project List Sheet'!$A$40,'Regional Project List Sheet'!AI18<>'Regional Project List Sheet'!$A$40), IF(LEN(_xlfn.CONCAT(IF('Regional Project List Sheet'!AC18="Yes",'Regional Project List Sheet'!$A$36,"")," ", IF('Regional Project List Sheet'!AF18="Yes",'Regional Project List Sheet'!$A$37,"")," ", IF('Regional Project List Sheet'!AI18="Yes",'Regional Project List Sheet'!$A$38,"")))<3,"No", _xlfn.CONCAT(IF('Regional Project List Sheet'!AC18="Yes",'Regional Project List Sheet'!$A$36,"")," ", IF('Regional Project List Sheet'!AF18="Yes",'Regional Project List Sheet'!$A$37,"")," ", IF('Regional Project List Sheet'!AI18="Yes",'Regional Project List Sheet'!$A$38,"")))) -> FALSE | AJ137: FALSE | AK137: ='Regional Project List Sheet'!AK18 -> 0 | AM137: ='Regional Project List Sheet'!AL18 -> 0 | AO137: 0 | AZ137: 1 | BA137: =IF(AND(BB137="OK",BC137="OK",BD137="OK"),"OK","ERR!") -> OK | BB137: =IF(AND(Y137>0,SUM(BN137:BX137)<1),"ERR!",IF(AND(Z137>0,SUM(BY137:CI137)<1),"ERR!",IF(AND(AA137>0,SUM(CJ137:CT137)<1),"ERR",IF(AND(AB137>0,SUM(CU137:DE137)<1),"ERR",IF(AND(AC137>0,SUM(DF137:DP137)<1),"ERR",IF(AND(AD137>0,SUM(DQ137:EA137)<1),"ERR","OK")))))) -> OK | BC137: =IF(OR(SUM(BN137:BX137)<>1,SUM(BY137:CI137)<>1,SUM(CJ137:CT137)<>1,SUM(CU137:DE137)<>1,SUM(DF137:DP137)<>1,SUM(DQ137:EA137)<>1),"ERR!","OK") -> OK | BD137: =IF(AND(OR(BE137=BK137,BE137=0),OR(BF137=BK137,BF137=0),OR(BG137=BK137,BG137=0),OR(BH137=BK137,BH137=0),OR(BI137=BK137,BI137=0),OR(BJ137=BK137,BJ137=0)),"OK","ERR!") -> OK | BE137: =(BN137*POWER(10,0)+BO137*POWER(10,1)+BP137*POWER(10,2)+BQ137*POWER(10,3)+BR137*POWER(10,4)+BS137*POWER(10,5)+BT137*POWER(10,6)+BU137*POWER(10,7)+BV137*POWER(10,8)+BW137*POWER(10,9)+BX137*POWER(10,10)) -> 100 | BF137: =(BY137*POWER(10,0)+BZ137*POWER(10,1)+CA137*POWER(10,2)+CB137*POWER(10,3)+CC137*POWER(10,4)+CD137*POWER(10,5)+CE137*POWER(10,6)+CF137*POWER(10,7)+CG137*POWER(10,8)+CH137*POWER(10,9)+CI137*POWER(10,10)) -> 100 | BG137: =(CJ137*POWER(10,0)+CK137*POWER(10,1)+CL137*POWER(10,2)+CM137*POWER(10,3)+CN137*POWER(10,4)+CO137*POWER(10,5)+CP137*POWER(10,6)+CQ137*POWER(10,7)+CR137*POWER(10,8)+CS137*POWER(10,9)+CT137*POWER(10,10)) -> 100 | BH137: =(CU137*POWER(10,0)+CV137*POWER(10,1)+CW137*POWER(10,2)+CX137*POWER(10,3)+CY137*POWER(10,4)+CZ137*POWER(10,5)+DA137*POWER(10,6)+DB137*POWER(10,7)+DC137*POWER(10,8)+DD137*POWER(10,9)+DE137*POWER(10,10)) -> 100 | BI137: =(DF137*POWER(10,0)+DG137*POWER(10,1)+DH137*POWER(10,2)+DI137*POWER(10,3)+DJ137*POWER(10,4)+DK137*POWER(10,5)+DL137*POWER(10,6)+DM137*POWER(10,7)+DN137*POWER(10,8)+DO137*POWER(10,9)+DP137*POWER(10,10)) -> 100 | BJ137: =(DQ137*POWER(10,0)+DR137*POWER(10,1)+DS137*POWER(10,2)+DT137*POWER(10,3)+DU137*POWER(10,4)+DV137*POWER(10,5)+DW137*POWER(10,6)+DX137*POWER(10,7)+DY137*POWER(10,8)+DZ137*POWER(10,9)+EA137*POWER(10,10)) -> 100 | BK137: =MAX(BE137:BJ137) -> 100 | BM137: 0 | BP137: 1 | CA137: 1 | CL137: 1 | CW137: 1 | DH137: 1 | DS137: 1 | EC137: 0 | ED137: =($Y137*D$137)/1000 ->  | EG137: =($Z137*D$137)/1000 ->  | EJ137: =($AA137*D$137)/1000 ->  | EM137: =($AB137*D$137)/1000 ->  | EP137: =($AC137*D$137)/1000 ->  | ES137: =($AD137*D$137)/1000 ->  | EW137: 0 | EX137: =$AZ$137*$Y137 -> 0 | EY137: =($AZ$137*$BN137*D$137*$Y137)/1000 ->  | FB137: =($AZ$137*$BO137*D$137*$Y137)/1000 ->  | FE137: =($AZ$137*$BP137*D$137*$Y137)/1000 ->  | FH137: =($AZ$137*$BQ137*D$137*$Y137)/1000 ->  | FK137: =($AZ$137*$BR137*D$137*$Y137)/1000 ->  | FN137: =($AZ$137*$BS137*D$137*$Y137)/1000 ->  | FQ137: =($AZ$137*$BT137*D$137*$Y137)/1000 ->  | FT137: =($AZ$137*$BU137*D$137*$Y137)/1000 ->  | FW137: =($AZ$137*$BV137*D$137*$Y137)/1000 ->  | FZ137: =($AZ$137*$BW137*D$137*$Y137)/1000 ->  | GC137: =($AZ$137*$BX137*D$137*$Y137)/1000 ->  | GF137: 0 | GG137: =$AZ$137*$Z137 -> 0 | GH137: =($AZ$137*$BY137*D$137*$Z137)/1000 ->  | GK137: =($AZ$137*$BZ137*D$137*$Z137)/1000 ->  | GN137: =($AZ$137*$CA137*D$137*$Z137)/1000 ->  | GQ137: =($AZ$137*$CB137*D$137*$Z137)/1000 ->  | GT137: =($AZ$137*$CD137*D$137*$Z137)/1000 ->  | GW137: =($AZ$137*$CD137*D$137*$Z137)/1000 ->  | GZ137: =($AZ$137*$CE137*D$137*$Z137)/1000 ->  | HC137: =($AZ$137*$CF137*D$137*$Z137)/1000 ->  | HF137: =($AZ$137*$CG137*D$137*$Z137)/1000 ->  | HI137: =($AZ$137*$CH137*D$137*$Z137)/1000 ->  | HL137: =($AZ$137*$CI137*D$137*$Z137)/1000 ->  | HO137: 0 | HP137: =$AZ$137*$AA137 -> 0 | HQ137: =($AZ$137*$CJ137*D$137*$AA137)/1000 ->  | HT137: =($AZ$137*$CK137*D$137*$AA137)/1000 ->  | HW137: =($AZ$137*$CL137*D$137*$AA137)/1000 ->  | HZ137: =($AZ$137*$CM137*D$137*$AA137)/1000 ->  | IC137: =($AZ$137*$CN137*D$137*$AA137)/1000 ->  | IF137: =($AZ$137*$CO137*D$137*$AA137)/1000 ->  | II137: =($AZ$137*$CP137*D$137*$AA137)/1000 ->  | IL137: =($AZ$137*$CQ137*D$137*$AA137)/1000 ->  | IO137: =($AZ$137*$CR137*D$137*$AA137)/1000 ->  | IR137: =($AZ$137*$CS137*D$137*$AA137)/1000 ->  | IU137: =($AZ$137*$CT137*D$137*$AA137)/1000 ->  | IX137: 0 | IY137: =$AZ$137*$AB137 -> 0 | IZ137: =($AZ$137*$CU137*D$137*$AB137)/1000 ->  | JC137: =($AZ$137*$CV137*D$137*$AB137)/1000 ->  | JF137: =($AZ$137*$CW137*D$137*$AB137)/1000 ->  | JI137: =($AZ$137*$CX137*D$137*$AB137)/1000 ->  | JL137: =($AZ$137*$CY137*D$137*$AB137)/1000 ->  | JO137: =($AZ$137*$CZ137*D$137*$AB137)/1000 ->  | JR137: =($AZ$137*$DA137*D$137*$AB137)/1000 ->  | JU137: =($AZ$137*$DB137*D$137*$AB137)/1000 ->  | JX137: =($AZ$137*$DC137*D$137*$AB137)/1000 ->  | KA137: =($AZ$137*$DD137*D$137*$AB137)/1000 ->  | KD137: =($AZ$137*$DE137*D$137*$AB137)/1000 ->  | KG137: 0 | KH137: =$AZ$137*$AC137 -> 0 | KI137: =($AZ$137*$DF137*D$137*$AC137)/1000 ->  | KL137: =($AZ$137*$DG137*D$137*$AC137)/1000 ->  | KO137: =($AZ$137*$DH137*D$137*$AC137)/1000 ->  | KR137: =($AZ$137*$DI137*D$137*$AC137)/1000 ->  | KU137: =($AZ$137*$DJ137*D$137*$AC137)/1000 ->  | KX137: =($AZ$137*$DK137*D$137*$AC137)/1000 ->  | LA137: =($AZ$137*$DL137*D$137*$AC137)/1000 ->  | LD137: =($AZ$137*$DM137*D$137*$AC137)/1000 ->  | LG137: =($AZ$137*$DN137*D$137*$AC137)/1000 ->  | LJ137: =($AZ$137*$DO137*D$137*$AC137)/1000 ->  | LM137: =($AZ$137*$DP137*D$137*$AC137)/1000 ->  | LP137: 0 | LQ137: =$AZ$137*$AD137 -> 0 | LR137: =($AZ$137*$DQ137*D$137*$AD137)/1000 ->  | LU137: =($AZ$137*$DR137*D$137*$AD137)/1000 ->  | LX137: =($AZ$137*$DS137*D$137*$AD137)/1000 ->  | MA137: =($AZ$137*$DT137*D$137*$AD137)/1000 ->  | MD137: =($AZ$137*$DU137*D$137*$AD137)/1000 ->  | MG137: =($AZ$137*$DV137*D$137*$AD137)/1000 ->  | MJ137: =($AZ$137*$DW137*D$137*$AD137)/1000 ->  | MM137: =($AZ$137*$DX137*D$137*$AD137)/1000 ->  | MP137: =($AZ$137*$DY137*D$137*$AD137)/1000 ->  | MS137: =($AZ$137*$DZ137*D$137*$AD137)/1000 ->  | MV137: =($AZ$137*$EA137*D$137*$AD137)/1000 -> 
X138: 2 | AH138: N/A | AJ138: FALSE | AO138: 2 | BA138: =IF(AND(BB138="OK",BC138="OK",BD138="OK"),"OK","ERR!") -> OK | BB138: OK | BC138: =IF(OR(SUM(BN138:BX138)<>1,SUM(BY138:CI138)<>1,SUM(CJ138:CT138)<>1,SUM(CU138:DE138)<>1,SUM(DF138:DP138)<>1,SUM(DQ138:EA138)<>1),"ERR!","OK") -> OK | BD138: =IF(AND(OR(BE138=BK138,BE138=0),OR(BF138=BK138,BF138=0),OR(BG138=BK138,BG138=0),OR(BH138=BK138,BH138=0),OR(BI138=BK138,BI138=0),OR(BJ138=BK138,BJ138=0)),"OK","ERR!") -> OK | BE138: =(BN138*POWER(10,0)+BO138*POWER(10,1)+BP138*POWER(10,2)+BQ138*POWER(10,3)+BR138*POWER(10,4)+BS138*POWER(10,5)+BT138*POWER(10,6)+BU138*POWER(10,7)+BV138*POWER(10,8)+BW138*POWER(10,9)+BX138*POWER(10,10)) -> 100 | BF138: =(BY138*POWER(10,0)+BZ138*POWER(10,1)+CA138*POWER(10,2)+CB138*POWER(10,3)+CC138*POWER(10,4)+CD138*POWER(10,5)+CE138*POWER(10,6)+CF138*POWER(10,7)+CG138*POWER(10,8)+CH138*POWER(10,9)+CI138*POWER(10,10)) -> 100 | BG138: =(CJ138*POWER(10,0)+CK138*POWER(10,1)+CL138*POWER(10,2)+CM138*POWER(10,3)+CN138*POWER(10,4)+CO138*POWER(10,5)+CP138*POWER(10,6)+CQ138*POWER(10,7)+CR138*POWER(10,8)+CS138*POWER(10,9)+CT138*POWER(10,10)) -> 100 | BH138: =(CU138*POWER(10,0)+CV138*POWER(10,1)+CW138*POWER(10,2)+CX138*POWER(10,3)+CY138*POWER(10,4)+CZ138*POWER(10,5)+DA138*POWER(10,6)+DB138*POWER(10,7)+DC138*POWER(10,8)+DD138*POWER(10,9)+DE138*POWER(10,10)) -> 100 | BI138: =(DF138*POWER(10,0)+DG138*POWER(10,1)+DH138*POWER(10,2)+DI138*POWER(10,3)+DJ138*POWER(10,4)+DK138*POWER(10,5)+DL138*POWER(10,6)+DM138*POWER(10,7)+DN138*POWER(10,8)+DO138*POWER(10,9)+DP138*POWER(10,10)) -> 100 | BJ138: =(DQ138*POWER(10,0)+DR138*POWER(10,1)+DS138*POWER(10,2)+DT138*POWER(10,3)+DU138*POWER(10,4)+DV138*POWER(10,5)+DW138*POWER(10,6)+DX138*POWER(10,7)+DY138*POWER(10,8)+DZ138*POWER(10,9)+EA138*POWER(10,10)) -> 100 | BK138: =MAX(BE138:BJ138) -> 100 | BM138: 2 | BP138: 1 | CA138: 1 | CL138: 1 | CW138: 1 | DH138: 1 | DS138: 1 | EC138: 2 | EW138: 2 | EX138: 0 | GF138: 2 | GG138: 0 | HO138: 2 | HP138: 0 | IX138: 2 | IY138: 0 | KG138: 2 | KH138: 0 | LP138: 2 | LQ138: 0
X139: 3 | AH139: N/A | AJ139: FALSE | AO139: 3 | BA139: =IF(AND(BB139="OK",BC139="OK",BD139="OK"),"OK","ERR!") -> OK | BB139: OK | BC139: =IF(OR(SUM(BN139:BX139)<>1,SUM(BY139:CI139)<>1,SUM(CJ139:CT139)<>1,SUM(CU139:DE139)<>1,SUM(DF139:DP139)<>1,SUM(DQ139:EA139)<>1),"ERR!","OK") -> OK | BD139: =IF(AND(OR(BE139=BK139,BE139=0),OR(BF139=BK139,BF139=0),OR(BG139=BK139,BG139=0),OR(BH139=BK139,BH139=0),OR(BI139=BK139,BI139=0),OR(BJ139=BK139,BJ139=0)),"OK","ERR!") -> OK | BE139: 100 | BF139: 100 | BG139: 100 | BH139: 100 | BI139: 100 | BJ139: 100 | BK139: =MAX(BE139:BJ139) -> 100 | BM139: 3 | BP139: 1 | CA139: 1 | CL139: 1 | CW139: 1 | DH139: 1 | DS139: 1 | EC139: 3 | EW139: 3 | EX139: 0 | GF139: 3 | GG139: 0 | HO139: 3 | HP139: 0 | IX139: 3 | IY139: 0 | KG139: 3 | KH139: 0 | LP139: 3 | LQ139: 0
X140: 4 | AH140: N/A | AJ140: FALSE | AO140: 4 | BA140: =IF(AND(BB140="OK",BC140="OK",BD140="OK"),"OK","ERR!") -> OK | BB140: OK | BC140: OK | BD140: =IF(AND(OR(BE140=BK140,BE140=0),OR(BF140=BK140,BF140=0),OR(BG140=BK140,BG140=0),OR(BH140=BK140,BH140=0),OR(BI140=BK140,BI140=0),OR(BJ140=BK140,BJ140=0)),"OK","ERR!") -> OK | BE140: 100 | BF140: 100 | BG140: 100 | BH140: 100 | BI140: 100 | BJ140: 100 | BK140: 100 | BM140: 4 | BP140: 1 | CA140: 1 | CL140: 1 | CW140: 1 | DH140: 1 | DS140: 1 | EC140: 4 | EW140: 4 | EX140: 0 | GF140: 4 | GG140: 0 | HO140: 4 | HP140: 0 | IX140: 4 | IY140: 0 | KG140: 4 | KH140: 0 | LP140: 4 | LQ140: 0
X141: 7 | AH141: N/A | AJ141: FALSE | AO141: 7 | BA141: =IF(AND(BB141="OK",BC141="OK",BD141="OK"),"OK","ERR!") -> OK | BB141: OK | BC141: OK | BD141: OK | BE141: 100 | BF141: 100 | BG141: 100 | BH141: 100 | BI141: 100 | BJ141: 100 | BK141: 100 | BM141: 7 | BP141: 1 | CA141: 1 | CL141: 1 | CW141: 1 | DH141: 1 | DS141: 1 | EC141: 7 | EW141: 7 | EX141: 0 | GF141: 7 | GG141: 0 | HO141: 7 | HP141: 0 | IX141: 7 | IY141: 0 | KG141: 7 | KH141: 0 | LP141: 7 | LQ141: 0
X142: 8 | AH142: N/A | AJ142: FALSE | AO142: 8 | BA142: OK | BB142: OK | BC142: OK | BD142: OK | BE142: 100 | BF142: 100 | BG142: 100 | BH142: 100 | BI142: 100 | BJ142: 100 | BK142: 100 | BM142: 8 | BP142: 1 | CA142: 1 | CL142: 1 | CW142: 1 | DH142: 1 | DS142: 1 | EC142: 8 | EW142: 8 | EX142: 0 | GF142: 8 | GG142: 0 | HO142: 8 | HP142: 0 | IX142: 8 | IY142: 0 | KG142: 8 | KH142: 0 | LP142: 8 | LQ142: 0
X143: 9 | AH143: N/A | AJ143: FALSE | AO143: 9 | BA143: OK | BB143: OK | BC143: OK | BD143: OK | BE143: 100 | BF143: 100 | BG143: 100 | BH143: =(CU143*POWER(10,0)+CV143*POWER(10,1)+CW143*POWER(10,2)+CX143*POWER(10,3)+CY143*POWER(10,4)+CZ143*POWER(10,5)+DA143*POWER(10,6)+DB143*POWER(10,7)+DC143*POWER(10,8)+DD143*POWER(10,9)+DE143*POWER(10,10)) -> 100 | BI143: =(DF143*POWER(10,0)+DG143*POWER(10,1)+DH143*POWER(10,2)+DI143*POWER(10,3)+DJ143*POWER(10,4)+DK143*POWER(10,5)+DL143*POWER(10,6)+DM143*POWER(10,7)+DN143*POWER(10,8)+DO143*POWER(10,9)+DP143*POWER(10,10)) -> 100 | BJ143: 100 | BK143: 100 | BM143: 9 | BP143: 1 | CA143: 1 | CL143: 1 | CW143: 1 | DH143: 1 | DS143: 1 | EC143: 9 | EW143: 9 | EX143: 0 | GF143: 9 | GG143: 0 | HO143: 9 | HP143: 0 | IX143: 9 | IY143: 0 | KG143: 9 | KH143: 0 | LP143: 9 | LQ143: 0
X144: Total | Y144: =SUM(Y137:Y143) -> 0 | Z144: =SUM(Z137:Z143) -> 0 | AA144: 0 | AB144: 0 | AC144: 0 | AD144: 0 | AH144: N/A | AJ144: FALSE | AO144: Total | BM144: Total | EC144: Total | ED144: =SUM(ED137:ED143) ->  | EE144: =SUM(EE137:EE143) ->  | EF144: =SUM(EF137:EF143) ->  | EG144: =SUM(EG137:EG143) ->  | EH144: =SUM(EH137:EH143) ->  | EI144: =SUM(EI137:EI143) ->  | EW144: Total | EX144: =SUM(EX137:EX143) -> 0 | EY144: =SUM(EY137:EY143) ->  | EZ144: =SUM(EZ137:EZ143) ->  | FC144: =SUM(FC137:FC143) ->  | FD144: =SUM(FD137:FD143) ->  | FN144: =SUM(FN137:FN143) ->  | FO144: =SUM(FO137:FO143) ->  | FP144: =SUM(FP137:FP143) ->  | FQ144: =SUM(FQ137:FQ143) ->  | GC144: =SUM(GC137:GC143) ->  | GD144: =SUM(GD137:GD143) ->  | GF144: Total | GG144: =SUM(GG137:GG143) -> 0 | GH144: =SUM(GH137:GH143) ->  | GI144: =SUM(GI137:GI143) ->  | GL144: =SUM(GL137:GL143) ->  | GM144: =SUM(GM137:GM143) ->  | GN144: =SUM(GN137:GN143) ->  | GW144: =SUM(GW137:GW143) ->  | GX144: =SUM(GX137:GX143) ->  | GY144: =SUM(GY137:GY143) ->  | GZ144: =SUM(GZ137:GZ143) ->  | HL144: =SUM(HL137:HL143) ->  | HM144: =SUM(HM137:HM143) ->  | HO144: Total | HP144: =SUM(HP137:HP143) -> 0 | HQ144: =SUM(HQ137:HQ143) ->  | HR144: =SUM(HR137:HR143) ->  | HU144: =SUM(HU137:HU143) ->  | HV144: =SUM(HV137:HV143) ->  | IF144: =SUM(IF137:IF143) ->  | IG144: =SUM(IG137:IG143) ->  | IH144: =SUM(IH137:IH143) ->  | II144: =SUM(II137:II143) ->  | IU144: =SUM(IU137:IU143) ->  | IV144: =SUM(IV137:IV143) ->  | IX144: Total | IY144: =SUM(IY137:IY143) -> 0 | IZ144: =SUM(IZ137:IZ143) ->  | JA144: =SUM(JA137:JA143) ->  | JD144: =SUM(JD137:JD143) ->  | JE144: =SUM(JE137:JE143) ->  | JO144: =SUM(JO137:JO143) ->  | JP144: =SUM(JP137:JP143) ->  | JQ144: =SUM(JQ137:JQ143) ->  | JR144: =SUM(JR137:JR143) ->  | KD144: =SUM(KD137:KD143) ->  | KE144: =SUM(KE137:KE143) ->  | KG144: Total | KH144: =SUM(KH137:KH143) -> 0 | KI144: =SUM(KI137:KI143) ->  | KJ144: =SUM(KJ137:KJ143) ->  | KM144: =SUM(KM137:KM143) ->  | KN144: =SUM(KN137:KN143) ->  | KX144: =SUM(KX137:KX143) ->  | KY144: =SUM(KY137:KY143) ->  | KZ144: =SUM(KZ137:KZ143) ->  | LA144: =SUM(LA137:LA143) ->  | LM144: =SUM(LM137:LM143) ->  | LN144: =SUM(LN137:LN143) ->  | LP144: Total | LQ144: =SUM(LQ137:LQ143) -> 0 | LR144: =SUM(LR137:LR143) ->  | LS144: =SUM(LS137:LS143) ->  | LV144: =SUM(LV137:LV143) ->  | LW144: =SUM(LW137:LW143) ->  | MF144: =SUM(MF137:MF143) ->  | MG144: =SUM(MG137:MG143) ->  | MH144: =SUM(MH137:MH143) ->  | MI144: =SUM(MI137:MI143) ->  | MJ144: =SUM(MJ137:MJ143) ->  | MV144: =SUM(MV137:MV143) ->  | MW144: =SUM(MW137:MW143) -> 
